{"text_format":"1","workbook":"xlsx","n_sheets":27,"sheets":["RESUMEN","Formato PAS","PEI","VIVIENDA 5","IGUALDAD-FTSP 4","EDUCACIÓN 9","ICBF 1","TICs 4","JAMUNDÍ 1+","DSCI 3","INTERIOR 2","CULTURA 3","PRESIDENCIA","ART 1","ADR 8+","MCIT 7","DPS 23","IGAC 13","MADR 1","SALUD 10+","MINAS 6+","TRANSPORTE 12+1","Ambiente +","GOBERNACIÓN 2+<>","López de Micay +1","Actividades","Hoja1"],"not_rendered":{"charts":0,"images":0,"macros":1,"external_links":1,"defined_names":16,"comments":22,"pivot_tables":0},"unopened":[],"bounds":{"document_bytes":16777216,"sheet_cells":100000,"rows_first":2000,"rows_last":500,"rows_between":2000,"halvings":0,"cell_chars":16384,"cell_head_chars":4096},"cells_cut":0,"cells_raw":0,"read":"whole","date_system":"1900"}

{"sheet":"RESUMEN","index":0,"n_rows":24,"n_cols":13,"rows_kept":24,"cut":false,"hidden":true,"merged":[]}
["ENTIDAD RESPONSABLE","NO, DE PROYECTOS","PEI","VDR","TOTAL INVERSION ",1,2,3,4,5,6,7]
["MINISTERIO DE VIVIENDA. CIUDAD Y TERRITORIO; MINISTERIO DE IGUALDAD Y EQUIDAD",{"$f":"COUNTA('VIVIENDA 5'!A4:A13)","v":5},{"$f":"+B2-D2","v":5},0,{"$f":"+'VIVIENDA 5'!T9","v":120791369619},5,0,0,0,0,0,0,{"$f":"SUM(F2:L2)","v":5}]
["MINISTERIO DE IGUALDAD Y EQUIDAD",{"$f":"COUNTA('IGUALDAD-FTSP 4'!A4:A12)","v":4},4,0,{"$f":"+'IGUALDAD-FTSP 4'!T8","v":0},4,0,0,0,0,0,0,{"$f":"SUM(F3:L3)","v":4}]
["MINISTERIO DE EDUCACIÓN NACIONAL",{"$f":"COUNTA('EDUCACIÓN 9'!A4:A14)-1","v":9},{"$f":"+B4-D4","v":8},1,{"$f":"+'EDUCACIÓN 9'!X14","v":197811311255.08792},0,8,0,0,0,0,0,{"$f":"SUM(F4:L4)","v":8}]
["ICBF",{"$f":"COUNTA('ICBF 1'!A4:A11)","v":1},{"$f":"+B5-D5","v":1},0,{"$f":"+'ICBF 1'!T5","v":218578800},0,1,0,0,0,0,0,1]
["MINISTERIO DE TECNOLOGÍAS DE LA INFORMACIÓN Y COMUNICACIONES",{"$f":"COUNTA('TICs 4'!B4:B8)","v":4},4,0,{"$f":"+'TICs 4'!W8","v":18507627982.009983},0,1,1,2,null,null,null,4]
["Alcaldía de Jamundí",{"$f":"COUNTA('JAMUNDÍ 1+'!B4:B6)","v":2},1,1,{"$f":"+'JAMUNDÍ 1+'!T6","v":0},0,1,0,0,0,0,0,1]
["DSCI - DIRECCIÓN DE SUSTITUCIÓN DE CULTIVOS DE USO ILICITO ",{"$f":"COUNTA('DSCI 3'!B4:B6)","v":2},{"$f":"+B8-D8","v":2},0,{"$f":"+'DSCI 3'!T6","v":43487265114},0,0,2,1,0,0,0,{"$f":"SUM(F8:L8)","v":3}]
["MINISTERIO DEL INTERIOR",{"$f":"COUNTA('INTERIOR 2'!A4:A6)","v":2},2,0,{"$f":"+'INTERIOR 2'!V6","v":17675947175},0,0,2,0,0,0,0,2]
["MINISTERIO DE LAS Culturas, las Artes y los Saberes",{"$f":"COUNTA('CULTURA 3'!A4:A7)","v":3},{"$f":"+B10-D10","v":3},0,{"$f":"+'CULTURA 3'!U7","v":3518834616.1300001},0,0,3,0,0,0,0,3]
["PRESIDENCIA/DAPRE - Fondo de Programas Especiales para la Paz",{"$f":"COUNTA(PRESIDENCIA!A4:A6)","v":2},2,0,{"$f":"+PRESIDENCIA!T6","v":0},0,0,2,null,null,null,null,2]
["ART - AGENCIA DE RENOVACIÓN DEL TERRITORIO",{"$f":"COUNTA('ART 1'!A5:A6)","v":0},0,null,{"$f":"+'ART 1'!T5","v":12304388263.09524},0,0,0,1,null,null,null,1]
["ADR - AGENCIA DE DESARROLLO RURAL",{"$f":"COUNTA('ADR 8+'!A4:A13)","v":9},8,1,{"$f":"+'ADR 8+'!T13","v":82325066976},0,0,0,8,0,0,0,8]
["MinCIT",{"$f":"COUNTA('MCIT 7'!A4:A11)","v":7},7,null,{"$f":"+'MCIT 7'!W11","v":48806480967},0,0,0,7,0,0,0,7]
["DPS - DEPARTAMENTO PARA LA PROSPERIDAD SOCIAL",{"$f":"COUNTA('DPS 23'!A4:A27)","v":23},23,null,{"$f":"+'DPS 23'!T27","v":0},0,0,0,22,0,0,1,23]
["IGAC",{"$f":"COUNTA('IGAC 13'!B4:B17)","v":13},13,null,{"$f":"+'IGAC 13'!T17","v":0},0,0,0,13,0,0,0,13]
["MINISTERIO DE AGRICULTURA Y DESARROLLO RURAL ",1,1,null,{"$f":"+'MADR 1'!S4","v":0},0,0,0,1,0,0,0,1]
["MINISTERIO DE SALUD Y PROTECCIÓN SOCIAL",{"$f":"COUNTA('SALUD 10+'!B4:B13)","v":10},10,null,{"$f":"+'SALUD 10+'!X15","v":266019410166},0,0,0,0,10,0,0,10]
["MINISTERIO DE MINAS Y ENERGÍA ",{"$f":"COUNTA('MINAS 6+'!B4:B14)+2","v":12},6,6,{"$f":"+'MINAS 6+'!T14","v":101031486119.60001},0,0,0,0,0,6,0,6]
["MINISTERIO DE TRANSPORTE - INVIAS - AEROCIVIL",{"$f":"COUNTA('TRANSPORTE 12+1'!B4:B17)","v":13},{"$f":"+B20-D20","v":12},1,{"$f":"+#REF!","v":{"$error":"#REF!"}},0,0,0,0,0,0,0,{"$f":"SUM(F20:L20)","v":0}]
["MINISTERIO DE AMBIENTE Y DESARROLLO SOSTENIBLE ",{"$f":"COUNTA(#REF!)","v":1},{"$f":"+B21-D21","v":1},null,{"$f":"+#REF!","v":{"$error":"#REF!"}},null,null,null,null,null,null,null,{"$f":"SUM(F21:L21)","v":0}]
["Gobernación del Cauca",{"$f":"COUNTA('GOBERNACIÓN 2+<>'!B4:B7)-1","v":3},-1,4,{"$f":"+#REF!","v":{"$error":"#REF!"}},null,null,null,null,null,null,null,0]
["Alcaldía López de Micay",1,0,1]
["Total de Proyectos:",{"$f":"SUM(B2:B22)","v":126},112,{"$f":"SUM(D2:D23)","v":15},{"$error":"#REF!"},9,11,10,55,10,6,1,102]

{"sheet":"Formato PAS","index":1,"n_rows":362,"n_cols":18,"rows_kept":362,"cut":false,"hidden":false,"merged":[[291,1,291,3],[291,4,291,6],[292,1,292,3],[292,4,292,6],[293,1,293,3],[293,4,293,6],[281,1,281,3],[281,4,281,6],[288,1,288,3],[288,4,288,6],[289,1,289,3],[289,4,289,6],[290,1,290,3],[290,4,290,6],[287,1,287,3],[287,4,287,6],[283,1,283,3],[283,4,283,6],[278,1,278,3],[278,4,278,6],[279,1,279,3],[279,4,279,6],[280,1,280,3],[280,4,280,6],[274,1,274,3],[274,4,274,6],[275,1,275,3],[275,4,275,6],[276,1,276,3],[276,4,276,6],[277,1,277,3],[277,4,277,6],[269,1,269,3],[269,4,269,6],[270,1,270,3],[270,4,270,6],[271,1,271,3],[271,4,271,6],[272,1,272,3],[272,4,272,6],[273,1,273,3],[273,4,273,6],[222,1,222,3],[222,4,222,6],[223,1,223,3],[223,4,223,6],[254,1,254,3],[254,4,254,6],[255,1,255,3],[255,4,255,6],[224,4,224,6],[225,1,225,3],[225,4,225,6],[229,1,229,3],[229,4,229,6],[230,1,230,3],[230,4,230,6],[231,1,231,3],[231,4,231,6],[232,1,232,3],[232,4,232,6],[233,1,233,3],[233,4,233,6],[234,1,234,3],[236,1,236,3],[236,4,236,6],[208,1,208,3],[208,4,208,6],[213,1,213,3],[213,4,213,6],[209,1,209,3],[209,4,209,6],[210,1,210,3],[210,4,210,6],[211,1,211,3],[212,1,212,3],[211,4,211,6],[212,4,212,6],[0,0,0,12],[1,0,1,12],[2,0,2,12],[3,0,3,12],[4,0,4,12],[5,0,5,12],[10,0,10,4],[11,0,11,12],[12,0,12,12],[10,5,10,12],[14,0,14,12],[6,0,6,4],[6,5,6,12],[7,0,7,4],[7,5,7,12],[15,0,15,12],[8,0,9,4],[8,5,9,12],[13,0,13,12],[16,0,16,2],[16,3,16,5],[16,6,16,8],[16,9,16,11],[17,0,17,2],[17,3,17,5],[17,6,17,8],[17,9,17,11],[20,0,20,2],[20,3,20,5],[20,6,20,8],[20,9,20,11],[21,0,21,2],[21,3,21,5],[21,6,21,8],[21,9,21,11],[18,0,18,2],[18,3,18,5],[18,6,18,8],[18,9,18,11],[19,0,19,2],[19,3,19,5],[19,6,19,8],[19,9,19,11],[24,0,24,2],[24,3,24,5],[24,6,24,8],[24,9,24,11],[22,0,22,2],[22,3,22,5],[22,6,22,8],[22,9,22,11],[23,0,23,2],[23,3,23,5],[23,6,23,8],[23,9,23,11],[25,0,25,12],[26,0,26,12],[27,0,27,12],[28,0,29,0],[28,1,29,1],[28,2,29,2],[28,3,29,3],[28,4,28,5],[28,6,28,8],[28,9,29,9],[43,6,43,8],[43,9,44,9],[43,10,44,10],[43,11,44,11],[43,12,44,12],[57,0,57,12],[28,10,29,10],[28,11,29,11],[28,12,29,12],[40,0,40,12],[42,0,42,12],[43,0,44,0],[43,1,44,1],[43,2,44,2],[43,3,44,3],[43,4,43,5],[59,0,59,12],[60,0,61,0],[60,1,61,1],[60,2,61,2],[60,3,61,3],[60,4,60,5],[60,6,60,8],[60,9,61,9],[60,10,61,10],[60,11,61,11],[60,12,61,12],[73,0,73,12],[75,0,75,12],[76,0,77,0],[76,1,77,1],[76,2,77,2],[76,3,77,3],[76,4,76,5],[76,6,76,8],[76,9,77,9],[139,6,139,8],[139,9,140,9],[139,10,140,10],[139,11,140,11],[139,12,140,12],[153,0,153,12],[76,10,77,10],[76,11,77,11],[76,12,77,12],[136,0,136,12],[138,0,138,12],[139,0,140,0],[139,1,140,1],[139,2,140,2],[139,3,140,3],[139,4,139,5],[168,10,169,10],[168,11,169,11],[168,12,169,12],[185,0,185,12],[184,0,184,12],[155,0,155,12],[156,0,157,0],[156,1,157,1],[156,2,157,2],[156,3,157,3],[156,4,156,5],[156,6,156,8],[156,9,157,9],[156,10,157,10],[156,11,157,11],[156,12,157,12],[167,0,167,12],[168,0,169,0],[168,1,169,1],[332,7,332,12],[322,0,322,12],[323,0,323,12],[198,1,198,3],[198,4,198,6],[199,1,199,3],[199,4,199,6],[200,1,200,3],[200,4,200,6],[204,1,204,3],[204,4,204,6],[205,1,205,3],[205,4,205,6],[206,1,206,3],[206,4,206,6],[207,1,207,3],[207,4,207,6],[214,1,214,3],[214,4,214,6],[219,1,219,3],[219,4,219,6],[220,1,220,3],[220,4,220,6],[221,1,221,3],[336,0,336,5],[336,7,336,12],[337,0,337,5],[337,7,337,12],[201,1,201,3],[201,4,201,6],[333,0,333,5],[333,7,333,12],[334,0,334,5],[334,7,334,12],[335,0,335,5],[335,7,335,12],[324,0,327,12],[328,0,328,12],[329,0,329,12],[330,0,330,12],[331,0,331,12],[332,0,332,5],[202,1,202,3],[202,4,202,6],[203,1,203,3],[203,4,203,6],[221,4,221,6],[224,1,224,3],[28,13,28,16],[43,13,43,16],[60,13,60,16],[195,1,195,3],[195,4,195,6],[196,1,196,3],[196,4,196,6],[197,1,197,3],[197,4,197,6],[191,0,191,12],[192,1,192,3],[192,4,192,6],[193,1,193,3],[193,4,193,6],[194,1,194,3],[194,4,194,6],[187,0,187,12],[188,0,188,12],[76,13,76,16],[156,13,156,16],[168,13,168,16],[186,0,186,3],[186,11,186,12],[165,0,165,12],[189,0,189,12],[190,0,190,12],[168,2,169,2],[168,3,169,3],[168,4,168,5],[168,6,168,8],[168,9,169,9],[234,4,234,6],[235,1,235,3],[235,4,235,6],[226,1,226,3],[226,4,226,6],[227,1,227,3],[227,4,227,6],[228,1,228,3],[228,4,228,6],[215,1,215,3],[215,4,215,6],[216,1,216,3],[216,4,216,6],[217,1,217,3],[217,4,217,6],[218,1,218,3],[218,4,218,6],[237,1,237,3],[237,4,237,6],[238,1,238,3],[238,4,238,6],[239,1,239,3],[239,4,239,6],[240,1,240,3],[240,4,240,6],[262,4,262,6],[263,1,263,3],[263,4,263,6],[264,1,264,3],[241,1,241,3],[241,4,241,6],[242,1,242,3],[242,4,242,6],[243,1,243,3],[243,4,243,6],[244,1,244,3],[244,4,244,6],[245,1,245,3],[245,4,245,6],[139,13,139,16],[295,1,295,3],[295,4,295,6],[296,1,296,3],[296,4,296,6],[246,1,246,3],[246,4,246,6],[247,1,247,3],[247,4,247,6],[248,1,248,3],[248,4,248,6],[253,4,253,6],[282,1,282,3],[282,4,282,6],[256,1,256,3],[256,4,256,6],[257,1,257,3],[257,4,257,6],[259,1,259,3],[259,4,259,6],[260,1,260,3],[260,4,260,6],[261,1,261,3],[261,4,261,6],[297,1,297,3],[297,4,297,6],[298,1,298,3],[298,4,298,6],[249,1,249,3],[249,4,249,6],[250,1,250,3],[250,4,250,6],[284,1,284,3],[284,4,284,6],[285,1,285,3],[285,4,285,6],[286,1,286,3],[286,4,286,6],[251,1,251,3],[251,4,251,6],[252,1,252,3],[252,4,252,6],[253,1,253,3],[264,4,264,6],[265,1,265,3],[265,4,265,6],[266,1,266,3],[262,1,262,3],[302,4,302,6],[303,1,303,3],[306,4,306,6],[308,1,308,3],[308,4,308,6],[303,4,303,6],[304,1,304,3],[304,4,304,6],[258,1,258,3],[258,4,258,6],[294,1,294,3],[294,4,294,6],[299,1,299,3],[299,4,299,6],[300,1,300,3],[300,4,300,6],[301,1,301,3],[301,4,301,6],[302,1,302,3],[266,4,266,6],[267,1,267,3],[267,4,267,6],[268,1,268,3],[268,4,268,6],[319,1,319,3],[319,4,319,6],[320,1,320,3],[320,4,320,6],[316,1,316,3],[316,4,316,6],[317,1,317,3],[317,4,317,6],[318,1,318,3],[318,4,318,6],[305,1,305,3],[305,4,305,6],[307,1,307,3],[307,4,307,6],[306,1,306,3],[314,1,314,3],[314,4,314,6],[315,1,315,3],[315,4,315,6],[309,1,309,3],[309,4,309,6],[310,1,310,3],[310,4,310,6],[311,1,311,3],[311,4,311,6],[312,1,312,3],[312,4,312,6],[313,1,313,3],[313,4,313,6]]}
["PLAN DE ACCIÓN Y SEGUIMIENTO 2026\nPACTO TERRITORIAL CUCA\n\"POR LA TRANSFORMACIÓN TERRITORIAL Y CONSOLIDACIÓN DE LA PAZ TOTAL\"\nFecha de aprobación: 29 /04/ 2026                                                                                           "]
[]
["        1.  OBJETIVO                                                                                              "]
["Articular entre la Nación, el Departamento del Cauca, y los municipios signatarios del Pacto, las políticas, planes y programas orientados a generar condiciones para la transformación territorial y la consolidación de La Paz, mediante la priorización e impulso de inversiones de alto impacto para el desarrollo subregional, local, y el cierre de brechas territoriales en: vivienda digna, agua potable y saneamiento básico; infraestructura de transporte; salud; educación integral; transición energética; paz y reconciliación; desarrollo rural y transformación productiva."]
["        2.  INFORMACIÓN GENERAL                                                                                              "]
["Ámbito de Aplicación: EI Pacto se suscriben en el marco de lo establecido en el articulo 279 de la ley 2294 de 2023, Plan Nacional de Desarrollo 2022 - 2026 \"Colombia Potencia Mundial de la Vida\", en la ley 1454 de 2011, Ley Organica de Ordenamiento Territorial y en las normas que las modifiquen o sustituyan, como una estrategia de articulación entre los diferentes niveles de Gobierno."]
["Fecha de suscripción",null,null,null,null,"11 de septiembre de 2025\t\t\t\t\t\t"]
["Plazo de ejecución",null,null,null,null,"10 años "]
["Suscribientes del Pacto Territorial",null,null,null,null,"Departamento Nacional de Planeación; la Gobernación del Departamento del Cauca y las Alcaldías de los municipios de Popayán, Almaguer, Argelia, Balboa, Bolívar, Buenos Aires, Cajibío, Caldono, Caloto, Corinto, El Tambo, Florencia, Guachené, Guapi, Inzá, Jambaló, Jamundí, La Sierra, La Vega, López de Micay, Mercaderes, Miranda, Morales, Padilla, Páez, Patía, Piamonte, Piendamó, Puerto Tejada, Puracé, Rosas, San Sebastián, Santander de Quilichao, Santa Rosa, Silvia, Sotará, Suárez, Sucre, Timbío, Timbiquí, Toribío, Totoró y Villa Rica."]
[]
["Otro sí (cuando aplique) con su fecha de suscripción ",null,null,null,null,"N/A"]
[]
["        3.  EJES O LÍNEAS ESTRATÉGICAS                                                                        "]
["1. Vivienda Digna y Agua Potable y Saneamiento Bàsico \n2. Educación Integral\n3. Paz y Reconciliación\n4. Desarrollo Rural y Transformación Productiva\n5. Salud\n6. Transición Energética\n7. Infraestructura de Transporte"]
["        4.   INICIATIVAS DEL PLAN DE ACCIÓN Y SEGUIMIENTO                                "]
["En el siguiente cuadro se registra el número de iniciativas estratégicas que fueron priorizadas por ejes o líneas estratégicas para ser implementadas en la vigencia del Plan de Acción y Seguimiento -PAS, en el que se especifican las diferentes fuentes de financiación; así mismo.\n"]
["Eje o Línea Estratégica",null,null,"Nº Iniciativas",null,null,"Aporte Nación",null,null,"Aporte Territorio /Otros",null,null,"Inversión Total"]
["1.  Vivienda Digna y Agua Potable y Saneamiento Básico ",null,null,{"$f":"+B40","v":9},null,null,{"$f":"+E40+F40","v":246103101132},null,null,{"$f":"+G40+H40+I40+J40","v":12934800000},null,null,{"$f":"+G18+J18","v":259037901132}]
["2. Educación Integral ",null,null,{"$f":"+B57","v":11},null,null,{"$f":"+E57+F57","v":215989280000},null,null,{"$f":"+G57+H57+I57+J57","v":2200000000},null,null,{"$f":"+G19+J19","v":218189280000}]
["3. Paz y Reconciliación ",null,null,{"$f":"+B73","v":10},null,null,{"$f":"SUM(E73:F73)","v":105960649555},null,null,{"$f":"SUM(G73:J73)","v":0},null,null,105960649555]
["4. Desarrollo Rural y Transformación Productiva ",null,null,{"$f":"+B136","v":57},null,null,{"$f":"SUM(E136:F136)","v":349051529113},null,null,{"$f":"SUM(G136:J136)","v":30392925215},null,null,379444454328]
["5. Salud",null,null,{"$f":"+B153","v":11},null,null,{"$f":"SUM(E153:F153)","v":170039036579},null,null,{"$f":"SUM(G153:J153)","v":41895891663},null,null,211934928242]
["6. Transición Energética",null,null,{"$f":"+B165","v":6},null,null,{"$f":"SUM(E165:F165)","v":77542571428},null,null,{"$f":"SUM(G165:J165)","v":0},null,null,77542571428]
["7. Infraestructura de Transporte ",null,null,{"$f":"+B184","v":13},null,null,{"$f":"SUM(E184:F184)","v":22262275654199.918},null,null,{"$f":"SUM(G184:J184)","v":22000000000},null,null,22284275654199.918]
["Total  Plan  de Acción y Seguimiento",null,null,{"$f":"SUM(D18:F24)","v":117},null,null,{"$f":"SUM(G18:I24)","v":23426961822006.918},null,null,{"$f":"SUM(J18:L24)","v":109423616878},null,null,{"$f":"SUM(M18:M24)","v":23536385438884.918}]
["Cifras expresadas en pesos."]
["Las iniciativas incluidas en el Plan de Acción y Seguimiento - PAS -  se relacionan en la siguiente tabla, en la que se incluye la información por Sector, Eje o línea estratégica, valor total y la distribución indicativa de recursos de las fuentes de financiación."]
["1.  Vivienda Digna y Agua Potable y Saneamiento Básico "]
["Sector","Nombre de la Iniciativa","Etapa del Proyecto *","Fase del Proyecto *","Aporte Nación",null,"Aporte Territorio",null,null,"Otros recursos","Inversión Total","Entidad Responsable*","Observaciones / Acciones","Actividades a ejecutar"]
[null,null,null,null,"DNP","Sector","Propios","SGR","Otros",null,null,null,null,"Trimestre 2 -2026","Trimestre 3 - 2026","Trimestre 4 -2026 ","Trimestre 1 -2027","Actividad Principal"]
["Vivienda, Ciudad y Territorio","Conexiones- 872 conexiones intradomiciliarias para el municipio de Puerto Tejada ",{"$f":"+'VIVIENDA 5'!D4","v":"Inversión"},{"$f":"+'VIVIENDA 5'!E4","v":"Ejecución"},0,5804480331,0,0,0,0,{"$f":"SUM(E31:J31)","v":5804480331},"Ministerio de Vivienda, Ciudad y Territorio",{"$f":"+'VIVIENDA 5'!V4","v":"27/04/2026. $5.804.480.331. Ejecución. Proyecto viabilizado en el año 2023, con recursos PGN, por valor de $5.804.480.331, proyecto que es esta ejecutando en el marco del Contrato Interadministrativo de Gerencia de Proyectos No 1632 de 2023.\nTrimestre 3-2026: Entregar 160 conexiones intradomiciliarias.\nTrimestre 4-2026: Entregar 427 conexiones intradomiciliarias\n\n"},"Reporte de avance de ejecución con soportes","Reporte de avance de ejecución con soportes","Reporte de avance de ejecución con soportes","Finalización, liquidación, ",{"$f":"+N31","v":"Reporte de avance de ejecución con soportes"}]
["Vivienda, Ciudad y Territorio","Construcción unidades sanitarias con saneamiento básico para vivienda rural dispersa en el municipio de López de Micay ",{"$f":"+'VIVIENDA 5'!D5","v":"Inversión"},{"$f":"+'VIVIENDA 5'!E5","v":"Ejecución"},0,6015778891,0,0,0,0,{"$f":"SUM(E32:J32)","v":6015778891},"Ministerio de Vivienda, Ciudad y Territorio",{"$f":"+'VIVIENDA 5'!V5","v":"27/04/2026. $6.015.778.891. Ejecución. Proyecto con recursos de la Nación de 2024 $6.015.778.891\nTrimestre 2 -2026: está revisando y tramitando la solicitud de suspensión de los contratos derivados, ajustes en cantidades \nTrimestre 3 – 2026: prórroga contratación derivada\nTrimestre 4 -2026: prórroga al lconvenio de uso de recursos\nTrimestre 1 -2027: entrega 100%"},"Reporte de avance de ejecución con soportes","Reporte de avance de ejecución con soportes","Reporte de avance de ejecución con soportes","Finalización, liquidación, ","Reporte de avance de ejecución con soportes"]
["Vivienda, Ciudad y Territorio","Construcción Etapa II línea de conducción Río Palace y planta de tratamiento de agua potable Palace, municipio de Popayán ",{"$f":"+'VIVIENDA 5'!D6","v":"Inversión"},{"$f":"+'VIVIENDA 5'!E6","v":"Ejecución, Contratación"},0,89137132435,0,0,0,0,89137132435,"Ministerio de Vivienda, Ciudad y Territorio",{"$f":"+'VIVIENDA 5'!V6","v":"27/04/2026. $90.679 millones. Ejecución-Contratación. En proceso de contratación derivada"},"Tramites para la suscripción de convenios, , Inicio de Actividades, ","Reporte de avance de ejecución con soportes","Reporte de avance de ejecución con soportes","Reporte de avance de ejecución con soportes","Tramites para la suscripción de convenios, , Inicio de Actividades, "]
["Vivienda, Ciudad y Territorio","Mejoramiento de 320 viviendas en El Tambo, López de Micay y Timbiquí ",{"$f":"+'VIVIENDA 5'!D7","v":"Inversión"},{"$f":"+'VIVIENDA 5'!E7","v":"Ejecución"},0,6743459012,0,0,0,0,6743459012,"Ministerio de Vivienda, Ciudad y Territorio",{"$f":"+'VIVIENDA 5'!V7","v":"27/04/2026. $8.469.031.617. Ejecución.\n-El Tambo: 213 cupos en zona (90) urbana y (123) rural con una inversión de $5.187 millones de pesos.\n- Lopez de Micay:  71 cupos en zona urbana (4) y (67) rural con una inversión de $1.799 millones de pesos.\n- Timbiquí:  90 cupos, en zona  urbana (78) y (12) rural con una inversión de $1.483 millones de pesos.\n\n-Total de cupos asignados: 374 cupos (172 urbanos y 202 rurales)\n-Del total de cupos se han asignado 243 subsidios, de los cuales 211 ya estan terminados.\n-Se tiene en gestión 163 mejoramientos de vivienda.\n\nTrimestre 2 -2026: Alistamiento - convocatorias, acuerdos sociales\nTrimestre 3 – 2026: proyecto arquitectonico - convocatorias, acuerdos sociales\nTrimestre 4 -2026: ejecución - convocatorias, acuerdos sociales\nTrimestre 1 -2027: ejecución acuerdos sociales\n\nEl valor total de una inversión asciende a la suma de $8.469.031.617 MCTE, de los cuales se encuentran distibuidos en las vigencias así: \n2022-2023: $4.054.661.657 MCTE\n2024:$2.072.200.000 MCTE\n2025: $1.235.598.000 MCTE\n2026: $1.106.571.960 MCTE"},"Reporte de avance de ejecución con soportes","Reporte de avance de ejecución con soportes","Reporte de avance de ejecución con soportes","Reporte de avance de ejecución con soportes","Reporte de avance de ejecución con soportes"]
["Vivienda, Ciudad y Territorio","Mejoramiento de vivienda urbanos y rurales (2.228 urbanos y 2.101 rurales) para el Departamento del Cauca – varios municipios. ",{"$f":"+'VIVIENDA 5'!D8","v":"Inversión"},{"$f":"+'VIVIENDA 5'!E8","v":"Ejecución"},0,76576476996,0,0,12934800000,0,89511276996,"Ministerio de Vivienda, Ciudad y Territorio /Municipios Cauca",{"$f":"+'VIVIENDA 5'!V8","v":"27/04/2026. $112.609.694.200. Ejecución.\nSe tienen financiados 4.906 cupos de mejoramientos de los cuales (2.361 son urbanos y  2.545 rurales)  y cuya inversión es de $112.610 millones\nSe tienen asignados 2.075 (urbanos 699 y 1.376 rurales) subsidios de los cuales 1.262 ( 361 urbanos y  901 rurales) se encuentran terminados.\nTrimestre 2 -2026: Alistamiento - convocatorias, acuerdos sociales \nTrimestre 3 – 2026: Proyecto arquitectonico - convocatorias502, acuerdos sociales \nTrimestre 4 -2026: ejecición convocatorias, acuerdos sociales\nTrimestre 1 -2027: ejecición acuerdos sociales\n\nEl valor total de una inversión asciende a la suma de $112.609.694.200 MCTE, de los cuales se encuentran distibuidos en las vigencias así: \n2022-2023: $30.997.878.105 MCTE\n2024:$53.842.491.520 MCTE\n2025: $11.513.575.080 MCTE\n2026: $16.255.749.495 MCTE"},"Reporte de avance de ejecución con soportes","Reporte de avance de ejecución con soportes","Reporte de avance de ejecución con soportes","Reporte de avance de ejecución con soportes","Reporte de avance de ejecución con soportes"]
["Igualdad y Equidad","Estudios y diseños plan maestro de saneamiento Guapi",{"$f":"+'IGUALDAD-FTSP 4'!D4","v":"Sin Información clara"},{"$f":"+'IGUALDAD-FTSP 4'!E4","v":"Sin Información clara"},0,2040317423,0,0,0,0,2040317423,"Fondo Todos Somos PAZcífico",{"$f":"+'IGUALDAD-FTSP 4'!V4","v":"0 No Iniciado, 0El contrato de interventoría se suscribirá con recursos propios de quien?(rendimientos financieros)."},"Actualización información con soportes , Tramites para la suscripción de convenios, ","Inicio de Actividades, , Reporte de avance de ejecución con soportes","Reporte de avance de ejecución con soportes","Reporte de avance de ejecución con soportes","Actualización información con soportes , Tramites para la suscripción de convenios, "]
["Igualdad y Equidad","Acueducto de Timbiquí",{"$f":"+'IGUALDAD-FTSP 4'!D5","v":"Inversión"},{"$f":"+'IGUALDAD-FTSP 4'!E5","v":"Ejecución"},0,24844000000,0,0,0,0,24844000000,"Fondo Todos Somos PAZcífico",{"$f":"+'IGUALDAD-FTSP 4'!V5","v":"22013060490 En Ejecución, En ejecución de obra0,3867El contrato de redes de distribución se encuentra actualmente en proceso de liquidación. El nuevo proceso de contratación estará sujeto a la disponibilidad de recursos.\nPor su parte, el contrato correspondiente a las obras de captación, cuya finalización está prevista para abril, no permitirá culminar la totalidad del proyecto. Por tanto, se contempla una etapa adicional para su terminación, la cual dependerá de la obtención de una fuente de financiación diferente."},"Reporte de avance de ejecución con soportes","Reporte de avance de ejecución con soportes","Reporte de avance de ejecución con soportes","Reporte de avance de ejecución con soportes","Reporte de avance de ejecución con soportes"]
["Igualdad y Equidad","Acueducto Guapi etapa I captación y redes",{"$f":"+'IGUALDAD-FTSP 4'!D6","v":"Inversión"},{"$f":"+'IGUALDAD-FTSP 4'!E6","v":"Ejecución"},0,33417519388,0,0,0,0,33417519388,"Fondo Todos Somos PAZcífico",{"$f":"+'IGUALDAD-FTSP 4'!V6","v":"23854437790,7 En Ejecución, En ejecución de obra0,0223PRINCIPALES DIFICULTADES O CUELLOS DE BOTELLA IDENTIFICADOS: 1. Liberación aspectos pendientes de contratos anteriores que han\nderivados en acciones de corrección y atención de PQRs. Como\nson temas prediales, técnicos, sociales y ambientales.\n2. Traslado de equipos y herramientas al municipio de Guapi.\n3. Consecución de mano de obra calificada y no calificada. Por\nescasez, seguridad y minería\n4. Aprobaciones de contratos y pólizas.\n5. Consecución de materiales locales.\n6. Gestión de anticipo.\n7. Permisos locales.\n8. Escasez de información base sobre el estado de infraestructura\nasociada, redes de acueducto, alcantarillado y gas,\ncanalizaciones.. ACCIONES CORRECTIVAS O DE GESTIÓN ADELANTADAS PARA SU SUPERACIÓN1. Revisiones y mesas en sitio\n2. Presencialidad de las personas con capacidad de definición o\narticulación.\n3. Acompañamiento a la gestión de los elementos clave del contrato"},"Reporte de avance de ejecución con soportes","Reporte de avance de ejecución con soportes","Reporte de avance de ejecución con soportes","Reporte de avance de ejecución con soportes","Reporte de avance de ejecución con soportes"]
["Igualdad y Equidad","Consultoría para cierre del botadero a cielo abierto el Olímpico",{"$f":"+'IGUALDAD-FTSP 4'!D7","v":"Sin Información clara"},{"$f":"+'IGUALDAD-FTSP 4'!E7","v":"Sin Información clara"},0,1523936656,0,0,0,0,1523936656,"Fondo Todos Somos PAZcífico",{"$f":"+'IGUALDAD-FTSP 4'!V7","v":"0 No Iniciado, 0,2Reporta una condición que no hace parte del estado del proyecto (No Iniciado). Aclarar con la entidad."},"Actualización información con soportes , Reporte de avance de ejecución con soportes","Reporte de avance de ejecución con soportes","Reporte de avance de ejecución con soportes","Reporte de avance de ejecución con soportes","Actualización información con soportes , Reporte de avance de ejecución con soportes"]
["Total",{"$f":"+COUNTA(B31:B39)","v":9},null,null,{"$f":"SUM(E31:E39)","v":0},246103101132,0,0,12934800000,0,259037901132]
["*Se entiende por entidad Responsable la encargada de la fuente de financiación. "]
[]
["2. Educación Integral "]
["Sector","Nombre de la Iniciativa","Etapa del Proyecto *","Fase del Proyecto *","Aporte Nación",null,"Aporte Territorio",null,null,"Otros recursos","Inversión Total","Entidad Responsable*","Observaciones / Acciones","Actividades a ejecutar"]
[null,null,null,null,"DNP","Sector","Propios","SGR","Otros",null,null,null,null,"Trimestre 2 -2026","Trimestre 3 - 2026","Trimestre 4 -2026 ","Trimestre 1 -2027","Actividad Principal"]
["Educación","Universidad en Guapi (Estudios y diseños y obra)",{"$f":"+'EDUCACIÓN 9'!D4","v":"Inversión"},{"$f":"+'EDUCACIÓN 9'!E4","v":"Contratación"},0,30000000000,0,0,0,0,{"$f":"SUM(E46:J46)","v":30000000000},"Ministerio de Educación Nacional",{"$f":"+'EDUCACIÓN 9'!Z4","v":"$30.000 millones. En Proceso de Selección. Proyecto llave en mano (Estudios, diseños, licencias, permisos y obra). Se ha adelantado el proceso de selección de contratista e interventoría."},"Tramites para la suscripción de convenios, ","Reporte de avance de ejecución con soportes, Inicio de Actividades, ","Reporte de avance de ejecución con soportes","Reporte de avance de ejecución con soportes",{"$f":"+N46","v":"Tramites para la suscripción de convenios, "}]
["Educación","Estudios y diseños Universidad del Macizo",{"$f":"+'EDUCACIÓN 9'!D5","v":"Preinversión"},{"$f":"+'EDUCACIÓN 9'!E5","v":"Fase III"},0,700000000,0,0,0,0,{"$f":"SUM(E47:J47)","v":700000000},"Ministerio de Educación Nacional",{"$f":"+'EDUCACIÓN 9'!Z5","v":"$400 millones. Fase III. A la fecha se cuenta con el representante legal provisiona y transitorio de la Universidad, se radicó el proyecto de ley en septiembre de 2025 en el congreso de la república y se esta a la espera de la radicación de los documentos del estudio de factibilidad en el SACES con el fin de que sean revisados y aprobados, también de la programación de los debates del proyecto de Ley"},"Tramites para la suscripción de convenios, ","Reporte de avance de ejecución con soportes","Reporte de avance de ejecución con soportes","Reporte de avance de ejecución con soportes",{"$f":"+N47","v":"Tramites para la suscripción de convenios, "}]
["Educación","Programa de Tránsito Inmediato a la Educación Superior (PTIES) en la Institución Educativa Técnica Miguel Zapata",{"$f":"+'EDUCACIÓN 9'!D6","v":"Operación"},{"$f":"+'EDUCACIÓN 9'!E6","v":"Ejecución"},0,500000000,0,0,0,0,500000000,"Ministerio de Educación Nacional",{"$f":"+'EDUCACIÓN 9'!Z6","v":"$1.155 millones. Ejecución. Para el segundo trimestre se tiene prevista el diagnostico de las necesidades de nivelación, posterior al las pruebas diagnosticas que se realizaron en el mes de marzo y abril. De igual manera se estará trabajando en talleres con los padres y madres de familia y la comunidad y con las IEM beneficiada para el trabajo articulado."},"Reporte de avance de ejecución con soportes","Reporte de avance de ejecución con soportes","Reporte de avance de ejecución con soportes","Reporte de avance de ejecución con soportes","Reporte de avance de ejecución con soportes"]
["Educación","Culminación de obra Infraestructura física sede norte de la universidad del Cauca en Santander de Quilichao",{"$f":"+'EDUCACIÓN 9'!D7","v":"Inversión"},{"$f":"+'EDUCACIÓN 9'!E7","v":"Fase III"},0,36353000000,0,0,0,0,36353000000,"Ministerio de Educación Nacional",{"$f":"+'EDUCACIÓN 9'!Z7","v":"$2.999 millones. Fase III. Aperturar Contratación de obra. Proyecto finciado mediante transferencia directa a la IES No.: 018129 del 27 de agosto de 2025. Cuenta con la licencia de construcción, actualmente el área administrativa se encuentra realizando ajustes a los términos de referencia para procesos de selección del contratista de obra e interventoría."},"Tramites para la suscripción de convenios, ","Reporte de avance de ejecución con soportes, Inicio de Actividades, ","Reporte de avance de ejecución con soportes","Reporte de avance de ejecución con soportes","Tramites para la suscripción de convenios, "]
["Educación","Implementación Colegio Universidad en Guapi por UNICAUCA , adecuaciones de las IE La Normal y la IE San José",{"$f":"+'EDUCACIÓN 9'!D8","v":"Inversión"},{"$f":"+'EDUCACIÓN 9'!E8","v":"Ejecución"},0,2000000000,0,0,0,0,2000000000,"Ministerio de Educación Nacional",{"$f":"+'EDUCACIÓN 9'!Z8","v":"$11.158 millones. Ejecución. Proyectos desarrollado mediante la modalidad de intervención Educación Superior en tu Colegio, tiene un avance de obra del 13,19%, en curso adecuaciones en bloque No 6, 20, 11, 13, Cancha, BQ nuevo, 10 y 8.\nAgosto 2026."},"Reporte de avance de ejecución con soportes","Reporte de avance de ejecución con soportes","Reporte de avance de ejecución con soportes","Reporte de avance de ejecución con soportes","Reporte de avance de ejecución con soportes"]
["Educación","Estudios, Diseños y Construcción Para La Ampliación E Implementación De Infraestructura Física Universitaria  Proyectada En El Predio Belalcázar",{"$f":"+'EDUCACIÓN 9'!D9","v":"Inversión"},{"$f":"+'EDUCACIÓN 9'!E9","v":"Fase III"},0,43000000000,0,0,0,0,43000000000,"Ministerio de Educación Nacional",{"$f":"+'EDUCACIÓN 9'!Z9","v":"$53.837 millones. Fase III. Proyecto incluido en el CONPES 4181. Proyecto en actualización por parte de la IES, del componente metodológico, con acompañamiento del MEN."},"Revisión y aprobación del proyecto por la fuente de financiación, , Revisión técnica del proyecto por Sector, ","Tramites para la suscripción de convenios, ","Asignación de recursos, ","Reporte de avance de ejecución con soportes, Inicio de Actividades, ","Revisión y aprobación del proyecto por la fuente de financiación, , Revisión técnica del proyecto por Sector, "]
["Educación","Proyecto de infraestructura para el Nodo Suárez de la Universidad del Valle",{"$f":"+'EDUCACIÓN 9'!D10","v":"Inversión"},{"$f":"+'EDUCACIÓN 9'!E10","v":"Ejecución"},0,52000000000,0,0,0,0,52000000000,"Ministerio de Educación Nacional",{"$f":"+'EDUCACIÓN 9'!Z10","v":"$52.000 millones. Ejecución. Proyecto finciado mediante transferencia directa a la IES No.: 025392 del 21 de diciembre de 2023. Con el recurso asignado, la IES realizó la adquisición del predio de CELSIA por $16.929 millones, el resto del recursos se invierte en adecuaciones y consultorías sobre las instalaciones adquiridas a CELSIA. Se estima un avance del 48% para el componente de adecuaciones según informe remitido por la IES. El MEN solicitó ajustes en la información presentada."},"Reporte de avance de ejecución con soportes","Reporte de avance de ejecución con soportes","Reporte de avance de ejecución con soportes","Reporte de avance de ejecución con soportes","Reporte de avance de ejecución con soportes"]
["Educación","Estudios, Diseños y Construcción Para La Ampliación E Implementación De Infraestructura Física Universitaria  Proyectada En La Sede Norte U Cauca S. Quilichao",{"$f":"+'EDUCACIÓN 9'!D11","v":"Inversión"},{"$f":"+'EDUCACIÓN 9'!E11","v":"Fase III"},0,31353000000,0,0,0,0,31353000000,"Ministerio de Educación Nacional",{"$f":"+'EDUCACIÓN 9'!Z11","v":"$46.260 millones. Fase III. Proyecto incluido en el CONPES 4181. Proyecto en actualización por parte de la IES, del componente metodológico, con acompañamiento del MEN."},"Revisión y aprobación del proyecto por la fuente de financiación, , Revisión técnica del proyecto por Sector, ","Tramites para la suscripción de convenios, ","Asignación de recursos, ","Reporte de avance de ejecución con soportes, Inicio de Actividades, ","Revisión y aprobación del proyecto por la fuente de financiación, , Revisión técnica del proyecto por Sector, "]
["Igualdad y Equidad","Prevención y atención a la desnutrición a través de la adquisición de 9,7 toneladas de harina de chontaduro a la Asociación de Productores de Cacao y Chontaduro del Tambo (APACH)",{"$f":"+'ICBF 1'!D4","v":"Inversión"},{"$f":"+'ICBF 1'!E4","v":"Terminado"},0,411280000,0,0,0,0,411280000,"ICBF - Instituto Colombiano de Binestar Familiar",{"$f":"+'ICBF 1'!V4","v":"22/04/2026 ICBF: $218 millones. En relación con el avance del compromiso, se informa que, con corte al 30 de septiembre de 2025, se logró la compra de 11.800 kilogramos de harina de chontaduro, equivalentes a 11,8 toneladas. De este total, 10.490 kilogramos (10,5 toneladas) fueron adquiridos al proveedor Asociación de Productores Agropecuarios de Cacao y Chontaduro de El Tambo, Cauca – APACH. Con el volumen total adquirido, el Instituto alcanzó el 100 % de la meta de compra.  \nEn el marco del contrato 01014512022 para la fabricación de Alimentos de Alto Valor Nutricional (AAVN). Para el periodo restante de 2025, está pendiente la confirmación de la inversión."},"Finalización, liquidación, ",null,null,null,"Finalización, liquidación, "]
["Tecnologías de la Información y las Comunicaciones","Implementación de centros digitales de acceso público gratuito en Piendamó",{"$f":"+'TICs 4'!D4","v":"Operación"},{"$f":"+'TICs 4'!E4","v":"Ejecución"},0,17472000000,0,0,0,0,17472000000,"Ministerio de Tecnologías de la Información y las Comunicaciones",{"$f":"+'TICs 4'!Y4","v":"21/04/2026. $4.232.259.802 millones corresponden a estimaciones. Ejecución-Operación. Avance físico 100% instalación.  Proyecto Centros Digitales. Inversion Estimada unicamente para los años 2025 a 2028. Programa con Vigencias Futuras. Meta: 26 Centros en Piendamó, actualmente instalados. Se encuentra en operación hasta 2031. "},"Reporte de avance de ejecución con soportes","Reporte de avance de ejecución con soportes","Reporte de avance de ejecución con soportes","Reporte de avance de ejecución con soportes","Reporte de avance de ejecución con soportes"]
["Educación","Convocatoria de Mejoramiento de Infraestructura eductiva 2021",{"$f":"+'JAMUNDÍ 1+'!D4","v":"Preinversión"},{"$f":"+'JAMUNDÍ 1+'!E4","v":0},2200000000,0,2200000000,0,0,0,4400000000,"Departamento Nacional de Planeación (FRPT) / Municipio de Jamundí",{"$f":"+'JAMUNDÍ 1+'!V4","v":"Presentar proyecto y avanzar con concepto favorable del MEN para presentar al DNP para solicitud de Cofinanciación."},"Estructuración del proyecto, ","Viabilización del proyecto ante la cabeza del sector, ","Viabilización del proyecto ante la cabeza del sector, ","Presentación del proyecto ante la fuente de financiación, ","Estructuración del proyecto, "]
["Total",{"$f":"+COUNTA(B46:B56)","v":11},null,null,{"$f":"SUM(E46:E56)","v":2200000000},213789280000,2200000000,0,0,0,218189280000]
["*Se entiende por entidad Responsable la encargada de la fuente de financiación. "]
[]
["3. Paz y Reconciliación "]
["Sector","Nombre de la Iniciativa","Etapa del Proyecto *","Fase del Proyecto *","Aporte Nación",null,"Aporte Territorio",null,null,"Otros recursos","Inversión Total","Entidad Responsable*","Observaciones / Acciones","Actividades a ejecutar"]
[null,null,null,null,"DNP","Sector","Propios","SGR","Otros",null,null,null,null,"Trimestre 2 -2026","Trimestre 3 - 2026","Trimestre 4 -2026 ","Trimestre 1 -2027","Actividad Principal"]
["Presidencia ","Programa de sustitución de economías ilegalizadas en el departamento del cauca- RENACEMOS",{"$f":"+'DSCI 3'!D4","v":"Inversión"},{"$f":"+'DSCI 3'!E4","v":"Ejecución"},0,20018447865,null,0,0,0,{"$f":"SUM(E63:J63)","v":20018447865},"Dirección de Sustitución de Cultivos Ilícitos - Fondo Programas Especiales para la Paz (Fondo Paz)",{"$f":"+'DSCI 3'!V4","v":"23/04/2026. Ejecución. $33.542 millones. Socios implementadores : Naciones Unidas contra las drogas y el delito ($8.686.791.882 ) y FINDETER ($4.836.923.868-DAPRE)\n$28 mil millones UNODC - Avance 69.16% a diciembre 2025. Finaliza ejecución en agosto de 2026.\n$4 mil millones - FINDETER - Avance alrededor 40%. Finaliza en junio de 2025 posible prórroga hasta agosto 2026."},"Reporte de avance de ejecución con soportes, Prorroga, ","Reporte de avance de ejecución con soportes","Finalización, liquidación, ",null,{"$f":"+N63","v":"Reporte de avance de ejecución con soportes, Prorroga, "}]
["Interior","Construcción de Alcaldía de Argelia",{"$f":"+'INTERIOR 2'!D4","v":"Inversión"},{"$f":"+'INTERIOR 2'!E4","v":"Ejecución"},0,8438159066,0,0,0,0,{"$f":"SUM(E64:J64)","v":8438159066},"Ministerio del Interior",{"$f":"+'INTERIOR 2'!X4","v":"Ejecución. Avance 56,83%. Convenio $8.438.159.066; Finaliza 31 de julio de 2026."},"Reporte de avance de ejecución con soportes","Reporte de avance de ejecución con soportes","Finalización, liquidación, ",null,{"$f":"+N64","v":"Reporte de avance de ejecución con soportes"}]
["Interior","Construcción de Alcaldía de Guapi",{"$f":"+'INTERIOR 2'!D5","v":"Inversión"},{"$f":"+'INTERIOR 2'!E5","v":"Ejecución"},0,9231695652,0,0,0,0,9231695652,"Ministerio del Interior",{"$f":"+'INTERIOR 2'!X5","v":"Ejecución. Avance 21,61%. Convenio $9.237.788.109; Finaliza 30 de abril de 2026."},"Reporte de avance de ejecución con soportes, Prorroga, ","Reporte de avance de ejecución con soportes","Finalización, liquidación, ",null,"Reporte de avance de ejecución con soportes, Prorroga, "]
["Cultura","Construcción casa de saberes municipio de Guachené Cauca. ",{"$f":"+'CULTURA 3'!D4","v":"Inversión"},{"$f":"+'CULTURA 3'!E4","v":"Ejecución"},0,1200000000,0,0,0,0,1200000000,"Ministerio de las Culturas, las Artes y los Saberes",{"$f":"+'CULTURA 3'!W4","v":"MinCultura 20/04/2026: Actualmente se están llevando a cabo actividades de ejecución de la obra. No obstante, es importante señalar que debido a temas de orden público en la zona del Cauca el avance de este proyecto ha tenido dificultades en el cumplimiento del cronograma. Por esa razón el  29 de diciembre se suscribió prórroga que extiendió el plazo de terminación de las obras hasta el 3/06/2026. \nActualmente el avance de obra se encuentra en 6% y se proyecta que el segundo y tercer trimestre se continue con el proceso de ejecución del proyecto. El contrato tiene previsto la finalización en el segundo trimestre de 2026, pero se prevé la ampliación del mismo al tercer trimestre de este mismo año \nValores comprometidos"},"Reporte de avance de ejecución con soportes","Reporte de avance de ejecución con soportes","Reporte de avance de ejecución con soportes",null,"Reporte de avance de ejecución con soportes"]
["Presidencia","Trece incentivos para la paz territorial . Fortalecer organizaciones comunales, étnicas, sociales, productivas, comunitarias, de jóvenes y de mujeres, entre otras, que estén legalmente constituidas, mediante una estrategia de incentivos para la implementación de proyectos de ejecución comunitaria.",{"$f":"+PRESIDENCIA!D4","v":"Inversión"},{"$f":"+PRESIDENCIA!E4","v":"Ejecución"},0,751941570,0,0,0,0,751941570,"Fondo de Programas Especiales para la Paz",{"$f":"+PRESIDENCIA!V4","v":"751941570 En Ejecución, En ejecución de obra0,35El presupuesto total comprometido corresponde a la implementación integral de la Estrategia de Incentivos Comunitarios para la Paz Total en los tres municipios del departamento del Cauca donde se desarrolla la intervención. Este monto incluye:\n- El valor de los incentivos entregados a cada organización beneficiaria.\n- Los costos del equipo técnico encargado de la implementación, el seguimiento y el fortalecimiento de la estrategia en el departamento.\n-La cuota de administración y gerencia a cargo del socio implementador.\nDe esta manera, y en consonancia con la modalidad de administración de recursos, se reporta al aliado el 100% de la ejecución financiera comprometida. Posteriormente, dicho aliado realiza los desembolsos conforme avanza la ejecución programada."},"Reporte de avance de ejecución con soportes","Reporte de avance de ejecución con soportes","Reporte de avance de ejecución con soportes","Reporte de avance de ejecución con soportes","Reporte de avance de ejecución con soportes"]
["Presidencia","Complementación de estudios y diseños y la adecuación y mejoramiento del centro de desarrollo infantil - CDI en granito de oro",{"$f":"+PRESIDENCIA!D5","v":"Inversión"},{"$f":"+PRESIDENCIA!E5","v":"Terminado"},0,1698933967,0,0,0,0,1698933967,"Fondo de Programas Especiales para la Paz",{"$f":"+PRESIDENCIA!V5","v":"1698933967 Terminado, Ejecutado1Proyecto finalizado, con financiación del Fondo de Programas Especiales para la Paz bajo Recursos Entregados en Administración en el marco del convenio FP-558-2021 suscrito con FINDETER."},"Finalización, liquidación, ",null,null,null,"Finalización, liquidación, "]
["Cultura","Adecuación y dotación de la Casa de la Cultura de Guapi",{"$f":"+'CULTURA 3'!D5","v":"Inversión"},{"$f":"+'CULTURA 3'!E5","v":"Ejecución"},0,716000000,0,0,0,0,716000000,"Ministerio de las Culturas, las Artes y los Saberes",{"$f":"+'CULTURA 3'!W5","v":"Comprometidos y obligados/desembolso $recursos del municipio\nMinCultura 20/04/2026: El 16 de diciembre de 2024 se emitió la resolución No. 1587  mediante la cual se autoriza el aporte a la escuela taller de Popayán para la realización de proceso de formación en construcción especializada para el mantenimiento e intervenciones menores y adecuaciones de espacios culturales, en la cual se incluyó el mejoramiento de la casa de cultura.\nLas actividades prácticas en la casa de cultura se iniciaron el 1 de octubre de 2025 y actualmente ese proceso cuenta con un avance del 50%. La ejecución de actividades debió suspenderse pues era necesario emitir resolución de redistribución de recursos y la entidad territorial debía enviar el certificado de estabilidad estructural de esta infraestructura.  Finalmente el certificado fue enviado el 10 de abril de 2026, actualmente ese documento se encuentra en validación por parte del Grupo de Infraestructura Cultural de este Ministerio. Es importante señalar que los recursos de la resolución corresponden a la vigencia 2024. \nSe suscribió contrato de dotación por un valor de  $91.528.466,13 y esta entrega se realizó en diciembre de 2025. Los recursos dispuesto por la alcaldía corresponden a reforzamiento estructural de la edificación, compromiso adquirido en diciembre de 2024 el cual se ejecutó entre mayo y septiembre de 2025. \nLas actividades proyectadas para continuar con este proyecto son: la revisión del certificado de estabilidad enviado por la alcaldía del municipio, emitir la resolución de redistribución de recursos y levantar la suspensión de actividades para continuar con el proceso de formación adelantado por la Escuela Taller. Esto ocurrirá entre el segundo y tercer trimestre del año 2026. Adicionalmente se espera continuar con la obra en el tercer y cuarto trimestre de este mismo año. \nFinalización 3er trimestre. 2026"},"Reinicio de actividades, ","Reporte de avance de ejecución con soportes","Finalización, liquidación, ",null,"Reinicio de actividades, "]
["Cultura","Construcción casa de saberes municipio de Villa Rica, Cauca",{"$f":"+'CULTURA 3'!D6","v":"Inversión"},{"$f":"+'CULTURA 3'!E6","v":"Ejecución"},0,1200000000,0,0,0,0,1200000000,"Ministerio de las Culturas, las Artes y los Saberes",{"$f":"+'CULTURA 3'!W6","v":"MinCultura 20/04/2026: Actualmente se están llevando a cabo actividades de ejecución de la obra. No obstante, es importante señalar que debido a temas de orden público en la zona del Cauca el avance de este proyecto ha tenido dificultades en el cumplimiento del cronograma. Por esa razón el  29 de diciembre se suscribió prórroga que extiendió el plazo de terminación de las obras hasta el 3/06/2026.  \nActualmente el avance de obra se encuentra en 8% y se prevé que en el segundo y tercer trimestre se continue con el proceso de ejecución del proyecto. El contrato tiene previsto finalizarse en el segundo trimestre, pero se prevé la ampliación del mismo al tercer trimestre de 2026\nValores comprometidos"},"Reporte de avance de ejecución con soportes","Reporte de avance de ejecución con soportes","Reporte de avance de ejecución con soportes","Finalización, liquidación, ","Reporte de avance de ejecución con soportes"]
["Tecnologías de la Información y las Comunicaciones","Zonas Comunitarias para la Paz (soluciones de Internet comunitario WiFi a escuelas rurales oficiales que carecen de conectividad, en municipios cobijados por los Programas de Desarrollo con Enfoque Territorial – PDET) ",{"$f":"+'TICs 4'!D5","v":"Operación"},{"$f":"+'TICs 4'!E5","v":"Ejecución"},0,18033339258,0,0,0,0,18033339258,"Ministerio de Tecnologías de la Información y las Comunicaciones ",{"$f":"+'TICs 4'!Y5","v":"21/04/2026. $6.678 millones corresponden a estimaciones. Ejecución-Operación. Proyecto Zonas Comunitarias para la Paz. Inversion Estimada unicamente para los años 2025 a 2026. Meta: 159 zonas comunitarias para la PAZ (Cauca) y estan instaladas y en operación 158.\nPrograma Finaliza ejecucion en julio de 2026."},"Reporte de avance de ejecución con soportes","Reporte de avance de ejecución con soportes","Reporte de avance de ejecución con soportes","Finalización, liquidación, ","Reporte de avance de ejecución con soportes"]
["Presidencia","Estrategia de tránsito a economías lícitas ","Inversión","Ejecución",0,44672132177,0,0,0,0,{"$f":"SUM(E72:J72)","v":44672132177},"Dirección de Sustitución de Cultivos Ilícitos - Fondo Programas Especiales para la Paz (Fondo Paz)","Se encuentra en el Programa de sustitución de economías ilegalizadas en el departamento del cauca- RENACEMOS (en la primera fila de este grupo de proyecto)","Reporte de avance de ejecución con soportes, Prorroga, ","Reporte de avance de ejecución con soportes","Finalización, liquidación, ",null,{"$f":"+N72","v":"Reporte de avance de ejecución con soportes, Prorroga, "}]
["Total",{"$f":"+COUNTA(B63:B72)","v":10},null,null,{"$f":"SUM(E63:E72)","v":0},{"$f":"SUM(F63:F72)","v":105960649555},{"$f":"SUM(G63:G72)","v":0},0,0,{"$f":"SUM(J63:J72)","v":0},{"$f":"SUM(K63:K72)","v":105960649555}]
["*Se entiende por entidad Responsable la encargada de la fuente de financiación. "]
[]
["4. Desarrollo Rural y Transformación Productiva "]
["Sector","Nombre de la Iniciativa","Etapa del Proyecto *","Fase del Proyecto *","Aporte Nación",null,"Aporte Territorio",null,null,"Otros recursos","Inversión Total","Entidad Responsable*","Observaciones / Acciones","Actividades a ejecutar"]
[null,null,null,null,"DNP","Sector","Propios","SGR","Otros",null,null,null,null,"Trimestre 2 -2026","Trimestre 3 - 2026","Trimestre 4 -2026 ","Trimestre 1 -2027","Actividad Principal"]
["Agricultura y Desarrollo Rural","Proyecto Integrador de la Cadena de Coco: Programa Integral para el fortalecimiento de la cadena del coco (Coco+Pacífico, departamentos Cauca y Nariño) Fortalecer los cultivos de coco en la costa pacífica nariñense, mediante el trampeo para control del picudo, erradicación de cultivos y resiembra, estudio de mercado y acompañamiento técnico.",{"$f":"+'ART 1'!D4","v":"Inversión"},{"$f":"+'ART 1'!E4","v":"Ejecución"},0,7774148263,0,0,1916640000,0,{"$f":"SUM(E79:J79)","v":9690788263},"Agencia de Renovación del Territorio / Comunidad",{"$f":"+'ART 1'!V4","v":"21/04/2026. $12.304 Ejecución. El proyecto tiene actividad principal en el departamento del Cauca y cierre financiero para las actividades en Nariño, que serán financiadas por el MADR.\n10/03/2026. A cargo de la ART por un valor de $14.530.240 que ya está en ejecución. Correspondiente a Cauca que está a cargo de la ART. Municipios:  Guapi, Timbiquí y López de Micay (Departamento del Cauca). En ejecución a través del Convenio 2288-2024 suscrito entre el FCP y FeDECOCO,  con un aporte en Cauca como se reportó en esta matriz, tiene una ejecución técnica del 35,78% según informe del mes de enero de 2026."},"Reporte de avance de ejecución con soportes, Actualización información con soportes ","Reporte de avance de ejecución con soportes","Reporte de avance de ejecución con soportes","Reporte de avance de ejecución con soportes",{"$f":"+N79","v":"Reporte de avance de ejecución con soportes, Actualización información con soportes "}]
["Agricultura y Desarrollo Rural","Modernización de 1 distrito de riego de pequeña escala del municipio de Balboa  en el Departamento de Cauca",{"$f":"+'ADR 8+'!D4","v":"Preinversión"},{"$f":"+'ADR 8+'!E4","v":"Fase I"},0,278302508,0,0,0,0,{"$f":"SUM(E80:J80)","v":278302508},"Agencia de Desarrollo Rural -  Fondo Nacional de Adecuación de Tierras",{"$f":"+'ADR 8+'!V4","v":"$289 millones. El proyecto de modernización del Distrito de Adecuación de Tierras de Pequeña Escala El Vijal, ubicado en el municipio de Balboa (Cauca), será nuevamente postulado ante el Comité Técnico del Fondo Nacional de Adecuación de Tierras (FONAT), incorporando las subsanaciones y ajustes técnicos y documentales requeridos, así como la indexación presupuestal ($289.601.590). Lo anterior, con el propósito de avanzar en su priorización, financiación y posterior ejecución en la vigencia 2026."},"Priorización","Viabilización del proyecto ante la cabeza del sector, ","Tramites para la suscripción de convenios, ","Inicio de Actividades, , Reporte de avance de ejecución con soportes",{"$f":"+N80","v":"Priorización"}]
["Comercio, Industria y Turismo","Fomento del sistema económico propio e intercultural que promueve la conservación cultural, la sostenibilidad productiva y el fortalecimiento de los espacios de vida y el buen vivir de las familias indígenas del CRIC desde el turismo indígena. ",{"$f":"+'MCIT 7'!D4","v":"Inversión"},{"$f":"+'MCIT 7'!E4","v":"Ejecución"},0,1090210000,0,0,0,0,1090210000,"FONTUR",{"$f":"+'MCIT 7'!Y4","v":"28/04/2026. Ejecución. Este proyecto corresponde a al fase II del proyecto por valor de $1.090 millones. Trimestre II se realizarán capacitaciones y 4 intercambios. \nDe la fase II de este proyecto, avanzar con los compromisos con las comunidades. "},"Reporte de avance de ejecución con soportes","Reporte de avance de ejecución con soportes","Reporte de avance de ejecución con soportes","Reporte de avance de ejecución con soportes","Reporte de avance de ejecución con soportes"]
["Agricultura y Desarrollo Rural","Transformación ecológica y productiva de zonas degradadas por cultivos de uso ilícito en áreas de especial importancia ambiental en los departamentos de Nariño, Cauca y Chocó (Sistemas agroforestales de cacao).",{"$f":"+'DSCI 3'!D5","v":"Inversión"},{"$f":"+'DSCI 3'!E5","v":"Ejecución"},0,3444578612,0,0,0,0,3444578612,"Dirección de Sustitución de Cultivo de Uso Ilícito",{"$f":"+'DSCI 3'!V5","v":"23/04/2026. Ejecución. $9.945 millones. Socios implementadores: Naciones unidas contra las frogas y el delito - UNODC. Inicio enero 2026 hasta (24 meses) Finaliza en 13 enero de 2028."},"Reporte de avance de ejecución con soportes","Reporte de avance de ejecución con soportes","Reporte de avance de ejecución con soportes","Reporte de avance de ejecución con soportes","Reporte de avance de ejecución con soportes"]
["Agricultura y Desarrollo Rural","Fortalecimiento de las capacidades productivas de café, mora, ganadería de leche y gallinas ponedoras de acuerdo con los usos y costumbres del pueblo Nasa en el municipio de Páez.",{"$f":"+'ADR 8+'!D5","v":"Inversión"},{"$f":"+'ADR 8+'!E5","v":"Ejecución"},0,3743625098,0,0,2696650131,0,6440275229,"Agencia de Desarrollo Rural / Comunidad",{"$f":"+'ADR 8+'!V5","v":"Resolución de cofinanciación 201 suscrita el 28 de mayo de 2025"},"Actualización información con soportes ","Reporte de avance de ejecución con soportes","Reporte de avance de ejecución con soportes","Reporte de avance de ejecución con soportes","Actualización información con soportes "]
["Agricultura y Desarrollo Rural","Fortalecimiento de las actividades económicas propias de las comunidades indígenas del oriente caucano de las familias pertenecientes a la Asociación De Autoridades Indígenas Del Oriente Caucano Totoguampa en los municipios de Silvia, Totoró, Piendamó y Morales ",{"$f":"+'ADR 8+'!D6","v":"Inversión"},{"$f":"+'ADR 8+'!E6","v":"Ejecución"},0,4582327956,0,0,2273240968,0,6855568924,"Agencia de Desarrollo Rural / Comunidad",{"$f":"+'ADR 8+'!V6","v":"$6.899 millones. Ejecución. Mediante la Resolución No. 200 de 2025 de la Agencia de Desarrollo Rural (ADR), el proyecto se encuentra actualmente en fase de ejecución y tiene como propósito fortalecer las actividades productivas de las comunidades indígenas, así como mejorar la productividad de sus sistemas económicos propios. En este marco, se proyecta beneficiar a distintos grupos de productores a través de varias líneas productivas, a saber: 71 productores en café, 14 en fresa, 23 en cultivos tradicionales (maíz y frijol), 40 en producción ovina, 78 en aves de postura y 62 en cerdos de ceba, además del establecimiento de una granja avícola biosegura. Estas intervenciones impactarán a familias adscritas a la Asociación de Autoridades Indígenas del Oriente Caucano Totoguampa.\nCada una de estas líneas contempla la provisión de insumos, materiales, equipos, el mejoramiento de infraestructura productiva y el acompañamiento técnico especializado, con el fin de garantizar la sostenibilidad y eficiencia de los procesos productivos.\nEn cuanto al avance del proyecto, ya se han adjudicado los contratos correspondientes a la prestación del servicio de asistencia técnica y, con corte al 30 de marzo de 2026, se realizó la adjudicación de los términos de referencia para el suministro de materiales destinados al mejoramiento de infraestructura. Lo anterior evidencia un progreso concreto en la fase operativa y el avance efectivo en la implementación del proyecto.\n\nSi quieres, puedo ajustarlo aún más al formato que pide SINERGIA (más corto, con enfoque en avance vs. meta y sin tanto contexto)."},"Reporte de avance de ejecución con soportes","Reporte de avance de ejecución con soportes","Reporte de avance de ejecución con soportes","Finalización, liquidación, ","Reporte de avance de ejecución con soportes"]
["Agricultura y Desarrollo Rural","Impulsar la productividad y competitividad del grano de café, mediante la producción primaria y el beneficio como una apuesta al mejoramiento de la calidad del grano, atendiendo la integralidad técnica, organizacional, ambiental y comercial de los caficultores de la ANUC en el departamento de Cauca",{"$f":"+'ADR 8+'!D7","v":"Preinversión"},{"$f":"+'ADR 8+'!E7","v":"Fase I"},0,12000000000,0,0,0,0,12000000000,"Agencia de Desarrollo Rural",{"$f":"+'ADR 8+'!V7","v":"El proyecto registra avances significativos en la etapa de estructuración, evidenciando un desarrollo sólido en los componentes técnico-productivo, jurídico y ambiental, en los cuales se han consolidado documentos base, paquetes técnicos y procesos de validación de la información.\n\nNo obstante, el proceso continúa en fase de ajuste y consolidación en los componentes asociativo, comercial y técnico-financiero, los cuales requieren mayor articulación y cierre para completar la estructuración integral del proyecto.\n\nEn este sentido, se evidencia un proceso activo de construcción técnica orientado a garantizar su viabilidad y futura implementación."},"Viabilización del proyecto ante la cabeza del sector, ","Gestión de recursos","Inicio de Actividades, , Reporte de avance de ejecución con soportes","Reporte de avance de ejecución con soportes","Viabilización del proyecto ante la cabeza del sector, "]
["Inclusión Social y Reconciliación","Plaza De Mercado de Puerto Tejada",{"$f":"+'DPS 23'!D4","v":"Inversión"},{"$f":"+'DPS 23'!E4","v":"Contratación"},0,23000000000,0,0,0,0,23000000000,"Departamento Administrativo de Prosperidad Social",{"$f":"+'DPS 23'!V4","v":"No Iniciado, En viabilidadPROYECTO PRIORIZADO MEDIANTE CONVENIO # 911-FIP-2024 .\nEstado Convenio: Suscrito con el municipio\nA 30 de septiembre del 2025, el proceso de obra y consultaría se encuentran en proceso de evaluación y observaciones, se sacó a publicación con las plazas de Tumaco y  Argelia. \nRespecto a la contratación derivada de la Interventoría el estado es el siguiente: El proceso de estructuración, se declaro fallido y se debe publicar nuevamente."},"Tramites para la suscripción de convenios, ","Reporte de avance de ejecución con soportes","Reporte de avance de ejecución con soportes","Reporte de avance de ejecución con soportes","Tramites para la suscripción de convenios, "]
["Comercio, Industria y Turismo","Centros de Reindustrialización - ZASCAS",{"$f":"+'MCIT 7'!D5","v":"Inversión"},{"$f":"+'MCIT 7'!E5","v":"Ejecución"},0,3017000000,0,0,0,0,3017000000,"Ministerio de Comercio, Industria y Turismo",{"$f":"+'MCIT 7'!Y5","v":"22/04/2026. $3.016 comprometidos. Ejecución-Operación. Avance técnico 53% Financiero 39% febrero 2026. Este programa se ejecuta mediante un aporte realizado en la vigencia 2023 por valor de $3.016.949.670 ejecutado por el PA; este recurso permite mantener el programa en operación hasta el 2026. Su financiación para vigencias posteriores esta en función de los procesos de discusión de los anteproyectos de presupuesto nacional para esas vigencias. No corresponde a un proyecto si no a un programa del Ministerio/Misionalidad."},"Reporte de avance de ejecución con soportes","Reporte de avance de ejecución con soportes","Reporte de avance de ejecución con soportes","Finalización, liquidación, ","Reporte de avance de ejecución con soportes"]
["Comercio, Industria y Turismo","Empretur - Litoral Pacífico",{"$f":"+'MCIT 7'!D6","v":"Operación"},{"$f":"+'MCIT 7'!E6","v":"Ejecución"},0,2265810107,0,0,0,0,2265810107,"Ministerio de Comercio, Industria y Turismo - FONTUR",{"$f":"+'MCIT 7'!Y6","v":"22/04/2026. $2.265 millones comprometido. Ejecución-Operación. Avance tecnico 67% y 35% financiero diciembre 2025. Este programa se ejecuta mediante un aporte realizado en la vigencia 2023 por valor de $2.265.810.107; este recurso permite mantener el programa en operación hasta el 2026. Su financiación para vigencias posteriores esta en función de los procesos de discusión de los anteproyectos de presupuesto nacional para esas vigencias. No corresponde a un proyecto si no a un programa del Ministerio/Misionalidad."},"Reporte de avance de ejecución con soportes","Reporte de avance de ejecución con soportes","Reporte de avance de ejecución con soportes","Finalización, liquidación, ","Reporte de avance de ejecución con soportes"]
["Comercio, Industria y Turismo","Estudios, diseños complementarios y construccion de obras de infraestructura turística para el PNN - Gorgona",{"$f":"+'MCIT 7'!D7","v":"Inversión"},{"$f":"+'MCIT 7'!E7","v":"Ejecución"},0,10014000000,0,0,0,0,10014000000,"Ministerio de Comercio, Industria y Turismo - FONTUR",{"$f":"+'MCIT 7'!Y7","v":"22/04/2026. $8.825 millones comprometidos. Ejecución, avance financiero 5%. De acuerdo con el Convenio de Cooperación FNTC-422-2024 la contratación derivada esta a Cargo de Patrimonio Natural Fondo para la Biodiversidad y áreas protegidas. Finaliza ejecución en diciembre 2026."},"Reporte de avance de ejecución con soportes","Reporte de avance de ejecución con soportes","Reporte de avance de ejecución con soportes","Reporte de avance de ejecución con soportes","Reporte de avance de ejecución con soportes"]
["Inclusión Social y Reconciliación","Plaza De Mercado Argelia",{"$f":"+'DPS 23'!D5","v":"Inversión"},{"$f":"+'DPS 23'!E5","v":"Contratación"},0,9000000000,0,0,0,0,9000000000,"Departamento Administrativo de Prosperidad Social",{"$f":"+'DPS 23'!V5","v":"0 No Iniciado, En viabilidadPROYECTO PRIORIZADO MEDIANTE CONVENIO # 911-FIP-2024 .\nEstado Convenio: Suscrito con el municipio\nA 30 de septiembre del 2025, el proceso de obra y consultaría se encuentran en proceso de evaluación y observaciones, se sacó a publicación con las plazas de Tumaco y Puerto Tejada. \nRespecto a la contratación derivada de la Interventoría el estado es el siguiente: Se recomienda adjudicar el 22 de agosto de 2025 con ALIANZA INTEGRAL DE PROYECTOS SAS BIC por la suma de Mil ciento ochenta y tres millones trescientos ochenta y cuatro mil ochocientos sesenta y dos pesos con noventa centavos M/CTE ($1.183.384.862,90), el proceso se suspendió el 25 de agosto de 2025,"},"Tramites para la suscripción de convenios, , Inicio de Actividades, ","Reporte de avance de ejecución con soportes","Reporte de avance de ejecución con soportes","Reporte de avance de ejecución con soportes","Tramites para la suscripción de convenios, , Inicio de Actividades, "]
["Información Estadística","Actualización catastral Almaguer",{"$f":"+'IGAC 13'!D4","v":"Inversión"},{"$f":"+'IGAC 13'!E4","v":"Contratación"},0,11763176301.999998,0,0,0,0,11763176301.999998,"IGAC - Instituto Geográfico Agustín Codazzi",{"$f":"+'IGAC 13'!V4","v":"0 No Iniciado, En estructuración0,0911Actualmente se encuentra en proceso de evaluación las propuestas remitidas por los oferentes"},"Tramites para la suscripción de convenios, , Inicio de Actividades, ","Reporte de avance de ejecución con soportes","Reporte de avance de ejecución con soportes","Reporte de avance de ejecución con soportes","Tramites para la suscripción de convenios, , Inicio de Actividades, "]
["Información Estadística","Actualización catastral El Tambo",{"$f":"+'IGAC 13'!D5","v":"Inversión"},{"$f":"+'IGAC 13'!E5","v":"Ejecución"},0,9009284952,0,0,0,0,9009284952,"IGAC - Instituto Geográfico Agustín Codazzi",{"$f":"+'IGAC 13'!V5","v":"9009284952 En Ejecución, En ejecución de obra0,749194425394139Lo correspondiente a la zona urbana entró en vigencia en 2025. Por otra parte, lo correspondiente a la información en zona rural fuera de territorios étnicos formalizados está previsto que entre en vigencia en 2026."},"Reporte de avance de ejecución con soportes","Reporte de avance de ejecución con soportes","Reporte de avance de ejecución con soportes","Reporte de avance de ejecución con soportes","Reporte de avance de ejecución con soportes"]
["Información Estadística","Actualización catastral Mercaderes",{"$f":"+'IGAC 13'!D6","v":"Inversión"},{"$f":"+'IGAC 13'!E6","v":"Ejecución"},0,5622405454,0,0,0,0,5622405454,"IGAC - Instituto Geográfico Agustín Codazzi",{"$f":"+'IGAC 13'!V6","v":"5622405454 En Ejecución, En ejecución de obra0,1845Actualmente en ejecución en el marco del Convenio de Cooperación Técnica entre IGAC y FAO."},"Reporte de avance de ejecución con soportes","Reporte de avance de ejecución con soportes","Reporte de avance de ejecución con soportes","Reporte de avance de ejecución con soportes","Reporte de avance de ejecución con soportes"]
["Información Estadística","Actualización catastral Inzá",{"$f":"+'IGAC 13'!D7","v":"Inversión"},{"$f":"+'IGAC 13'!E7","v":"Ejecución"},0,5564125714,0,0,0,0,5564125714,"IGAC - Instituto Geográfico Agustín Codazzi",{"$f":"+'IGAC 13'!V7","v":"5564125714 En Ejecución, En ejecución de obra0,18066Actualmente en ejecución en el marco del Convenio de Cooperación Técnica entre IGAC y FAO."},"Reporte de avance de ejecución con soportes","Reporte de avance de ejecución con soportes","Reporte de avance de ejecución con soportes","Reporte de avance de ejecución con soportes","Reporte de avance de ejecución con soportes"]
["Información Estadística","Actualización catastral Piamonte",{"$f":"+'IGAC 13'!D8","v":"Inversión"},{"$f":"+'IGAC 13'!E8","v":"Ejecución"},0,5447394451,0,0,0,0,5447394451,"IGAC - Instituto Geográfico Agustín Codazzi",{"$f":"+'IGAC 13'!V8","v":"5447394451 En Ejecución, En ejecución de obra0,321200367602498El municipio se ejecuta por modelo de operación tercerizado y está previsto que la información resultado del proceso de actualización catastral se ponga en vigencia en 2026."},"Reporte de avance de ejecución con soportes","Reporte de avance de ejecución con soportes","Reporte de avance de ejecución con soportes","Reporte de avance de ejecución con soportes","Reporte de avance de ejecución con soportes"]
["Información Estadística","Actualización catastral Cajibío",{"$f":"+'IGAC 13'!D9","v":"Inversión"},{"$f":"+'IGAC 13'!E9","v":"Ejecución"},0,4190085530,0,0,0,0,4190085530,"IGAC - Instituto Geográfico Agustín Codazzi",{"$f":"+'IGAC 13'!V9","v":"4190085530 En Ejecución, En ejecución de obra0,58464917285456El municipio se ejecuta por modelo de operación directa y está previsto que la información resultado del proceso de actualización catastral se ponga en vigencia en 2026."},"Reporte de avance de ejecución con soportes","Reporte de avance de ejecución con soportes","Reporte de avance de ejecución con soportes","Reporte de avance de ejecución con soportes","Reporte de avance de ejecución con soportes"]
["Información Estadística","Actualización catastral Patía",{"$f":"+'IGAC 13'!D10","v":"Inversión"},{"$f":"+'IGAC 13'!E10","v":"Ejecución"},0,4090286067,0,0,0,0,4090286067,"IGAC - Instituto Geográfico Agustín Codazzi",{"$f":"+'IGAC 13'!V10","v":"4090286067 En Ejecución, En ejecución de obra0,244735468102033El municipio se ejecuta por modelo de operación directa y está previsto que la información resultado del proceso de actualización catastral se ponga en vigencia en 2027."},"Reporte de avance de ejecución con soportes","Reporte de avance de ejecución con soportes","Reporte de avance de ejecución con soportes","Reporte de avance de ejecución con soportes","Reporte de avance de ejecución con soportes"]
["Información Estadística","Actualización catastral Argelia",{"$f":"+'IGAC 13'!D11","v":"Inversión"},{"$f":"+'IGAC 13'!E11","v":"Terminación anticipada"},0,3980448857,0,0,0,0,3980448857,"IGAC - Instituto Geográfico Agustín Codazzi",{"$f":"+'IGAC 13'!V11","v":"0 No Iniciado, Desistido/caducado0,178869445751066El municipio se retira del Plan Operativo de Formación y/o actualización catastral con enfoque multipropósito 2025-2026 teniendo condiciones de seguridad en ekl municipio"},"Actualización información con soportes ","Finalización, liquidación, ",null,null,"Actualización información con soportes "]
["Información Estadística","Actualización catastral Sucre",{"$f":"+'IGAC 13'!D12","v":"Inversión"},{"$f":"+'IGAC 13'!E12","v":"Contratación"},0,3852618280,0,0,0,0,3852618280,"IGAC - Instituto Geográfico Agustín Codazzi",{"$f":"+'IGAC 13'!V12","v":"0 No Iniciado, En estructuración0,114Actualmente se encuentra en proceso de evaluación las propuestas remitidas por los oferentes"},"Tramites para la suscripción de convenios, , Inicio de Actividades, ","Reporte de avance de ejecución con soportes","Reporte de avance de ejecución con soportes","Reporte de avance de ejecución con soportes","Tramites para la suscripción de convenios, , Inicio de Actividades, "]
["Información Estadística","Actualización catastral Florencia",{"$f":"+'IGAC 13'!D13","v":"Inversión"},{"$f":"+'IGAC 13'!E13","v":"Ejecución"},0,3261334360,0,0,0,0,3261334360,"IGAC - Instituto Geográfico Agustín Codazzi",{"$f":"+'IGAC 13'!V13","v":"3261334360 En Ejecución, En ejecución de obra0,185308619260724Actualmente en ejecución en el marco del Convenio de Cooperación Técnica entre IGAC y FAO."},"Reporte de avance de ejecución con soportes","Reporte de avance de ejecución con soportes","Reporte de avance de ejecución con soportes","Reporte de avance de ejecución con soportes","Reporte de avance de ejecución con soportes"]
["Información Estadística","Actualización catastral Miranda",{"$f":"+'IGAC 13'!D14","v":"Inversión"},{"$f":"+'IGAC 13'!E14","v":"Terminado"},0,3250675512,0,0,0,0,3250675512,"IGAC - Instituto Geográfico Agustín Codazzi",{"$f":"+'IGAC 13'!V14","v":"3250675512 Terminado, Ejecutado0,963621382027131Lo correspondiente a la zona urbana y rural fuera de Territorios Étnicos Formalizados entró en vigencia en 2025. "},"Finalización, liquidación, ",null,null,null,"Finalización, liquidación, "]
["Información Estadística","Actualización catastral Guachené",{"$f":"+'IGAC 13'!D15","v":"Inversión"},{"$f":"+'IGAC 13'!E15","v":"Ejecución"},0,3115836458,0,0,0,0,3115836458,"IGAC - Instituto Geográfico Agustín Codazzi",{"$f":"+'IGAC 13'!V15","v":"3115836458 En Ejecución, En ejecución de obra0,561280652555065El municipio se ejecuta por modelo de operación directa y está previsto que la información resultado del proceso de actualización catastral se ponga en vigencia en 2026."},"Reporte de avance de ejecución con soportes","Reporte de avance de ejecución con soportes","Reporte de avance de ejecución con soportes","Reporte de avance de ejecución con soportes","Reporte de avance de ejecución con soportes"]
["Información Estadística","Actualización catastral Padilla",{"$f":"+'IGAC 13'!D16","v":"Inversión"},{"$f":"+'IGAC 13'!E16","v":"Ejecución"},0,2111434549,0,0,0,0,2111434549,"IGAC - Instituto Geográfico Agustín Codazzi",{"$f":"+'IGAC 13'!V16","v":"2111434549 En Ejecución, En ejecución de obra0,704394328795725El municipio se ejecuta por modelo de operación directa y está previsto que la información resultado del proceso de actualización catastral se ponga en vigencia en 2026."},"Reporte de avance de ejecución con soportes","Reporte de avance de ejecución con soportes","Reporte de avance de ejecución con soportes","Reporte de avance de ejecución con soportes","Reporte de avance de ejecución con soportes"]
["Comercio, Industria y Turismo","Construcción del Centro Tematico Chicao en el municipio de Santander de Quilichao, Departamento del Cauca",{"$f":"+'MCIT 7'!D8","v":"Inversión"},{"$f":"+'MCIT 7'!E8","v":"Ejecución"},0,15118265226,0,0,0,0,15118265226,"Ministerio de Comercio, Industria y Turismo - FONTUR",{"$f":"+'MCIT 7'!Y8","v":"22/04/2026. $15.118 millones (Fontur y Municipio de Sandanter de Quilichao). Por Iniciar Actividades. A la fecha esta pendiente el inicio de la contratación derivada. Plazo 7 meses."},"Inicio de Actividades, , Reporte de avance de ejecución con soportes","Reporte de avance de ejecución con soportes","Reporte de avance de ejecución con soportes","Finalización, liquidación, ","Inicio de Actividades, , Reporte de avance de ejecución con soportes"]
["Tecnologías de la Información y las Comunicaciones","Servicio de asistencia técnica para proyectos TIC",{"$f":"+'TICs 4'!D6","v":"Operación"},{"$f":"+'TICs 4'!E6","v":"Ejecución"},0,18489438308,0,0,0,0,18489438308,"Ministerio de Tecnologías de la Información y las Comunicaciones",{"$f":"+'TICs 4'!Y6","v":"21/04/2026. $9.986 millones convenios. Ejecución-Operación. Convenios establecidos con el CRIC 1480-2024 y 1636-2024, se consideran adiciones para cada convenio en 2026, las cuales estan consideradas en la inversion estimada para ese año. Finaliza ejecucion en 2026."},"Reporte de avance de ejecución con soportes, Adición de recursos sujeto a  decisiones de la Entidad","Reporte de avance de ejecución con soportes","Reporte de avance de ejecución con soportes","Finalización, liquidación, ","Reporte de avance de ejecución con soportes, Adición de recursos sujeto a  decisiones de la Entidad"]
["Comercio, Industria y Turismo","Construcción y adecuación de la plazoleta regional de la Paz como escenario de promoción intercultural, turístico y de emprendimiento en el municipio de Miranda Cauca.",{"$f":"+'MCIT 7'!D9","v":"Inversión"},{"$f":"+'MCIT 7'!E9","v":"Terminado"},0,14933900180,0,0,0,0,14933900180,"Ministerio de Comercio, Industria y Turismo - FONTUR",{"$f":"+'MCIT 7'!Y9","v":"22/04/2026. $14.933 millones ejecutados (Fontur y Municipio Miranda). Terminado. Proyecto entregado y recibido a satisfacción por el Municipio de Miranda (Cauca) el 11 de septiembre de 2025, actualmente se encuentra en proceso de cierre y posterior liquidación"},"Actualización información con soportes ","Finalización, liquidación, ",null,null,"Actualización información con soportes "]
["Inclusión Social y Reconciliación","Plaza De Mercado de El Tambo",{"$f":"+'DPS 23'!D6","v":"Inversión"},{"$f":"+'DPS 23'!E6","v":"Contratación"},0,4500000000,0,0,0,0,4500000000,"Departamento Administrativo de Prosperidad Social",{"$f":"+'DPS 23'!V6","v":"0 No Iniciado, En viabilidadPROYECTO PRIORIZADO MEDIANTE CONVENIO # 911-FIP-2024 . Estado Convenio: Suscrito con el municipio\nLa Contratación derivada de la Consultaría, obra e interventoría , en procesos precontractuales, documentación Técnica en estructuración para publicación en SECOP II. Se requiere surtir modificación del contrato de fiducia para poder tener el soporte presupuestal."},"Tramites para la suscripción de convenios, ","Reporte de avance de ejecución con soportes","Reporte de avance de ejecución con soportes","Reporte de avance de ejecución con soportes","Tramites para la suscripción de convenios, "]
["Inclusión Social y Reconciliación","Punto de Abastecimiento Solidario en Argelia",{"$f":"+'DPS 23'!D7","v":"Preinversión"},{"$f":"+'DPS 23'!E7","v":"Fase III"},0,3300000000,0,0,0,0,3300000000,"Departamento Administrativo de Prosperidad Social",{"$f":"+'DPS 23'!V7","v":"0 No Iniciado, En viabilidadEl proyecto se encuentra viabilizado, en proceso de ESTUDIOS Y DISEÑOS y un avance de obra de 0%"},"Tramites para la suscripción de convenios, , Inicio de Actividades, ","Reporte de avance de ejecución con soportes","Reporte de avance de ejecución con soportes","Reporte de avance de ejecución con soportes","Tramites para la suscripción de convenios, , Inicio de Actividades, "]
["Inclusión Social y Reconciliación","Punto de Abastecimiento Solidario en Balboa",{"$f":"+'DPS 23'!D8","v":"Preinversión"},{"$f":"+'DPS 23'!E8","v":"Fase III"},0,3300000000,0,0,0,0,3300000000,"Departamento Administrativo de Prosperidad Social",{"$f":"+'DPS 23'!V8","v":"0 No Iniciado, En estructuraciónEl proyecto se encuentra viabilizado, en proceso de ESTUDIOS Y DISEÑOS y un avance de obra de 0%"},"Tramites para la suscripción de convenios, , Inicio de Actividades, ","Reporte de avance de ejecución con soportes","Reporte de avance de ejecución con soportes","Reporte de avance de ejecución con soportes","Tramites para la suscripción de convenios, , Inicio de Actividades, "]
["Inclusión Social y Reconciliación","Punto de Abastecimiento Solidario en Cajibío",{"$f":"+'DPS 23'!D9","v":"Inversión"},{"$f":"+'DPS 23'!E9","v":"Ejecución"},0,3300000000,0,0,0,0,3300000000,"Departamento Administrativo de Prosperidad Social",{"$f":"+'DPS 23'!V9","v":"0 No Iniciado, En estructuraciónEl proyecto se encuentra viabilizado, en proceso de ESTUDIOS Y DISEÑOS y un avance de obra de 0%, se inició la ejecución y se proyecta terminación para abril de 2026"},"Reporte de avance de ejecución con soportes","Reporte de avance de ejecución con soportes","Reporte de avance de ejecución con soportes","Reporte de avance de ejecución con soportes","Reporte de avance de ejecución con soportes"]
["Inclusión Social y Reconciliación","Punto de Abastecimiento Solidario en Caldono",{"$f":"+'DPS 23'!D10","v":"Inversión"},{"$f":"+'DPS 23'!E10","v":"Ejecución"},0,3300000000,0,0,0,0,3300000000,"Departamento Administrativo de Prosperidad Social",{"$f":"+'DPS 23'!V10","v":"0 No Iniciado, En estructuraciónEl proyecto se encuentra viabilizado, en proceso de ESTUDIOS Y DISEÑOS y un avance de obra de 0%, se inició la ejecución y se proyecta terminación para abril de 2026"},"Reporte de avance de ejecución con soportes","Reporte de avance de ejecución con soportes","Reporte de avance de ejecución con soportes","Reporte de avance de ejecución con soportes","Reporte de avance de ejecución con soportes"]
["Inclusión Social y Reconciliación","Punto de Abastecimiento Solidario en Caloto  ",{"$f":"+'DPS 23'!D11","v":"Preinversión"},{"$f":"+'DPS 23'!E11","v":"Sin información clara"},0,3300000000,0,0,0,0,3300000000,"Departamento Administrativo de Prosperidad Social",{"$f":"+'DPS 23'!V11","v":"0 No Iniciado, En estructuración"},"Actualización información con soportes , Estructuración del proyecto, ","Viabilización del proyecto ante la cabeza del sector, , Tramites para la suscripción de convenios, ","Reporte de avance de ejecución con soportes","Reporte de avance de ejecución con soportes","Actualización información con soportes , Estructuración del proyecto, "]
["Inclusión Social y Reconciliación","Punto de Abastecimiento Solidario en Corinto",{"$f":"+'DPS 23'!D12","v":"Preinversión"},{"$f":"+'DPS 23'!E12","v":"Fase III"},0,3300000000,0,0,0,0,3300000000,"Departamento Administrativo de Prosperidad Social",{"$f":"+'DPS 23'!V12","v":"0 No Iniciado, En estructuraciónEl proyecto se encuentra viabilizado, en proceso de ESTUDIOS Y DISEÑOS y un avance de obra de 0%"},"Tramites para la suscripción de convenios, , Inicio de Actividades, ","Reporte de avance de ejecución con soportes","Reporte de avance de ejecución con soportes","Reporte de avance de ejecución con soportes","Tramites para la suscripción de convenios, , Inicio de Actividades, "]
["Inclusión Social y Reconciliación","Punto de Abastecimiento Solidario en El Tambo",{"$f":"+'DPS 23'!D13","v":"Preinversión"},{"$f":"+'DPS 23'!E13","v":"Fase III"},0,3300000000,0,0,0,0,3300000000,"Departamento Administrativo de Prosperidad Social",{"$f":"+'DPS 23'!V13","v":"0 No Iniciado, En estructuraciónEl proyecto se encuentra viabilizado, en proceso de ESTUDIOS Y DISEÑOS y un avance de obra de 0%"},"Tramites para la suscripción de convenios, , Inicio de Actividades, ","Reporte de avance de ejecución con soportes","Reporte de avance de ejecución con soportes","Reporte de avance de ejecución con soportes","Tramites para la suscripción de convenios, , Inicio de Actividades, "]
["Inclusión Social y Reconciliación","Punto de Abastecimiento Solidario en Guapi",{"$f":"+'DPS 23'!D14","v":"Preinversión"},{"$f":"+'DPS 23'!E14","v":"Fase III"},0,3300000000,0,0,0,0,3300000000,"Departamento Administrativo de Prosperidad Social",{"$f":"+'DPS 23'!V14","v":"0 No Iniciado, En estructuraciónEl proyecto se encuentra viabilizado, en proceso de ESTUDIOS Y DISEÑOS y un avance de obra de 0%, se inició la ejecución y se proyecta terminación para abril de 2026"},"Reporte de avance de ejecución con soportes","Reporte de avance de ejecución con soportes","Reporte de avance de ejecución con soportes","Reporte de avance de ejecución con soportes","Reporte de avance de ejecución con soportes"]
["Inclusión Social y Reconciliación","Punto de Abastecimiento Solidario en Jámbalo",{"$f":"+'DPS 23'!D15","v":"Inversión"},{"$f":"+'DPS 23'!E15","v":"Ejecución"},0,3300000000,0,0,0,0,3300000000,"Departamento Administrativo de Prosperidad Social",{"$f":"+'DPS 23'!V15","v":"0 No Iniciado, En estructuración El proyecto se encuentra viabilizado, en proceso de ESTUDIOS Y DISEÑOS y un avance de obra de 0%, se inició la ejecución y se proyecta terminación para abril de 2026"},"Reporte de avance de ejecución con soportes","Reporte de avance de ejecución con soportes","Finalización, liquidación, ",null,"Reporte de avance de ejecución con soportes"]
["Inclusión Social y Reconciliación","Punto de Abastecimiento Solidario en Mercaderes",{"$f":"+'DPS 23'!D16","v":"Inversión"},{"$f":"+'DPS 23'!E16","v":"Ejecución"},0,3300000000,0,0,0,0,3300000000,"Departamento Administrativo de Prosperidad Social",{"$f":"+'DPS 23'!V16","v":"0 No Iniciado, En estructuraciónEl proyecto se encuentra viabilizado, en proceso de ESTUDIOS Y DISEÑOS y un avance de obra de 0%, se inició la ejecución y se proyecta terminación para abril de 2026"},"Actualización información con soportes , Reporte de avance de ejecución con soportes","Reporte de avance de ejecución con soportes","Finalización, liquidación, ",null,"Actualización información con soportes , Reporte de avance de ejecución con soportes"]
["Inclusión Social y Reconciliación","Punto de Abastecimiento Solidario en Miranda",{"$f":"+'DPS 23'!D17","v":"Inversión"},{"$f":"+'DPS 23'!E17","v":"Ejecución"},0,3300000000,0,0,0,0,3300000000,"Departamento Administrativo de Prosperidad Social",{"$f":"+'DPS 23'!V17","v":"0 No Iniciado, En estructuraciónEl proyecto se encuentra viabilizado, en proceso de ESTUDIOS Y DISEÑOS y un avance de obra de 0%, se inició la ejecución y se proyecta terminación para abril de 2026"},"Actualización información con soportes , Reporte de avance de ejecución con soportes","Reporte de avance de ejecución con soportes","Finalización, liquidación, ",null,"Actualización información con soportes , Reporte de avance de ejecución con soportes"]
["Inclusión Social y Reconciliación","Punto de Abastecimiento Solidario en Morales",{"$f":"+'DPS 23'!D18","v":"Inversión"},{"$f":"+'DPS 23'!E18","v":"Ejecución"},0,3300000000,0,0,0,0,3300000000,"Departamento Administrativo de Prosperidad Social",{"$f":"+'DPS 23'!V18","v":"0 No Iniciado, En estructuraciónEl proyecto se encuentra viabilizado, en proceso de ESTUDIOS Y DISEÑOS y un avance de obra de 0%, se inició la ejecución y se proyecta terminación para abril de 2026"},"Actualización información con soportes , Reporte de avance de ejecución con soportes","Reporte de avance de ejecución con soportes","Finalización, liquidación, ",null,"Actualización información con soportes , Reporte de avance de ejecución con soportes"]
["Inclusión Social y Reconciliación","Punto de Abastecimiento Solidario en Patía",{"$f":"+'DPS 23'!D19","v":"Inversión"},{"$f":"+'DPS 23'!E19","v":"Ejecución"},0,3300000000,0,0,0,0,3300000000,"Departamento Administrativo de Prosperidad Social",{"$f":"+'DPS 23'!V19","v":"0 No Iniciado, En estructuraciónEl proyecto se encuentra viabilizado, en proceso de ESTUDIOS Y DISEÑOS y un avance de obra de 0%, se inició la ejecución y se proyecta terminación para abril de 2026"},"Actualización información con soportes , Reporte de avance de ejecución con soportes","Reporte de avance de ejecución con soportes","Finalización, liquidación, ",null,"Actualización información con soportes , Reporte de avance de ejecución con soportes"]
["Inclusión Social y Reconciliación","Punto de Abastecimiento Solidario en Popayán",{"$f":"+'DPS 23'!D20","v":"Preinversión"},{"$f":"+'DPS 23'!E20","v":"Fase III"},0,3300000000,0,0,0,0,3300000000,"Departamento Administrativo de Prosperidad Social",{"$f":"+'DPS 23'!V20","v":"0 No Iniciado, En estructuraciónEl proyecto se encuentra viabilizado, en proceso de ESTUDIOS Y DISEÑOS y un avance de obra de 0%"},"Tramites para la suscripción de convenios, , Inicio de Actividades, ","Reporte de avance de ejecución con soportes","Reporte de avance de ejecución con soportes","Reporte de avance de ejecución con soportes","Tramites para la suscripción de convenios, , Inicio de Actividades, "]
["Inclusión Social y Reconciliación","Punto de Abastecimiento Solidario en Santander de Quilichao",{"$f":"+'DPS 23'!D21","v":"Preinversión"},{"$f":"+'DPS 23'!E21","v":"Fase III"},0,3300000000,0,0,0,0,3300000000,"Departamento Administrativo de Prosperidad Social",{"$f":"+'DPS 23'!V21","v":"0 No Iniciado, En estructuraciónEl proyecto se encuentra viabilizado, en proceso de ESTUDIOS Y DISEÑOS y un avance de obra de 0%"},"Tramites para la suscripción de convenios, , Inicio de Actividades, ","Reporte de avance de ejecución con soportes","Reporte de avance de ejecución con soportes","Reporte de avance de ejecución con soportes","Tramites para la suscripción de convenios, , Inicio de Actividades, "]
["Inclusión Social y Reconciliación","Punto de Abastecimiento Solidario en Timbiquí ",{"$f":"+'DPS 23'!D22","v":"Preinversión"},{"$f":"+'DPS 23'!E22","v":"Sin información clara"},0,3300000000,0,0,0,0,3300000000,"Departamento Administrativo de Prosperidad Social",{"$f":"+'DPS 23'!V22","v":"0 No Iniciado, En estructuración"},"Estructuración del proyecto, ","Estructuración del proyecto, ","Tramites para la suscripción de convenios, , Inicio de Actividades, ","Reporte de avance de ejecución con soportes","Estructuración del proyecto, "]
["Inclusión Social y Reconciliación","Punto de Abastecimiento Solidario en Toribio",{"$f":"+'DPS 23'!D23","v":"Inversión"},{"$f":"+'DPS 23'!E23","v":"Ejecución"},0,3300000000,0,0,0,0,3300000000,"Departamento Administrativo de Prosperidad Social",{"$f":"+'DPS 23'!V23","v":"0 No Iniciado, En estructuraciónEl proyecto se encuentra viabilizado, en proceso de ESTUDIOS Y DISEÑOS y un avance de obra de 0%, se inició la ejecución y se proyecta terminación para abril de 2026"},"Reporte de avance de ejecución con soportes","Reporte de avance de ejecución con soportes","Finalización, liquidación, ",null,"Reporte de avance de ejecución con soportes"]
["Inclusión Social y Reconciliación","Malecón Sobre El Rio Suárez",{"$f":"+'DPS 23'!D24","v":"Inversión"},{"$f":"+'DPS 23'!E24","v":"Contratación"},0,3000000000,0,0,0,0,3000000000,"Departamento Administrativo de Prosperidad Social",{"$f":"+'DPS 23'!V24","v":"0 No Iniciado, En viabilidadPROYECTO PRIORIZADO MEDIANTE CONVENIO # 911-FIP-2024 . Convenio Suscrito con el municipio\nDocumentación Técnica en estructuración para publicación en SECOP II. Se requiere surtir modificación del contrato de fiducia para poder tener el soporte presupuestal.\n"},"Tramites para la suscripción de convenios, , Inicio de Actividades, ","Reporte de avance de ejecución con soportes","Reporte de avance de ejecución con soportes","Reporte de avance de ejecución con soportes","Tramites para la suscripción de convenios, , Inicio de Actividades, "]
["Inclusión Social y Reconciliación","Construcción Plaza de Mercado de López de Micay Cauca",{"$f":"+'DPS 23'!D25","v":"Inversión"},{"$f":"+'DPS 23'!E25","v":"Contratación"},0,6500000000,0,0,0,0,6500000000,"Departamento Administrativo de Prosperidad Social",{"$f":"+'DPS 23'!V25","v":"0 No Iniciado, En viabilidadPROYECTO PRIORIZADO MEDIANTE CONVENIO # 911-FIP-2024 .\nEstado Convenio: Suscrito con el municipio\nLa Contratación derivada de la Consultaría, obra e interventoría , en procesos precontractuales, documentación Técnica en estructuración para publicación en SECOP II. Se requiere surtir modificación del contrato de fiducia para poder tener el soporte presupuestal.\n"},"Tramites para la suscripción de convenios, , Inicio de Actividades, ","Reporte de avance de ejecución con soportes","Reporte de avance de ejecución con soportes","Reporte de avance de ejecución con soportes","Tramites para la suscripción de convenios, , Inicio de Actividades, "]
["Comercio, Industria y Turismo","Línea de crédito de agroindustria para empresas con códigos de actividades económicas específicas del sector económico agroindustrial / municipios del Cañón del Micay.",{"$f":"+'MCIT 7'!D10","v":"Operación"},{"$f":"+'MCIT 7'!E10","v":"Ejecución"},0,320000000,0,0,0,0,320000000,"Ministerio de Comercio, Industria y Turismo",{"$f":"+'MCIT 7'!Y10","v":"22/04/2026. $4.645 millones. Operación. La línea de crédito esta dispuesta desde abril de 2025 (Bamcoldex) y su vigencia es hasta agotar recursos, con corte al mes de marzo de 2026 no se han presentado solicitudes de crédito con cargo a esta línea para los municipios de Argelia, El Tambo, López de Micay, Guapi y Timbiquí. No corresponde a un proyecto, se considera un programa."},"Reporte de avance de ejecución con soportes","Reporte de avance de ejecución con soportes","Reporte de avance de ejecución con soportes","Reporte de avance de ejecución con soportes","Reporte de avance de ejecución con soportes"]
["Agricultura y Desarrollo Rural","Implementación de sistemas agroforestales sostenibles con componentes de asistencia técnica, transformación industrial y procesos de comercialización","Inversión","Ejecución",0,18000000000,0,0,0,0,18000000000,"Dirección de Sustitución de Cultivo de Uso Ilícito","Se encuentra en el proyecto \"Transformación ecológica y productiva de zonas degradadas por cultivos de uso ilícito en áreas de especial importancia ambiental en los departamentos de Nariño, Cauca y Chocó (Sistemas agroforestales de cacao).\" reportado por la  DSCI","Reporte de avance de ejecución con soportes","Reporte de avance de ejecución con soportes","Reporte de avance de ejecución con soportes","Reporte de avance de ejecución con soportes",{"$f":"+N128","v":"Reporte de avance de ejecución con soportes"}]
["Agricultura y Desarrollo Rural","Modernización de 2 distrito de riego de pequeña escala del municipio de Totoró y Mercaderes en el Departamento de Cauca",{"$f":"+'ADR 8+'!D8","v":"Preinversión"},{"$f":"+'ADR 8+'!E8","v":"Fase I"},0,856208160,0,0,0,0,856208160,"Agencia de Desarrollo Rural",{"$f":"+'ADR 8+'!V8","v":"$923.millones. Fase I. Los proyectos de modernización de los distritos de riego de pequeña escala Chuscales (Totoró) y Mercaderes (Mercaderes) serán nuevamente postulados ante el Comité Técnico del Fondo Nacional de Adecuación de Tierras (FONAT), incorporando las subsanaciones y ajustes técnicos y documentales requeridos, así como la indexación presupuestal ($923.792.530). Lo anterior, con el fin de avanzar en su eventual priorización, financiación y ejecución durante la vigencia 2026.\n\nCabe mencionar que no es posible informar la duración de la ejecución del proyecto, dado que, aunque la ADR ya realizó las subsanaciones correspondientes y el proyecto se encuentra listo para ser presentado nuevamente ante el Fondo Nacional de Adecuación de Tierras (FONAT) para su priorización y financiación, no es posible avanzar hasta tanto no se lleve a cabo el respectivo comité. Una vez este se realice, se podrá proceder con la priorización, financiación y contratación de la obra y su interventoría."},"Priorización","Viabilización del proyecto ante la cabeza del sector, , Asignación de recursos, ","Tramites para la suscripción de convenios, ","Inicio de Actividades, , Reporte de avance de ejecución con soportes","Priorización"]
["Tecnologías de la Información y las Comunicaciones","Centros digitales para conectividad",{"$f":"+'TICs 4'!D7","v":"Operación"},{"$f":"+'TICs 4'!E7","v":"Ejecución"},0,3255584463,0,0,0,0,3255584463,"Ministerio de Tecnologías de la Información y las Comunicaciones",{"$f":"+'TICs 4'!Y7","v":"21/04/2026. $3.255.584.463 millones corresponden a estimaciones. Ejecución-Operación. Proyecto Centros Digitales. Inversion Estimada unicamente para el municipio de Lopez de Micay en los años 2025 a 2028. Meta: 15 centros digitales, y ya se encuentran instalados.\nPrograma con Vigencias Futuras. Se encuentra en operación hasta 2031. "},"Reporte de avance de ejecución con soportes","Reporte de avance de ejecución con soportes","Reporte de avance de ejecución con soportes","Reporte de avance de ejecución con soportes","Reporte de avance de ejecución con soportes"]
["Agricultura y Desarrollo Rural","Fortalecimiento de las capacidades productivas, organizacionales y comerciales de los productores de café, cítricos y cacao; en comunidades campesinas, afro e indígenas ubicados en los municipios de Miranda, Padilla, Puerto Tejada, Corinto, Caloto, Guachené, Villa Rica, Santander de Quilichao, Buenos Aires, Suarez y Caldono, en el Norte del Departamento del Cauca- BP 3694",{"$f":"+'ADR 8+'!D9","v":"Preinversión"},{"$f":"+'ADR 8+'!E9","v":"Fase I"},0,15000000000,0,0,3750000000,0,18750000000,"Agencia de Desarrollo Rural / Comunidad",{"$f":"+'ADR 8+'!V9","v":"El proyecto, actualmente en fase de estructuración – etapa de factibilidad (Banco de Proyectos No. 3694), está orientado al fortalecimiento de las capacidades productivas, organizacionales y comerciales de productores de café, cítricos y cacao en municipios del norte del departamento del Cauca.\n\nA la fecha, el proyecto se encuentra en proceso de evaluación y calificación por parte de los equipos técnicos a nivel central, registrando avances significativos en los componentes técnico, comercial y asociativo, los cuales se encuentran consolidados. No obstante, el proceso se encuentra condicionado al cierre del componente jurídico, particularmente en lo relacionado con la verificación de potenciales beneficiarios y el cumplimiento de requisitos habilitantes, así como en la atención de subsanaciones puntuales de carácter formal."},"Estructuración del proyecto, , Viabilización del proyecto ante la cabeza del sector, ","Gestión de recursos","Inicio de Actividades, , Reporte de avance de ejecución con soportes","Reporte de avance de ejecución con soportes","Estructuración del proyecto, , Viabilización del proyecto ante la cabeza del sector, "]
["Agricultura y Desarrollo Rural","Fortalecimiento de las capacidades productivas a través de bancos de maquinaria para los resguardos Huellas y Páez de Corinto en los predios de Liberación Emperatriz y García Arriba en los municipios de Caloto y Corinto en el marco de la Reforma Rural Integral",{"$f":"+'ADR 8+'!D10","v":"Preinversión"},{"$f":"+'ADR 8+'!E10","v":"Fase I"},0,5000000000,0,0,1250000000,0,6250000000,"Agencia de Desarrollo Rural / Comunidad",{"$f":"+'ADR 8+'!V10","v":"Proyecto en estructuración en fase de factibilidad (número de Banco de Proyectos - BP No. 3693).\nSe está a la espera de disponibilidad de recursos para cofinanciación."},"Estructuración del proyecto, ","Estructuración del proyecto, , Viabilización del proyecto ante la cabeza del sector, ","Gestión de recursos","Reporte de avance de ejecución con soportes","Estructuración del proyecto, "]
["Agricultura y Desarrollo Rural","Fortalecimiento a la capacidad productiva agroindustrial de la empresa procesadora y comercializadora de café tostado y molido “Nasa Café” orientada a mejorar la economía en el Territorio Indígena de la Parcialidad de Huellas Caloto - Norte del Cauca, con el fortalecimiento a caficultores, construcción y dotación de infraestructura y comercialización",{"$f":"+'ADR 8+'!D11","v":"Preinversión"},{"$f":"+'ADR 8+'!E11","v":"Fase I"},0,2000000000,0,0,500000000,0,2500000000,"Agencia de Desarrollo Rural / Comunidad",{"$f":"+'ADR 8+'!V11","v":"El proyecto cuenta con concepto jurídico favorable tanto para la organización como para el predio. En el componente ambiental, se avanza en la gestión del uso del suelo del predio “La Emperatriz”, mediante la radicación de la justificación técnica de viabilidad ante la Secretaría de Planeación Municipal de Caloto, encontrándose actualmente en espera de respuesta. De manera paralela, el equipo técnico de la ADR, en articulación con el resguardo, adelanta el rediseño de la planta de proceso, con el propósito de optimizar la infraestructura y garantizar la eficiencia del componente agroindustrial, en coherencia con las necesidades del proyecto."},"Estructuración del proyecto, ","Estructuración del proyecto, , Viabilización del proyecto ante la cabeza del sector, ","Gestión de recursos","Reporte de avance de ejecución con soportes","Estructuración del proyecto, "]
["Agricultura y Desarrollo Rural","Fortalecimiento de la Caficultura sostenible en 33 municipios del departamento del Cauca: Un enfoque integral para la productividad, calidad y comercialización.",{"$f":"+'GOBERNACIÓN 2+<>'!D4","v":"Inversión"},{"$f":"+'GOBERNACIÓN 2+<>'!E4","v":"Contratación de derivados"},25000000000,0,5000000000,0,0,0,30000000000,"Departamento Nacional de Planeación (FRPT) / Gobernación del Cauca",{"$f":"+'GOBERNACIÓN 2+<>'!V4","v":"Gobernación 21/04/2026: \nOtros Recursos territorio corresponden  a mano de obra (especie-jornales) de beneficiarios finales cuantificada. \nEl operador se encuentra proceso licitatorio LP DC-SADR-LP-001-2026, con fecha en cronogramna de secop de adjudicación, suscripción de contrato, garantpias el 6 de mayo de 2026, por valor $32.376.106.814 ($27.707.334.706) incluido cuantificación de mano de obra; plazo hasta el 28 de abril de 2026. Y definición de beneficiarios finales.\nInterventoría se encuentra en proceso concurso de meritos DC-SADR-CMA-001-2026  con fecha en cronogramna de secop de adjudicación el 23 de abril de 2026.Por valor de $1.618.158.842; plazo hasta el 31 de diciembre de 2026.\nSe espera acta de inicio"},"Tramites para la suscripción de convenios, , Reporte de avance de ejecución con soportes","Reporte de avance de ejecución con soportes","Reporte de avance de ejecución con soportes","Finalización, liquidación, ","Tramites para la suscripción de convenios, , Reporte de avance de ejecución con soportes"]
["Agricultura y Desarrollo Rural","Fortalecimiento de la caficultura especial, sostenible, regenerativa y diversa, con articulación social e incluyente en el departamento del Cauca",{"$f":"+'ADR 8+'!D12","v":"Inversión"},{"$f":"+'ADR 8+'!E12","v":"Ejecución / Alistamiento"},0,15509023746,0,0,13006394116,0,28515417862,"Agencia de Desarrollo Rural / Comunidad",{"$f":"+'ADR 8+'!V12","v":"BP 3713 - Resolución 101 de 2026. 31/03/2026: El PIDAR se encuentra en fase de alistamiento. El proyecto contempla el fortalecimiento de 24 organizaciones cafeteras en 11 municipios del Cauca mediante la dotación de equipos y maquinaria para centros de acopio y laboratorios de calidad, incluyendo kits para análisis físico y organoléptico del café, equipos de catación y métodos de extracción; además, incorpora la entrega de 9 vehículos de carga y la instalación de sistemas de energía renovable fotovoltaica para mejorar la agro logística. Igualmente, incluye la dotación de equipos y maquinaria para 4 plantas de procesamiento de café tostado y molido, con equipos como tostadoras, máquinas de espresso y otros implementos para tecnificar la transformación; la construcción de 3 centros de acopio y bodegas de café y la adecuación de 4 infraestructuras de mediana complejidad para almacenamiento, análisis y comercialización de café pergamino seco; y, de forma complementaria, asistencia técnica y formación integral.\nSe notificó por parte de la Dirección de Acceso a Activos Productivos a la Unidad Técnica Territorial #9 el 9 de marzo de 2026.\nSe cuenta con Certificado de Disponibilidad de Recursos desde el fondo Colombia en Paz.\nEn cuanto al proyecto: Fortalecimiento de la caficultura especial, sostenible, regenerativa y diversa, con articulación social e incluyente en el departamento del Cauca. $28.515.417.862\n$15.509.023.746 ADR excusivos para esta resolución."},"Reporte de avance de ejecución con soportes","Reporte de avance de ejecución con soportes","Reporte de avance de ejecución con soportes","Reporte de avance de ejecución con soportes","Reporte de avance de ejecución con soportes"]
["Total",{"$f":"+COUNTA(B79:B135)","v":57},null,null,{"$f":"SUM(E79:E135)","v":25000000000},324051529113,5000000000,0,25392925215,0,379444454328]
["*Se entiende por entidad Responsable la encargada de la fuente de financiación. "]
[]
["5. Salud"]
["Sector","Nombre de la Iniciativa","Etapa del Proyecto *","Fase del Proyecto *","Aporte Nación",null,"Aporte Territorio",null,null,"Otros recursos","Inversión Total","Entidad Responsable*","Observaciones / Acciones","Actividades a ejecutar"]
[null,null,null,null,"DNP","Sector","Propios","SGR","Otros",null,null,null,null,"Trimestre 2 -2026","Trimestre 3 - 2026","Trimestre 4 -2026 ","Trimestre 1 -2027","Actividad Principal"]
["Salud y Protección Social ","Hospital del segundo nivel del Patía​",{"$f":"+'SALUD 10+'!D4","v":"Inversión"},{"$f":"+'SALUD 10+'!E4","v":"Fase I"},0,37000000000,5000000000,null,0,0,{"$f":"SUM(E142:J142)","v":42000000000},"Ministerio de Salud y Protección Social /Gobernación del Cauca",{"$f":"+'SALUD 10+'!Z4","v":"$37.000 millones. Fase I - Con Asignación de Recursos. Desde el MSPS se realiza asignación de resursos mediante RESOLUCIÓN 2733_2806 DEL 2025. CONPES 4169 del 2025. \nNombre del proyecto: HOSPITAL DEL SEGUNDO NIVEL DEL PATÍA​\nEl proyecto se encuentra en etapa de iniciativa. Actualmente no cuenta con cofinanciación."},"Presentación del proyecto ante la fuente de financiación, ","Estructuración del proyecto","Viabilización del proyecto ante la cabeza del sector","Revisión y aprobación del proyecto por la fuente de financiación",{"$f":"+N142","v":"Presentación del proyecto ante la fuente de financiación, "}]
["Salud y Protección Social ","Remodelación del Hospital de Guapi",{"$f":"+'GOBERNACIÓN 2+<>'!D5","v":"Inversión"},{"$f":"+'GOBERNACIÓN 2+<>'!E5","v":"Ejecución"},0,0,0,36895891663,0,0,{"$f":"SUM(E143:J143)","v":36895891663},"Gobernación del Cauca (SGR 60%)",{"$f":"+'GOBERNACIÓN 2+<>'!V5","v":"Ejecución-Suspendido."},"Reinicio de actividades, , Reporte de avance de ejecución con soportes","Reporte de avance de ejecución con soportes","Reporte de avance de ejecución con soportes","Reporte de avance de ejecución con soportes",{"$f":"+N143","v":"Reinicio de actividades, , Reporte de avance de ejecución con soportes"}]
["Salud y Protección Social ","Reposición de la unidad de atención en salud Suárez – Cauca",{"$f":"+'SALUD 10+'!D5","v":"Inversión"},{"$f":"+'SALUD 10+'!E5","v":"Fase I"},0,30000000000,0,0,0,0,30000000000,"Ministerio de Salud y Protección Social ",{"$f":"+'SALUD 10+'!Z5","v":"$34.080 millones. Evaluación Técnica Fase I- Con Recursos asignados. ESE NORTE 1. Desde el MSPS se realiza asignación de resursos mediante RESOLUCIÓN 2733 DEL 2025. CONPES 4169 del 2025.\nNombre del proyecto: REPOSICIÓN DE LA UNIDAD DE ATENCIÓN EN SALUD DE SUÁREZ – ESE NORTE 1\nEl proyecto se encuentra en etapa de evaluación"},"Revisión técnica del proyecto por Sector ","Actualización información con soportes ","Revisión y aprobación del proyecto por la fuente de financiación","Viabilización del proyecto ante la cabeza del sector","Revisión técnica del proyecto por Sector "]
["Salud y Protección Social ","Construcción De La Unidad De Atención En Salud El Plateado, E.S.E. Suroccidente Cauca",{"$f":"+'SALUD 10+'!D6","v":"Inversión"},{"$f":"+'SALUD 10+'!E6","v":"Ejecución"},0,22458423926,0,0,0,0,22458423926,"Ministerio de Salud y Protección Social ",{"$f":"+'SALUD 10+'!Z6","v":"$22.458 millones comprometido. Ejecución/Suspendido.  Avance 31.50%.  Desde el MSPS se realiza asignación de resursos mediante RESOLUCIÓN 898 DEL 2024\nNombre del proyecto: CONSTRUCCIÓN DE LA UNIDAD DE ATENCIÓN EN SALUD EL PLATEADO, ESE SUROCCIDENTE CAUCA\nEl proyecto se encuentra en etapa de ejecución, sin embargo se encuentra suspendido. Avance físico de obra 31.50%."},"Reporte de avance de ejecución con soportes, Actualización información con soportes ","Reporte de avance de ejecución con soportes","Reporte de avance de ejecución con soportes","Finalización, liquidación, ","Reporte de avance de ejecución con soportes, Actualización información con soportes "]
["Salud y Protección Social ","Reposición de la infraestructura física de la unidad nivel 1 López de Micay, unidad de atención de la E.S.E. occidente, departamento del Cauca  ",{"$f":"+'SALUD 10+'!D7","v":"Inversión"},{"$f":"+'SALUD 10+'!E7","v":"Ejecución"},0,44165636109,0,0,0,0,44165636109,"Ministerio de Salud y Protección Social ",{"$f":"+'SALUD 10+'!Z7","v":"$44.165 millones. Ejecución. Avance 2%. Desde el MSPS se realiza asignación de resursos mediante RESOLUCIÓN 1023 DEL 2025\nNombre del proyecto: REPOSICIÓN DE LA INFRAESTRCUTURA FISICA DE LA UNIDAD NIVEL I LOPEZ DE MICAY, PUNTO DE ATENCIÓN DE LA ESE OCCIDENTE, DEPARTAMENTO DEL CAUCA\nEl proyecto se encuentra en etapa de ejecución. Avance 2% iniciaron obra el 12 febrero de 2026."},"Reporte de avance de ejecución con soportes, Actualización información con soportes ","Reporte de avance de ejecución con soportes","Reporte de avance de ejecución con soportes","Finalización, liquidación, ","Reporte de avance de ejecución con soportes, Actualización información con soportes "]
["Salud y Protección Social ","Construcción de la planta física para la reubicación de servicios de consulta externa y áreas administrativas Hospital Susana López de Valencia  E.S.E.",{"$f":"+'SALUD 10+'!D8","v":"Inversión"},{"$f":"+'SALUD 10+'!E8","v":"Ejecución"},0,16497522812,0,0,0,0,16497522812,"Ministerio de Salud y Protección Social ",{"$f":"+'SALUD 10+'!Z8","v":"$16.497 millones. Ejecución. Avance 3.5%. Desde el MSPS se realiza asignación de resursos mediante RESOLUCIÓN 1221 DEL 2024.\nNombre del proyecto: CONSTRUCCIÓN DE LA PLANTA FÍSICA PARA LA REUBICACIÓN DE SERVICIOS DE CONSULTA EXTERNA Y ÁREAS ADMINSITRATIVAS HOSPITAL SUSANA LÓPEZ DE VALENCIA ESE\nEl proyecto se encuentra en etapa de ejecución. Avance 3.5% inicio de actividades 9 de marzo 2026."},"Reporte de avance de ejecución con soportes, Actualización información con soportes ","Reporte de avance de ejecución con soportes","Reporte de avance de ejecución con soportes","Reporte de avance de ejecución con soportes","Reporte de avance de ejecución con soportes, Actualización información con soportes "]
["Salud y Protección Social ","Construcción hospital nivel 1 de Padilla",{"$f":"+'SALUD 10+'!D9","v":"Inversión"},{"$f":"+'SALUD 10+'!E9","v":"Terminado"},0,14550608204,0,0,0,0,14550608204,"Ministerio de Salud y Protección Social ",{"$f":"+'SALUD 10+'!Z9","v":"$14.550 millones. Ejecución. Avance 13.15%. Desde el MSPS se realiza asignación de resursos mediante RESOLUCIÓN 1221 DEL 2024\nNombre del proyecto: CONSTRUCCIÓN HOSPITAL NIVEL 1 DE PADILLA\nEl proyecto se encuentra en etapa de ejecución.\nAvance 13.15%."},"Reporte de avance de ejecución con soportes, Actualización información con soportes ","Reporte de avance de ejecución con soportes","Reporte de avance de ejecución con soportes","Reporte de avance de ejecución con soportes","Reporte de avance de ejecución con soportes, Actualización información con soportes "]
["Salud y Protección Social ","Adecuaciones menores de 4 unidades de atención en salud",{"$f":"+'SALUD 10+'!D10","v":"Inversión"},{"$f":"+'SALUD 10+'!E10","v":"Terminado"},0,1218590954,0,0,0,0,1218590954,"Ministerio de Salud y Protección Social ",{"$f":"+'SALUD 10+'!Z10","v":"$1.218 millones. 4-Terminados. \n- 1 Proyecto: ADECUACIÓN MENOR EN LA UNIDAD DE ATENCIÓN EN SALUD DEL MUNICIPIO DE ARGELIA, CAUCA. - MSPS recursos RESOLUCIÓN 209_623 del 2025. Se encuentra en etapa de terminación.\n- 2 Proyecto: ADECUACIÓN MENOR EN LA UNIDAD DE ATENCIÓN EN SALUD DE OLAYA BALBOA, CAUCA\nMSPS resursos RESOLUCIÓN 209_623 del 2025.\nSe encuentra en etapa de terminación.\n- 3 Proyecto: ADECUACIÓN MENOR PARA LA UNIDAD DE ATENCIÓN EN SALUD EL MANGO MUNICIPIO DE ARGELIA CAUCA, ESE SUROCCIDENTE - MSPS resursos RESOLUCIÓN 209_623 del 2025. Se encuentra en etapa de terminación\n- 4 Proyecto: ADECUACIÓN MENOR EN LA UNIDAD DE ATENCION EN SALUD DE ARBOLEDAS, MERCADERES, CAUCA - MSPS resursos RESOLUCIÓN 209_623 del 2025. Se encuentra en etapa de terminación\n"},"Actualización información con soportes , Finalización, liquidación,  Presentación del proyecto ante la fuente de financiación","Actualización información con soportes , Finalización, liquidación, ",null,null,"Actualización información con soportes , Finalización, liquidación,  Presentación del proyecto ante la fuente de financiación"]
["Salud y Protección Social ","Construir, mejorar, ampliar y dotar cinco puestos de salud de los corregimientos de Mojarras, San Joaquín, Arboledas, Cajamarca y en la vereda Esperanzas del Mayo para mejorar la cobertura y calidad de los servicios de salud de 8000 personas en el Municipios de Mercaderes",{"$f":"+'SALUD 10+'!D11","v":"Preinversión, Inversión"},{"$f":"+'SALUD 10+'!E11","v":"Fase I, Terminado"},0,329933688,0,0,0,0,329933688,"Ministerio de Salud y Protección Social ",{"$f":"+'SALUD 10+'!Z11","v":"$329 millones. 1-Terminado, 2-en Viabilización, 2-No presentados.\n1. ADECUACIÓN PARA EL MEJORAMIENTO DE LA INFRAESTRUCTURA FÍSICA DE LA UNIDAD DE ATENCIÓN EN SALUD DE SAN JOAQUÍN DEL MUNICIPIO DE MERCADERES DEPARTAMENTO DEL CAUCA. Valor: $361.681.589. En evaluación tecnica con recursos MSPS RESOLUCIÓN 209_623 del 2025.\n2. ADECUACIÓN MENOR EN LA UNIDAD DE ATENCION EN SALUD DE ARBOLEDAS, MERCADERES, CAUCA. En etapa de terminación, obra terminó el 20 de dicembre de 2025.\n3. ADECUACIÓN PARA EL MEJORAMIENTO DE LA INFRAESTRUCTURA FÍSICA EN SALUD DE LA UNIDAD DE ATENCIÓN EN SALUD DE CAJAMARCA DEL MUNICIPIO DE MERCADERES DEL DEPARTAMENTO DE CAUCA. Valor: $262.773.419. Se encuentra con CAAR, cuenta con viabilización para asignación de recursos.\n4 y 5. Los 2 proyectos (Mojarras y vereda Esperanzas del Mayo) corresponden a proyectos de dotación y las ESE no han radicado al ministerio."},"Revisión y aprobación del proyecto por la fuente de financiación, liquidación, Presentación de Proyecto","Actualización información con soportes ","Revisión y aprobación del proyecto por la fuente de financiación, Reporte de avance de ejecución con soportes","Viabilización del proyecto ante la cabeza del sector, Reporte de avance de ejecución con soportes","Revisión y aprobación del proyecto por la fuente de financiación, liquidación, Presentación de Proyecto"]
["Salud y Protección Social ","Adecuación y dotación de (3) puestos de salud (apoyan resguardo indígena de Ambaló) en zona rural que beneficiará a 700 habitantes del municipio de Silvia, departamento del cauca",{"$f":"+'SALUD 10+'!D12","v":"Inversión"},{"$f":"+'SALUD 10+'!E12","v":"Terminado, Fase I"},0,535260922,0,0,0,0,535260922,"Ministerio de Salud y Protección Social ",{"$f":"+'SALUD 10+'!Z12","v":"$535 millones. 1-Terminado, 1-Evaluación técnica, 1 sin presentar.\n1. ADECUACIÓN MENOR DE LA UNIDAD DE ATENCIÓN EN SALUD DE SILVIA DEPARTAMENTO DEL CAUCA, EMPRESA SOCIAL DEL ESTADO CENTRO 1 E.S.E. resursos MSPS RESOLUCIÓN 1984 DEL 2024. El proyecto se encuentra en etapa de terminación.\n2. REPOSICIÓN DEL PUESTO DE SALUD PARA LA ATENCIÓN DE LA POBLACIÓN DEL CORREGIMIENTO DE USENDA MUNICIPIO DE SILVIA CAUCA. Valor: $3.244.596.490. En etapa de evaluación. \n3. La subdirección de Infraestructura en Salud del MSPS no cuenta con mas proyectos radicados por parte de la ESE para ser viabilizados en el Municipio de Silvia, departamento del Cauca"},"Tramites para la suscripción de convenios","Reporte de avance de ejecución con soportes","Reporte de avance de ejecución con soportes","Reporte de avance de ejecución con soportes","Tramites para la suscripción de convenios"]
["Salud y Protección Social ","Construir centros de salud, en los centros poblados de Guachicono, San Miguel, Altamira y Pancitará del municipio de La  Vega para garantizar el servicio de salud a la población rural del municipio de La Vega",{"$f":"+'SALUD 10+'!D13","v":"Preinversión, Inversión"},{"$f":"+'SALUD 10+'!E13","v":"Terminado, Fase I"},0,3283059964,0,0,0,0,3283059964,"Ministerio de Salud y Protección Social ",{"$f":"+'SALUD 10+'!Z13","v":"$458 millones. 1-Terminado, 1-Estructuración, 2-Sin presentar.\n1.ADECUACIÓN MENOR UNIDAD DE ATENCIÓN EN SALUD SAN MIGUEL. El proyecto se encuentra en etapa de terminación. Resursos MSPS RESOLUCIÓN 1906 DEL 2024\n2. ADECUACIÓN MENOR UNIDAD DE ATENCIÓN EN SALUD DE ALTAMIRA. Valor: $601.197.846. El proyecto se encuentra en etapa de estructuración.\n3 y 4 (Guachicono y Pancitará) no se han preentado."},"Revisión y aprobación del proyecto por la fuente de financiación, liquidación, Presentación de Proyecto","Reporte de avance de ejecución con soportes, Actualización información con soportes ","Revisión y aprobación del proyecto por la fuente de financiación, Reporte de avance de ejecución con soportes","Viabilización del proyecto ante la cabeza del sector, Reporte de avance de ejecución con soportes","Revisión y aprobación del proyecto por la fuente de financiación, liquidación, Presentación de Proyecto"]
["Total",{"$f":"+COUNTA(B142:B152)","v":11},null,null,{"$f":"SUM(E142:E152)","v":0},170039036579,5000000000,36895891663,0,0,211934928242]
["*Se entiende por entidad Responsable la encargada de la fuente de financiación. "]
[]
["6. Transición Energética"]
["Sector","Nombre de la Iniciativa","Etapa del Proyecto *","Fase del Proyecto *","Aporte Nación",null,"Aporte Territorio",null,null,"Otros recursos","Inversión Total","Entidad Responsable*","Observaciones / Acciones","Actividades a ejecutar"]
[null,null,null,null,"DNP","Sector","Propios","SGR","Otros",null,null,null,null,"Trimestre 2 -2026","Trimestre 3 - 2026","Trimestre 4 -2026 ","Trimestre 1 -2027","Actividad Principal"]
["Minas y Energía","Se propone fortalecer el proceso de formación de al menos 50 participantes en los distritos de Cauca, a través de procesos formativos certificados",{"$f":"+'MINAS 6+'!D4","v":"Inversión"},{"$f":"+'MINAS 6+'!E4","v":"Ejecución"},0,250000000,0,0,0,0,{"$f":"SUM(E159:J159)","v":250000000},"Ministerio de Minas y Energía",{"$f":"+'MINAS 6+'!V4","v":"En el primer y segundo trimestre del 2026 se han realizado las gestiones administrativas y contractuales para la suscripción del convenio de Cooperación No. GGC-1864-2026, con el cual se dará cumplimiento a la meta establecida para la vigencia 2026. "},"Estructuración del proyecto","Estructuración del proyecto","Reporte de avance de ejecución con soportes","Reporte de avance de ejecución con soportes",{"$f":"+N159","v":"Estructuración del proyecto"}]
["Minas y Energía","Apoyar en la implementación de la estrategia de sociedad del conocimiento para el fomento de buenas prácticas en la actividad minera en el departamento de Cauca",{"$f":"+'MINAS 6+'!D5","v":"Inversión"},{"$f":"+'MINAS 6+'!E5","v":"Contrtación"},0,480000000,0,0,0,0,480000000,"Ministerio de Minas y Energía",{"$f":"+'MINAS 6+'!V5","v":"Durante el primer semestre de la vigencia 2026 se adelantarán los trámites precontractuales necesarios para la articulación con una entidad que permita el desarrollo del consultorio técnico-jurídico. Este consultorio impulsará la estrategia de sociedad del conocimiento, orientada a brindar asistencia técnica y promover la adopción de buenas prácticas en la actividad minera. Por su parte, durante el segundo semestre de la vigencia 2026 se llevará a cabo la ejecución de las actividades definidas en el marco del convenio o contrato suscrito, garantizando la implementación efectiva de la estrategia y el cumplimiento de los objetivos propuestos."},"Tramites para la suscripción de convenios","Estructuración del proyecto","Reporte de avance de ejecución con soportes","Reporte de avance de ejecución con soportes",{"$f":"+O160","v":"Estructuración del proyecto"}]
["Minas y Energía","Aunar esfuerzos técnicos, administrativos y financieros para adelantar acciones asociadas con minería, energía e hidrocarburos del plan de acción 2025, dentro del Plan Cuatrienal 2023-2026 del Decreto 1811 de 2017.",{"$f":"+'MINAS 6+'!D6","v":"Inversión"},{"$f":"+'MINAS 6+'!E6","v":"Ejecución"},0,500000000,0,0,0,0,500000000,"Ministerio de Minas y Energía",{"$f":"+'MINAS 6+'!V6","v":"Durante la vigencia 2025 no fue posible ejecutar los recursos previstos, debido a que, en el marco del convenio proyectado, el CRIC no accedió a cuantificar ni a detallar su contrapartida en términos de conocimientos tradicionales. No obstante, se priorizó su ejecución para la vigencia 2026. En ese sentido, a la fecha se han adelantado espacios de articulación con el CRIC, con el fin de garantizar la suscripción del convenio o contrato durante el segundo semestre de dicha vigencia."},"Tramites para la suscripción de convenios","Estructuración del proyecto","Reporte de avance de ejecución con soportes","Reporte de avance de ejecución con soportes",{"$f":"+O161","v":"Estructuración del proyecto"}]
["Minas y Energía","Distrito Minero Norte del Cauca",{"$f":"+'MINAS 6+'!D7","v":"Inversión"},{"$f":"+'MINAS 6+'!E7","v":"Ejecución"},0,564285714,0,0,0,0,564285714,"Ministerio de Minas y Energía",{"$f":"+'MINAS 6+'!V7","v":"El 6 de abril de 2026 fue expedida la Resolución 40184, mediante la cual se delimita el Distrito Minero Especial para la Diversificación Productiva del Norte del Cauca. El valor dispuesto para la vigencia 2025 corresponde a los esfuerzos institucionales orientados a la elaboración y expedición de dicha reglamentación.\n\nPor su parte, los recursos previstos para la vigencia 2026 están destinados a la instalación de la Mesa de Trabajo Interinstitucional, concebida como una instancia de articulación para la planificación, así como para la gestión socioambiental y económica de los territorios delimitados. Con este hito se da cumplimiento al compromiso establecido, precisando que, desde la Dirección de Formalización Minera, se ha adelantado el despliegue integral de la oferta institucional en el territorio, en aras de fortalecer los procesos de formalización y promover prácticas sostenibles en la actividad minera.\nAvanzarán con consulta previa para establecer el Plan Estratégico de Gestión."},"Estructuración del proyecto","Estructuración del proyecto","Tramites para la suscripción de convenios","Reporte de avance de ejecución con soportes",{"$f":"+N162","v":"Estructuración del proyecto"}]
["Minas y Energía","Distrito Minero Litoral Pacífico Caucano",{"$f":"+'MINAS 6+'!D8","v":"Inversión"},{"$f":"+'MINAS 6+'!E8","v":"Ejecución"},0,564285714,0,0,0,0,564285714,"Ministerio de Minas y Energía",{"$f":"+'MINAS 6+'!V8","v":"El 9 de abril de 2026 fue expedida la resolución 40188 por medio de la cual se delimita el Distrito Minero Especial para la Diversificación Productiva del Litoral Pacifico Caucano. El valor dispuesto para la vigencia 2025 corresponde a los esfuerzos institucionales orientados a la elaboración y expedición de dicha reglamentación.\n\nPor su parte, los recursos previstos para la vigencia 2026 están destinados a la instalación de la Mesa de Trabajo Interinstitucional, concebida como una instancia de articulación para la planificación, así como para la gestión socioambiental y económica de los territorios delimitados. Con este hito se da cumplimiento al compromiso establecido, precisando que, desde la Dirección de Formalización Minera, se ha adelantado el despliegue integral de la oferta institucional en el territorio, en aras de fortalecer los procesos de formalización y promover prácticas sostenibles en la actividad minera. Avanzarán con consulta previa para establecer el Plan Estratégico de Gestión."},"Estructuración del proyecto","Estructuración del proyecto","Tramites para la suscripción de convenios","Reporte de avance de ejecución con soportes","Estructuración del proyecto"]
["Minas y Energía","148 Comunidades energéticas (Primera Fase Comunidades Focalizadas y Priorizadas 2024-2026)",{"$f":"+'MINAS 6+'!D9","v":"Inversión"},{"$f":"+'MINAS 6+'!E9","v":"Ejecución"},0,75184000000,0,0,0,0,{"$f":"SUM(E164:J164)","v":75184000000},"Ministerio de Minas y Energía",{"$f":"+'MINAS 6+'!V9","v":"Patía 90 KWp; Cajibío 60 KWp; Suárez 90 KWp; Cajibío 15 KWp; Cajibío 60 KWp; Sotará Paispamba 60 KWp; El Tambo 15 KWp; El Tambo 60 KWp; Silvia 15 KWp; Cajibío 210 KWp."},"Actualización información con soportes ","Actualización información con soportes ","Actualización información con soportes ","Actualización información con soportes ","Actualización información con soportes "]
["Total",{"$f":"+COUNTA(B159:B164)","v":6},null,null,{"$f":"SUM(E159:E164)","v":0},77542571428,0,0,0,0,77542571428]
["*Se entiende por entidad Responsable la encargada de la fuente de financiación. "]
[]
["7. Infraestructura de Transporte "]
["Sector","Nombre de la Iniciativa","Etapa del Proyecto *","Fase del Proyecto *","Aporte Nación",null,"Aporte Territorio",null,null,"Otros recursos","Inversión Total","Entidad Responsable*","Observaciones / Acciones","Actividades a ejecutar"]
[null,null,null,null,"DNP","Sector","Propios","SGR","Otros",null,null,null,null,"Trimestre 2 -2026","Trimestre 3 - 2026","Trimestre 4 -2026 ","Trimestre 1 -2027","Actividad Principal"]
["Transporte","Corredor  Estanquillo - Timbío - Popayán  (APP)",{"$f":"+'TRANSPORTE 12+1'!D4","v":"Inversión"},{"$f":"+'TRANSPORTE 12+1'!E4","v":"Ejecución"},0,18600000000000,0,0,0,0,{"$f":"SUM(E171:J171)","v":18600000000000},"Ministerio de Transporte - ANI",{"$f":"+'TRANSPORTE 12+1'!AG4","v":"21/04/2026. SECOP Adjudicación $8,8 billones; contratado, se programa inicio de actividades de preconstrucción en mayo. Contrto de Concesión por 25 años; los 2 primeros años corresponden a etapa de preconstrucción la cual inicia el 13 de mayo de 2026. La etapa de construcción es por 5 años. Posterior a la etapa de construcción, la etapa de operación y mantenimiento. Las actividades en este PAS, corresponde a la ejecución de actividades de de preconstrucción."},"Inicio de Actividades, , Reporte de avance de ejecución con soportes","Reporte de avance de ejecución con soportes","Reporte de avance de ejecución con soportes","Reporte de avance de ejecución con soportes",{"$f":"+N171","v":"Inicio de Actividades, , Reporte de avance de ejecución con soportes"}]
["Transporte","Vía al Mar (POPAYAN EL TAMBO - MUNCHIQUE)",{"$f":"+'TRANSPORTE 12+1'!D5","v":"Inversión"},{"$f":"+'TRANSPORTE 12+1'!E5","v":"Contratación"},0,602785224502.61169,0,0,0,0,602785224502.61169,"Ministerio de Transporte - INVIAS",{"$f":"+'TRANSPORTE 12+1'!AG5","v":"INVIAS 16/04/2026. $602.782 millones. Prepliegos. 1. ESTADO DEL PROYECTO: Proyecto se encuentran en el Conpes 4161 de 2025 y se cuenta con vigencias futuras excepcionales por parte del Confis. Se encuentra en proceso licitatorio en prepliegos con número LP-DEO-SMCN-054-2025 en dos (02) lotes e interventoría CMA-DEO-SMCN-086-2025\n2. ALCANCE DEL PROYECTO: Mantenimiento y mejoramiento de la vía en aproximadamente 60 km y construcción de aproximadamente 10km\nTrimestre 2 -2026: Adjudicacion/Inicio de obras"},"Tramites para la suscripción de convenios/contratos, Inicio de Actividades, ","Reporte de avance de ejecución con soportes","Reporte de avance de ejecución con soportes","Reporte de avance de ejecución con soportes","Tramites para la suscripción de convenios/contratos, Inicio de Actividades, "]
["Transporte","MUNCHIQUE - HUISITO - HONDURAS",{"$f":"+'TRANSPORTE 12+1'!D6","v":"Inversión"},{"$f":"+'TRANSPORTE 12+1'!E6","v":"Contratación"},0,666483582568,0,0,0,0,666483582568,"Ministerio de Transporte - INVIAS",{"$f":"+'TRANSPORTE 12+1'!AG6","v":"INVIAS 16/04/2026. $664.980 millones 1. Prepliegos. (tramo de la Vía al mar) ESTADO DEL PROYECTO: Proyecto se encuentran en el Conpes 4161 de 2025 y se cuenta con vigencias futuras excepcionales por parte del Confis. Se encuentra en proceso licitatorio en prepliegos con número LP-DEO-SVR-053-2025 en dos (02) lotes e interventoría CMA-DEO-SMCN-086-2025\n2.ALCANCE DEL PROYECTO:\nmejoramiento y mantenimiento de aproximadamente 64 km, mejoramiento y mantenimiento de puentes y muros \nTrimestre 2 -2026: Adjudicacion/Inicio de obras"},"Tramites para la suscripción de convenios/contratos, Inicio de Actividades, ","Reporte de avance de ejecución con soportes","Reporte de avance de ejecución con soportes","Reporte de avance de ejecución con soportes","Tramites para la suscripción de convenios/contratos, Inicio de Actividades, "]
["Transporte","PLATEADO - LOPEZ DE MICAY",{"$f":"+'TRANSPORTE 12+1'!D7","v":"Inversión"},{"$f":"+'TRANSPORTE 12+1'!E7","v":"Contratación"},0,1041957550883,0,0,0,0,1041957550883,"Ministerio de Transporte - INVIAS",{"$f":"+'TRANSPORTE 12+1'!AG7","v":"INVIAS 16/04/2026. $1.04 billon 1. Licitación. (tramo de la Vía al mar) ESTADO DEL PROYECTO: Proyecto se encuentran en el Conpes 4161 de 2025 y se cuenta con vigencias futuras excepcionales por parte del Confis. Se encuentra en proceso licitatorio en prepliegos con númeroLP-DEO-SVR-061-2025 en cuatro (04) lotes e interventoría CMA-DEO-SVR-095-2025 en dos (02) lotes\n2. ALCANCE DEL PROYECTO: mantenimiento y mejoramiento de la vía en aproximadamente 60 km y construcción de aproximadamente 10km\nTrimestre 2 -2026 - Adjudicacion/Inicio de obras"},"Tramites para la suscripción de convenios/contratos, Inicio de Actividades, ","Reporte de avance de ejecución con soportes","Reporte de avance de ejecución con soportes","Reporte de avance de ejecución con soportes","Tramites para la suscripción de convenios/contratos, Inicio de Actividades, "]
["Transporte","ARGELIA – EL PLATEADO  (Vía al Mar Cauca)",{"$f":"+'TRANSPORTE 12+1'!D8","v":"Inversión"},{"$f":"+'TRANSPORTE 12+1'!E8","v":"Contratación"},0,434553424034.30597,0,0,0,0,434553424034.30597,"Ministerio de Transporte - INVIAS",{"$f":"+'TRANSPORTE 12+1'!AG8","v":"INVIAS 16/04/2026. $434.552 millones Prepliegos. 1. ESTADO DEL PROYECTO: Proyecto se encuentran en el Conpes 4161 de 2025 y se cuenta con vigencias futuras excepcionales por parte del Confis. Se encuentra en proceso licitatorio en prepliegos con número LP-DEO-SVR-051-2025 en dos (02) lotes e interventoría CMA-DEO-SVR-073-2025\n2. ALCANCE DEL PROYECTO: Mejoramiento y mantenimiento de aproximadamente 23 km, mejoramiento y mantenimiento de puentes y muros desde el PR0+00 hasta el PR23+000\nTrimestre 2 -2026 - Adjudicacion/Inicio de obras"},"Tramites para la suscripción de convenios/contratos, Inicio de Actividades, ","Reporte de avance de ejecución con soportes","Reporte de avance de ejecución con soportes","Reporte de avance de ejecución con soportes","Tramites para la suscripción de convenios/contratos, Inicio de Actividades, "]
["Transporte","Anillo Vial del Macizo",{"$f":"+'TRANSPORTE 12+1'!D9","v":"Inversión"},{"$f":"+'TRANSPORTE 12+1'!E9","v":"Ejecución"},0,384587872212,0,0,0,0,384587872212,"Ministerio de Transporte - INVIAS",{"$f":"+'TRANSPORTE 12+1'!AG9","v":"INVIAS 16/04/2026.  $391.105 millones. Ejecución. 1. ESTADO DEL PROYECTO: Se ejecuta contrato financiado a través de Conpes 4010 Vías para la Legalidad, con horizonte al 2030. Contrato Obra: 1001 - 2021 Interventoría: 990 - 2021\n2. ALCANCE DEL PROYECTO: 49 km Pavim\n+ Continuación de obras trimestre 2y3 2026\n"},"Reporte de avance de ejecución con soportes","Reporte de avance de ejecución con soportes","Reporte de avance de ejecución con soportes","Reporte de avance de ejecución con soportes","Reporte de avance de ejecución con soportes"]
["Transporte","Caminos Comunitarios para la Paz Total ",{"$f":"+'TRANSPORTE 12+1'!D10","v":"Inversión"},{"$f":"+'TRANSPORTE 12+1'!E10","v":"Ejecución"},0,97536000000,0,0,0,0,97536000000,"Ministerio de Transporte - INVIAS",{"$f":"+'TRANSPORTE 12+1'!AG10","v":"INVIAS 16/04/2026. $58.360 millones. En Adjudicación. 1. ESTADO DEL PROYECTO: Se solicitó vigencias futuras excepcionales para 2026, las cuales están sujetas a la ubicación de los recursos con que se financian.\nPara la vigencia 2023 se ejecuto entre obra e interventoria un total de $ 20.278.782.888,86\nPara la vigencia se 2024 ejecuto entre obra e interventoria un total de $ 25.136.748.427,5\nSe tiene previsto una ejecucion de $12.946.571.428 para el año 2026 con un alcance de 8,33 km de Pavimentación y  26 Alcantarillas\n2. ALCANCE DEL PROYECTO:\n23 km placa huella \n238 Alcantarillas\nTrimestre 2 -2026: Adjudicacion/Inicio de obras\nTrimestre 3 - 2026: Continuacion ejecucion de obras "},"Reporte de avance de ejecución con soportes","Reporte de avance de ejecución con soportes","Reporte de avance de ejecución con soportes","Reporte de avance de ejecución con soportes","Reporte de avance de ejecución con soportes"]
["Transporte","Mejoramiento de la infraestructura del lado aire del Aeródromo de Timbiquí",{"$f":"+'TRANSPORTE 12+1'!D11","v":"Preinversión"},{"$f":"+'TRANSPORTE 12+1'!E11","v":"Fase I"},0,169372000000,0,0,0,0,169372000000,"Ministerio de Transporte - Aeronautica Civil",{"$f":"+'TRANSPORTE 12+1'!AG11","v":"23/04/2026. $192.271 millones. Fase I. El alacance del proyecto corresponde al mejoramiento del lado aire del aeródromo.A la fecha esta en proceso de inclusión en documento conpes de declaratoria de importancia estrategica."},"Elaboración de CONPES, Estructuración del proyecto, ","Tramites para la suscripción de convenios, , Inicio de Actividades, ","Reporte de avance de ejecución con soportes","Reporte de avance de ejecución con soportes","Elaboración de CONPES, Estructuración del proyecto, "]
["Transporte","Mejoramiento de la Infraestructura Lado Aire y Lado Tierra del Aeropuerto Juan Casiano Solis de Guapi",{"$f":"+'TRANSPORTE 12+1'!D12","v":"Preinversión"},{"$f":"+'TRANSPORTE 12+1'!E12","v":"Fase II"},0,100000000000,0,0,0,0,100000000000,"Ministerio de Transporte - Aeronautica Civil",{"$f":"+'TRANSPORTE 12+1'!AG12","v":"23/04/2026. $107.989 millones. Fase II. El alcance del proyecto es realizar los Estudios y Diseños a Fase III, y las obras de mejoramiento de la Infraestructura Lado Aire y Lado Tierra del Aeropuerto Juan Casiano Solis de Guapi. A la fecha se encuentra en estructuración la solicitud de Vigencias Futuras y los documentos contractuales para publicación del proceso durante el primer semestre de 2026."},"Tramites de vigencias futuras, , Estructuración del proyecto, ","Tramites para la suscripción de convenios, , Inicio de Actividades, ","Tramites para la suscripción de convenios, ","Reporte de avance de ejecución con soportes","Tramites de vigencias futuras, , Estructuración del proyecto, "]
["Transporte","Mejoramiento de la Via  Silvia - Totoro , Sector Silvia - Totoro, Departamento del Cauca   17 km",{"$f":"+'TRANSPORTE 12+1'!D13","v":"Preinversión"},{"$f":"+'TRANSPORTE 12+1'!E13","v":"Fase III"},0,8000000000,0,0,0,0,8000000000,"Ministerio de Transporte - INVIAS",{"$f":"+'TRANSPORTE 12+1'!AG13","v":"INVIAS 16/04/2026. $0. Fase III, No cuenta con Recusrsos 1. ESTADO DEL PROYECTO: No está previsto en el mediano plazo realizar obras por cuanto no se cuenta con recursos en el MGMP (Cuatrienio), ni en el Marco Fiscal (10 años)."},"Gestión de recursos","Gestión de recursos","Gestión de recursos","Gestión de recursos","Gestión de recursos"]
["Transporte","Patico - Puracé - Santa Leticia - Belén - La Plata",{"$f":"+'TRANSPORTE 12+1'!D14","v":"Preinversión"},{"$f":"+'TRANSPORTE 12+1'!E14","v":"Fase III"},0,60000000000,0,0,0,0,60000000000,"Ministerio de Transporte - INVIAS",{"$f":"+'TRANSPORTE 12+1'!AG14","v":"INVIAS 16/04/2026. $0. Fase III, No cuenta con Recusrsos . 1. ESTADO DEL PROYECTO:  No está previsto en el mediano plazo realizar obras por cuanto no se cuenta con recursos en el MGMP (Cuatrienio), ni en el Marco Fiscal (10 años).  Los   recursos ($60.000 millones) en el CONPES 4161 vías para la Paz  son para tramo Candelaria - La Plata, en el departamento del Huila."},"Gestión de recursos","Gestión de recursos","Gestión de recursos","Gestión de recursos","Gestión de recursos"]
["Inclusión Social y Reconciliación","Placa Huella en Suárez​",{"$f":"+'DPS 23'!D26","v":0},{"$f":"+'DPS 23'!E26","v":0},0,9000000000,0,0,0,0,9000000000,"Departamento Administrativo de Prosperidad Social",{"$f":"+'DPS 23'!V26","v":"9/12/2025. PROYECTO PRIORIZADO MEDIANTE CONVENIO # 911-FIP-2024.  30 de septiembre del 2025, con convenio suscrito con el municipio de Suarez. Para la contratación derivada para la Consultoría y 0bra el proceso de contratación derivada se ha publicado dos veces y se ha declarado fallido, se encuentra nuevamente en proceso de publicación. \nRespecto a la contratación derivada de interventoría, el estado es el siguiente: No se cuenta con contratistas seleccionados se espera publicar los procesos de selección durante el mes de diciembre de 2025."},"Actualización información con soportes , Reporte de avance de ejecución con soportes","Reporte de avance de ejecución con soportes","Reporte de avance de ejecución con soportes","Reporte de avance de ejecución con soportes","Actualización información con soportes , Reporte de avance de ejecución con soportes"]
["Transporte","Vía El estrecho - Balboa - Argelia - El plateado",{"$f":"+'TRANSPORTE 12+1'!D15","v":"Inversión"},{"$f":"+'TRANSPORTE 12+1'!E15","v":"Ejecución"},0,88000000000,22000000000,null,null,null,110000000000,"Ministerio de Transporte - INVIAS",{"$f":"+'TRANSPORTE 12+1'!AG15","v":"INVIAS 16/04/2026. $44.657 millones. Ejecución de obra. 1. ESTADO DEL PROYECTO: La vía en mención esta a cargo del departamento* Via 25CC03 El Estrecho - Balboa- Argelia -El Plateado-El Pinche con longitud de 103,14 km.\nA través de la fábrica de diseños del INVÍAS se realizaron estudios y diseños para los 5 km desde el PR 31+500 al PR26+000, con una inversión de $450 millones y fueron entregados a FINDETER en abril de 2025. Adicionalmente, a través de otra consultoría cuya inversión es de 1.700 millones se están realizando 26 km adicionales de estudios y diseños para los 26 km restantes, de los cuales 5 km se entregan a FINDETER entre junio y diciembre de 2025. \nFINDETER e INVIAS tienen un convenio para las obras por valor de $44.657 millones los cuales les permitirá recuperar la transitabilidad en todo el corredor y pavimentar aproximadamente 11 km, contrato en ejecución, con un avance del 0,31%.\n2. ALCANCE DEL PROYECTO: Mantenimiento y mejoramiento de la vía en aproximadamente 11 km.\nContrato en ejecución de obra"},"Actualización información con soportes , Reporte de avance de ejecución con soportes","Reporte de avance de ejecución con soportes","Reporte de avance de ejecución con soportes","Reporte de avance de ejecución con soportes","Actualización información con soportes , Reporte de avance de ejecución con soportes"]
["Total",{"$f":"+COUNTA(B171:B183)","v":13},null,null,{"$f":"SUM(E171:E183)","v":0},22262275654199.918,22000000000,0,0,0,22284275654199.918]
["*Se entiende por entidad Responsable la encargada de la fuente de financiación. "]
[]
["Total  Plan  de Acción y Seguimiento",null,null,null,{"$f":"E184+E165+E153+E136+E73+E57+E40","v":27200000000},23399761822006.918,34200000000,36895891663,38327725215,0,23536385438884.918]
["*Las etapas y fases del proyecto  son: \n Etapa preinversión:\n • Fase I: Perfil \n • Fase II: Prefactibilidad\n • Fase III: Factibilidad \n Etapa inversión\nNOTA: Se puede incluir la información adicional que sea necesaria de acuerdo con las particularidades de cada pacto."]
[]
["        5.   ACTIVIDADES DEL PLAN DE ACCIÓN Y SEGUIMIENTO                                "]
["A continuación, se relacionan las actividades generales y/o específicas para avanzar con la ejecución de los proyectos priorizados en el plan de acción y seguimiento. "]
["**Las actividades sugeridas del proyecto corresponden a: \nEstructuración del proyecto\nViabilización del proyecto ante la cabeza del sector\nPresentación del proyecto ante la fuente de financiación\nRevisión y aprobación del proyecto por la fuente de financiación\nTramites para la suscripción de convenios\nTramites de vigencias futuras  \nActualización información\nReporte de avance de ejecución"]
["Sector","Nombre de la Iniciativa",null,null,"Actividad principal",null,null,"Trimestre 2 -2026","Trimestre 3 - 2026","Trimestre 4 -2026 ","Trimestre 1 -2027","Observación","Responsable"]
[{"$f":"+A31","v":"Vivienda, Ciudad y Territorio"},"Conexiones- 872 conexiones intradomiciliarias para el municipio de Puerto Tejada ",null,null,{"$f":"+R31","v":"Reporte de avance de ejecución con soportes"},null,null,{"$f":"+N31","v":"Reporte de avance de ejecución con soportes"},{"$f":"+O31","v":"Reporte de avance de ejecución con soportes"},{"$f":"+P31","v":"Reporte de avance de ejecución con soportes"},{"$f":"+Q31","v":"Finalización, liquidación, "},null,{"$f":"+L31","v":"Ministerio de Vivienda, Ciudad y Territorio"}]
["Vivienda, Ciudad y Territorio","Construcción unidades sanitarias con saneamiento básico para vivienda rural dispersa en el municipio de López de Micay ",null,null,"Reporte de avance de ejecución con soportes",null,null,"Reporte de avance de ejecución con soportes","Reporte de avance de ejecución con soportes","Reporte de avance de ejecución con soportes","Finalización, liquidación, ",null,"Ministerio de Vivienda, Ciudad y Territorio"]
["Vivienda, Ciudad y Territorio","Construcción Etapa II línea de conducción Río Palace y planta de tratamiento de agua potable Palace, municipio de Popayán ",null,null,"Tramites para la suscripción de convenios, , Inicio de Actividades, ",null,null,"Tramites para la suscripción de convenios, , Inicio de Actividades, ","Reporte de avance de ejecución con soportes","Reporte de avance de ejecución con soportes","Reporte de avance de ejecución con soportes",null,"Ministerio de Vivienda, Ciudad y Territorio"]
["Vivienda, Ciudad y Territorio","Mejoramiento de 320 viviendas en El Tambo, López de Micay y Timbiquí ",null,null,"Reporte de avance de ejecución con soportes",null,null,"Reporte de avance de ejecución con soportes","Reporte de avance de ejecución con soportes","Reporte de avance de ejecución con soportes","Reporte de avance de ejecución con soportes",null,"Ministerio de Vivienda, Ciudad y Territorio"]
["Vivienda, Ciudad y Territorio","Mejoramiento de vivienda urbanos y rurales (2.228 urbanos y 2.101 rurales) para el Departamento del Cauca – varios municipios. ",null,null,"Reporte de avance de ejecución con soportes",null,null,"Reporte de avance de ejecución con soportes","Reporte de avance de ejecución con soportes","Reporte de avance de ejecución con soportes","Reporte de avance de ejecución con soportes",null,"Ministerio de Vivienda, Ciudad y Territorio /Municipios Cauca"]
["Igualdad y Equidad","Estudios y diseños plan maestro de saneamiento Guapi",null,null,"Actualización información con soportes , Tramites para la suscripción de convenios, ",null,null,"Actualización información con soportes , Tramites para la suscripción de convenios, ","Inicio de Actividades, , Reporte de avance de ejecución con soportes","Reporte de avance de ejecución con soportes","Reporte de avance de ejecución con soportes",null,"Fondo Todos Somos PAZcífico"]
["Igualdad y Equidad","Acueducto de Timbiquí",null,null,"Reporte de avance de ejecución con soportes",null,null,"Reporte de avance de ejecución con soportes","Reporte de avance de ejecución con soportes","Reporte de avance de ejecución con soportes","Reporte de avance de ejecución con soportes",null,"Fondo Todos Somos PAZcífico"]
["Igualdad y Equidad","Acueducto Guapi etapa I captación y redes",null,null,"Reporte de avance de ejecución con soportes",null,null,"Reporte de avance de ejecución con soportes","Reporte de avance de ejecución con soportes","Reporte de avance de ejecución con soportes","Reporte de avance de ejecución con soportes",null,"Fondo Todos Somos PAZcífico"]
["Igualdad y Equidad","Consultoría para cierre del botadero a cielo abierto el Olímpico",null,null,"Actualización información con soportes , Reporte de avance de ejecución con soportes",null,null,"Actualización información con soportes , Reporte de avance de ejecución con soportes","Reporte de avance de ejecución con soportes","Reporte de avance de ejecución con soportes","Reporte de avance de ejecución con soportes",null,"Fondo Todos Somos PAZcífico"]
[1,{"$f":"+COUNTA(B194:D202)","v":9}]
[{"$f":"+A46","v":"Educación"},"Universidad en Guapi (Estudios y diseños y obra)",null,null,{"$f":"+R46","v":"Tramites para la suscripción de convenios, "},null,null,{"$f":"+N46","v":"Tramites para la suscripción de convenios, "},{"$f":"+O46","v":"Reporte de avance de ejecución con soportes, Inicio de Actividades, "},{"$f":"+P46","v":"Reporte de avance de ejecución con soportes"},{"$f":"+Q46","v":"Reporte de avance de ejecución con soportes"},null,{"$f":"+L46","v":"Ministerio de Educación Nacional"}]
["Educación","Estudios y diseños Universidad del Macizo",null,null,"Tramites para la suscripción de convenios, ",null,null,"Tramites para la suscripción de convenios, ","Reporte de avance de ejecución con soportes","Reporte de avance de ejecución con soportes","Reporte de avance de ejecución con soportes",null,"Ministerio de Educación Nacional"]
["Educación","Programa de Tránsito Inmediato a la Educación Superior (PTIES) en la Institución Educativa Técnica Miguel Zapata",null,null,"Reporte de avance de ejecución con soportes",null,null,"Reporte de avance de ejecución con soportes","Reporte de avance de ejecución con soportes","Reporte de avance de ejecución con soportes","Reporte de avance de ejecución con soportes",null,"Ministerio de Educación Nacional"]
["Educación","Culminación de obra Infraestructura física sede norte de la universidad del Cauca en Santander de Quilichao",null,null,"Tramites para la suscripción de convenios, ",null,null,"Tramites para la suscripción de convenios, ","Reporte de avance de ejecución con soportes, Inicio de Actividades, ","Reporte de avance de ejecución con soportes","Reporte de avance de ejecución con soportes",null,"Ministerio de Educación Nacional"]
["Educación","Implementación Colegio Universidad en Guapi por UNICAUCA , adecuaciones de las IE La Normal y la IE San José",null,null,"Reporte de avance de ejecución con soportes",null,null,"Reporte de avance de ejecución con soportes","Reporte de avance de ejecución con soportes","Reporte de avance de ejecución con soportes","Reporte de avance de ejecución con soportes",null,"Ministerio de Educación Nacional"]
["Educación","Estudios, Diseños y Construcción Para La Ampliación E Implementación De Infraestructura Física Universitaria  Proyectada En El Predio Belalcázar",null,null,"Revisión y aprobación del proyecto por la fuente de financiación, , Revisión técnica del proyecto por Sector, ",null,null,"Revisión y aprobación del proyecto por la fuente de financiación, , Revisión técnica del proyecto por Sector, ","Tramites para la suscripción de convenios, ","Asignación de recursos, ","Reporte de avance de ejecución con soportes, Inicio de Actividades, ",null,"Ministerio de Educación Nacional"]
["Educación","Proyecto de infraestructura para el Nodo Suárez de la Universidad del Valle",null,null,"Reporte de avance de ejecución con soportes",null,null,"Reporte de avance de ejecución con soportes","Reporte de avance de ejecución con soportes","Reporte de avance de ejecución con soportes","Reporte de avance de ejecución con soportes",null,"Ministerio de Educación Nacional"]
["Educación","Estudios, Diseños y Construcción Para La Ampliación E Implementación De Infraestructura Física Universitaria  Proyectada En La Sede Norte U Cauca S. Quilichao",null,null,"Revisión y aprobación del proyecto por la fuente de financiación, , Revisión técnica del proyecto por Sector, ",null,null,"Revisión y aprobación del proyecto por la fuente de financiación, , Revisión técnica del proyecto por Sector, ","Tramites para la suscripción de convenios, ","Asignación de recursos, ","Reporte de avance de ejecución con soportes, Inicio de Actividades, ",null,"Ministerio de Educación Nacional"]
["Igualdad y Equidad","Prevención y atención a la desnutrición a través de la adquisición de 9,7 toneladas de harina de chontaduro a la Asociación de Productores de Cacao y Chontaduro del Tambo (APACH)",null,null,"Finalización, liquidación, ",null,null,"Finalización, liquidación, ",0,0,0,null,"ICBF - Instituto Colombiano de Binestar Familiar"]
["Tecnologías de la Información y las Comunicaciones","Implementación de centros digitales de acceso público gratuito en Piendamó",null,null,"Reporte de avance de ejecución con soportes",null,null,"Reporte de avance de ejecución con soportes","Reporte de avance de ejecución con soportes","Reporte de avance de ejecución con soportes","Reporte de avance de ejecución con soportes",null,"Ministerio de Tecnologías de la Información y las Comunicaciones"]
["Educación","Convocatoria de Mejoramiento de Infraestructura eductiva 2021",null,null,"Estructuración del proyecto, ",null,null,"Estructuración del proyecto, ","Viabilización del proyecto ante la cabeza del sector, ","Viabilización del proyecto ante la cabeza del sector, ","Presentación del proyecto ante la fuente de financiación, ",null,"Departamento Nacional de Planeación (FRPT) / Municipio de Jamundí"]
[2,{"$f":"+COUNTA(B204:D214)","v":11}]
[{"$f":"+A63","v":"Presidencia "},{"$f":"+B63","v":"Programa de sustitución de economías ilegalizadas en el departamento del cauca- RENACEMOS"},null,null,{"$f":"+R63","v":"Reporte de avance de ejecución con soportes, Prorroga, "},null,null,{"$f":"+N63","v":"Reporte de avance de ejecución con soportes, Prorroga, "},{"$f":"+O63","v":"Reporte de avance de ejecución con soportes"},{"$f":"+P63","v":"Finalización, liquidación, "},{"$f":"+Q63","v":0},null,{"$f":"+L63","v":"Dirección de Sustitución de Cultivos Ilícitos - Fondo Programas Especiales para la Paz (Fondo Paz)"}]
[{"$f":"+A59","v":0},{"$f":"+B64","v":"Construcción de Alcaldía de Argelia"},null,null,"Reporte de avance de ejecución con soportes",null,null,"Reporte de avance de ejecución con soportes","Reporte de avance de ejecución con soportes","Finalización, liquidación, ",0,null,"Ministerio del Interior"]
["3. Paz y Reconciliación ","Construcción de Alcaldía de Guapi",null,null,"Reporte de avance de ejecución con soportes, Prorroga, ",null,null,"Reporte de avance de ejecución con soportes, Prorroga, ","Reporte de avance de ejecución con soportes","Finalización, liquidación, ",0,null,"Ministerio del Interior"]
["Sector","Construcción casa de saberes municipio de Guachené Cauca. ",null,null,"Reporte de avance de ejecución con soportes",null,null,"Reporte de avance de ejecución con soportes","Reporte de avance de ejecución con soportes","Reporte de avance de ejecución con soportes",0,null,"Ministerio de las Culturas, las Artes y los Saberes"]
[0,"Trece incentivos para la paz territorial . Fortalecer organizaciones comunales, étnicas, sociales, productivas, comunitarias, de jóvenes y de mujeres, entre otras, que estén legalmente constituidas, mediante una estrategia de incentivos para la implementación de proyectos de ejecución comunitaria.",null,null,"Reporte de avance de ejecución con soportes",null,null,"Reporte de avance de ejecución con soportes","Reporte de avance de ejecución con soportes","Reporte de avance de ejecución con soportes","Reporte de avance de ejecución con soportes",null,"Fondo de Programas Especiales para la Paz"]
["Presidencia ","Complementación de estudios y diseños y la adecuación y mejoramiento del centro de desarrollo infantil - CDI en granito de oro",null,null,"Finalización, liquidación, ",null,null,"Finalización, liquidación, ",0,0,0,null,"Fondo de Programas Especiales para la Paz"]
["Interior","Adecuación y dotación de la Casa de la Cultura de Guapi",null,null,"Reinicio de actividades, ",null,null,"Reinicio de actividades, ","Reporte de avance de ejecución con soportes","Finalización, liquidación, ",0,null,"Ministerio de las Culturas, las Artes y los Saberes"]
[null,"Construcción casa de saberes municipio de Villa Rica, Cauca",null,null,"Reporte de avance de ejecución con soportes",null,null,"Reporte de avance de ejecución con soportes","Reporte de avance de ejecución con soportes","Reporte de avance de ejecución con soportes","Finalización, liquidación, ",null,"Ministerio de las Culturas, las Artes y los Saberes"]
[null,"Zonas Comunitarias para la Paz (soluciones de Internet comunitario WiFi a escuelas rurales oficiales que carecen de conectividad, en municipios cobijados por los Programas de Desarrollo con Enfoque Territorial – PDET) ",null,null,"Reporte de avance de ejecución con soportes",null,null,"Reporte de avance de ejecución con soportes","Reporte de avance de ejecución con soportes","Reporte de avance de ejecución con soportes","Finalización, liquidación, ",null,"Ministerio de Tecnologías de la Información y las Comunicaciones "]
[3,{"$f":"+COUNTA(B216:D224)","v":9}]
[{"$f":"+A79","v":"Agricultura y Desarrollo Rural"},"Proyecto Integrador de la Cadena de Coco: Programa Integral para el fortalecimiento de la cadena del coco (Coco+Pacífico, departamentos Cauca y Nariño) Fortalecer los cultivos de coco en la costa pacífica nariñense, mediante el trampeo para control del picudo, erradicación de cultivos y resiembra, estudio de mercado y acompañamiento técnico.",null,null,{"$f":"+R79","v":"Reporte de avance de ejecución con soportes, Actualización información con soportes "},null,null,{"$f":"+N79","v":"Reporte de avance de ejecución con soportes, Actualización información con soportes "},{"$f":"+O79","v":"Reporte de avance de ejecución con soportes"},{"$f":"+P79","v":"Reporte de avance de ejecución con soportes"},{"$f":"+Q79","v":"Reporte de avance de ejecución con soportes"},null,{"$f":"+L79","v":"Agencia de Renovación del Territorio / Comunidad"}]
["Agricultura y Desarrollo Rural","Modernización de 1 distrito de riego de pequeña escala del municipio de Balboa  en el Departamento de Cauca",null,null,"Priorización",null,null,"Priorización","Viabilización del proyecto ante la cabeza del sector, ","Tramites para la suscripción de convenios, ","Inicio de Actividades, , Reporte de avance de ejecución con soportes",null,"Agencia de Desarrollo Rural -  Fondo Nacional de Adecuación de Tierras"]
["Comercio, Industria y Turismo","Fomento del sistema económico propio e intercultural que promueve la conservación cultural, la sostenibilidad productiva y el fortalecimiento de los espacios de vida y el buen vivir de las familias indígenas del CRIC desde el turismo indígena. ",null,null,"Reporte de avance de ejecución con soportes",null,null,"Reporte de avance de ejecución con soportes","Reporte de avance de ejecución con soportes","Reporte de avance de ejecución con soportes","Reporte de avance de ejecución con soportes",null,"FONTUR"]
["Agricultura y Desarrollo Rural","Transformación ecológica y productiva de zonas degradadas por cultivos de uso ilícito en áreas de especial importancia ambiental en los departamentos de Nariño, Cauca y Chocó (Sistemas agroforestales de cacao).",null,null,"Reporte de avance de ejecución con soportes",null,null,"Reporte de avance de ejecución con soportes","Reporte de avance de ejecución con soportes","Reporte de avance de ejecución con soportes","Reporte de avance de ejecución con soportes",null,"Dirección de Sustitución de Cultivo de Uso Ilícito"]
["Agricultura y Desarrollo Rural","Fortalecimiento de las capacidades productivas de café, mora, ganadería de leche y gallinas ponedoras de acuerdo con los usos y costumbres del pueblo Nasa en el municipio de Páez.",null,null,"Actualización información con soportes ",null,null,"Actualización información con soportes ","Reporte de avance de ejecución con soportes","Reporte de avance de ejecución con soportes","Reporte de avance de ejecución con soportes",null,"Agencia de Desarrollo Rural / Comunidad"]
["Agricultura y Desarrollo Rural","Fortalecimiento de las actividades económicas propias de las comunidades indígenas del oriente caucano de las familias pertenecientes a la Asociación De Autoridades Indígenas Del Oriente Caucano Totoguampa en los municipios de Silvia, Totoró, Piendamó y Morales ",null,null,"Reporte de avance de ejecución con soportes",null,null,"Reporte de avance de ejecución con soportes","Reporte de avance de ejecución con soportes","Reporte de avance de ejecución con soportes","Finalización, liquidación, ",null,"Agencia de Desarrollo Rural / Comunidad"]
["Agricultura y Desarrollo Rural","Impulsar la productividad y competitividad del grano de café, mediante la producción primaria y el beneficio como una apuesta al mejoramiento de la calidad del grano, atendiendo la integralidad técnica, organizacional, ambiental y comercial de los caficultores de la ANUC en el departamento de Cauca",null,null,"Viabilización del proyecto ante la cabeza del sector, ",null,null,"Viabilización del proyecto ante la cabeza del sector, ","Gestión de recursos","Inicio de Actividades, , Reporte de avance de ejecución con soportes","Reporte de avance de ejecución con soportes",null,"Agencia de Desarrollo Rural"]
["Inclusión Social y Reconciliación","Plaza De Mercado de Puerto Tejada",null,null,"Tramites para la suscripción de convenios, ",null,null,"Tramites para la suscripción de convenios, ","Reporte de avance de ejecución con soportes","Reporte de avance de ejecución con soportes","Reporte de avance de ejecución con soportes",null,"Departamento Administrativo de Prosperidad Social"]
["Comercio, Industria y Turismo","Centros de Reindustrialización - ZASCAS",null,null,"Reporte de avance de ejecución con soportes",null,null,"Reporte de avance de ejecución con soportes","Reporte de avance de ejecución con soportes","Reporte de avance de ejecución con soportes","Finalización, liquidación, ",null,"Ministerio de Comercio, Industria y Turismo"]
["Comercio, Industria y Turismo","Empretur - Litoral Pacífico",null,null,"Reporte de avance de ejecución con soportes",null,null,"Reporte de avance de ejecución con soportes","Reporte de avance de ejecución con soportes","Reporte de avance de ejecución con soportes","Finalización, liquidación, ",null,"Ministerio de Comercio, Industria y Turismo - FONTUR"]
["Comercio, Industria y Turismo","Estudios, diseños complementarios y construccion de obras de infraestructura turística para el PNN - Gorgona",null,null,"Reporte de avance de ejecución con soportes",null,null,"Reporte de avance de ejecución con soportes","Reporte de avance de ejecución con soportes","Reporte de avance de ejecución con soportes","Reporte de avance de ejecución con soportes",null,"Ministerio de Comercio, Industria y Turismo - FONTUR"]
["Inclusión Social y Reconciliación","Plaza De Mercado Argelia",null,null,"Tramites para la suscripción de convenios, , Inicio de Actividades, ",null,null,"Tramites para la suscripción de convenios, , Inicio de Actividades, ","Reporte de avance de ejecución con soportes","Reporte de avance de ejecución con soportes","Reporte de avance de ejecución con soportes",null,"Departamento Administrativo de Prosperidad Social"]
["Información Estadística","Actualización catastral Almaguer",null,null,"Tramites para la suscripción de convenios, , Inicio de Actividades, ",null,null,"Tramites para la suscripción de convenios, , Inicio de Actividades, ","Reporte de avance de ejecución con soportes","Reporte de avance de ejecución con soportes","Reporte de avance de ejecución con soportes",null,"IGAC - Instituto Geográfico Agustín Codazzi"]
["Información Estadística","Actualización catastral El Tambo",null,null,"Reporte de avance de ejecución con soportes",null,null,"Reporte de avance de ejecución con soportes","Reporte de avance de ejecución con soportes","Reporte de avance de ejecución con soportes","Reporte de avance de ejecución con soportes",null,"IGAC - Instituto Geográfico Agustín Codazzi"]
["Información Estadística","Actualización catastral Mercaderes",null,null,"Reporte de avance de ejecución con soportes",null,null,"Reporte de avance de ejecución con soportes","Reporte de avance de ejecución con soportes","Reporte de avance de ejecución con soportes","Reporte de avance de ejecución con soportes",null,"IGAC - Instituto Geográfico Agustín Codazzi"]
["Información Estadística","Actualización catastral Inzá",null,null,"Reporte de avance de ejecución con soportes",null,null,"Reporte de avance de ejecución con soportes","Reporte de avance de ejecución con soportes","Reporte de avance de ejecución con soportes","Reporte de avance de ejecución con soportes",null,"IGAC - Instituto Geográfico Agustín Codazzi"]
["Información Estadística","Actualización catastral Piamonte",null,null,"Reporte de avance de ejecución con soportes",null,null,"Reporte de avance de ejecución con soportes","Reporte de avance de ejecución con soportes","Reporte de avance de ejecución con soportes","Reporte de avance de ejecución con soportes",null,"IGAC - Instituto Geográfico Agustín Codazzi"]
["Información Estadística","Actualización catastral Cajibío",null,null,"Reporte de avance de ejecución con soportes",null,null,"Reporte de avance de ejecución con soportes","Reporte de avance de ejecución con soportes","Reporte de avance de ejecución con soportes","Reporte de avance de ejecución con soportes",null,"IGAC - Instituto Geográfico Agustín Codazzi"]
["Información Estadística","Actualización catastral Patía",null,null,"Reporte de avance de ejecución con soportes",null,null,"Reporte de avance de ejecución con soportes","Reporte de avance de ejecución con soportes","Reporte de avance de ejecución con soportes","Reporte de avance de ejecución con soportes",null,"IGAC - Instituto Geográfico Agustín Codazzi"]
["Información Estadística","Actualización catastral Argelia",null,null,"Actualización información con soportes ",null,null,"Actualización información con soportes ","Finalización, liquidación, ",0,0,null,"IGAC - Instituto Geográfico Agustín Codazzi"]
[{"$f":"+A99","v":"Información Estadística"},"Actualización catastral Sucre",null,null,"Tramites para la suscripción de convenios, , Inicio de Actividades, ",null,null,"Tramites para la suscripción de convenios, , Inicio de Actividades, ","Reporte de avance de ejecución con soportes","Reporte de avance de ejecución con soportes","Reporte de avance de ejecución con soportes",null,"IGAC - Instituto Geográfico Agustín Codazzi"]
["Información Estadística","Actualización catastral Florencia",null,null,"Reporte de avance de ejecución con soportes",null,null,"Reporte de avance de ejecución con soportes","Reporte de avance de ejecución con soportes","Reporte de avance de ejecución con soportes","Reporte de avance de ejecución con soportes",null,"IGAC - Instituto Geográfico Agustín Codazzi"]
["Información Estadística","Actualización catastral Miranda",null,null,"Finalización, liquidación, ",null,null,"Finalización, liquidación, ",0,0,0,null,"IGAC - Instituto Geográfico Agustín Codazzi"]
["Información Estadística","Actualización catastral Guachené",null,null,"Reporte de avance de ejecución con soportes",null,null,"Reporte de avance de ejecución con soportes","Reporte de avance de ejecución con soportes","Reporte de avance de ejecución con soportes","Reporte de avance de ejecución con soportes",null,"IGAC - Instituto Geográfico Agustín Codazzi"]
["Información Estadística","Actualización catastral Padilla",null,null,"Reporte de avance de ejecución con soportes",null,null,"Reporte de avance de ejecución con soportes","Reporte de avance de ejecución con soportes","Reporte de avance de ejecución con soportes","Reporte de avance de ejecución con soportes",null,"IGAC - Instituto Geográfico Agustín Codazzi"]
["Comercio, Industria y Turismo","Construcción del Centro Tematico Chicao en el municipio de Santander de Quilichao, Departamento del Cauca",null,null,"Inicio de Actividades, , Reporte de avance de ejecución con soportes",null,null,"Inicio de Actividades, , Reporte de avance de ejecución con soportes","Reporte de avance de ejecución con soportes","Reporte de avance de ejecución con soportes","Finalización, liquidación, ",null,"Ministerio de Comercio, Industria y Turismo - FONTUR"]
["Tecnologías de la Información y las Comunicaciones","Servicio de asistencia técnica para proyectos TIC",null,null,"Reporte de avance de ejecución con soportes, Adición de recursos sujeto a  decisiones de la Entidad",null,null,"Reporte de avance de ejecución con soportes, Adición de recursos sujeto a  decisiones de la Entidad","Reporte de avance de ejecución con soportes","Reporte de avance de ejecución con soportes","Finalización, liquidación, ",null,"Ministerio de Tecnologías de la Información y las Comunicaciones"]
["Comercio, Industria y Turismo","Construcción y adecuación de la plazoleta regional de la Paz como escenario de promoción intercultural, turístico y de emprendimiento en el municipio de Miranda Cauca.",null,null,"Actualización información con soportes ",null,null,"Actualización información con soportes ","Finalización, liquidación, ",0,0,null,"Ministerio de Comercio, Industria y Turismo - FONTUR"]
["Inclusión Social y Reconciliación","Plaza De Mercado de El Tambo",null,null,"Tramites para la suscripción de convenios, ",null,null,"Tramites para la suscripción de convenios, ","Reporte de avance de ejecución con soportes","Reporte de avance de ejecución con soportes","Reporte de avance de ejecución con soportes",null,"Departamento Administrativo de Prosperidad Social"]
["Inclusión Social y Reconciliación","Punto de Abastecimiento Solidario en Argelia",null,null,"Tramites para la suscripción de convenios, , Inicio de Actividades, ",null,null,"Tramites para la suscripción de convenios, , Inicio de Actividades, ","Reporte de avance de ejecución con soportes","Reporte de avance de ejecución con soportes","Reporte de avance de ejecución con soportes",null,"Departamento Administrativo de Prosperidad Social"]
["Inclusión Social y Reconciliación","Punto de Abastecimiento Solidario en Balboa",null,null,"Tramites para la suscripción de convenios, , Inicio de Actividades, ",null,null,"Tramites para la suscripción de convenios, , Inicio de Actividades, ","Reporte de avance de ejecución con soportes","Reporte de avance de ejecución con soportes","Reporte de avance de ejecución con soportes",null,"Departamento Administrativo de Prosperidad Social"]
["Inclusión Social y Reconciliación","Punto de Abastecimiento Solidario en Cajibío",null,null,"Reporte de avance de ejecución con soportes",null,null,"Reporte de avance de ejecución con soportes","Reporte de avance de ejecución con soportes","Reporte de avance de ejecución con soportes","Reporte de avance de ejecución con soportes",null,"Departamento Administrativo de Prosperidad Social"]
["Inclusión Social y Reconciliación","Punto de Abastecimiento Solidario en Caldono",null,null,{"$f":"+R111","v":"Reporte de avance de ejecución con soportes"},null,null,{"$f":"+N111","v":"Reporte de avance de ejecución con soportes"},{"$f":"+O111","v":"Reporte de avance de ejecución con soportes"},{"$f":"+P111","v":"Reporte de avance de ejecución con soportes"},{"$f":"+Q111","v":"Reporte de avance de ejecución con soportes"},null,{"$f":"+L111","v":"Departamento Administrativo de Prosperidad Social"}]
["Inclusión Social y Reconciliación","Punto de Abastecimiento Solidario en Caloto  ",null,null,"Actualización información con soportes , Estructuración del proyecto, ",null,null,"Actualización información con soportes , Estructuración del proyecto, ","Viabilización del proyecto ante la cabeza del sector, , Tramites para la suscripción de convenios, ","Reporte de avance de ejecución con soportes","Reporte de avance de ejecución con soportes",null,"Departamento Administrativo de Prosperidad Social"]
["Inclusión Social y Reconciliación","Punto de Abastecimiento Solidario en Corinto",null,null,"Tramites para la suscripción de convenios, , Inicio de Actividades, ",null,null,"Tramites para la suscripción de convenios, , Inicio de Actividades, ","Reporte de avance de ejecución con soportes","Reporte de avance de ejecución con soportes","Reporte de avance de ejecución con soportes",null,"Departamento Administrativo de Prosperidad Social"]
["Inclusión Social y Reconciliación","Punto de Abastecimiento Solidario en El Tambo",null,null,"Tramites para la suscripción de convenios, , Inicio de Actividades, ",null,null,"Tramites para la suscripción de convenios, , Inicio de Actividades, ","Reporte de avance de ejecución con soportes","Reporte de avance de ejecución con soportes","Reporte de avance de ejecución con soportes",null,"Departamento Administrativo de Prosperidad Social"]
["Inclusión Social y Reconciliación","Punto de Abastecimiento Solidario en Guapi",null,null,"Reporte de avance de ejecución con soportes",null,null,"Reporte de avance de ejecución con soportes","Reporte de avance de ejecución con soportes","Reporte de avance de ejecución con soportes","Reporte de avance de ejecución con soportes",null,"Departamento Administrativo de Prosperidad Social"]
["Inclusión Social y Reconciliación","Punto de Abastecimiento Solidario en Jámbalo",null,null,"Reporte de avance de ejecución con soportes",null,null,"Reporte de avance de ejecución con soportes","Reporte de avance de ejecución con soportes","Finalización, liquidación, ",0,null,"Departamento Administrativo de Prosperidad Social"]
["Inclusión Social y Reconciliación","Punto de Abastecimiento Solidario en Mercaderes",null,null,"Actualización información con soportes , Reporte de avance de ejecución con soportes",null,null,"Actualización información con soportes , Reporte de avance de ejecución con soportes","Reporte de avance de ejecución con soportes","Finalización, liquidación, ",0,null,"Departamento Administrativo de Prosperidad Social"]
["Inclusión Social y Reconciliación","Punto de Abastecimiento Solidario en Miranda",null,null,"Actualización información con soportes , Reporte de avance de ejecución con soportes",null,null,"Actualización información con soportes , Reporte de avance de ejecución con soportes","Reporte de avance de ejecución con soportes","Finalización, liquidación, ",0,null,"Departamento Administrativo de Prosperidad Social"]
[{"$f":"+A119","v":"Inclusión Social y Reconciliación"},"Punto de Abastecimiento Solidario en Morales",null,null,"Actualización información con soportes , Reporte de avance de ejecución con soportes",null,null,"Actualización información con soportes , Reporte de avance de ejecución con soportes","Reporte de avance de ejecución con soportes","Finalización, liquidación, ",0,null,"Departamento Administrativo de Prosperidad Social"]
["Inclusión Social y Reconciliación","Punto de Abastecimiento Solidario en Patía",null,null,"Actualización información con soportes , Reporte de avance de ejecución con soportes",null,null,"Actualización información con soportes , Reporte de avance de ejecución con soportes","Reporte de avance de ejecución con soportes","Finalización, liquidación, ",0,null,"Departamento Administrativo de Prosperidad Social"]
["Inclusión Social y Reconciliación","Punto de Abastecimiento Solidario en Popayán",null,null,"Tramites para la suscripción de convenios, , Inicio de Actividades, ",null,null,"Tramites para la suscripción de convenios, , Inicio de Actividades, ","Reporte de avance de ejecución con soportes","Reporte de avance de ejecución con soportes","Reporte de avance de ejecución con soportes",null,"Departamento Administrativo de Prosperidad Social"]
["Inclusión Social y Reconciliación","Punto de Abastecimiento Solidario en Santander de Quilichao",null,null,"Tramites para la suscripción de convenios, , Inicio de Actividades, ",null,null,"Tramites para la suscripción de convenios, , Inicio de Actividades, ","Reporte de avance de ejecución con soportes","Reporte de avance de ejecución con soportes","Reporte de avance de ejecución con soportes",null,"Departamento Administrativo de Prosperidad Social"]
["Inclusión Social y Reconciliación","Punto de Abastecimiento Solidario en Timbiquí ",null,null,"Estructuración del proyecto, ",null,null,"Estructuración del proyecto, ","Estructuración del proyecto, ","Tramites para la suscripción de convenios, , Inicio de Actividades, ","Reporte de avance de ejecución con soportes",null,"Departamento Administrativo de Prosperidad Social"]
["Inclusión Social y Reconciliación","Punto de Abastecimiento Solidario en Toribio",null,null,"Reporte de avance de ejecución con soportes",null,null,"Reporte de avance de ejecución con soportes","Reporte de avance de ejecución con soportes","Finalización, liquidación, ",0,null,"Departamento Administrativo de Prosperidad Social"]
["Inclusión Social y Reconciliación","Malecón Sobre El Rio Suárez",null,null,"Tramites para la suscripción de convenios, , Inicio de Actividades, ",null,null,"Tramites para la suscripción de convenios, , Inicio de Actividades, ","Reporte de avance de ejecución con soportes","Reporte de avance de ejecución con soportes","Reporte de avance de ejecución con soportes",null,"Departamento Administrativo de Prosperidad Social"]
["Inclusión Social y Reconciliación","Construcción Plaza de Mercado de López de Micay Cauca",null,null,"Tramites para la suscripción de convenios, , Inicio de Actividades, ",null,null,"Tramites para la suscripción de convenios, , Inicio de Actividades, ","Reporte de avance de ejecución con soportes","Reporte de avance de ejecución con soportes","Reporte de avance de ejecución con soportes",null,"Departamento Administrativo de Prosperidad Social"]
["Comercio, Industria y Turismo","Línea de crédito de agroindustria para empresas con códigos de actividades económicas específicas del sector económico agroindustrial / municipios del Cañón del Micay.",null,null,"Reporte de avance de ejecución con soportes",null,null,"Reporte de avance de ejecución con soportes","Reporte de avance de ejecución con soportes","Reporte de avance de ejecución con soportes","Reporte de avance de ejecución con soportes",null,"Ministerio de Comercio, Industria y Turismo"]
[{"$f":"+A129","v":"Agricultura y Desarrollo Rural"},"Modernización de 2 distrito de riego de pequeña escala del municipio de Totoró y Mercaderes en el Departamento de Cauca",null,null,{"$f":"+R129","v":"Priorización"},null,null,{"$f":"+N129","v":"Priorización"},{"$f":"+O129","v":"Viabilización del proyecto ante la cabeza del sector, , Asignación de recursos, "},{"$f":"+P129","v":"Tramites para la suscripción de convenios, "},{"$f":"+Q129","v":"Inicio de Actividades, , Reporte de avance de ejecución con soportes"},null,{"$f":"+L129","v":"Agencia de Desarrollo Rural"}]
["Tecnologías de la Información y las Comunicaciones","Centros digitales para conectividad",null,null,"Reporte de avance de ejecución con soportes",null,null,"Reporte de avance de ejecución con soportes","Reporte de avance de ejecución con soportes","Reporte de avance de ejecución con soportes","Reporte de avance de ejecución con soportes",null,"Ministerio de Tecnologías de la Información y las Comunicaciones"]
["Agricultura y Desarrollo Rural","Fortalecimiento de las capacidades productivas, organizacionales y comerciales de los productores de café, cítricos y cacao; en comunidades campesinas, afro e indígenas ubicados en los municipios de Miranda, Padilla, Puerto Tejada, Corinto, Caloto, Guachené, Villa Rica, Santander de Quilichao, Buenos Aires, Suarez y Caldono, en el Norte del Departamento del Cauca- BP 3694",null,null,"Estructuración del proyecto, , Viabilización del proyecto ante la cabeza del sector, ",null,null,"Estructuración del proyecto, , Viabilización del proyecto ante la cabeza del sector, ","Gestión de recursos","Inicio de Actividades, , Reporte de avance de ejecución con soportes","Reporte de avance de ejecución con soportes",null,"Agencia de Desarrollo Rural / Comunidad"]
["Agricultura y Desarrollo Rural","Fortalecimiento de las capacidades productivas a través de bancos de maquinaria para los resguardos Huellas y Páez de Corinto en los predios de Liberación Emperatriz y García Arriba en los municipios de Caloto y Corinto en el marco de la Reforma Rural Integral",null,null,"Estructuración del proyecto, ",null,null,"Estructuración del proyecto, ","Estructuración del proyecto, , Viabilización del proyecto ante la cabeza del sector, ","Gestión de recursos","Reporte de avance de ejecución con soportes",null,"Agencia de Desarrollo Rural / Comunidad"]
["Agricultura y Desarrollo Rural","Fortalecimiento a la capacidad productiva agroindustrial de la empresa procesadora y comercializadora de café tostado y molido “Nasa Café” orientada a mejorar la economía en el Territorio Indígena de la Parcialidad de Huellas Caloto - Norte del Cauca, con el fortalecimiento a caficultores, construcción y dotación de infraestructura y comercialización",null,null,"Estructuración del proyecto, ",null,null,"Estructuración del proyecto, ","Estructuración del proyecto, , Viabilización del proyecto ante la cabeza del sector, ","Gestión de recursos","Reporte de avance de ejecución con soportes",null,"Agencia de Desarrollo Rural / Comunidad"]
["Agricultura y Desarrollo Rural","Fortalecimiento de la Caficultura sostenible en 33 municipios del departamento del Cauca: Un enfoque integral para la productividad, calidad y comercialización.",null,null,"Tramites para la suscripción de convenios, , Reporte de avance de ejecución con soportes",null,null,"Tramites para la suscripción de convenios, , Reporte de avance de ejecución con soportes","Reporte de avance de ejecución con soportes","Reporte de avance de ejecución con soportes","Finalización, liquidación, ",null,"Departamento Nacional de Planeación (FRPT) / Gobernación del Cauca"]
[{"$f":"+#REF!","v":{"$error":"#REF!"}},{"$f":"+#REF!","v":{"$error":"#REF!"}},null,null,{"$f":"+#REF!","v":{"$error":"#REF!"}},null,null,{"$f":"+#REF!","v":{"$error":"#REF!"}},{"$f":"+#REF!","v":{"$error":"#REF!"}},{"$f":"+#REF!","v":{"$error":"#REF!"}},{"$f":"+#REF!","v":{"$error":"#REF!"}},null,{"$f":"+#REF!","v":{"$error":"#REF!"}}]
[{"$f":"+A135","v":"Agricultura y Desarrollo Rural"},{"$f":"+B135","v":"Fortalecimiento de la caficultura especial, sostenible, regenerativa y diversa, con articulación social e incluyente en el departamento del Cauca"},null,null,{"$f":"+R135","v":"Reporte de avance de ejecución con soportes"},null,null,{"$f":"+N135","v":"Reporte de avance de ejecución con soportes"},{"$f":"+O135","v":"Reporte de avance de ejecución con soportes"},{"$f":"+P135","v":"Reporte de avance de ejecución con soportes"},{"$f":"+Q135","v":"Reporte de avance de ejecución con soportes"},null,{"$f":"+L135","v":"Agencia de Desarrollo Rural / Comunidad"}]
[4,{"$f":"+COUNTA(B226:D282)","v":57}]
[{"$f":"+A142","v":"Salud y Protección Social "},"Hospital del segundo nivel del Patía​",null,null,{"$f":"+R142","v":"Presentación del proyecto ante la fuente de financiación, "},null,null,{"$f":"+N142","v":"Presentación del proyecto ante la fuente de financiación, "},{"$f":"+O142","v":"Estructuración del proyecto"},{"$f":"+P142","v":"Viabilización del proyecto ante la cabeza del sector"},{"$f":"+Q142","v":"Revisión y aprobación del proyecto por la fuente de financiación"},null,{"$f":"+L142","v":"Ministerio de Salud y Protección Social /Gobernación del Cauca"}]
["Salud y Protección Social ","Remodelación del Hospital de Guapi",null,null,"Reinicio de actividades, , Reporte de avance de ejecución con soportes",null,null,"Reinicio de actividades, , Reporte de avance de ejecución con soportes","Reporte de avance de ejecución con soportes","Reporte de avance de ejecución con soportes","Reporte de avance de ejecución con soportes",null,"Gobernación del Cauca (SGR 60%)"]
["Salud y Protección Social ","Reposición de la unidad de atención en salud Suárez – Cauca",null,null,"Revisión técnica del proyecto por Sector ",null,null,"Revisión técnica del proyecto por Sector ","Actualización información con soportes ","Revisión y aprobación del proyecto por la fuente de financiación","Viabilización del proyecto ante la cabeza del sector",null,"Ministerio de Salud y Protección Social "]
["Salud y Protección Social ","Construcción De La Unidad De Atención En Salud El Plateado, E.S.E. Suroccidente Cauca",null,null,"Reporte de avance de ejecución con soportes, Actualización información con soportes ",null,null,"Reporte de avance de ejecución con soportes, Actualización información con soportes ","Reporte de avance de ejecución con soportes","Reporte de avance de ejecución con soportes","Finalización, liquidación, ",null,"Ministerio de Salud y Protección Social "]
["Salud y Protección Social ","Reposición de la infraestructura física de la unidad nivel 1 López de Micay, unidad de atención de la E.S.E. occidente, departamento del Cauca  ",null,null,"Reporte de avance de ejecución con soportes, Actualización información con soportes ",null,null,"Reporte de avance de ejecución con soportes, Actualización información con soportes ","Reporte de avance de ejecución con soportes","Reporte de avance de ejecución con soportes","Finalización, liquidación, ",null,"Ministerio de Salud y Protección Social "]
["Salud y Protección Social ","Construcción de la planta física para la reubicación de servicios de consulta externa y áreas administrativas Hospital Susana López de Valencia  E.S.E.",null,null,"Reporte de avance de ejecución con soportes, Actualización información con soportes ",null,null,"Reporte de avance de ejecución con soportes, Actualización información con soportes ","Reporte de avance de ejecución con soportes","Reporte de avance de ejecución con soportes","Reporte de avance de ejecución con soportes",null,"Ministerio de Salud y Protección Social "]
["Salud y Protección Social ","Construcción hospital nivel 1 de Padilla",null,null,"Reporte de avance de ejecución con soportes, Actualización información con soportes ",null,null,"Reporte de avance de ejecución con soportes, Actualización información con soportes ","Reporte de avance de ejecución con soportes","Reporte de avance de ejecución con soportes","Reporte de avance de ejecución con soportes",null,"Ministerio de Salud y Protección Social "]
["Salud y Protección Social ","Adecuaciones menores de 4 unidades de atención en salud",null,null,"Actualización información con soportes , Finalización, liquidación,  Presentación del proyecto ante la fuente de financiación",null,null,"Actualización información con soportes , Finalización, liquidación,  Presentación del proyecto ante la fuente de financiación","Actualización información con soportes , Finalización, liquidación, ",0,0,null,"Ministerio de Salud y Protección Social "]
["Salud y Protección Social ","Construir, mejorar, ampliar y dotar cinco puestos de salud de los corregimientos de Mojarras, San Joaquín, Arboledas, Cajamarca y en la vereda Esperanzas del Mayo para mejorar la cobertura y calidad de los servicios de salud de 8000 personas en el Municipios de Mercaderes",null,null,"Revisión y aprobación del proyecto por la fuente de financiación, liquidación, Presentación de Proyecto",null,null,"Revisión y aprobación del proyecto por la fuente de financiación, liquidación, Presentación de Proyecto","Actualización información con soportes ","Revisión y aprobación del proyecto por la fuente de financiación, Reporte de avance de ejecución con soportes","Viabilización del proyecto ante la cabeza del sector, Reporte de avance de ejecución con soportes",null,"Ministerio de Salud y Protección Social "]
["Salud y Protección Social ","Adecuación y dotación de (3) puestos de salud (apoyan resguardo indígena de Ambaló) en zona rural que beneficiará a 700 habitantes del municipio de Silvia, departamento del cauca",null,null,"Tramites para la suscripción de convenios",null,null,"Tramites para la suscripción de convenios","Reporte de avance de ejecución con soportes","Reporte de avance de ejecución con soportes","Reporte de avance de ejecución con soportes",null,"Ministerio de Salud y Protección Social "]
["Salud y Protección Social ","Construir centros de salud, en los centros poblados de Guachicono, San Miguel, Altamira y Pancitará del municipio de La  Vega para garantizar el servicio de salud a la población rural del municipio de La Vega",null,null,"Revisión y aprobación del proyecto por la fuente de financiación, liquidación, Presentación de Proyecto",null,null,"Revisión y aprobación del proyecto por la fuente de financiación, liquidación, Presentación de Proyecto","Reporte de avance de ejecución con soportes, Actualización información con soportes ","Revisión y aprobación del proyecto por la fuente de financiación, Reporte de avance de ejecución con soportes","Viabilización del proyecto ante la cabeza del sector, Reporte de avance de ejecución con soportes",null,"Ministerio de Salud y Protección Social "]
[5,{"$f":"+COUNTA(B284:D294)","v":11}]
[{"$f":"+A159","v":"Minas y Energía"},"Se propone fortalecer el proceso de formación de al menos 50 participantes en los distritos de Cauca, a través de procesos formativos certificados",null,null,{"$f":"+R159","v":"Estructuración del proyecto"},null,null,{"$f":"+N159","v":"Estructuración del proyecto"},"Estructuración del proyecto","Reporte de avance de ejecución con soportes","Reporte de avance de ejecución con soportes",null,{"$f":"+L159","v":"Ministerio de Minas y Energía"}]
["Minas y Energía","Apoyar en la implementación de la estrategia de sociedad del conocimiento para el fomento de buenas prácticas en la actividad minera en el departamento de Cauca",null,null,"Estructuración del proyecto",null,null,"Tramites para la suscripción de convenios","Estructuración del proyecto","Reporte de avance de ejecución con soportes","Reporte de avance de ejecución con soportes",null,"Ministerio de Minas y Energía"]
["Minas y Energía","Aunar esfuerzos técnicos, administrativos y financieros para adelantar acciones asociadas con minería, energía e hidrocarburos del plan de acción 2025, dentro del Plan Cuatrienal 2023-2026 del Decreto 1811 de 2017.",null,null,"Estructuración del proyecto",null,null,"Tramites para la suscripción de convenios","Estructuración del proyecto","Reporte de avance de ejecución con soportes","Reporte de avance de ejecución con soportes",null,"Ministerio de Minas y Energía"]
["Minas y Energía","Distrito Minero Norte del Cauca",null,null,"Estructuración del proyecto",null,null,"Estructuración del proyecto","Estructuración del proyecto","Tramites para la suscripción de convenios","Reporte de avance de ejecución con soportes",null,"Ministerio de Minas y Energía"]
["Minas y Energía","Distrito Minero Litoral Pacífico Caucano",null,null,"Estructuración del proyecto",null,null,"Estructuración del proyecto","Estructuración del proyecto","Tramites para la suscripción de convenios","Reporte de avance de ejecución con soportes",null,"Ministerio de Minas y Energía"]
["Minas y Energía","148 Comunidades energéticas (Primera Fase Comunidades Focalizadas y Priorizadas 2024-2026)",null,null,"Actualización información con soportes ",null,null,"Actualización información con soportes ","Actualización información con soportes ","Actualización información con soportes ","Actualización información con soportes ",null,"Ministerio de Minas y Energía"]
[{"$f":"+#REF!","v":{"$error":"#REF!"}},{"$f":"+#REF!","v":{"$error":"#REF!"}},null,null,{"$f":"+#REF!","v":{"$error":"#REF!"}},null,null,{"$f":"+#REF!","v":{"$error":"#REF!"}},{"$f":"+#REF!","v":{"$error":"#REF!"}},{"$f":"+#REF!","v":{"$error":"#REF!"}},{"$f":"+#REF!","v":{"$error":"#REF!"}},null,{"$f":"+#REF!","v":{"$error":"#REF!"}}]
[{"$f":"+#REF!","v":{"$error":"#REF!"}},{"$f":"+#REF!","v":{"$error":"#REF!"}},null,null,{"$f":"+#REF!","v":{"$error":"#REF!"}},null,null,{"$f":"+#REF!","v":{"$error":"#REF!"}},{"$f":"+#REF!","v":{"$error":"#REF!"}},{"$f":"+#REF!","v":{"$error":"#REF!"}},{"$f":"+#REF!","v":{"$error":"#REF!"}},null,{"$f":"+#REF!","v":{"$error":"#REF!"}}]
[{"$f":"+#REF!","v":{"$error":"#REF!"}},{"$f":"+#REF!","v":{"$error":"#REF!"}},null,null,{"$f":"+#REF!","v":{"$error":"#REF!"}},null,null,{"$f":"+#REF!","v":{"$error":"#REF!"}},{"$f":"+#REF!","v":{"$error":"#REF!"}},{"$f":"+#REF!","v":{"$error":"#REF!"}},{"$f":"+#REF!","v":{"$error":"#REF!"}},null,{"$f":"+#REF!","v":{"$error":"#REF!"}}]
[{"$f":"+#REF!","v":{"$error":"#REF!"}},{"$f":"+#REF!","v":{"$error":"#REF!"}},null,null,{"$f":"+#REF!","v":{"$error":"#REF!"}},null,null,{"$f":"+#REF!","v":{"$error":"#REF!"}},{"$f":"+#REF!","v":{"$error":"#REF!"}},{"$f":"+#REF!","v":{"$error":"#REF!"}},{"$f":"+#REF!","v":{"$error":"#REF!"}},null,{"$f":"+#REF!","v":{"$error":"#REF!"}}]
[6,{"$f":"+COUNTA(B296:D305)","v":10}]
[{"$f":"+A171","v":"Transporte"},"Corredor  Estanquillo - Timbío - Popayán  (APP)",null,null,{"$f":"+R171","v":"Inicio de Actividades, , Reporte de avance de ejecución con soportes"},null,null,{"$f":"+N171","v":"Inicio de Actividades, , Reporte de avance de ejecución con soportes"},{"$f":"+O171","v":"Reporte de avance de ejecución con soportes"},{"$f":"+P171","v":"Reporte de avance de ejecución con soportes"},{"$f":"+Q171","v":"Reporte de avance de ejecución con soportes"},null,{"$f":"+L171","v":"Ministerio de Transporte - ANI"}]
["Transporte","Vía al Mar (POPAYAN EL TAMBO - MUNCHIQUE)",null,null,"Tramites para la suscripción de convenios/contratos, Inicio de Actividades, ",null,null,"Tramites para la suscripción de convenios/contratos, Inicio de Actividades, ","Reporte de avance de ejecución con soportes","Reporte de avance de ejecución con soportes","Reporte de avance de ejecución con soportes",null,"Ministerio de Transporte - INVIAS"]
["Transporte","MUNCHIQUE - HUISITO - HONDURAS",null,null,"Tramites para la suscripción de convenios/contratos, Inicio de Actividades, ",null,null,"Tramites para la suscripción de convenios/contratos, Inicio de Actividades, ","Reporte de avance de ejecución con soportes","Reporte de avance de ejecución con soportes","Reporte de avance de ejecución con soportes",null,"Ministerio de Transporte - INVIAS"]
["Transporte","PLATEADO - LOPEZ DE MICAY",null,null,"Tramites para la suscripción de convenios/contratos, Inicio de Actividades, ",null,null,"Tramites para la suscripción de convenios/contratos, Inicio de Actividades, ","Reporte de avance de ejecución con soportes","Reporte de avance de ejecución con soportes","Reporte de avance de ejecución con soportes",null,"Ministerio de Transporte - INVIAS"]
["Transporte","ARGELIA – EL PLATEADO  (Vía al Mar Cauca)",null,null,"Tramites para la suscripción de convenios/contratos, Inicio de Actividades, ",null,null,"Tramites para la suscripción de convenios/contratos, Inicio de Actividades, ","Reporte de avance de ejecución con soportes","Reporte de avance de ejecución con soportes","Reporte de avance de ejecución con soportes",null,"Ministerio de Transporte - INVIAS"]
["Transporte","Anillo Vial del Macizo",null,null,"Reporte de avance de ejecución con soportes",null,null,"Reporte de avance de ejecución con soportes","Reporte de avance de ejecución con soportes","Reporte de avance de ejecución con soportes","Reporte de avance de ejecución con soportes",null,"Ministerio de Transporte - INVIAS"]
["Transporte","Caminos Comunitarios para la Paz Total ",null,null,"Reporte de avance de ejecución con soportes",null,null,"Reporte de avance de ejecución con soportes","Reporte de avance de ejecución con soportes","Reporte de avance de ejecución con soportes","Reporte de avance de ejecución con soportes",null,"Ministerio de Transporte - INVIAS"]
["Transporte","Mejoramiento de la infraestructura del lado aire del Aeródromo de Timbiquí",null,null,"Elaboración de CONPES, Estructuración del proyecto, ",null,null,"Elaboración de CONPES, Estructuración del proyecto, ","Tramites para la suscripción de convenios, , Inicio de Actividades, ","Reporte de avance de ejecución con soportes","Reporte de avance de ejecución con soportes",null,"Ministerio de Transporte - Aeronautica Civil"]
["Transporte","Mejoramiento de la Infraestructura Lado Aire y Lado Tierra del Aeropuerto Juan Casiano Solis de Guapi",null,null,"Tramites de vigencias futuras, , Estructuración del proyecto, ",null,null,"Tramites de vigencias futuras, , Estructuración del proyecto, ","Tramites para la suscripción de convenios, , Inicio de Actividades, ","Tramites para la suscripción de convenios, ","Reporte de avance de ejecución con soportes",null,"Ministerio de Transporte - Aeronautica Civil"]
["Transporte","Mejoramiento de la Via  Silvia - Totoro , Sector Silvia - Totoro, Departamento del Cauca   17 km",null,null,"Gestión de recursos",null,null,"Gestión de recursos","Gestión de recursos","Gestión de recursos","Gestión de recursos",null,"Ministerio de Transporte - INVIAS"]
["Transporte","Patico - Puracé - Santa Leticia - Belén - La Plata",null,null,"Gestión de recursos",null,null,"Gestión de recursos","Gestión de recursos","Gestión de recursos","Gestión de recursos",null,"Ministerio de Transporte - INVIAS"]
["Inclusión Social y Reconciliación","Placa Huella en Suárez​",null,null,"Actualización información con soportes , Reporte de avance de ejecución con soportes",null,null,"Actualización información con soportes , Reporte de avance de ejecución con soportes","Reporte de avance de ejecución con soportes","Reporte de avance de ejecución con soportes","Reporte de avance de ejecución con soportes",null,"Departamento Administrativo de Prosperidad Social"]
["Transporte","Vía El estrecho - Balboa - Argelia - El plateado",null,null,"Actualización información con soportes , Reporte de avance de ejecución con soportes",null,null,"Actualización información con soportes , Reporte de avance de ejecución con soportes","Reporte de avance de ejecución con soportes","Reporte de avance de ejecución con soportes","Reporte de avance de ejecución con soportes",null,"Ministerio de Transporte - INVIAS"]
[{"$f":"+#REF!","v":{"$error":"#REF!"}},{"$f":"+#REF!","v":{"$error":"#REF!"}},null,null,{"$f":"+#REF!","v":{"$error":"#REF!"}},null,null,{"$f":"+#REF!","v":{"$error":"#REF!"}},{"$f":"+#REF!","v":{"$error":"#REF!"}},{"$f":"+#REF!","v":{"$error":"#REF!"}},{"$f":"+#REF!","v":{"$error":"#REF!"}},null,{"$f":"+#REF!","v":{"$error":"#REF!"}}]
[7,{"$f":"+COUNTA(B307:D320)","v":14}]
[]
["       6.   APROBACIÓN DEL PLAN DE ACCIÓN Y SEGUIMIENTO                                     "]
[]
["El Plan de Acción y seguimiento se revisa y consolida en sesión No. 1 del comite Técnico celebrado el 28 de abril del 2026 y se recomendó  en sesion de Consejo Directivo No. 3  el 29 de abril de 2026 XXXX."]
[]
[]
[]
[]
["        7.   VALIDACIÓN DEL PLAN DE ACCIÓN Y SEGUIMIENTO                                               "]
[]
["En constancia de las decisiones tomadas por el Comité Técnico No. 1  celebrado el 26 de marzo del 2026\nEn constancia de las decisiones tomadas por el Consejo Directivo, firman:"]
["Firma:    ",null,null,null,null,null,null,"Firma:"]
["Nombre:",null,null,null,null,null,null,"Sandra Yaneth Tibamosca Villamarín"]
["Delegado Departamento Nacional de Planeación",null,null,null,null,null,null,"Gerente Nacional de Pactos Territoriales"]
["Presidente del  Consejo Directivo",null,null,null,null,null,null,"Secretaría Técnica del Comité Técnico"]
[]
[]
[]
[]
["LISTA DE ACTIVIDAD"]
["Estructuración del proyecto, "]
["Diagnóstico de necesidades"]
["Viabilización del proyecto ante la cabeza del sector, "]
["Presentación del proyecto ante la fuente de financiación, "]
["Revisión técnica del proyecto por Sector, "]
["Revisión y aprobación del proyecto por la fuente de financiación, "]
["Aprobación de Ley"]
["Priorización"]
["Elaboración de CONPES"]
["Gestión de recursos"]
["Asignación de recursos, "]
["Tramites de vigencias futuras, "]
["Tramites para la suscripción de convenios/contratos, "]
["Inicio de Actividades, "]
["Reinicio de actividades, "]
["Prorroga, "]
["Adición de recursos sujeto a  decisiones de la Entidad"]
["Actualización información con soportes "]
["Justificar modificación del proyecto reportada con soportes"]
["Finalización, liquidación, "]
["Reporte de avance de ejecución con soportes"]

{"sheet":"PEI","index":2,"n_rows":244,"n_cols":14,"rows_kept":244,"cut":false,"hidden":true,"merged":[[11,0,12,13],[13,0,13,2],[13,3,13,13],[14,0,14,2],[14,3,14,13],[15,0,15,2],[15,3,15,13],[0,0,0,13],[1,0,2,13],[3,0,4,13],[5,0,5,13],[6,0,9,13],[10,0,10,13],[26,0,26,13],[27,0,30,13],[31,0,31,1],[31,2,31,3],[31,4,31,6],[31,7,31,9],[31,10,31,13],[16,0,16,2],[16,3,16,13],[17,0,17,13],[18,0,23,13],[24,0,24,13],[25,0,25,13],[32,0,32,1],[32,2,32,3],[32,4,32,6],[32,7,32,9],[32,10,32,13],[33,0,33,1],[33,2,33,3],[33,4,33,6],[33,7,33,9],[33,10,33,13],[34,0,34,1],[34,2,34,3],[34,4,34,6],[34,7,34,9],[34,10,34,13],[35,0,35,1],[35,2,35,3],[35,4,35,6],[35,7,35,9],[35,10,35,13],[36,0,36,1],[36,2,36,3],[36,4,36,6],[36,7,36,9],[36,10,36,13],[37,0,37,1],[37,2,37,3],[37,4,37,6],[37,7,37,9],[37,10,37,13],[40,0,40,1],[40,2,40,3],[40,4,40,6],[40,7,40,9],[40,10,40,13],[42,0,42,13],[38,0,38,1],[38,2,38,3],[38,4,38,6],[38,7,38,9],[38,10,38,13],[39,0,39,1],[39,2,39,3],[39,4,39,6],[39,7,39,9],[39,10,39,13],[48,1,48,3],[48,4,48,5],[48,6,48,7],[48,8,48,9],[49,1,49,3],[49,4,49,5],[49,6,49,7],[49,8,49,9],[45,0,45,13],[46,1,46,3],[46,4,46,5],[46,6,46,7],[46,8,46,9],[47,1,47,3],[47,4,47,5],[47,6,47,7],[47,8,47,9],[52,1,52,3],[52,4,52,5],[52,6,52,7],[52,8,52,9],[53,1,53,3],[53,4,53,5],[53,6,53,7],[53,8,53,9],[50,1,50,3],[50,4,50,5],[50,6,50,7],[50,8,50,9],[51,1,51,3],[51,4,51,5],[51,6,51,7],[51,8,51,9],[56,1,56,3],[56,4,56,5],[56,6,56,7],[56,8,56,9],[57,1,57,3],[57,4,57,5],[57,6,57,7],[57,8,57,9],[54,1,54,3],[54,4,54,5],[54,6,54,7],[54,8,54,9],[55,1,55,3],[55,4,55,5],[55,6,55,7],[55,8,55,9],[60,1,60,3],[60,4,60,5],[60,6,60,7],[60,8,60,9],[60,10,60,13],[61,0,61,13],[58,1,58,3],[58,4,58,5],[58,6,58,7],[58,8,58,9],[59,1,59,3],[59,4,59,5],[59,6,59,7],[59,8,59,9],[66,1,66,3],[66,4,66,5],[66,6,66,7],[66,8,66,9],[67,1,67,3],[67,4,67,5],[67,6,67,7],[67,8,67,9],[63,0,63,13],[64,1,64,3],[64,4,64,5],[64,6,64,7],[64,8,64,9],[65,1,65,3],[65,4,65,5],[65,6,65,7],[65,8,65,9],[70,1,70,3],[70,4,70,5],[70,6,70,7],[70,8,70,9],[70,10,70,13],[71,0,71,13],[68,1,68,3],[68,4,68,5],[68,6,68,7],[68,8,68,9],[69,1,69,3],[69,4,69,5],[69,6,69,7],[69,8,69,9],[73,0,73,13],[74,1,74,3],[74,4,74,5],[74,6,74,7],[74,8,74,9],[75,1,75,3],[75,4,75,5],[75,6,75,7],[75,8,75,9],[78,1,78,3],[78,4,78,5],[78,6,78,7],[78,8,78,9],[79,1,79,3],[79,4,79,5],[79,6,79,7],[79,8,79,9],[76,1,76,3],[76,4,76,5],[76,6,76,7],[76,8,76,9],[77,1,77,3],[77,4,77,5],[77,6,77,7],[77,8,77,9],[82,1,82,3],[82,4,82,5],[82,6,82,7],[82,8,82,9],[82,10,82,13],[83,0,83,13],[80,1,80,3],[80,4,80,5],[80,6,80,7],[80,8,80,9],[81,1,81,3],[81,4,81,5],[81,6,81,7],[81,8,81,9],[88,1,88,3],[88,4,88,5],[88,6,88,7],[88,8,88,9],[89,1,89,3],[89,4,89,5],[89,6,89,7],[89,8,89,9],[85,0,85,13],[86,1,86,3],[86,4,86,5],[86,6,86,7],[86,8,86,9],[87,1,87,3],[87,4,87,5],[87,6,87,7],[87,8,87,9],[92,1,92,3],[92,4,92,5],[92,6,92,7],[92,8,92,9],[93,1,93,3],[93,4,93,5],[93,6,93,7],[93,8,93,9],[90,1,90,3],[90,4,90,5],[90,6,90,7],[90,8,90,9],[91,1,91,3],[91,4,91,5],[91,6,91,7],[91,8,91,9],[96,1,96,3],[96,4,96,5],[96,6,96,7],[96,8,96,9],[97,1,97,3],[97,4,97,5],[97,6,97,7],[97,8,97,9],[94,1,94,3],[94,4,94,5],[94,6,94,7],[94,8,94,9],[95,1,95,3],[95,4,95,5],[95,6,95,7],[95,8,95,9],[100,1,100,3],[100,4,100,5],[100,6,100,7],[100,8,100,9],[101,1,101,3],[101,4,101,5],[101,6,101,7],[101,8,101,9],[98,1,98,3],[98,4,98,5],[98,6,98,7],[98,8,98,9],[99,1,99,3],[99,4,99,5],[99,6,99,7],[99,8,99,9],[104,1,104,3],[104,4,104,5],[104,6,104,7],[104,8,104,9],[105,1,105,3],[105,4,105,5],[105,6,105,7],[105,8,105,9],[102,1,102,3],[102,4,102,5],[102,6,102,7],[102,8,102,9],[103,1,103,3],[103,4,103,5],[103,6,103,7],[103,8,103,9],[108,1,108,3],[108,4,108,5],[108,6,108,7],[108,8,108,9],[109,1,109,3],[109,4,109,5],[109,6,109,7],[109,8,109,9],[106,1,106,3],[106,4,106,5],[106,6,106,7],[106,8,106,9],[107,1,107,3],[107,4,107,5],[107,6,107,7],[107,8,107,9],[112,1,112,3],[112,4,112,5],[112,6,112,7],[112,8,112,9],[113,1,113,3],[113,4,113,5],[113,6,113,7],[113,8,113,9],[110,1,110,3],[110,4,110,5],[110,6,110,7],[110,8,110,9],[111,1,111,3],[111,4,111,5],[111,6,111,7],[111,8,111,9],[116,1,116,3],[116,4,116,5],[116,6,116,7],[116,8,116,9],[116,10,116,13],[117,0,117,13],[114,1,114,3],[114,4,114,5],[114,6,114,7],[114,8,114,9],[115,1,115,3],[115,4,115,5],[115,6,115,7],[115,8,115,9],[122,1,122,3],[122,4,122,5],[122,6,122,7],[122,8,122,9],[123,1,123,3],[123,4,123,5],[123,6,123,7],[123,8,123,9],[119,0,119,13],[120,1,120,3],[120,4,120,5],[120,6,120,7],[120,8,120,9],[121,1,121,3],[121,4,121,5],[121,6,121,7],[121,8,121,9],[126,1,126,3],[126,4,126,5],[126,6,126,7],[126,8,126,9],[127,0,127,13],[129,0,129,13],[124,1,124,3],[124,4,124,5],[124,6,124,7],[124,8,124,9],[125,1,125,3],[125,4,125,5],[125,6,125,7],[125,8,125,9],[132,1,132,3],[132,4,132,5],[132,6,132,7],[132,8,132,9],[133,1,133,3],[133,4,133,5],[133,6,133,7],[133,8,133,9],[130,1,130,3],[130,4,130,5],[130,6,130,7],[130,8,130,9],[131,1,131,3],[131,4,131,5],[131,6,131,7],[131,8,131,9],[136,1,136,3],[136,4,136,5],[136,6,136,7],[136,8,136,9],[137,1,137,3],[137,4,137,5],[137,6,137,7],[137,8,137,9],[134,1,134,3],[134,4,134,5],[134,6,134,7],[134,8,134,9],[135,1,135,3],[135,4,135,5],[135,6,135,7],[135,8,135,9],[140,1,140,3],[140,4,140,5],[140,6,140,7],[140,8,140,9],[141,1,141,3],[141,4,141,5],[141,6,141,7],[141,8,141,9],[138,1,138,3],[138,4,138,5],[138,6,138,7],[138,8,138,9],[139,1,139,3],[139,4,139,5],[139,6,139,7],[139,8,139,9],[144,1,144,3],[144,4,144,5],[144,6,144,7],[144,8,144,9],[145,1,145,3],[145,4,145,5],[145,6,145,7],[145,8,145,9],[142,1,142,3],[142,4,142,5],[142,6,142,7],[142,8,142,9],[143,1,143,3],[143,4,143,5],[143,6,143,7],[143,8,143,9],[148,1,148,3],[148,4,148,5],[148,6,148,7],[148,8,148,9],[149,1,149,3],[149,4,149,5],[149,6,149,7],[149,8,149,9],[146,1,146,3],[146,4,146,5],[146,6,146,7],[146,8,146,9],[147,1,147,3],[147,4,147,5],[147,6,147,7],[147,8,147,9],[152,0,152,4],[152,6,152,7],[154,0,154,13],[155,1,155,3],[155,4,155,5],[155,6,155,7],[155,8,155,9],[150,1,150,3],[150,4,150,5],[150,6,150,7],[150,8,150,9],[151,1,151,3],[151,4,151,5],[151,6,151,7],[151,8,151,9],[158,1,158,3],[158,4,158,5],[158,6,158,7],[158,8,158,9],[159,1,159,3],[159,4,159,5],[159,6,159,7],[159,8,159,9],[156,1,156,3],[156,4,156,5],[156,6,156,7],[156,8,156,9],[157,1,157,3],[157,4,157,5],[157,6,157,7],[157,8,157,9],[162,1,162,3],[162,4,162,5],[162,6,162,7],[162,8,162,9],[163,1,163,3],[163,4,163,5],[163,6,163,7],[163,8,163,9],[160,1,160,3],[160,4,160,5],[160,6,160,7],[160,8,160,9],[161,1,161,3],[161,4,161,5],[161,6,161,7],[161,8,161,9],[166,1,166,3],[166,4,166,5],[166,6,166,7],[166,8,166,9],[167,1,167,3],[167,4,167,5],[167,6,167,7],[167,8,167,9],[164,1,164,3],[164,4,164,5],[164,6,164,7],[164,8,164,9],[165,1,165,3],[165,4,165,5],[165,6,165,7],[165,8,165,9],[172,1,172,3],[172,4,172,5],[172,6,172,7],[172,8,172,9],[173,1,173,3],[173,4,173,5],[173,6,173,7],[173,8,173,9],[167,10,167,13],[168,0,168,13],[169,0,169,13],[170,0,170,13],[171,1,171,3],[171,4,171,5],[171,6,171,7],[171,8,171,9],[176,1,176,3],[176,4,176,5],[176,6,176,7],[176,8,176,9],[177,1,177,3],[177,4,177,5],[177,6,177,7],[177,8,177,9],[174,1,174,3],[174,4,174,5],[174,6,174,7],[174,8,174,9],[175,1,175,3],[175,4,175,5],[175,6,175,7],[175,8,175,9],[177,10,177,13],[178,0,178,6],[180,0,180,13],[181,0,185,13],[186,0,186,1],[186,2,186,3],[186,4,186,6],[186,7,186,9],[186,10,186,13],[187,0,187,1],[187,2,187,3],[187,4,187,6],[187,7,187,9],[187,10,187,13],[188,0,188,1],[188,2,188,3],[188,4,188,6],[188,7,188,9],[188,10,188,13],[189,0,189,1],[189,2,189,3],[189,4,189,6],[189,7,189,9],[189,10,189,13],[190,0,190,1],[190,2,190,3],[190,4,190,6],[190,7,190,9],[190,10,190,13],[193,0,193,1],[193,2,193,3],[193,4,193,6],[193,7,193,9],[193,10,193,13],[194,0,194,13],[191,0,191,1],[191,2,191,3],[191,4,191,6],[191,7,191,9],[191,10,191,13],[192,0,192,1],[192,2,192,3],[192,4,192,6],[192,7,192,9],[192,10,192,13],[200,2,200,6],[200,10,200,13],[201,2,201,6],[201,10,201,13],[202,2,202,6],[202,10,202,13],[196,0,196,13],[197,2,197,6],[197,10,197,13],[198,2,198,6],[198,10,198,13],[199,2,199,6],[199,10,199,13],[206,2,206,6],[206,10,206,13],[207,2,207,6],[207,10,207,13],[208,2,208,6],[208,10,208,13],[203,2,203,6],[203,10,203,13],[204,2,204,6],[204,10,204,13],[205,2,205,6],[205,10,205,13],[212,2,212,6],[212,10,212,13],[213,2,213,6],[213,10,213,13],[214,2,214,6],[214,10,214,13],[209,2,209,6],[209,10,209,13],[210,2,210,6],[210,10,210,13],[211,2,211,6],[211,10,211,13],[218,2,218,6],[218,10,218,13],[219,2,219,6],[219,10,219,13],[220,2,220,6],[220,10,220,13],[215,2,215,6],[215,10,215,13],[216,2,216,6],[216,10,216,13],[217,2,217,6],[217,10,217,13],[224,2,224,6],[224,10,224,13],[225,2,225,6],[225,10,225,13],[226,2,226,6],[226,10,226,13],[221,2,221,6],[221,10,221,13],[222,2,222,6],[222,10,222,13],[223,2,223,6],[223,10,223,13],[236,0,236,13],[237,0,237,13],[238,0,238,13],[239,0,239,13],[240,0,240,5],[240,6,240,13],[227,0,227,1],[227,2,227,6],[229,0,229,13],[230,0,230,13],[231,0,231,13],[232,0,235,13],[244,0,244,5],[244,6,244,13],[245,0,245,5],[245,6,245,13],[241,0,241,5],[241,6,241,10],[242,0,242,5],[242,6,242,10],[243,0,243,5],[243,6,243,10]]}
[]
["PACTO SOCIAL PARA LA TRANSFORMACIÓN TERRITORIAL DEL CATATUMBO\nFecha de aprobación: 26/08/2025"]
[]
[]
[]
["        1.  OBJETIVO                                                                                              "]
["Transformar el Catatumbo en un territorio ordenado alrededor del agua con justicia social y ambiental. soportado en una red educativa y una estructura productiva que promueva la diversificación y la reconversión productiva. fortaleciendo el tejido social y posibilitando la construcción de Paz Territorial"]
[]
[]
[]
["        2.  INFORMACIÓN GENERAL                                                                                              "]
[]
[]
["Fecha de inicio de ejecución",null,null,"12 de agosto de 2025"]
["Plazo de ejecución",null,null,"10 años"]
["Suscribientes del Pacto Territorial",null,null,"Departamento Nacional de Planeación. Ministerio del Interior. Agencia para la Renovación del Territorio. Consejería Presidencial para las Regiones.  Instituto Colombiano de Bienestar Familiar. Ministerio de Agricultura y Desarrollo Rural. Agencia Nacional de Tierras. Unidad de Restitución de Tierras. Ministerio de Ambiente y Desarrollo Sostenible. Ministerio de Vivienda. Ciudad y Territorio. Ministerio de Educación Nacional. Ministerio de Cultura. Ministerio de las Tecnologías de la Información y la Comunicación. Ministerio de Minas y Energía. Dirección de Sustitución de Cultivos de Uso Ilícito. Instituto Geográfico Agustín Codazzi. Ministerio de Defensa. Ministerio de Transporte y Unidad de Implementación del Acuerdo de Paz\nGobernación de Norte de Santander\nMunicipio de Ocaña. Municipio de Convención. Municipio de El Carmen. Municipio de Teorama. Municipio de El Tarra. Municipio de Tibú. Municipio de San Calixto. MUnicipio de Hacarí. Muinicipio de La Playa. Municipio de Sardinata. Municipio de Abrego\nPueblo Bari – Resguardo Motilón Barí y Resguardo Catañaura Movimiento por la constituyente popular. Asociación campesina de Catatumbo. Comité para la integración del Catatumbo. Asociación de unidad Campesina del Catatumbo y Firmantes de PAZ ETCR de Caño Lindo negro Eliecer Gaitan"]
["Otro sí (cuando aplique) con su fecha de suscripción ",null,null,"NA"]
[]
[]
[]
[]
[]
[]
[]
["        3.  EJES O LÍNEAS ESTRATÉGICAS                                                                        "]
["El Pacto Social para la Transformación Territorial del Catatumbo está conformado por 5 ejes estratégicos, 2 ejes transversales y 1 capítulo transversal Barí que articulados, contribuyen al logro del objetivo propuesto, considerando que reflejan la vocación de los territorios que la componen, la visión de desarrollo y las potencialidades, el cierre de brechas, entre otras.\n\nCapítulo transversal Bari\nEje inicial – Derecho humano a la alimentación y soberanía alimentaria\nEje 1 - Ordenamiento territorial participativo y popular\nEje 2 – Modelo regional de Salud\nEje 3 – Red educativa regional y universidad del Catatumbo\nEje 4. Transformación económica. agroindustrial y reconversión productiva para el desarrollo endógeno del Catatumbo\nEje 5. Conectividad. infraestructura vial y transporte intermodal\nEje transversal – Paz total. implementación del acuerdo y reparación integral"]
["        4.   INICIATIVAS DEL PLAN ESTRATÉGICO DE INVERSIONES.                                            "]
["A continuación, se presentan las iniciativas estratégicas que fueron priorizadas por ejes o líneas estratégicas con sus valores indicativos para ser implmentadas durante la vigencia del Pacto Territorial, y que cuentan con la identificación de diferentes fuentes indicativas de financiación o aportes."]
[]
[]
[]
["Eje o Línea Estratégica",null,"Nº Iniciativas",null,"Aporte Nación*",null,null,"Aporte Territorio*",null,null,"Inversión Total Indicativa"]
["Capítulo transversal Bari",null,{"$f":"+B61","v":13},null,{"$f":"+E61","v":133386016610},null,null,{"$f":"+G61","v":4111386997},null,null,{"$f":"+E33+H33","v":137497403607}]
["Eje inicial – Derecho humano a la alimentación y soberanía alimentaria",null,{"$f":"+B71","v":5},null,{"$f":"+E71","v":66366277926},null,null,{"$f":"+G71","v":0},null,null,66366277926]
["Eje 1 - Ordenamiento territorial participativo y popular",null,{"$f":"+B83","v":7},null,{"$f":"+E83","v":306644073516},null,null,{"$f":"+G83","v":0},null,null,306644073516]
["Eje 2 – Modelo regional de Salud",null,{"$f":"+B117","v":29},null,{"$f":"+E117","v":334126860318},null,null,{"$f":"+G117","v":104701260},null,null,334231561578]
["Eje 3 – Red educativa regional y universidad del Catatumbo",null,{"$f":"+B127","v":5},null,{"$f":"+E127","v":305833537640},null,null,{"$f":"+G127","v":0},null,null,305833537640]
["Eje 4. Transformación económica. agroindustrial y reconversión productiva para el desarrollo endógeno del Catatumbo",null,{"$f":"+B152","v":20},null,{"$f":"+E152","v":717272116730},null,null,{"$f":"+G152","v":16253978000},null,null,733526094730]
["Eje 5. Conectividad. infraestructura vial y transporte intermodal",null,{"$f":"+B168","v":11},null,{"$f":"+E168","v":1578171721401},null,null,{"$f":"+G168","v":60000000000},null,null,1638171721401]
["Eje transversal – Paz total. implementación del acuerdo y reparación integral",null,{"$f":"+B178","v":5},null,{"$f":"+E178","v":81151674133},null,null,{"$f":"+G178","v":0},null,null,81151674133]
["Total  Plan  Estratégico   de Inversiones",null,{"$f":"+C33+C34+C35+C36+C37+C38+C39+C40","v":95},null,{"$f":"SUM(E33:G40)","v":3522952278274},null,null,{"$f":"SUM(H33:J40)","v":80470066257},null,null,{"$f":"SUM(K33:N40)","v":3603422344531}]
[" *Aporte Nación / Aporte Territorio corresponde con lo estipulado en la Cláusula Octava de la Minuta del Pacto"]
["Cifras expresadas en pesos."]
[]
["A continuación se relacionan las iniciativas por cada uno de los sectores con sus fuentes de financiación por eje o línea estratégica."]
["Eje estratégico: Capítulo Transversal Bari "]
["Sector","Nombre de la Iniciativa",null,null,"Aporte Nación",null,"Aporte Territorio",null,"Inversión Total",null,"Entidad Responsable*","Fase","Estado","Descripción Avance\nComité Técnico 26/03/2026"]
["MINAS Y ENERGÍA","Implementación de comunidades energéticas en los resguardos Motilón Barí y Catalaura 32 comunidades energéticas en los resguardos Motilón Barí y Catalaura (2024 - 2026) - 43 comunidades energéticas en los resguardos Motilón Barí y Catalaura (2026 - 2028)",null,null,38100000000,null,null,null,{"$f":"+E48+G48","v":38100000000},null,"MINISTERIO DE MINAS Y ENERGÍA ","Fase 3","En ejecución","Ministerio de Minas y energía ejecuta  20 soluciones energeticas, de los cuales 14 se implementaran en zona del Resguardo Bari, seis comunidades atendidas, una no se puede atender por localizacion geografica (Venezuela= \n\nProyecto contratado por valor de $3,885,000 millones, No iniciado por orden publico."]
["EDUCACIÓN NACIONAL ","Dotar de mobiliario pedagógico y construcción de ambientes educativas con enfoque étnico de las sedes educativas en el territorio del Pueblo Bari",null,null,29390097786,null,null,null,29390097786,null,"MINISTERIO DE EDUCACIÓN NACIONAL","Fase 3","No iniciado","FIE Visitas tecnicas priorizando el pueblo Barim recursos garantizados"]
["SALUD Y PROTECCIÓN SOCIAL","Estudios. diseños y construcción y Dotación del centro de atención primaria en salud. intercultural. de baja complejidad hospitalaria. en el poblado rural indígena de Brubucanina (municipio de teorama)",null,null,12423600000,null,null,null,12423600000,null,"MINISTERIO DE SALUD Y PROTECCIÓN SOCIAL","Fase 2","No iniciado","Recursos asignados al EMPRESA SOCIAL DEL ESTADO HOSPITAL EMIRO QUINTERO CAÑIZARES , mediante resolución 2733 del 2025 por el Minsterio de Salud y resolucion 1440-2025 para estudios y diseños - En ejecución"]
["TRANSPORTE","Caminos ancestrales priorizados con el Pueblo Barí",null,null,6000000000,null,1500000000,null,7500000000,null,"INSTITUTO NACIONAL DE VÍAS / Pueblo Barí","Fase 3","No iniciado","Mediante Convenio 1349-2026 INVIAS y la ASOCIACIÓN DE AUTORIDADES TRADICIONALES DEL PUEBLO BARI, asignaron recursos por valor de $20.133.375.014,00 para la intervención de ocho (8) caminos ancestrales, en los municipios de Tarra, Convención, El Carmen y Teorama.  "]
["AGRICULTURA Y DESARROLLO RURAL","PIDAR PAZ - Fortalecimiento de las capacidades productivas del Pueblo Barí alrededor de la línea de cacao y la implementación de granjas integrales con la Asociación de Autoridades Tradicionales del Pueblo Barí – ÑATUBAIYIBAR-. en el Resguardo Indígena Motilón -Barí. departamento de Norte de Santander.",null,null,6935643745,null,1488232701,null,8423876446,null,"AGENCIA DE DESARROLLO RURAL / Pueblo Barí","Fase 3","En ejecución","En ejecución. - Recursos asignados mediante resolución 133-2025 de cofinanciación  - ADR - Convenio Naciones Unidas . pendiente soporte de avance"]
["CULTURA","Construcción de 13 Bohíos Ancestrales del Pueblo Barí presente en los municipios de Convención. El Carmen. El Tarra. Tibú y Teorama: 11 pertenecen al Resguardo Motilón Barí y 2 al Resguardo Catalaura Barí.",null,null,2942500000,null,null,null,2942500000,null,"MINISTERIO DE CULTURA; AGENCIA DE RENOVACIÓN DEL TERRITORIO","Fase 3","En ejecución","En ejecucíon por ART - se intervienen 5 bohios."]
["PRESIDENCIA","Estructuración  y construcción del puente peatonal y mular sobre el río de oro en la comunidad indigena pathuina en Norte de Santander",null,null,3159897938,null,null,null,3159897938,null,"AGENCIA DE RENOVACIÓN DEL TERRITORIO","Fase 3","En ejecución","En ejecucíon estudios y diseños por ART - la construcción depende de los resultados de los diseños y  la disponibilidad de recursos por parte de ART"]
["AGRICULTURA Y DESARROLLO RURAL","PIDAR PAZ - Fortalecimiento de los sistemas productivos de cacao y granjas integrales como estrategia de generación de ingresos y soberanía alimentaria del pueblo Barí. con enfoque de género y juventud. en el Resguardo Indígena Catalaura La Gabarra. municipio de Tibú (Norte de Santander).",null,null,2640022745,null,1123154296,null,3763177041,null,"AGENCIA DE DESARROLLO RURAL / Pueblo Barí","Fase 3","En ejecución","En ejecución. - Recursos asignados mediante resolución 110-2025 de cofinanciación  - ADR - Convenio Naciones Unidas . pendiente soporte de avance"]
["SALUD Y PROTECCIÓN SOCIAL","9 EQUIPOS BÁSICOS DE SALUD (COMUNIDAD INDIGENA BRUBUCANINA Y SHUBABARINA DEL PUEBLO BARÍ. ÁREA URBANA VEREDAS ALEDAÑA AL CASCO URBANO JURISDICCIONES Y RAMIREZ. CORREGIMIENTOS DE SAN PABLO. ASERRIO. LA CECILIA. SAN JUANCITO.  COMUNIDAD INDIGENA DE NOROCCIDENTAL DE: SACAKDU. YERA. SUERERA. OCBABUDA. ASGBARINGCAYRA)",null,null,2398214396,null,null,null,2398214396,null,"MINISTERIO DE SALUD Y PROTECCIÓN SOCIAL"]
["PRESIDENCIA","Diseñar e implementar los planes integrales de gestion y manejo de residuos sólidos para los resguardos del territorio Barí. con el objetivo de garantizar un ambiente sano a todas las familias Barí. resguardo Catalaura. ",null,null,1796040000,null,null,null,1796040000,null,"AGENCIA DE RENOVACIÓN DEL TERRITORIO","Fase 3","No iniciado","proyecto liderado por ART  con recursos "]
["SALUD Y PROTECCIÓN SOCIAL","MODELO PROPIO SALUD  INDÍGENA  PUEBLO MOTILÓN-BARÍ",null,null,600000000,null,null,null,600000000,null,"MINISTERIO DE SALUD Y PROTECCIÓN SOCIAL"]
["SALUD Y PROTECCIÓN SOCIAL","Estudios. Diseños. Construcción Y Dotación Para El Puesto De Salud Carikachaboquira",null,null,12000000000,null,null,null,12000000000,null,"MINISTERIO DE SALUD Y PROTECCIÓN SOCIAL","Fase 3","No iniciado","Recursos asignados al EMPRESA SOCIAL DEL ESTADO HOSPITAL EMIRO QUINTERO CAÑIZARES , mediante resolución 2733 del 2025 por el Minsterio de Salud - Valor $3,700 millones"]
["AGRICULTURA Y DESARROLLO RURAL","Implementación del programa de formalización de tierras y fomento al desarrollo rural para comunidades indígenas a nivel nacional. ",null,null,15000000000,null,null,null,15000000000,null,"AGENCIA NACIONAL DE TIERRAS","Fase 3","En ejecución","Proyecto Miisonal de la ANT \nRevisar con ANT-MADR- avance "]
["Total",{"$f":"+COUNTA(B48:D60)","v":13},null,null,{"$f":"SUM(E48:F60)","v":133386016610},null,{"$f":"SUM(G48:H60)","v":4111386997},null,{"$f":"SUM(I48:J60)","v":137497403607}]
["*Se entiende por entidad Responsable la encargada de la fuente de financiación. "]
[]
["Eje estratégico: Eje inicial - derecho humano a la\nalimentación y soberanía alimentaria"]
["Sector","Nombre de la Iniciativa",null,null,"Aporte Nación",null,"Aporte Territorio",null,"Inversión Total",null,"Entidad Responsable*",null,null,"Observaciones"]
["EDUCACIÓN NACIONAL ","FORTALECIMIENTO  DEL PROGRAMA DE ALIMENTACIÓN ESCOLAR OPERADO POR LAS JUNTAS DE ACCIÓN COMUNAL",null,null,24254342000,null,null,null,{"$f":"+E66+G66","v":24254342000},null,"UNIDAD ADMINISTRATIVA DE ALIMENTACIÓN ESCOLAR"]
["IGUALDAD Y EQUIDAD","CONTRIBUCIÓN CON ACCIONES DE PROMOCIÓN Y PREVENCIÓN EN EL COMPONENTE DE ALIMENTACIÓN Y NUTRICIÓN EN LA REGIÓN DEL CATATUMBO",null,null,20000000000,null,null,null,{"$f":"+E67+G67","v":20000000000},null,"ICBF"]
["INCLUSIÓN SOCIAL Y RECONCILIACIÓN","Fortalecimiento  de Capacidades para el Desarrollo de la Infraestructura  Social y Hábitat para la PAZ total  a nivel Nacional . - Puntos de Abastecimiento Solidario",null,null,10400175621,null,null,null,10400175621,null,"DEPARTAMENTO PARA LA PROSPERIDAD SOCIAL"]
["INCLUSIÓN SOCIAL Y RECONCILIACIÓN","Implementación de la estrategia \"Hambre Cero para apoyar la accesibilidad a los alimentos  de la población  en situación de pobreza. extrema pobreza y vulnerabilidad -FIP-NACIONAL.",null,null,6928000000,null,null,null,{"$f":"+E69+G69","v":6928000000},null,"DEPARTAMENTO PARA LA PROSPERIDAD SOCIAL"]
["IGUALDAD Y EQUIDAD","Hogares con provisión directa de alimentos en el marco del Programa Hambre Cero ",null,null,4783760305,null,null,null,{"$f":"+E70+G70","v":4783760305},null,"MINISTERIO DE IGUALDAD Y EQUIDAD"]
["Total",{"$f":"+COUNTA(B66:D70)","v":5},null,null,{"$f":"SUM(E66:F70)","v":66366277926},null,{"$f":"SUM(G66:H70)","v":0},null,{"$f":"SUM(I66:J70)","v":66366277926}]
["*Se entiende por entidad Responsable la encargada de la fuente de financiación. "]
[]
["Eje estratégico: Eje 1. Ordenamiento territorial participativo y popular "]
["Sector","Nombre de la Iniciativa",null,null,"Aporte Nación",null,"Aporte Territorio",null,"Inversión Total",null,"Entidad Responsable*",null,null,"Observaciones"]
["VIVIENDA. CIUDAD Y TERRITORIO","Optimización de alcantarillado del corregimiento La Gabarra. Municipio de Tibú",null,null,15724904254,null,null,null,{"$f":"+E76+G76","v":15724904254},null,"MINISTERIO DE VIVIENDA. CIUDAD Y TERRITORIO; MINISTERIO DE IGUALDAD Y EQUIDAD"]
["AMBIENTE Y DESARROLLO SOSTENIBLE","Bio Catatumbo: Por la conservación. la construcción colectiva y sostenible del territorio",null,null,56139249578,null,null,null,{"$f":"+E77+G77","v":56139249578},null,"MINISTERIO DE AMBIENTE Y DESARROLLO SOSTENIBLE "]
["AMBIENTE Y DESARROLLO SOSTENIBLE","Implementación de Zonificaciones Ambientales Participativas para la gobernanza territorial y el fortalecimiento de los derechos territoriales de las comunidades campesinas de 11 municipios del Catatumbo",null,null,35281219684,null,null,null,35281219684,null,"MINISTERIO DE AMBIENTE Y DESARROLLO SOSTENIBLE "]
["VIVIENDA. CIUDAD Y TERRITORIO","Implementación de 350 conexiones intradomiciliarias para el municipio de ocaña norte santander",null,null,3248700000,null,null,null,{"$f":"+E79+G79","v":3248700000},null,"MINISTERIO DE VIVIENDA. CIUDAD Y TERRITORIO; MINISTERIO DE IGUALDAD Y EQUIDAD"]
["VIVIENDA. CIUDAD Y TERRITORIO","Mejoramiento de vivienda urbanos y rurales (4.063 urbanos y 2.188 rurales)",null,null,146250000000,null,null,null,{"$f":"+E80+G80","v":146250000000},null,"MINISTERIO DE VIVIENDA. CIUDAD Y TERRITORIO; MINISTERIO DE IGUALDAD Y EQUIDAD"]
["AGRICULTURA Y DESARROLLO RURAL","Incremento de la formalización de predios privados rurales y procesos agrarios a nivel nacional",null,null,15000000000,null,null,null,{"$f":"+E81+G81","v":15000000000},null,"AGENCIA NACIONAL DE TIERRAS"]
["AGRICULTURA Y DESARROLLO RURAL","Fortalecimiento del programa de reforma agraria y reforma rural integral nacional. ",null,null,35000000000,null,null,null,{"$f":"+E82+G82","v":35000000000},null,"AGENCIA NACIONAL DE TIERRAS"]
["Total",{"$f":"+COUNTA(B76:D82)","v":7},null,null,{"$f":"SUM(E76:F82)","v":306644073516},null,{"$f":"SUM(G76:H82)","v":0},null,{"$f":"SUM(I76:J82)","v":306644073516}]
["*Se entiende por entidad Responsable la encargada de la fuente de financiación. "]
[]
["Eje estratégico: Eje 2. Modelo regional de Salud"]
["Sector","Nombre de la Iniciativa",null,null,"Aporte Nación",null,"Aporte Territorio",null,"Inversión Total",null,"Entidad Responsable*",null,null,"Observaciones"]
["SALUD Y PROTECCIÓN SOCIAL","Ampliar la ESE Emiro Quintero Cañizares que se encuentra en nivel II para llegar a ser una ESE de tercer nivel",null,null,90000000000,null,null,null,{"$f":"+G88+E88","v":90000000000},null,"MINISTERIO DE SALUD Y PROTECCIÓN SOCIAL","Fase 3","No iniciado","Recursos asignados a mediante resolución 2733 del 2025 por el Minsterio de Salud - entidad Ejecutora ESE Emiro Quintero Cañizares"]
["SALUD Y PROTECCIÓN SOCIAL","ESTUDIOS. DISEÑOS. CONSTRUCCIÓN y DOTACIÓN. PARA LA NUEVA IPS CORREGIMIENTO DE SAN PABLO. MUNICIPIO DE TEORAMA",null,null,13110900000,null,null,null,{"$f":"+G89+E89","v":13110900000},null,"MINISTERIO DE SALUD Y PROTECCIÓN SOCIAL","Fase 3","No iniciado","Recursos asignados a mediante resolución 2733 del 2025 por el Minsterio de Salud - entidad Ejecutora ESE Hospital Regional Norteoccidental"]
["SALUD Y PROTECCIÓN SOCIAL","ESTUDIOS. DISEÑOS. CONSTRUCCIÓN Y DOTACIÓN. PARA EL CENTRO DE SALUD CAMPO DOS. MUNICIPIO DE TIBÚ",null,null,12632400000,null,null,null,12632400000,null,"MINISTERIO DE SALUD Y PROTECCIÓN SOCIAL","Fase 3","No iniciado","Recursos asignados a mediante resolución 2733 del 2025 por el Minsterio de Salud - entidad Ejecutora ESE Hospital Regional Nortel"]
["SALUD Y PROTECCIÓN SOCIAL","ESTUDIOS. DISEÑOS. CONSTRUCCIÓN Y DOTACIÓN. PARA LA  IPS ABREGO DE LA ESE HOSPITAL REGIONAL NOROCCIDENTAL",null,null,22402500000,null,null,null,22402500000,null,"MINISTERIO DE SALUD Y PROTECCIÓN SOCIAL","Fase 3","No iniciado","Recursos asignados a mediante resolución 2733 del 2025 por el Minsterio de Salud - entidad Ejecutora ESE Hosptal Regional  Noroccidental "]
["SALUD Y PROTECCIÓN SOCIAL","ESTRATÉGICAS PARA LA PROMOCIÓN DE LA SALUD MENTAL. LA CONVIVENCIA SOCIAL. LA PREVENCIÓN Y GESTIÓN DE RIESGOS Y DAÑOS ASOCIADOS AL CONSUMO DE SUSTANCIAS PSICOACTIVAS DE LA POBLACIÓN - CAMAD",null,null,6981741584,null,null,null,6981741584,null,"MINISTERIO DE SALUD Y PROTECCIÓN SOCIAL"]
["SALUD Y PROTECCIÓN SOCIAL","Construcción Del Centro De Adulto Mayor El Tarra. Norte De Santander",null,null,6198985348,null,null,null,6198985348,null,"FONDO DE PROGRAMAS ESPECIALES PARA LA PAZ "]
["SALUD Y PROTECCIÓN SOCIAL","ESTUDIOS. DISEÑOS. CONTRUCCION Y DOTACIÓN PARA CENTRO DE SALUD LAS MERCEDES. MUNICIPIO DE SARDINATA",null,null,8000000000,null,null,null,8000000000,null,"MINISTERIO DE SALUD Y PROTECCIÓN SOCIAL","Fase 3","No iniciado","Recursos asignados a mediante resolución 2733 del 2025 por el Minsterio de Salud - entidad Ejecutora ESE Hospital Regional Norte"]
["SALUD Y PROTECCIÓN SOCIAL","COFINANCIACIÓN DE LAS ATENCIONES DE URGENCIAS Y PARTOS PRESTADOS A LA POBLACIÓN MIGRANTE NO ASEGURADA O EN CONDICIÓN IRREGULAR",null,null,2087259639,null,null,null,{"$f":"+G95+E95","v":2087259639},null,"MINISTERIO DE SALUD Y PROTECCIÓN SOCIAL"]
["SALUD Y PROTECCIÓN SOCIAL","ESTUDIOS. DISEÑOS. CONSTRUCCIÓN Y DOTACIÓN PARA LA AMPLIACIÓN Y REMODELACIÓN DE LA IPS DEL CASCO URBANO DEL MUNICIPIO DE EL CARMEN NORTE DE SANTANDER",null,null,21000000000,null,null,null,{"$f":"+G96+E96","v":21000000000},null,"MINISTERIO DE SALUD Y PROTECCIÓN SOCIAL"]
["SALUD Y PROTECCIÓN SOCIAL","DOTACIÓN DE EQUIPOS BIOMÉDICOS PARA EL FUNCIONAMIENTO DE LA IPS DEL CORREGIMIENTO DE GUAMALITO.MUNICIPIO DE EL CARMEN",null,null,1200000000,null,null,null,1200000000,null,"MINISTERIO DE SALUD Y PROTECCIÓN SOCIAL"]
["SALUD Y PROTECCIÓN SOCIAL","ASIGNACIÓN DE RECURSOS PARA LA CERTIFICACION DE DISCAPACIDAD Y EL REGISTRO PARA LA LOCALIZACIÓN Y CARACTERIZACIÓN DE PERSONAS CON DISCAPACIDAD - RLCPD",null,null,0,null,104701260,null,104701260,null,"MINISTERIO DE SALUD Y PROTECCIÓN SOCIAL / Gobernación Norte de Santander"]
["SALUD Y PROTECCIÓN SOCIAL","PROGRAMA DE ATENCIÓN PSICOSOCIAL Y SALUD INTEGRAL A VÍCTIMAS - PAPSIVI",null,null,8204545010,null,null,null,{"$f":"+G99+E99","v":8204545010},null,"MINISTERIO DE SALUD Y PROTECCIÓN SOCIAL"]
["SALUD Y PROTECCIÓN SOCIAL","EQUIPOS BÁSICOS DE SALUD. MUNICIPIOS REGION DE CATATUMBO",null,null,46786651578,null,null,null,{"$f":"+G100+E100","v":46786651578},null,"MINISTERIO DE SALUD Y PROTECCIÓN SOCIAL"]
["SALUD Y PROTECCIÓN SOCIAL","Instalación del Hospital móvil en El Tarra",null,null,16608149894,null,null,null,16608149894,null,"MINISTERIO DE SALUD Y PROTECCIÓN SOCIAL"]
["SALUD Y PROTECCIÓN SOCIAL","ESTUDIOS. DISEÑOS. CONSTRUCCIÓN Y DOTACIÓN PARA EL CENTRO DE SALUD DE EL TARRA",null,null,22915800000,null,null,null,22915800000,null,"MINISTERIO DE SALUD Y PROTECCIÓN SOCIAL","Fase 3","No iniciado","Recursos asignados a mediante resolución 2733 del 2025 por el Minsterio de Salud - entidad Ejecutora ESE Hospital Regional Norte"]
["SALUD Y PROTECCIÓN SOCIAL","ESTUDIOS. DISEÑOS. CONSTRUCCIÓN Y DOTACIÓN. PARA EL NUEVO HOSPITAL DE CONVENCIÓN",null,null,21602100000,null,null,null,21602100000,null,"MINISTERIO DE SALUD Y PROTECCIÓN SOCIAL","Fase 3","No iniciado","Recursos asignados a mediante resolución 2733 del 2025 por el Minsterio de Salud - entidad Ejecutora ESE Hos´ptal Regional  Noroccidental "]
["SALUD Y PROTECCIÓN SOCIAL","EQUIPOS DE ESPECIALISTAS",null,null,1768413600,null,null,null,1768413600,null,"MINISTERIO DE SALUD Y PROTECCIÓN SOCIAL"]
["SALUD Y PROTECCIÓN SOCIAL","ADECUACION MENOR. PUESTO DE SALUD DE LA VEGA DE SAN ANTONIO Y DOTACIÓN",null,null,561437991,null,null,null,{"$f":"+G105+E105","v":561437991},null,"MINISTERIO DE SALUD Y PROTECCIÓN SOCIAL"]
["SALUD Y PROTECCIÓN SOCIAL","ADECUACION MENOR. PUESTO DE SALUD DE OTARÉ. MUNICIPIO DE OCAÑA Y DOTACIÓN",null,null,579773354,null,null,null,{"$f":"+G106+E106","v":579773354},null,"MINISTERIO DE SALUD Y PROTECCIÓN SOCIAL","Fase 3","En ejecución","Recursos asignados a mediante resolución 562  del 2025 por el Minsterio de Salud - entidad Ejecutora ESE Hospital Emiro Quintero Canizares"]
["SALUD Y PROTECCIÓN SOCIAL","ADECUACION MENOR. PUESTO DE SALUD DE PETROLEA. MUNICIPIO DE TIBÚ Y DOTACIÓN",null,null,485413267,null,null,null,485413267,null,"MINISTERIO DE SALUD Y PROTECCIÓN SOCIAL","Fase 3","En ejecución","Recursos asignados a mediante resolución 562  del 2025 por el Minsterio de Salud - entidad Ejecutora IMSALUD"]
["SALUD Y PROTECCIÓN SOCIAL","ADECUACION MENOR. PUESTO DE SALUD DE PUEBLO NUEVO. MUNICIPIO DE OCAÑA Y DOTACIÓN",null,null,411193552,null,null,null,411193552,null,"MINISTERIO DE SALUD Y PROTECCIÓN SOCIAL","Fase 3","En ejecución","Recursos asignados a mediante resolución 562  del 2025 por el Minsterio de Salud - entidad Ejecutora ESE Hospital Emiro Quintero Canizares"]
["SALUD Y PROTECCIÓN SOCIAL","ADECUACION MENOR. PUESTO DE SALUD DE ASPASICA Y DOTACIÓN",null,null,401454382,null,null,null,{"$f":"+G109+E109","v":401454382},null,"MINISTERIO DE SALUD Y PROTECCIÓN SOCIAL"]
["SALUD Y PROTECCIÓN SOCIAL","ADECUACION MENOR. PUESTO DE SALUD DE CAPITAN LARGO. MUNICIPIO DE ABREGO Y DOTACIÓN",null,null,411137156,null,null,null,{"$f":"+G110+E110","v":411137156},null,"MINISTERIO DE SALUD Y PROTECCIÓN SOCIAL","Fase 3","En ejecución","Recursos asignados a mediante resolución 941  del 2025 por el Minsterio de Salud - entidad Ejecutora ESE Hospital Regionasl Noroccidente - con giro"]
["SALUD Y PROTECCIÓN SOCIAL","ADECUACION MENOR. PUESTO DE SALUD DE HIGUERÓN. MUNICIPIO DE ABREGO Y DOTACIÓN",null,null,241293439,null,null,null,241293439,null,"MINISTERIO DE SALUD Y PROTECCIÓN SOCIAL","Fase 3","En ejecución","Recursos asignados a mediante resolución 941  del 2025 por el Minsterio de Salud - entidad Ejecutora ESE Hospital Regionasl Noroccidente - con giro"]
["SALUD Y PROTECCIÓN SOCIAL","1 EQUIPO SALUD MENTAL",null,null,420000000,null,null,null,420000000,null,"MINISTERIO DE SALUD Y PROTECCIÓN SOCIAL"]
["SALUD Y PROTECCIÓN SOCIAL","5 Vehículos De Transporte Asistencial Básico Y 1 Vehículo De Transporte Extramural (Ábrego;González)",null,null,4535278524,null,null,null,4535278524,null,"MINISTERIO DE SALUD Y PROTECCIÓN SOCIAL","Fase 3","No iniciado","Recursos asignados  por el Minsterio de Salud mediante resolucion 210 del 10 de febrero del 2025 para la compra de 4 vehiculos por valor de $383 millones cada uno. Municipios Abrego, convenciónm Teorama, El Carmen - Verificar estado con Min Salud "]
["SALUD Y PROTECCIÓN SOCIAL","Estudios. Diseños. Construcción Y Dotación. Para La Ampliacion Y Reordenamiento Para La E.S.E. Norte San Jose De Tibu",null,null,13050000000,null,null,null,13050000000,null,"MINISTERIO DE SALUD Y PROTECCIÓN SOCIAL","Fase 3","No iniciado","Recursos asignados a mediante resolución 2733 del 2025 por el Minsterio de Salud - entidad Ejecutora ESE Hospital Regional Nortel"]
["SALUD Y PROTECCIÓN SOCIAL","Adquisición De Ambulancias (Tab) De Transporte De Pacientes A Ips De La Red Publica Con Iniciativas En Municipios Pdet Ante Urgencias Emergencias Y Desastres Beneficiando La Poblacion De La Region Del Catatumbo Del Departamento   Norte De Santander",null,null,4530432000,null,null,null,{"$f":"+G115+E115","v":4530432000},null,"AGENCIA DE RENOVACIÓN DEL TERRITORIO"]
["SALUD Y PROTECCIÓN SOCIAL","Estudios. Diseños. Construcción Y Dotación. Para El Centro De Salud De El Paso Municipio del Tarra",null,null,7000000000,null,null,null,{"$f":"+G116+E116","v":7000000000},null,"MINISTERIO DE SALUD Y PROTECCIÓN SOCIAL","Fase 3","No iniciado","Recursos asignados a mediante resolución 2733 del 2025 por el Minsterio de Salud - entidad Ejecutora ESE Hospital Regional Norte"]
["Total",{"$f":"+COUNTA(B88:D116)","v":29},null,null,{"$f":"SUM(E88:F116)","v":334126860318},null,{"$f":"SUM(G88:H116)","v":104701260},null,{"$f":"SUM(I88:J116)","v":334231561578}]
["*Se entiende por entidad Responsable la encargada de la fuente de financiación. "]
[]
["Eje estratégico: Eje 3. Red educativa regional y universidad del Catatumbo"]
["Sector","Nombre de la Iniciativa",null,null,"Aporte Nación",null,"Aporte Territorio",null,"Inversión Total",null,"Entidad Responsable*",null,null,"Observaciones"]
["EDUCACIÓN NACIONAL ","Mejorar las condiciones para el acceso a la Educación Preescolar. Básica y Media del Catatumbo por medio del mejoramiento de 66 sedes educativas en la región del Catatumbo",null,null,199345442083,null,null,null,{"$f":"+E122+G122","v":199345442083},null,"MINISTERIO DE EDUCACIÓN NACIONAL"]
["EDUCACIÓN NACIONAL ","Construcción de la Universidad Nacional del Catatumbo (Fase I) en el Munciipio del Tarra",null,null,39073382061,null,null,null,{"$f":"+E123+G123","v":39073382061},null,"FONDO DE PROGRAMAS ESPECIALES PARA LA PAZ -AGENCIA DE RENOVACIÓN DEL TERRITORIO; MINISTERIO DE EDUCACIÓN NACIONAL ","Fase 3","En ejecución","Convenio 735-2025 consorcio FCP- FONDO pAZ \n\nObra Contrato 1322 del 2023 - Fecha entrega 30 de mayo  2025\nAvance a enero 2025 - 50%"]
["EDUCACIÓN NACIONAL ","Construcción de la Universidad Nacional del Catatumbo segunda etapa y dotación de la infraestructura de educación superior en la Subregión del Catatumbo",null,null,37000000000,null,null,null,{"$f":"+E124+G124","v":37000000000},null,"MINISTERIO DE EDUCACIÓN NACIONAL","Fase 3","No iniciado","Proceso en estructuración recursos Min Educación"]
["TECNOLOGÍAS DE LA INFORMACIÓN Y LAS COMUNICACIONES","Zonas comunitarias para la paz (soluciones de internet comunitario Wifi que carecen de conectividad. en municipios cobijados por los PDET)",null,null,24615530489,null,null,null,{"$f":"+E125+G125","v":24615530489},null,"MINISTERIO DE TECNOLOGÍAS DE LA INFORMACIÓN Y COMUNICACIONES"]
["EDUCACIÓN NACIONAL ","Construcción Centro De Desarrollo Integral (CDI) El Tarra. Norte De Santander",null,null,5799183007,null,null,null,{"$f":"+E126+G126","v":5799183007},null,"FONDO DE PROGRAMAS ESPECIALES PARA LA PAZ "]
["Total",{"$f":"+COUNTA(A122:A126)","v":5},null,null,{"$f":"SUM(E122:F126)","v":305833537640},null,{"$f":"SUM(G122:H126)","v":0},null,{"$f":"SUM(I122:J126)","v":305833537640}]
["*Se entiende por entidad Responsable la encargada de la fuente de financiación. "]
[]
["Eje estratégico: Eje 4. Transformación económica. agroindustrial y productiva para el desarrollo endógeno del Catatumbo"]
["Sector","Nombre de la Iniciativa",null,null,"Aporte Nación",null,"Aporte Territorio",null,"Inversión Total",null,"Entidad Responsable*",null,null,"Observaciones"]
["MINAS Y ENERGÍA","Implementación de comunidades energéticas en la región del Catatumbo - 61 comunidades energéticas (2024 - 2026) -",null,null,77216000000,null,null,null,{"$f":"+E132+G132","v":77216000000},null,"MINISTERIO DE MINAS Y ENERGÍA "]
["AMBIENTE Y DESARROLLO SOSTENIBLE","Fomento de Prácticas Productivas Sostenibles para la Restauración en la Cuenca del Catatumbo",null,null,34877914235,null,null,null,{"$f":"+E133+G133","v":34877914235},null,"MINISTERIO DE AMBIENTE Y DESARROLLO SOSTENIBLE "]
["PRESIDENCIA","Fortalecimiento    el    sector    cacaotero    en    los municipios  pdet  de  la  zona  de  catatumbo  en  el departamento de Norte de Santander",null,null,24977825339,null,null,null,24977825339,null,"AGENCIA DE RENOVACIÓN DEL TERRITORIO"]
["AGRICULTURA Y DESARROLLO RURAL","PIDAR PAZ - Fortalecimiento de las capacidades técnicas. Organizacionales y comerciales de los productores de cebolla de 8 municipios de la región del Catatumbo.",null,null,10840158795,null,9753978000,null,20594136795,null,"AGENCIA DE DESARROLLO RURAL / Territorio (Comunidades)","Fase 3","En ejecución","Avance 80% - Informacipon ADR consejo Direectivo Extraordinario No. 1"]
["AGRICULTURA Y DESARROLLO RURAL","PIDAR PAZ - Proyecto  productivos de fortalecimiento de la línea de café en los municipios de la subregión del Catatumbo.",null,null,13000000000,null,3250000000,null,16250000000,null,"AGENCIA DE DESARROLLO RURAL /  Territorio (Comunidades)","Fase 3","No iniciado ","Avamce; estructuración de asociaciones, realizado el consejo directivo en el cual se distribuye los recursos- Informacipon ADR consejo Direectivo Extraordinario No. 1 - Recursos Asignados"]
["AGRICULTURA Y DESARROLLO RURAL","PIDAR PAZ - Proyecto  productivos de fortalecimiento de la línea de cacao en los municipios de la subregión del Catatumbo.",null,null,13000000000,null,3250000000,null,16250000000,null,"AGENCIA DE DESARROLLO RURAL /  Territorio (Comunidades)","Fase 3","Terminado","Avance 100% - Informacipon ADR consejo Direectivo Extraordinario No. 1"]
["MINAS Y ENERGÍA","Construcción para la electrificación rural por medio de redes eléctricas en la zona rural del municipio de Abrego. Norte de Santander",null,null,11892523345,null,null,null,11892523345,null,"MINISTERIO DE MINAS Y ENERGÍA "]
["PRESIDENCIA","Fortalecimiento  de  capacidades técnicas productivas  y  comerciales   a   mujeres   rurales víctimas del conflicto armado en el municipio de El Carmen Norte de Santander",null,null,8942924565,null,null,null,8942924565,null,"AGENCIA DE RENOVACIÓN DEL TERRITORIO"]
["IGUALDAD Y EQUIDAD","Construcción del Centro Regional de Abastecimiento en el marco del programa Hambre Cero (agrologística)",null,null,8000000000,null,null,null,8000000000,null,"MINISTERIO DE IGUALDAD Y EQUIDAD"]
["INCLUSIÓN SOCIAL Y RECONCILIACIÓN","Implementación del programa generación de ingresos y oportunidades sostenibles para las personas. familias  y micronegocios de la economía popular. comunitaria y solidaria- Genios de la economía popular. ",null,null,5000000000,null,null,null,5000000000,null,"DEPARTAMENTO PARA LA PROSPERIDAD SOCIAL"]
["AGRICULTURA Y DESARROLLO RURAL","Construcción de sistema de riego comunitario para impactar 42 familias",null,null,1019971997,null,null,null,1019971997,null,"AGENCIA DE DESARROLLO RURAL"]
["AGRICULTURA Y DESARROLLO RURAL","PROMOVER EL FORTALECIMIENTO DE LAS CAPACIDADES COMERCIALES DE ORGANIZACIONES DE PEQUEÑOS Y MEDIANOS PRODUCTORES DE LA REGIÓN DEL CATATUMBO, CON MIRAS A LA INCURSIÓN EN LOS DIFERENTES MERCADOS",null,null,18497659272,null,null,null,18497659272,null,"AGENCIA DE DESARROLLO RURAL",null,null,"Revisar Programa de Canastas Familiares y Comercialización"]
["AMBIENTE Y DESARROLLO SOSTENIBLE","Disminuir la degradación de los ecosistemas de la Ecorregión Catatumbo:\n1. Servicio de restauración de ecosistemas - de áreas continentales\n2. Servicio de restauración multifuncional productiva\n3. Infraestructura funcional para la Bioeconomía construida y dotada ",null,null,72170900781,null,null,null,72170900781,null,"MINISTERIO DE AMBIENTE Y DESARROLLO SOSTENIBLE "]
["PRESIDENCIA","Programa de Sustitución de Cultivos de Uso Ilícito",null,null,325787775196,null,null,null,325787775196,null,"AGENCIA DE RENOVACIÓN DEL TERRITORIO - DIRECCIÓN DE SUSTITUCIÓN DE CULTIVOS DE USO ILICITO "]
["AGRICULTURA Y DESARROLLO RURAL","Sistemas agroforestales sostenibles.  resilientes y justos",null,null,12000000000,null,null,null,12000000000,null,"MINISTERIO DE AGRICULTURA Y DESARROLLO RURAL "]
["AGRICULTURA Y DESARROLLO RURAL","Apoyo asistencia técnica / Extensión agropecuaria",null,null,683860320,null,null,null,683860320,null,"AGENCIA DE DESARROLLO RURAL"]
["IGUALDAD Y EQUIDAD","Fomentar el arraigo territorial de la población del Catatumbo mediante la formalización de la tenencia de la tierra. a través del fortalecimiento de la Oficina Municipal de Tierras (OMT) de Teorama como instancia de articulación interinstitucional. orientada a consolidar la seguridad jurídica sobre la propiedad rural.",null,null,2620786151,null,null,null,2620786151,null,"MINISTERIO DE IGUALDAD Y EQUIDAD"]
["PRESIDENCIA","PIDAR PAZ - Aunar esfuerzos para la implementación de proyectos en la Subregión del Catatumbo. mediante la estructuración de estudios y diseños e implementación de Infraestructura Productiva como alternativa de reconversión hacia las economías lícitas (Plantas de Transformación)",null,null,73336856042,null,null,null,73336856042,null,"AGENCIA DE RENOVACIÓN DEL TERRITORIO - DIRECCIÓN DE SUSTITUCIÓN DE CULTIVOS DE USO ILICITO "]
["PRESIDENCIA","IMPLEMENTACIÓN DE HUERTAS FAMILIARES INTEGRALES PARA LA DIVERSIFICACIÓN DE LA PRODUCCIÓN DE ALIMENTOS BAJO UN MODELO AGROECOLÓGICO. DIRIGIDO A LAS MUJERES PRODUCTORAS DEL CORREGIMIENTO LA VICTORIA Y ZONA CENTRO EN EL MUNICIPIO DE SARDINATA. NORTE DE SANTANDER",null,null,1256000000,null,null,null,1256000000,null,"AGENCIA DE RENOVACIÓN DEL TERRITORIO "]
["PRESIDENCIA","FORTALECIMIENTO DE LA PRODUCCIÓN Y EL MANEJO POSTCOSECHA DEL CULTIVO DE FRIJOL EN EL MUNICIPIO DE EL CARMEN. DEPARTAMENTO DE NORTE DE SANTANDER",null,null,2150960692,null,null,null,2150960692,null,"AGENCIA DE RENOVACIÓN DEL TERRITORIO ","Fase 3","En ejecución","Recursos ART - Requiere informaxion de avance "]
["Total",{"$f":"+COUNTA(B132:D151)","v":20},null,null,{"$f":"SUM(E132:F151)","v":717272116730},null,{"$f":"SUM(G132:H151)","v":16253978000},null,{"$f":"SUM(I132:J151)","v":733526094730}]
["*Se entiende por entidad Responsable la encargada de la fuente de financiación. "]
[]
["Eje estratégico: Eje 5. Conectividad. infraestructura vial y transporte intermodal – caminos comunitarios para la paz"]
["Sector","Nombre de la Iniciativa",null,null,"Aporte Nación",null,"Aporte Territorio",null,"Inversión Total",null,"Entidad Responsable*",null,null,"Observaciones"]
["TRANSPORTE","Transversal del Catatumbo (Tibú.- Convención 123 km)",null,null,{"$f":"+(945413000000+20299000000)","v":965712000000},null,null,null,{"$f":"+E157+G157","v":965712000000},null,"INSTITUTO NACIONAL DE VÍAS / DNP",null,null,"El DNP aportará $20.299 millones a través del FRPT y corresponde al tramo Tibú - El Tarra (4 km). \n\nINVIAS  cuenta con recursos por valor de $305.727 millones que estan en ejecución, gatantizados con VF hata el 2030. \n\nINVIAS gestiona $639.000  a traves de CONPES.."]
["TRANSPORTE","Troncal del Catatumbo (Astilleros - El Tablazo - Santa Rosa - Petrolea - Campo Dos - Tibú - La Gabarra)",null,null,{"$f":"+(84130000000)","v":84130000000},null,60000000000,null,{"$f":"+E158+G158","v":144130000000},null,"INVIAS / DNP / Gobernación Norte de Santander",null,null,"Se encuentran financiados 21 km aproximadamante con recursos SGR VF y recursos propios del departamento por $60.000 millones. \n\nINVIAS asignó recursos por $84.130 millones al departamento mediante convenio el cual se encuentra en ejecución. Se debe verificar todos los recursos asignados por el departamento en el tramo Tibú - La Florida por otras fuentes de finanicación (OCAD PAZ y crédito departamental). \n\n"]
["TRANSPORTE","Programa Caminos Comunitarios de la Paz Total (CCPT) en la región del Catatumbo",null,null,78319000000,null,null,null,{"$f":"+E159+G159","v":78319000000},null,"INSTITUTO NACIONAL DE VÍAS",null,null,"Se cuenta con 1 billón para todo el país en 2026. Se estima inicialmente entre 60.000 y 70.000 millones para la vigencia 2026."]
["TRANSPORTE","Corredor Convención - La Mata",null,null,250048537466,null,null,null,250048537466,null,"INSTITUTO NACIONAL DE VÍAS",null,null,"El INVIAS tramitará los recursos a través de un CONPES"]
["TRANSPORTE","Mejoramiento de la infraestructura aeroportuaria de Tibú",null,null,81621000000,null,null,null,81621000000,null,"AERONÁUTICA CIVIL"]
["PRESIDENCIA","Construcción de pavimento rígido en la carrera 8 entre calles 03 y 04s y la calle 04s intercepción con carrera 8 y carrera 11. del barrio Villa Esperanza. municipio El Tarra. departamento Norte de Santander El Tarra",null,null,2692025282,null,null,null,2692025282,null,"AGENCIA DE RENOVACIÓN DEL TERRITORIO","Fase 3","No iniciado ","Proyecto financiado por obras por impuestos VALOR $4,000 MILLONES"]
["PRESIDENCIA","Mejoramiento de la vía principal que comunica Río de Oro on El Carmen departamento de Norte de Santander",null,null,23269587832,null,null,null,23269587832,null,"AGENCIA DE RENOVACIÓN DEL TERRITORIO","Fase 3","No iniciado ","Proyecto financiado por obras por impuestos"]
["PRESIDENCIA","Mejoramiento de la via terciaria entre Pinzon Castilla  casco  urbano  del  municipio  de Hacarí corregimiento San Jose del Tarra en el   marco de   la   implementacion   de   los acuerdos de paz en el municipio de Hacarí - Norte de Santander",null,null,7636572749,null,null,null,7636572749,null,"AGENCIA DE RENOVACIÓN DEL TERRITORIO","Fase 3","No iniciado ","Proyecto financiado por obras por impuestos"]
["PRESIDENCIA","Mejoramiento en la vía terciaria a la vereda caño victoria. municipio de Tibú. departamento de Norte de Santander",null,null,6089859599,null,null,null,6089859599,null,"AGENCIA DE RENOVACIÓN DEL TERRITORIO","Fase 3","No iniciado ","Proyecto financiado por obras por impuestos"]
["TECNOLOGÍAS DE LA INFORMACIÓN Y LAS COMUNICACIONES","IMPLEMENTACIÓN SOLUCIONES DE ACCESO COMUNITARIO A LAS TECNOLOGÍAS DE LA INFORMACIÓN Y LAS COMUNICACIONES  NACIONAL (CENTROS DIGITALES)",null,null,44089391459,null,null,null,44089391459,null,"MINISTERIO DE TECNOLOGÍAS DE LA INFORMACIÓN Y COMUNICACIONES"]
["TECNOLOGÍAS DE LA INFORMACIÓN Y LAS COMUNICACIONES","Comunidades de Conectividad en municipios priorizados de la región del Catatumbo",null,null,34563747014,null,null,null,34563747014,null,"MINISTERIO DE TECNOLOGÍAS DE LA INFORMACIÓN Y COMUNICACIONES"]
["Total",{"$f":"+COUNTA(B157:D167)","v":11},null,null,{"$f":"SUM(E157:F167)","v":1578171721401},null,{"$f":"SUM(G157:H167)","v":60000000000},null,{"$f":"SUM(I157:J167)","v":1638171721401}]
["*Se entiende por entidad Responsable la encargada de la fuente de financiación. "]
[]
["Eje estratégico: Eje transversal - Paz total. implementación del acuerdo y reparación integral"]
["Sector","Nombre de la Iniciativa",null,null,"Aporte Nación",null,"Aporte Territorio",null,"Inversión Total",null,"Entidad Responsable*",null,null,"Observaciones"]
["INCLUSIÓN SOCIAL Y RECONCILIACIÓN","Implementación de un esquema especial de acompañamiento dirigido a los hogares  víctimas de desplazamiento forzado  retornados o reubicados  en condiciones de vulnerabilidad. a nivel nacional-FIP NACIONAL.",null,null,42128771618,null,null,null,{"$f":"+E173+G173","v":42128771618},null,"Departamento de Prosperidad Social"]
["PRESIDENCIA","Impulso a la estrategia de consolidación de los ETCR",null,null,26212000000,null,null,null,{"$f":"+E174+G174","v":26212000000},null,"AGENCIA PARA LA REINCORPORACIÓN Y LA NORMALIZACIÓN"]
["PRESIDENCIA","Plan Regional de búsqueda de personas dadas por desaparecidas",null,null,1835670000,null,null,null,{"$f":"+E175+G175","v":1835670000},null,"UNIDAD DE BUSQUEDA DE PERSONAS DADAS POR DESAPARECIDAS"]
["IGUALDAD Y EQUIDAD","Implementación de Jóvenes en Paz  ",null,null,8849625696,null,null,null,{"$f":"+E176+G176","v":8849625696},null,"DEPARTAMENTO PARA LA PROSPERIDAD SOCIAL"]
["PRESIDENCIA","Construcción de centro multipropósito casa de la familia y la juventud en el casco urbano del municipio de el Tarra  Norte de Santander",null,null,2125606819,null,null,null,{"$f":"+E177+G177","v":2125606819},null,"MINISTERIO DE IGUALDAD Y EQUIDAD"]
["Total",{"$f":"+COUNTA(B173:D177)","v":5},null,null,{"$f":"SUM(E173:F177)","v":81151674133},null,{"$f":"SUM(G173:H177)","v":0},null,{"$f":"SUM(I173:J177)","v":81151674133}]
["*Se entiende por entidad Responsable la encargada de la fuente de financiación. "]
[]
["     5.  VISION DEL DESARROLLO REGIONAL                     "]
["El Plan Estratégico de Inversiones del Pacto Catatumbo constituye la hoja de ruta que orienta la consolidación de una visión compartida de desarrollo territorial, articulada con las prioridades regionales y  nacionales. En este marco, el componente 5 de Visión del Desarrollo Regional integra proyectos e iniciativas estratégicas identificadas en el proceso de construcción del pacto, y consolidado en el documento denominado  \"listado indicativo de proyectos priorizados\"  el cual se constituye en una base inicial de los proyectos a tener en cuenta en la elaboración del Plan Estratégico de Inversiones. \nA continuación, se presenta el listado de proyectos que fueron identificados en el marco de la construcción del Pacto y que no cuentan de manera parcial o total con aportante o fuente de financiación, lo cual requerirá la gestión institucional para identificar y concretar la fuente de financiación durante la vigencia del Pacto Territorial."]
[]
[]
[]
[]
["Eje o Línea Estratégica",null,"Nº Iniciativas",null,{"$f":"+H198","v":"Valor Total Indicativo"},null,null,{"$f":"+I198","v":"Aporte Parcial Indicativo*"},null,null,"Valor Indicativo por Gestionar Aportantes"]
["Capítulo Transversal Bari ",null,3,null,{"$f":"+H199+H200+H201","v":53357500000},null,null,{"$f":"+I199+I200+I201","v":0},null,null,{"$f":"+E188-H188","v":53357500000}]
["Eje 1. Ordenamiento territorial participativo y popular ",null,8,null,{"$f":"+H202+H203+H204+H205+H206+H207+H208+H209","v":271539408796.96002},null,null,{"$f":"+I202+I203+I204+I205+I206+I207+I208+I209","v":0},null,null,{"$f":"+E189-H189","v":271539408796.96002}]
["Eje 2. Modelo regional de Salud",null,1,null,{"$f":"+H210","v":12705000000},null,null,{"$f":"+I210","v":0},null,null,12705000000]
["Eje 3. Red educativa regional y universidad del Catatumbo",null,5,null,{"$f":"+H211+H212+H213+H214+H215","v":6921956543},null,null,{"$f":"+I211+I212+I213+I214+I215","v":0},null,null,6921956543]
["Eje 4. Transformación económica. agroindustrial y productiva para el desarrollo endógeno del Catatumbo",null,3,null,{"$f":"+H216+H217+H218","v":67929282116},null,null,{"$f":"+I216","v":0},null,null,67929282116]
["Eje 5. Conectividad. infraestructura vial y transporte intermodal – caminos comunitarios para la paz",null,9,null,{"$f":"+H219+H220+H221+H222+H223+H224+H225+H226+H227","v":2254931589619},null,null,{"$f":"+I219+I220+I221+I222+I223+I224+I225+I226+I227","v":0},null,null,2254931589619]
["Total  Proyectos con Necesidad de Gestión ",null,{"$f":"SUM(C188:D193)","v":29},null,{"$f":"SUM(E188:G193)","v":2667384737074.96},null,null,{"$f":"SUM(H188:J193)","v":0},null,null,{"$f":"SUM(K188:N193)","v":2667384737074.96}]
[]
[]
[" PROYECTOS PRIORIZADOS DE LA VISION REGIONAL DEL TERRITORIO "]
["Eje o Línea Estratégica","Sector","Nombre de la Iniciativa",null,null,null,null,"Valor Total Indicativo","Aporte Parcial Indicativo*","Valor Por Gestionar Fuente de Financiación","Observaciones"]
["Capítulo Transversal Bari ","VIVIENDA. CIUDAD Y TERRITORIO","Soluciones integrales de hábitat para las comunidades del resguardo Motilón Barí y del Resguardo Catalaura que tenga en cuenta sus sistemas de conocimiento propio",null,null,null,null,50000000000,null,{"$f":"+H199-I199","v":50000000000}]
["Capítulo Transversal Bari ","DEPORTE","AUNAR ESFUERZOS ENTRE EL MINISTERIO DEL DEPORTE Y 6 ORGANISMOS DE ACCIÓN COMUNAL UBICADOS EN TERRITORIOS INDÍGENAS DE LOS RESGUARDOS MOTILÓN BARÍ Y CATALAURA LA GABARRA. PARA LA RECUPERACIÓN Y/O MEJORAMIENTO DE ESCENARIOS RECREO DEPORTIVOS.",null,null,null,null,900000000,null,900000000]
["Capítulo Transversal Bari ","CULTURA","Construcción de 14 Bohíos Ancestrales del Pueblo Barí presente en los municipios de Convención. El Carmen. El Tarra. Tibú y Teorama.",null,null,null,null,2457500000,null,2457500000]
["Eje 1. Ordenamiento territorial participativo y popular ","INFORMACIÓN ESTADÍSTICA","Actualización del Catastro Multipropósito en los 10 municipios de la región del Catatumbo",null,null,null,null,52670524198,null,52670524198]
["Eje 1. Ordenamiento territorial participativo y popular ","AMBIENTE Y DESARROLLO SOSTENIBLE","Desarrollar acciones para el ordenamiento alrededor del agua en la ecorregión Catatumbo. en el Departamento Norte de Santander",null,null,null,null,56924495278,null,56924495278]
["Eje 1. Ordenamiento territorial participativo y popular ","AMBIENTE Y DESARROLLO SOSTENIBLE","Implementación de un Sistema de Monitoreo y Control de la Deforestación en la Región del Catatumbo en Norte de Santander",null,null,null,null,9010050000,null,9010050000]
["Eje 1. Ordenamiento territorial participativo y popular ","PRESIDENCIA","Construcción del sistema de alcantarillado emisario final municipio de Tibú - Incluye PTAR ",null,null,null,null,33773578840,null,33773578840]
["Eje 1. Ordenamiento territorial participativo y popular ","VIVIENDA. CIUDAD Y TERRITORIO","Construcción unidades sanitarias y sistema de tratamiento en zona rural dispersa en los municipios de El Carmen. Convención y Tibú en el departamento Norte de Santander",null,null,null,null,29407612682,null,29407612682]
["Eje 1. Ordenamiento territorial participativo y popular ","VIVIENDA. CIUDAD Y TERRITORIO","Construcción del Sistema de Acueducto Municipio de Tibú Fase II",null,null,null,null,7184320029,null,7184320029]
["Eje 1. Ordenamiento territorial participativo y popular ","VIVIENDA. CIUDAD Y TERRITORIO","Optimización de sistema de acueducto casco urbano municipio de La Playa. departamento Norte de Santander",null,null,null,null,6527699985,null,6527699985]
["Eje 1. Ordenamiento territorial participativo y popular ","PRESIDENCIA","Implementación de la estrategia de contratos de conservación natural como una solución ambiental y sostenible a familias de los municipios de convención El Carmen. el Tarra y Teorama departamento Norte de Santander",null,null,null,null,76041127784.960007,null,76041127784.960007]
["Eje 2. Modelo regional de Salud","SALUD Y PROTECCIÓN SOCIAL","FORTALECIMIENTO DE SERVICIOS A LAS E.S.E. DE LA REGIÓN DEL CATATUMBO.",null,null,null,null,12705000000,null,12705000000]
["Eje 3. Red educativa regional y universidad del Catatumbo","DEPORTE","AUNAR ESFUERZOS ENTRE EL MINISTERIO DEL DEPORTE CON 28  ORGANISMOS DE ACCIÓN COMUNAL UBICADOS EN LOS MUNICIPIOS DE LA SUBREGIÓN CATATUMBO. PARA LA RECUPERACIÓN Y/O MEJORAMIENTO DE ESCENARIOS RECREO DEPORTIVOS.",null,null,null,null,4200000000,null,4200000000]
["Eje 3. Red educativa regional y universidad del Catatumbo","DEPORTE","CONSTRUCCIÓN DE CANCHA MULTIFUNCIONAL EN EL CORREGIMIENTO DE AGUAS CLARAS. MUNICIPIO DE OCAÑA. NORTE DE SANTANDER",null,null,null,null,1565522539,null,1565522539]
["Eje 3. Red educativa regional y universidad del Catatumbo","DEPORTE","Jornada deportiva-escolar complementaria en la Subregión del Catatumbo. ",null,null,null,null,1074434004,null,1074434004]
["Eje 3. Red educativa regional y universidad del Catatumbo","DEPORTE","Programa Escuela de Talentos. Esta proyectada la implementación de una Escuela en  Ocaña. en la modalidad deportiva de Natación Carreras. ",null,null,null,null,41000000,null,41000000]
["Eje 3. Red educativa regional y universidad del Catatumbo","DEPORTE","Programa Escuela de Talentos. Esta proyectada la implementación de una Escuela en  Tibú. en la modalidad deportiva de Atletismo.",null,null,null,null,41000000,null,41000000]
["Eje 4. Transformación económica. agroindustrial y productiva para el desarrollo endógeno del Catatumbo","PRESIDENCIA","PNIS RECONVERSIÓN PRODUCTIVA",null,null,null,null,36212224804,null,36212224804]
["Eje 4. Transformación económica. agroindustrial y productiva para el desarrollo endógeno del Catatumbo","PRESIDENCIA","Formulación, estructuración e implementación de proyectos productivos para el desarrollo económico, así como el fortalecimiento de capacidades organizacionales en el marco del eje 4 del Pacto Catatumbo.",null,null,null,null,18717057312,null,{"$f":"+H217-I217","v":18717057312}]
["Eje 4. Transformación económica. agroindustrial y productiva para el desarrollo endógeno del Catatumbo","PRESIDENCIA","Formulación, estructuración e implementación de proyectos productivos para el desarrollo económico las líneas de palma, piña, tomate, procicultura, platano, del proyecto.",null,null,null,null,13000000000,null,{"$f":"+H218-I218","v":13000000000}]
["Eje 5. Conectividad. infraestructura vial y transporte intermodal – caminos comunitarios para la paz","TRANSPORTE","Mejoramientos de las vias Terciarias Estructuradas por los Municipios de Convención. Hacari. SanCalixto. Tibu. El Carmen. Teorama.",null,null,null,null,90930235265,null,90930235265]
["Eje 5. Conectividad. infraestructura vial y transporte intermodal – caminos comunitarios para la paz","TRANSPORTE","San Calixto - Teorama (K0+000-K5+000)",null,null,null,null,45763354354,null,45763354354]
["Eje 5. Conectividad. infraestructura vial y transporte intermodal – caminos comunitarios para la paz","TRANSPORTE","Variante El Zulia",null,null,null,null,30000000000,null,30000000000]
["Eje 5. Conectividad. infraestructura vial y transporte intermodal – caminos comunitarios para la paz","TRANSPORTE","Anillo Vial para la Paz (Hacarí - San Calixto - El Tarra)",null,null,null,null,650000000000,null,650000000000]
["Eje 5. Conectividad. infraestructura vial y transporte intermodal – caminos comunitarios para la paz","TRANSPORTE","La Gran Alianza \"Sardinata – Pacelli – Orú – Versalles – Puerto Las Palmas\"",null,null,null,null,546000000000,null,546000000000]
["Eje 5. Conectividad. infraestructura vial y transporte intermodal – caminos comunitarios para la paz","TRANSPORTE","Transversal del Catatumbo (Tibú.- El Tarra 100km)",null,null,null,null,80000000000,null,80000000000]
["Eje 5. Conectividad. infraestructura vial y transporte intermodal – caminos comunitarios para la paz","TRANSPORTE","Programa Caminos Comunitarios de la Paz Total (CCPT) en la región del Catatumbo",null,null,null,null,276238000000,null,276238000000]
["Eje 5. Conectividad. infraestructura vial y transporte intermodal – caminos comunitarios para la paz","TRANSPORTE","Corredor Convención - La Mata",null,null,null,null,156000000000,null,156000000000]
["Eje 5. Conectividad. infraestructura vial y transporte intermodal – caminos comunitarios para la paz","TRANSPORTE","Mejoramiento. mantenimiento y atención de sitios críticos de la ruta nacional Cúcuta - Ocaña",null,null,null,null,380000000000,null,380000000000]
["Total a gestionar",null,{"$f":"+COUNTA(C199:G227)","v":29},null,null,null,null,{"$f":"+SUM(H199:H227)","v":2667384737074.96},{"$f":"SUM(I193:I227)","v":0},{"$f":"SUM(J199:J227)","v":2667384737074.96}]
[]
[]
["        6.   APROBACIÓN DEL PLAN ESTRATÉGICO DE INVERSIONES.                                         "]
[]
["El Plan Estratégico de Inversiones se presenta ante el Consejo Directivo para su aprobación en la Sesión n.°1 del 26 de agosto de 2025. Es importante mencionar que el Plan Estratégico de Inversiones incluye valores indicativos que podrán modificarse o actualizarse de acuerdo con la dinámica de implementación de cada Pacto Territorial, los cuales también deben contar con la aprobación del Consejo Directivo."]
[]
[]
[]
[]
["        7.   VALIDACIÓN DEL PLAN ESTRATÉGICO DE INVERSIONES.                                           "]
[]
["En constancia de las decisiones tomadas por el Consejo Directivo. firman:"]
["Firma:    ",null,null,null,null,null,"Firma:"]
["Natalia Irene Molina Posso",null,null,null,null,null,"Sandra Yaneth Tibamosca Villamarín"]
["Directora General Departamento Departamento ",null,null,null,null,null,"Gerente Nacional de Pactos Territoriales"]
["Presidente del Consejo Directivo                   ",null,null,null,null,null,"Secretaría Técnica del Consejo Directivo"]

{"sheet":"VIVIENDA 5","index":3,"n_rows":9,"n_cols":30,"rows_kept":9,"cut":false,"hidden":true,"merged":[[1,0,2,0],[1,26,2,26],[1,17,2,17],[1,18,2,18],[1,19,2,19],[1,20,2,20],[1,21,2,21],[1,22,1,25],[1,10,1,16],[1,1,2,1],[1,2,2,2],[1,3,2,3],[1,4,2,4],[1,5,1,9]]}
[]
["      EJES O LÍNEAS ESTRATÉGICAS       ","Nombre de la Iniciativa","Entidad Responsable ","Etapa del Proyecto *","Fase del Proyecto *","Aporte Sector",null,null,null,null,"Aporte Territorio",null,null,null,null,null,null,"Otros recursos","Aportes Territorio / Otros","Inversión Total","Entidad Responsable ejecución proyecto","Observaciones / Acciones","Actividades a ejecutar",null,null,null,"Entidad Responsable de actividad"]
[null,null,null,null,null,2025,2026,2027,2028,"Total","Propios","SGR","Otros",2025,2026,2027,2028,null,null,null,null,null,"Trimestre 2 -2026","Trimestre 3 - 2026","Trimestre 4 -2026 ","Trimestre 1 -2027"]
["1.  Vivienda Digna y Agua Potable y Saneamiento Básico ",{"$f":"+'Formato PAS'!B31","v":"Conexiones- 872 conexiones intradomiciliarias para el municipio de Puerto Tejada "},{"$f":"+'Formato PAS'!L31","v":"Ministerio de Vivienda, Ciudad y Territorio"},"Inversión","Ejecución","N.A.","N.A.","N.A.","N.A.",{"$f":"SUM(F4:I4)","v":0},"N.A.","N.A.","N.A.","N.A.","N.A.","N.A.","N.A.","N.A.",{"$f":"SUM(N4:R4)","v":0},{"$f":"+J4+S4","v":0},"ENTerritorio S.A.","27/04/2026. $5.804.480.331. Ejecución. Proyecto viabilizado en el año 2023, con recursos PGN, por valor de $5.804.480.331, proyecto que es esta ejecutando en el marco del Contrato Interadministrativo de Gerencia de Proyectos No 1632 de 2023.\nTrimestre 3-2026: Entregar 160 conexiones intradomiciliarias.\nTrimestre 4-2026: Entregar 427 conexiones intradomiciliarias\n\n","N.A.","Entregar 160 conexiones intradomiciiarias","Entregar 427 conexiones intradomiciiarias","N.A.","ENTerritorio S.A.",null,null,"Trimestre 2 -2026\nTrimestre 3 – 2026\nTrimestre 4 -2026\nTrimestre 1 -2027"]
["1.  Vivienda Digna y Agua Potable y Saneamiento Básico ",{"$f":"+'Formato PAS'!B32","v":"Construcción unidades sanitarias con saneamiento básico para vivienda rural dispersa en el municipio de López de Micay "},{"$f":"+'Formato PAS'!L32","v":"Ministerio de Vivienda, Ciudad y Territorio"},"Inversión","Ejecución",0,0,0,0,{"$f":"SUM(F5:I5)","v":0},0,0,0,0,0,0,0,0,{"$f":"SUM(N5:R5)","v":0},{"$f":"+J5+S5","v":0},"LÓPEZ DE MICAY (Cauca)(Obra y Suministros,Interventoría de Obra y Suministros)","27/04/2026. $6.015.778.891. Ejecución. Proyecto con recursos de la Nación de 2024 $6.015.778.891\nTrimestre 2 -2026: está revisando y tramitando la solicitud de suspensión de los contratos derivados, ajustes en cantidades \nTrimestre 3 – 2026: prórroga contratación derivada\nTrimestre 4 -2026: prórroga al lconvenio de uso de recursos\nTrimestre 1 -2027: entrega 100%","De acuerdo con el seguimiento mensual, el ejecutor (Municipio de López de Micay) está revisando y tramitando la solicitud de suspensión de los contratos derivados de obra e interventoría debido a situaciones de orden público y  logísitica (la sequía del Río Naya ha generado dificultades para el transporte de materiales y personal a la zona de ejecución del proyecto). Adicionalmente, se ha manifestado la necesidad de una reformulación al proyecto atendiendo a los ajustes en cantidades de las unidades sanitarias.","Se estima Realizar prorroga a la contratación derivada ","se estima Realizar prorroga al convenio de uso de recursos","Se estima la terminación y entrega de las unidades sanitarias y el avance al 100% de la contratación derivada","Ejecutor y el MVCT como seguimiento al convenio"]
["1.  Vivienda Digna y Agua Potable y Saneamiento Básico ",{"$f":"+'Formato PAS'!B33","v":"Construcción Etapa II línea de conducción Río Palace y planta de tratamiento de agua potable Palace, municipio de Popayán "},{"$f":"+'Formato PAS'!L33","v":"Ministerio de Vivienda, Ciudad y Territorio"},"Inversión","Ejecución, Contratación",78679875084,0,0,0,{"$f":"SUM(F6:I6)","v":78679875084},0,12000000000,0,12000000000,0,0,0,0,{"$f":"SUM(N6:R6)","v":12000000000},{"$f":"+J6+S6","v":90679875084},"Sociedad Acueducto y Alcantarillado de Popayán SA ESP (AAPSA)","27/04/2026. $90.679 millones. Ejecución-Contratación. En proceso de contratación derivada","Actualmente el municipio se encuentra en la elaboración de los pliegos tipo para iniciar con la respectiva contratación derivada","Se estima la Firma del acta de inicio de la contratación derivada","Ejecución del proyecto","Ejecución del proyecto","Ejecutor y el MVCT como seguimiento al convenio"]
["1.  Vivienda Digna y Agua Potable y Saneamiento Básico ",{"$f":"+'Formato PAS'!B34","v":"Mejoramiento de 320 viviendas en El Tambo, López de Micay y Timbiquí "},{"$f":"+'Formato PAS'!L34","v":"Ministerio de Vivienda, Ciudad y Territorio"},"Inversión","Ejecución",1235598000,1106571960,null,null,{"$f":"SUM(F7:I7)","v":2342169960},0,0,0,0,0,0,0,0,{"$f":"SUM(N7:R7)","v":0},{"$f":"+J7+S7","v":2342169960},"MVCT-FONVIVIENDA","27/04/2026. $8.469.031.617. Ejecución.\n-El Tambo: 213 cupos en zona (90) urbana y (123) rural con una inversión de $5.187 millones de pesos.\n- Lopez de Micay:  71 cupos en zona urbana (4) y (67) rural con una inversión de $1.799 millones de pesos.\n- Timbiquí:  90 cupos, en zona  urbana (78) y (12) rural con una inversión de $1.483 millones de pesos.\n\n-Total de cupos asignados: 374 cupos (172 urbanos y 202 rurales)\n-Del total de cupos se han asignado 243 subsidios, de los cuales 211 ya estan terminados.\n-Se tiene en gestión 163 mejoramientos de vivienda.\n\nTrimestre 2 -2026: Alistamiento - convocatorias, acuerdos sociales\nTrimestre 3 – 2026: proyecto arquitectonico - convocatorias, acuerdos sociales\nTrimestre 4 -2026: ejecución - convocatorias, acuerdos sociales\nTrimestre 1 -2027: ejecución acuerdos sociales\n\nEl valor total de una inversión asciende a la suma de $8.469.031.617 MCTE, de los cuales se encuentran distibuidos en las vigencias así: \n2022-2023: $4.054.661.657 MCTE\n2024:$2.072.200.000 MCTE\n2025: $1.235.598.000 MCTE\n2026: $1.106.571.960 MCTE","\nconvocatorias: \nProyecto Arquitectónico y alistamiento de los cupos faltantes\nEl Tambo: 178 cupos\nLópez de Micay: 90 cupos\nTimbiquí: 70 cupos \n\nAcuerdos sociales:\nAlistamiento:\nEl Tambo: 9 en  (ANUC)\nLópez de Micay: 19  (NARP)\nTimbiquí: 12 (NARP)\n","\nConvocatorias:\nEjecución - Proyecto arquitectonico\nEl Tambo: 178 \nLópez de Micay: 90 \nTimbiquí: 70 \n\nAcuerdos sociales: \nProyecto arquitectonico\nEl Tambo: 9 (ANUC)\nLópez de Micay: 19 en  (NARP)\nTimbiquí: 12 en (NARP)","\nConvocatorias:\nEjecución\nEl Tambo: 178\nLópez de Micay: 90 \nTimbiquí: 70\n\nAcuerdos sociales:\n Ejecución\nEl Tambo: 9 en (ANUC)\nLópez de Micay: 19 en (NARP)\nTimbiquí: 12 en (NARP)","Acuerdos sociales: \nEjecución\nEl Tambo: 9 en (ANUC)\nLópez de Micay: 19 en  (NARP)\nTimbiquí: 12 en (NARP)","MVCT - DIVIS"]
["1.  Vivienda Digna y Agua Potable y Saneamiento Básico ",{"$f":"+'Formato PAS'!B35","v":"Mejoramiento de vivienda urbanos y rurales (2.228 urbanos y 2.101 rurales) para el Departamento del Cauca – varios municipios. "},"Ministerio de Vivienda, Ciudad y Territorio /Municipios Cauca","Inversión","Ejecución",11513575080,16255749495,null,null,{"$f":"SUM(F8:I8)","v":27769324575},0,0,0,0,0,0,0,null,{"$f":"SUM(N8:R8)","v":0},27769324575,"MVCT-FONVIVIENDA","27/04/2026. $112.609.694.200. Ejecución.\nSe tienen financiados 4.906 cupos de mejoramientos de los cuales (2.361 son urbanos y  2.545 rurales)  y cuya inversión es de $112.610 millones\nSe tienen asignados 2.075 (urbanos 699 y 1.376 rurales) subsidios de los cuales 1.262 ( 361 urbanos y  901 rurales) se encuentran terminados.\nTrimestre 2 -2026: Alistamiento - convocatorias, acuerdos sociales \nTrimestre 3 – 2026: Proyecto arquitectonico - convocatorias502, acuerdos sociales \nTrimestre 4 -2026: ejecición convocatorias, acuerdos sociales\nTrimestre 1 -2027: ejecición acuerdos sociales\n\nEl valor total de una inversión asciende a la suma de $112.609.694.200 MCTE, de los cuales se encuentran distibuidos en las vigencias así: \n2022-2023: $30.997.878.105 MCTE\n2024:$53.842.491.520 MCTE\n2025: $11.513.575.080 MCTE\n2026: $16.255.749.495 MCTE","Convocatorias: 502 Cupos \n\nconvocatorias regionales: Alistamiento (cupos pendientes) - Proyecto arquitectonico\nConvocatorias desiertas: Alistamiento - Proyecto arquitectonico\n\nAcuerdos sociales: 844 cupos\n\nAlistamiento","Convocatorias: 502 Cupos \n\nconvocatorias regionales: Proyecto arquitectonico - Ejecución \nConvocatorias desiertas: Proyecto arquitectonico  - Ejecución\n\nAcuerdos sociales: 844 cupos \n\nProyecto arquitectonico","Convocatorias: 502 Cupos\n \nconvocatorias regionales:  Ejecución \nConvocatorias desiertas:  Ejecución\n\nAcuerdos sociales: 844 cupos \n\n Ejecución","Acuerdos sociales: \n\n844 cupos \n\n Ejecución","MVCT - DIVIS"]
[null,null,null,null,null,{"$f":"SUM(F4:F8)","v":91429048164},17362321455,0,0,{"$f":"SUM(J4:J8)","v":108791369619},{"$f":"SUM(K4:K8)","v":0},12000000000,0,12000000000,0,0,0,0,{"$f":"SUM(S4:S8)","v":12000000000},{"$f":"SUM(T4:T8)","v":120791369619}]

{"sheet":"IGUALDAD-FTSP 4","index":4,"n_rows":8,"n_cols":27,"rows_kept":8,"cut":false,"hidden":true,"merged":[[1,5,1,9],[1,0,2,0],[1,1,2,1],[1,2,2,2],[1,3,2,3],[1,4,2,4],[1,22,1,25],[1,26,2,26],[1,10,1,16],[1,17,2,17],[1,18,2,18],[1,19,2,19],[1,20,2,20],[1,21,2,21]]}
[]
["      EJES O LÍNEAS ESTRATÉGICAS       ","Nombre de la Iniciativa","Entidad Responsable ","Etapa del Proyecto *","Fase del Proyecto *","Aporte Sector",null,null,null,null,"Aporte Territorio",null,null,null,null,null,null,"Otros recursos","Aportes Territorio / Otros","Inversión Total","Entidad Responsable ejecución proyecto","Observaciones / Acciones","Actividades a ejecutar",null,null,null,"Entidad Responsable de actividad"]
[null,null,null,null,null,2025,2026,2027,2028,"Total","Propios","SGR","Otros",2025,2026,2027,2028,null,null,null,null,null,"Trimestre 2 -2026","Trimestre 3 - 2026","Trimestre 4 -2026 ","Trimestre 1 -2027"]
["1.  Vivienda Digna y Agua Potable y Saneamiento Básico ","Estudios y diseños plan maestro de saneamiento Guapi","Fondo Todos Somos PAZcífico","Sin Información clara","Sin Información clara",null,null,null,null,{"$f":"SUM(F4:I4)","v":0},null,null,null,null,null,null,null,null,{"$f":"SUM(N4:R4)","v":0},{"$f":"+J4+S4","v":0},null,"0 No Iniciado, 0El contrato de interventoría se suscribirá con recursos propios de quien?(rendimientos financieros)."]
["1.  Vivienda Digna y Agua Potable y Saneamiento Básico ","Acueducto de Timbiquí","Fondo Todos Somos PAZcífico","Inversión","Ejecución",null,null,null,null,0,null,null,null,null,null,null,null,null,0,0,null,"22013060490 En Ejecución, En ejecución de obra0,3867El contrato de redes de distribución se encuentra actualmente en proceso de liquidación. El nuevo proceso de contratación estará sujeto a la disponibilidad de recursos.\nPor su parte, el contrato correspondiente a las obras de captación, cuya finalización está prevista para abril, no permitirá culminar la totalidad del proyecto. Por tanto, se contempla una etapa adicional para su terminación, la cual dependerá de la obtención de una fuente de financiación diferente."]
["1.  Vivienda Digna y Agua Potable y Saneamiento Básico ","Acueducto Guapi etapa I captación y redes","Fondo Todos Somos PAZcífico","Inversión","Ejecución",null,null,null,null,0,null,null,null,null,null,null,null,null,0,0,null,"23854437790,7 En Ejecución, En ejecución de obra0,0223PRINCIPALES DIFICULTADES O CUELLOS DE BOTELLA IDENTIFICADOS: 1. Liberación aspectos pendientes de contratos anteriores que han\nderivados en acciones de corrección y atención de PQRs. Como\nson temas prediales, técnicos, sociales y ambientales.\n2. Traslado de equipos y herramientas al municipio de Guapi.\n3. Consecución de mano de obra calificada y no calificada. Por\nescasez, seguridad y minería\n4. Aprobaciones de contratos y pólizas.\n5. Consecución de materiales locales.\n6. Gestión de anticipo.\n7. Permisos locales.\n8. Escasez de información base sobre el estado de infraestructura\nasociada, redes de acueducto, alcantarillado y gas,\ncanalizaciones.. ACCIONES CORRECTIVAS O DE GESTIÓN ADELANTADAS PARA SU SUPERACIÓN1. Revisiones y mesas en sitio\n2. Presencialidad de las personas con capacidad de definición o\narticulación.\n3. Acompañamiento a la gestión de los elementos clave del contrato"]
["1.  Vivienda Digna y Agua Potable y Saneamiento Básico ","Consultoría para cierre del botadero a cielo abierto el Olímpico","Fondo Todos Somos PAZcífico","Sin Información clara","Sin Información clara",null,null,null,null,0,null,null,null,null,null,null,null,null,0,0,null,"0 No Iniciado, 0,2Reporta una condición que no hace parte del estado del proyecto (No Iniciado). Aclarar con la entidad."]
[null,null,null,null,null,{"$f":"SUM(F4:F7)","v":0},0,0,0,{"$f":"SUM(J4:J7)","v":0},{"$f":"SUM(K4:K7)","v":0},0,0,0,0,0,0,0,0,0]

{"sheet":"EDUCACIÓN 9","index":5,"n_rows":14,"n_cols":34,"rows_kept":14,"cut":false,"hidden":true,"merged":[[1,26,1,29],[1,30,2,30],[1,14,1,20],[1,21,2,21],[1,22,2,22],[1,23,2,23],[1,24,2,24],[1,25,2,25],[1,7,1,13],[1,0,2,0],[1,1,2,1],[1,2,2,2],[1,3,2,3],[1,4,2,4]]}
[]
["      EJES O LÍNEAS ESTRATÉGICAS       ","Nombre de la Iniciativa","Entidad Responsable ","Etapa del Proyecto *","Fase del Proyecto *",null,null,"Aporte Sector",null,null,null,null,null,null,"Aporte Territorio",null,null,null,null,null,null,"Otros recursos","Aportes Territorio / Otros","Inversión Total","Entidad Responsable ejecución proyecto","Observaciones / Acciones","Actividades a ejecutar",null,null,null,"Entidad Responsable de actividad"]
[null,null,null,null,null,2023,2024,2025,2026,2027,2028,2029,2030,"Total","Propios","SGR","Otros",2025,2026,2027,2028,null,null,null,null,null,"Trimestre 2 -2026","Trimestre 3 - 2026","Trimestre 4 -2026 ","Trimestre 1 -2027",null,null,"CONPES DIE"]
["2. Educación Integral","Universidad en Guapi (Estudios y diseños Y OBRA)","Ministerio de Educación Nacional","Inversión","Contratación",30000000000,0,0,0,0,0,0,0,{"$f":"SUM(F4:M4)","v":30000000000},0,0,0,0,0,0,0,0,{"$f":"SUM(R4:V4)","v":0},{"$f":"+N4+W4","v":30000000000},"Operador: Financiera de Desarrollo Territorial S.A. – FINDETER ","$30.000 millones. En Proceso de Selección. Proyecto llave en mano (Estudios, diseños, licencias, permisos y obra). Se ha adelantado el proceso de selección de contratista e interventoría.",null,null,null,null,{"$f":"+Y4","v":"Operador: Financiera de Desarrollo Territorial S.A. – FINDETER "}]
["2. Educación Integral","Estudios y diseños Universidad del Macizo","Ministerio de Educación Nacional","Preinversión","Fase III",null,400000000,null,null,null,null,null,null,{"$f":"SUM(F5:M5)","v":400000000},null,null,null,null,null,null,null,null,0,400000000,null,"$400 millones. Fase III. A la fecha se cuenta con el representante legal provisiona y transitorio de la Universidad, se radicó el proyecto de ley en septiembre de 2025 en el congreso de la república y se esta a la espera de la radicación de los documentos del estudio de factibilidad en el SACES con el fin de que sean revisados y aprobados, también de la programación de los debates del proyecto de Ley",null,null,null,null,"Comité promotor de la Universidad (representante legal transitorio)",null,"4181 DE 2026"]
["2. Educación Integral","Programa de Tránsito Inmediato a la Educación Superior (PTIES) en la Institución Educativa Técnica Miguel Zapata","Ministerio de Educación Nacional","Operación","Ejecución",null,null,505598500,649950000,"Por definir","Por definir",null,null,1155548500,"No aplica","No aplica","No aplica","No aplica","No aplica","No aplica","No aplica","No aplica",0,1155548500,"Ministerio de Educación Nacional","$1.155 millones. Ejecución. Para el segundo trimestre se tiene prevista el diagnostico de las necesidades de nivelación, posterior al las pruebas diagnosticas que se realizaron en el mes de marzo y abril. De igual manera se estará trabajando en talleres con los padres y madres de familia y la comunidad y con las IEM beneficiada para el trabajo articulado.",null,null,null,null,"El Ministerio de Educación Nacional contrato como Institución de Educación Superior  - IES, implementadora a la Institutción Universitaria Digital de Antioqua - IUDigital"]
["2. Educación Integral","Culminación de obra Infraestructura física sede norte de la Universidad del Cauca en Santander de Quilichao","Ministerio de Educación Nacional","Inversión","Fase III",0,0,2999215832,0,0,0,0,0,2999215832,0,0,0,0,0,0,0,0,0,2999215832,"Universidad del Cauca","$2.999 millones. Fase III. Aperturar Contratación de obra. Proyecto finciado mediante transferencia directa a la IES No.: 018129 del 27 de agosto de 2025. Cuenta con la licencia de construcción, actualmente el área administrativa se encuentra realizando ajustes a los términos de referencia para procesos de selección del contratista de obra e interventoría.",null,null,null,null,"Universidad del Cauca"]
["2. Educación Integral","Implementación Colegio Universidad en Guapi por UNICAUCA , adecuaciones de las IE La Normal y la IE San José","Ministerio de Educación Nacional","Inversión","Ejecución",11158186367,0,0,0,0,0,0,0,11158186367,0,0,0,0,0,0,0,0,{"$f":"SUM(R8:V8)","v":0},{"$f":"+N8+W8","v":11158186367},"Financiera de Desarrollo Territorial S.A. – FINDETER ","$11.158 millones. Ejecución. Proyectos desarrollado mediante la modalidad de intervención Educación Superior en tu Colegio, tiene un avance de obra del 13,19%, en curso adecuaciones en bloque No 6, 20, 11, 13, Cancha, BQ nuevo, 10 y 8.\nAgosto 2026.",null,null,null,null,"Financiera de Desarrollo Territorial S.A. – FINDETER "]
["2. Educación Integral","Estudios, Diseños y Construcción Para La Ampliación E Implementación De Infraestructura Física Universitaria  Proyectada En El Predio Belalcázar","Ministerio de Educación Nacional","Inversión","Fase III",0,0,0,5902698532,47934705284.386078,0,0,0,53837403816.386078,0,0,0,0,0,0,0,0,0,53837403816.386078,"Operador designado por el MEN para Vigencias Futuras (Por definir)","$53.837 millones. Fase III. Proyecto incluido en el CONPES 4181. Proyecto en actualización por parte de la IES, del componente metodológico, con acompañamiento del MEN.",null,null,null,null,"Operador designado por el MEN para Vigencias Futuras (Por definir)"]
["2. Educación Integral","Proyecto de infraestructura para el Nodo Suárez de la Universidad del Valle","Ministerio de Educación Nacional","Inversión","Ejecución",52000000000,0,0,0,0,0,0,0,52000000000,0,0,0,0,0,0,0,0,0,52000000000,"Universidad del Valle","$52.000 millones. Ejecución. Proyecto finciado mediante transferencia directa a la IES No.: 025392 del 21 de diciembre de 2023. Con el recurso asignado, la IES realizó la adquisición del predio de CELSIA por $16.929 millones, el resto del recursos se invierte en adecuaciones y consultorías sobre las instalaciones adquiridas a CELSIA. Se estima un avance del 48% para el componente de adecuaciones según informe remitido por la IES. El MEN solicitó ajustes en la información presentada.",null,null,null,null,"Universidad del Valle"]
["2. Educación Integral","Estudios, Diseños y Construcción Para La Ampliación E Implementación De Infraestructura Física Universitaria  Proyectada En La Sede Norte U Cauca S. Quilichao","Ministerio de Educación Nacional","Inversión","Fase III",0,0,0,0,1611932847.5769291,1702018732.5321281,21375190889.804417,21571814269.788364,46260956739.701843,0,0,0,0,0,0,0,0,0,46260956739.701843,"Operador designado por el MEN para Vigencias Futuras (Por definir)","$46.260 millones. Fase III. Proyecto incluido en el CONPES 4181. Proyecto en actualización por parte de la IES, del componente metodológico, con acompañamiento del MEN.",null,null,null,null,"Operador designado por el MEN para Vigencias Futuras (Por definir)"]
["2. Educación Integral","Instalación de ambientes modulares  en predio de la Normal Superior. Institución de Educación Superior del Cauca.","Ministerio de Educación Nacional","N/A","N/A",0,0,0,0,0,0,0,0,0,0,0,0,0,0,0,0,0,0,0,"Operador: Financiera de Desarrollo Territorial S.A. – FINDETER ","La intervención de la Normal hace parte integral del desarrollo para la Eduucación Superior en el municipio de Guapi, que se relaciona en el proyecto indicado en la fila 3 de este archivo - En Universidad en Guapi (Estudios y diseños Y OBRA)",null,null,null,null,"N/A",null,null,"Modificación al PEI"]
["2. Educación Integral","(VDR) Implementación de educación básica, secundaria y media en 24 establecimientos en Argelia, El Tambo y Balboa*","Ministerio de Educación Nacional",null,null,null,null,null,null,null,null,null,null,0,null,null,null,null,null,null,null,null,{"$f":"SUM(R13:V13)","v":0},{"$f":"+N13+W13","v":0}]
[null,null,null,null,null,null,null,{"$f":"SUM(H4:H13)","v":3504814332},6552648532,49546638131.963005,1702018732.5321281,null,null,{"$f":"SUM(N4:N13)","v":197811311255.08792},{"$f":"SUM(O4:O13)","v":0},0,0,0,0,0,0,0,0,197811311255.08792]

{"sheet":"ICBF 1","index":6,"n_rows":5,"n_cols":27,"rows_kept":5,"cut":false,"hidden":true,"merged":[[1,0,2,0],[1,22,1,25],[1,26,2,26],[1,10,1,16],[1,17,2,17],[1,18,2,18],[1,19,2,19],[1,20,2,20],[1,21,2,21],[1,1,2,1],[1,2,2,2],[1,3,2,3],[1,4,2,4],[1,5,1,9]]}
[]
["      EJES O LÍNEAS ESTRATÉGICAS       ","Nombre de la Iniciativa","Entidad Responsable ","Etapa del Proyecto *","Fase del Proyecto *","Aporte Sector",null,null,null,null,"Aporte Territorio",null,null,null,null,null,null,"Otros recursos","Aportes Territorio / Otros","Inversión Total","Entidad Responsable ejecución proyecto","Observaciones / Acciones","Actividades a ejecutar",null,null,null,"Entidad Responsable de actividad"]
[null,null,null,null,null,2025,2026,2027,2028,"Total","Propios","SGR","Otros",2025,2026,2027,2028,null,null,null,null,null,"Trimestre 2 -2026","Trimestre 3 - 2026","Trimestre 4 -2026 ","Trimestre 1 -2027"]
["2. Educación Integral","Prevención y atención a la desnutrición a través de la adquisición de 9,7 toneladas de harina de chontaduro a la Asociación de Productores de Cacao y Chontaduro del Tambo (APACH)","ICBF - Instituto Colombiano de Binestar Familiar","Inversión","Terminado",218578800,"N/A","N/A","N/A",{"$f":"SUM(F4:I4)","v":218578800},"N/A","N/A","N/A","N/A","N/A","N/A","N/A","N/A",{"$f":"SUM(N4:R4)","v":0},{"$f":"+J4+S4","v":218578800},"Instituto Colombiano de Bienestar Familiar ","22/04/2026 ICBF: $218 millones. En relación con el avance del compromiso, se informa que, con corte al 30 de septiembre de 2025, se logró la compra de 11.800 kilogramos de harina de chontaduro, equivalentes a 11,8 toneladas. De este total, 10.490 kilogramos (10,5 toneladas) fueron adquiridos al proveedor Asociación de Productores Agropecuarios de Cacao y Chontaduro de El Tambo, Cauca – APACH. Con el volumen total adquirido, el Instituto alcanzó el 100 % de la meta de compra.  \nEn el marco del contrato 01014512022 para la fabricación de Alimentos de Alto Valor Nutricional (AAVN). Para el periodo restante de 2025, está pendiente la confirmación de la inversión.","Actualización información con soportes , Finalización, liquidación, ",null,null,null,"Instituto Colombiano de Bienestar Familiar "]
[null,null,null,null,null,null,null,null,null,null,null,null,null,null,null,null,null,null,null,{"$f":"SUM(T4)","v":218578800}]

{"sheet":"TICs 4","index":7,"n_rows":8,"n_cols":30,"rows_kept":8,"cut":false,"hidden":true,"merged":[[1,0,2,0],[1,29,2,29],[1,20,2,20],[1,21,2,21],[1,22,2,22],[1,23,2,23],[1,24,2,24],[1,25,1,28],[1,13,1,19],[1,1,2,1],[1,2,2,2],[1,3,2,3],[1,4,2,4],[1,5,1,12]]}
[]
["      EJES O LÍNEAS ESTRATÉGICAS       ","Nombre de la Iniciativa","Entidad Responsable ","Etapa del Proyecto *","Fase del Proyecto *","Aporte Sector",null,null,null,null,null,null,null,"Aporte Territorio",null,null,null,null,null,null,"Otros recursos","Aportes Territorio / Otros","Inversión Total","Entidad Responsable ejecución proyecto","Observaciones / Acciones","Actividades a ejecutar",null,null,null,"Entidad Responsable de actividad"]
[null,null,null,null,null,2025,2026,2027,2028,2029,2030,2031,"Total","Propios","SGR","Otros",2025,2026,2027,2028,null,null,null,null,null,"Trimestre 2 -2026","Trimestre 3 - 2026","Trimestre 4 -2026 ","Trimestre 1 -2027"]
["2. Educación Integral","Implementación de zonas/centros digitales de acceso público gratuito en Piendamó","Ministerio de Tecnologías de la Información y las Comunicaciones+","Operación","Ejecución",137591773.66481435,147706119.15575585,158563242.66612157,170429665.76974595,null,null,null,{"$f":"SUM(F4:L4)","v":614290801.25643778},null,null,null,null,null,null,null,null,{"$f":"SUM(Q4:U4)","v":0},{"$f":"+M4+V4","v":614290801.25643778},"MINTIC","21/04/2026. $4.232.259.802 millones corresponden a estimaciones. Ejecución-Operación. Avance físico 100% instalación.  Proyecto Centros Digitales. Inversion Estimada unicamente para los años 2025 a 2028. Programa con Vigencias Futuras. Meta: 26 Centros en Piendamó, actualmente instalados. Se encuentra en operación hasta 2031. ","Reporte de avance de ejecución con soportes","Reporte de avance de ejecución con soportes","Reporte de avance de ejecución con soportes","Reporte de avance de ejecución con soportes","MINTIC"]
["Línea estratégica 3.  Paz y Reconciliación ","Zonas Comunitarias para la Paz (soluciones de Internet comunitario WiFi a escuelas rurales oficiales que carecen de conectividad, en municipios cobijados por los Programas de Desarrollo con Enfoque Territorial – PDET) ","Ministerio de Tecnologías de la Información y las Comunicaciones ","Operación","Ejecución",4173756611.4004207,2504253966.8402524,null,null,null,null,null,{"$f":"SUM(F5:L5)","v":6678010578.2406731},null,null,null,null,null,null,null,null,{"$f":"SUM(Q5:U5)","v":0},{"$f":"+M5+V5","v":6678010578.2406731},"MINTIC","21/04/2026. $6.678 millones corresponden a estimaciones. Ejecución-Operación. Proyecto Zonas Comunitarias para la Paz. Inversion Estimada unicamente para los años 2025 a 2026. Meta: 159 zonas comunitarias para la PAZ (Cauca) y estan instaladas y en operación 158.\nPrograma Finaliza ejecucion en julio de 2026.","Reporte de avance de ejecución con soportes","Reporte de avance de ejecución con soportes","Reporte de avance de ejecución con soportes","Finalización, liquidación, ","MINTIC"]
["Línea estratégica 4. Desarrollo Rural y Transformación Productiva ","Servicio de asistencia técnica para proyectos TIC","Ministerio de Tecnologías de la Información y las Comunicaciones","Operación","Ejecución",{"$f":"671000000+3877745000","v":4548745000},{"$f":"1671000000+3767000000","v":5438000000},null,null,null,null,null,9986745000,null,null,null,null,null,null,null,null,{"$f":"SUM(Q6:U6)","v":0},{"$f":"+M6+V6","v":9986745000},"MINTIC","21/04/2026. $9.986 millones convenios. Ejecución-Operación. Convenios establecidos con el CRIC 1480-2024 y 1636-2024, se consideran adiciones para cada convenio en 2026, las cuales estan consideradas en la inversion estimada para ese año. Finaliza ejecucion en 2026.","Reporte de avance de ejecución con soportes, Adición de recursos sujeto a  decisiones de la Entidad","Reporte de avance de ejecución con soportes","Reporte de avance de ejecución con soportes","Finalización, liquidación, ","MINTIC"]
["Línea estratégica 4. Desarrollo Rural y Transformación Productiva ","Centros digitales para conectividad","Ministerio de Tecnologías de la Información y las Comunicaciones","Operación","Ejecución",{"$f":"+'[1]Nuevos Proyectos MPIO'!$AU$422","v":275183547.32962877},{"$f":"+'[1]Nuevos Proyectos MPIO'!$AV$422","v":295412238.31151175},{"$f":"+'[1]Nuevos Proyectos MPIO'!$AW$422","v":317126485.3322432},{"$f":"+'[1]Nuevos Proyectos MPIO'!$AX$422","v":340859331.53949195},null,null,null,1228581602.5128756,null,null,null,null,null,null,null,null,0,1228581602.5128756,"MINTIC","21/04/2026. $3.255.584.463 millones corresponden a estimaciones. Ejecución-Operación. Proyecto Centros Digitales. Inversion Estimada unicamente para el municipio de Lopez de Micay en los años 2025 a 2028. Meta: 15 centros digitales, y ya se encuentran instalados.\nPrograma con Vigencias Futuras. Se encuentra en operación hasta 2031. ","Reporte de avance de ejecución con soportes","Reporte de avance de ejecución con soportes","Reporte de avance de ejecución con soportes","Reporte de avance de ejecución con soportes","MINTIC"]
[null,null,null,null,null,{"$f":"SUM(F4:F7)","v":9135276932.3948631},8385372324.3075199,475689727.99836481,511288997.3092379,null,null,null,18507627982.009983,0,0,0,0,0,0,0,0,0,18507627982.009983]

{"sheet":"JAMUNDÍ 1+","index":8,"n_rows":6,"n_cols":27,"rows_kept":6,"cut":false,"hidden":true,"merged":[[1,0,2,0],[1,26,2,26],[1,17,2,17],[1,18,2,18],[1,19,2,19],[1,20,2,20],[1,21,2,21],[1,22,1,25],[1,10,1,16],[1,1,2,1],[1,2,2,2],[1,3,2,3],[1,4,2,4],[1,5,1,9]]}
[]
["      EJES O LÍNEAS ESTRATÉGICAS       ","Nombre de la Iniciativa","Entidad Responsable ","Etapa del Proyecto *","Fase del Proyecto *","Aporte Sector",null,null,null,null,"Aporte Territorio",null,null,null,null,null,null,"Otros recursos","Aportes Territorio / Otros","Inversión Total","Entidad Responsable ejecución proyecto","Observaciones / Acciones","Actividades a ejecutar",null,null,null,"Entidad Responsable de actividad"]
[null,null,null,null,null,2025,2026,2027,2028,"Total","Propios","SGR","Otros",2025,2026,2027,2028,null,null,null,null,null,"Trimestre 2 -2026","Trimestre 3 - 2026","Trimestre 4 -2026 ","Trimestre 1 -2027"]
["2. Educación Integral","Convocatoria de Mejoramiento de Infraestructura eductiva 2021","Departamento Nacional de Planeación (FRPT) / Municipio de Jamundí","Preinversión",null,null,null,null,null,{"$f":"SUM(F4:I4)","v":0},null,null,null,null,null,null,null,null,{"$f":"SUM(N4:R4)","v":0},{"$f":"+J4+S4","v":0},"Municipio de Jamundí","Presentar proyecto y avanzar con concepto favorable del MEN para presentar al DNP para solicitud de Cofinanciación."]
["Línea estratégica 5. Salud ","(VDR) Ampliación de la capacidad instalada empresa social del estado hospital piloto del municipio de Jamundí ","Alcaldía Jamundí","Preinversión",null,null,null,null,null,0,null,null,null,null,null,null,null,null,0,0]
[null,null,null,null,null,{"$f":"SUM(F4:F5)","v":0},0,0,0,{"$f":"SUM(J4:J5)","v":0},{"$f":"SUM(K4:K5)","v":0},0,0,0,0,0,0,0,0,0]

{"sheet":"DSCI 3","index":9,"n_rows":6,"n_cols":29,"rows_kept":6,"cut":false,"hidden":true,"merged":[[1,0,2,0],[1,26,2,26],[1,17,2,17],[1,18,2,18],[1,19,2,19],[1,20,2,20],[1,21,2,21],[1,22,1,25],[1,10,1,16],[1,1,2,1],[1,2,2,2],[1,3,2,3],[1,4,2,4],[1,5,1,9]]}
[]
["Línea estratégica","Nombre de la Iniciativa","Entidad Responsable ","Etapa del Proyecto *","Fase del Proyecto *","Aporte Sector",null,null,null,null,"Aporte Territorio",null,null,null,null,null,null,"Otros recursos","Aportes Territorio / Otros","Inversión Total","Entidad Responsable ejecución proyecto","Observaciones / Acciones","Actividades a ejecutar",null,null,null,"Entidad Responsable de actividad"]
[null,null,null,null,null,2025,2026,2027,2028,"Total","Propios","SGR","Otros",2025,2026,2027,2028,null,null,null,null,null,"Trimestre 2 -2026","Trimestre 3 - 2026","Trimestre 4 -2026 ","Trimestre 1 -2027",null,null,"Avance"]
["Línea estratégica 3.  Paz y Reconciliación ","Programa de sustitución de economías ilegalizadas en el departamento del cauca- RENACEMOS","Dirección Sustitución de Cultivos Ilícitos - Fondo Programas Especiales para la Paz (Fondo Paz)","Inversión","Ejecución",{"$f":"20018447865+4836923868","v":24855371733},null,null,null,{"$f":"SUM(F4:I4)","v":24855371733},null,null,null,null,null,null,null,8686791882,{"$f":"SUM(N4:R4)","v":8686791882},{"$f":"+J4+S4","v":33542163615},"Dirección de sustitución de cultivos de uso ilícito - UNODC - FINDETER","23/04/2026. Ejecución. $33.542 millones. Socios implementadores : Naciones Unidas contra las drogas y el delito ($8.686.791.882 ) y FINDETER ($4.836.923.868-DAPRE)\n$28 mil millones UNODC - Avance 69.16% a diciembre 2025. Finaliza ejecución en agosto de 2026.\n$4 mil millones - FINDETER - Avance alrededor 40%. Finaliza en junio de 2025 posible prórroga hasta agosto 2026.","Reporte de avance de ejecución con soportes, Prorroga, ","Reporte de avance de ejecución con soportes","Finalización, liquidación, ",null,"DSCI"]
["Línea estratégica 4. Desarrollo Rural y Transformación Productiva ","Transformación ecológica y productiva de zonas degradadas por cultivos de uso ilícito en áreas de especial importancia ambiental en los departamentos de Nariño, Cauca y Chocó (Sistemas agroforestales de cacao).","Dirección Sustitución de Cultivos Ilícitos - Fondo Programas Especiales para la Paz (Fondo Paz)","Inversión","Ejecución",9945101499,null,null,null,{"$f":"SUM(F5:I5)","v":9945101499},null,null,null,null,null,null,null,null,0,{"$f":"+J5+S5","v":9945101499},"Dirección de sustitución de cultivos de uso ilícito  - UNODC ","23/04/2026. Ejecución. $9.945 millones. Socios implementadores: Naciones unidas contra las frogas y el delito - UNODC. Inicio enero 2026 hasta (24 meses) Finaliza en 13 enero de 2028.","Reporte de avance de ejecución con soportes","Reporte de avance de ejecución con soportes","Reporte de avance de ejecución con soportes","Reporte de avance de ejecución con soportes","DSCI"]
[null,null,null,null,null,{"$f":"SUM(F4:F5)","v":34800473232},0,0,0,34800473232,0,0,0,0,0,0,0,8686791882,8686791882,43487265114]

{"sheet":"INTERIOR 2","index":10,"n_rows":6,"n_cols":29,"rows_kept":6,"cut":false,"hidden":true,"merged":[[1,0,2,0],[1,28,2,28],[1,19,2,19],[1,20,2,20],[1,21,2,21],[1,22,2,22],[1,23,2,23],[1,24,1,27],[1,12,1,18],[1,1,2,1],[1,2,2,2],[1,3,2,3],[1,4,2,4],[1,7,1,11]]}
[]
["Línea estratégica","Nombre de la Iniciativa","Entidad Responsable ","Etapa del Proyecto *","Fase del Proyecto *",null,null,"Aporte Sector",null,null,null,null,"Aporte Territorio",null,null,null,null,null,null,"Otros recursos","Aportes Territorio / Otros","Inversión Total","Entidad Responsable ejecución proyecto","Observaciones / Acciones","Actividades a ejecutar",null,null,null,"Entidad Responsable de actividad"]
[null,null,null,null,null,2023,2024,2025,2026,2027,2028,"Total","Propios","SGR","Otros",2025,2026,2027,2028,null,null,null,null,null,"Trimestre 2 -2026","Trimestre 3 - 2026","Trimestre 4 -2026 ","Trimestre 1 -2027"]
["Línea estratégica 3.  Paz y Reconciliación ","Construcción de Alcaldía de Argelia","Ministerio del Interior","Inversión","Ejecución",{"$f":"4634357449","v":4634357449},2985973832,null,null,null,null,{"$f":"SUM(F4:K4)","v":7620331281},817827785,null,null,null,null,null,null,null,{"$f":"SUM(M4:T4)","v":817827785},{"$f":"+L4+U4","v":8438159066},"Municipio de Argelia","Ejecución. Avance 56,83%. Convenio $8.438.159.066; Finaliza 31 de julio de 2026."]
["Línea estratégica 3.  Paz y Reconciliación ","Construcción de Alcaldía de Guapi","Ministerio del Interior","Inversión","Ejecución",null,1689945353,1689945353,{"$f":"1689945353*2","v":3379890706},null,null,{"$f":"SUM(F5:K5)","v":6759781412},{"$f":"1194353703+1283652994","v":2478006697},null,null,null,null,null,null,null,{"$f":"SUM(M5:T5)","v":2478006697},{"$f":"+L5+U5","v":9237788109},"Municipio de Guapi","Ejecución. Avance 21,61%. Convenio $9.237.788.109; Finaliza 30 de abril de 2026."]
[null,null,null,null,null,null,null,{"$f":"SUM(H4:H5)","v":1689945353},{"$f":"SUM(I4:I5)","v":3379890706},0,0,{"$f":"SUM(L4:L5)","v":14380112693},{"$f":"SUM(M4:M5)","v":3295834482},0,0,0,0,0,0,0,3295834482,17675947175]

{"sheet":"CULTURA 3","index":11,"n_rows":7,"n_cols":28,"rows_kept":7,"cut":false,"hidden":true,"merged":[[1,0,2,0],[1,27,2,27],[1,18,2,18],[1,19,2,19],[1,20,2,20],[1,21,2,21],[1,22,2,22],[1,23,1,26],[1,11,1,17],[1,1,2,1],[1,2,2,2],[1,3,2,3],[1,4,2,4],[1,6,1,10]]}
[]
["Línea estratégica","Nombre de la Iniciativa","Entidad Responsable ","Etapa del Proyecto *","Fase del Proyecto *",null,"Aporte Sector",null,null,null,null,"Aporte Territorio",null,null,null,null,null,null,"Otros recursos","Aportes Territorio / Otros","Inversión Total","Entidad Responsable ejecución proyecto","Observaciones / Acciones","Actividades a ejecutar",null,null,null,"Entidad Responsable de actividad"]
[null,null,null,null,null,2024,2025,2026,2027,2028,"Total","Propios","SGR","Otros",2025,2026,2027,2028,null,null,null,null,null,"Trimestre 2 -2026","Trimestre 3 - 2026","Trimestre 4 -2026 ","Trimestre 1 -2027"]
["Línea estratégica 3.  Paz y Reconciliación ","Construcción casa de saberes municipio de Guachené Cauca. ","Ministerio de Cultura, las Artes y los Saberes","Inversión","Ejecución",0,{"$f":"1143256185+143730558","v":1286986743},0,0,0,{"$f":"SUM(F4:J4)","v":1286986743},0,0,0,0,0,0,0,0,{"$f":"SUM(O4:S4)","v":0},{"$f":"+K4+T4","v":1286986743},"Ministerio de las culturas, las artes y los saberes.","MinCultura 20/04/2026: Actualmente se están llevando a cabo actividades de ejecución de la obra. No obstante, es importante señalar que debido a temas de orden público en la zona del Cauca el avance de este proyecto ha tenido dificultades en el cumplimiento del cronograma. Por esa razón el  29 de diciembre se suscribió prórroga que extiendió el plazo de terminación de las obras hasta el 3/06/2026. \nActualmente el avance de obra se encuentra en 6% y se proyecta que el segundo y tercer trimestre se continue con el proceso de ejecución del proyecto. El contrato tiene previsto la finalización en el segundo trimestre de 2026, pero se prevé la ampliación del mismo al tercer trimestre de este mismo año \nValores comprometidos","Reporte de avance de ejecución con soportes","Reporte de avance de ejecución con soportes","Reporte de avance de ejecución con soportes",null,"Ministerio de las Culturas, las Artes y los Saberes"]
["Línea estratégica 3.  Paz y Reconciliación ","Adecuación y dotación de la Casa de la Cultura de Guapi","Ministerio de Cultura, las Artes y los Saberes","Inversión","Ejecución",{"$f":"723515223","v":723515223},91528466.129999995,0,0,0,{"$f":"SUM(F5:J5)","v":815043689.13},137820827,null,null,137820827,0,0,0,null,{"$f":"SUM(O5:S5)","v":137820827},{"$f":"+K5+T5","v":952864516.13},"Ministerio de las culturas, las artes y los saberes.","Comprometidos y obligados/desembolso $recursos del municipio\nMinCultura 20/04/2026: El 16 de diciembre de 2024 se emitió la resolución No. 1587  mediante la cual se autoriza el aporte a la escuela taller de Popayán para la realización de proceso de formación en construcción especializada para el mantenimiento e intervenciones menores y adecuaciones de espacios culturales, en la cual se incluyó el mejoramiento de la casa de cultura.\nLas actividades prácticas en la casa de cultura se iniciaron el 1 de octubre de 2025 y actualmente ese proceso cuenta con un avance del 50%. La ejecución de actividades debió suspenderse pues era necesario emitir resolución de redistribución de recursos y la entidad territorial debía enviar el certificado de estabilidad estructural de esta infraestructura.  Finalmente el certificado fue enviado el 10 de abril de 2026, actualmente ese documento se encuentra en validación por parte del Grupo de Infraestructura Cultural de este Ministerio. Es importante señalar que los recursos de la resolución corresponden a la vigencia 2024. \nSe suscribió contrato de dotación por un valor de  $91.528.466,13 y esta entrega se realizó en diciembre de 2025. Los recursos dispuesto por la alcaldía corresponden a reforzamiento estructural de la edificación, compromiso adquirido en diciembre de 2024 el cual se ejecutó entre mayo y septiembre de 2025. \nLas actividades proyectadas para continuar con este proyecto son: la revisión del certificado de estabilidad enviado por la alcaldía del municipio, emitir la resolución de redistribución de recursos y levantar la suspensión de actividades para continuar con el proceso de formación adelantado por la Escuela Taller. Esto ocurrirá entre el segundo y tercer trimestre del año 2026. Adicionalmente se espera continuar con la obra en el tercer y cuarto trimestre de este mismo año. \nFinalización 3er trimestre. 2026","Tramites para la suscripción de convenios","Reporte de avance de ejecución con soportes",null,null,"Ministerio de las Culturas, las Artes y los Saberes"]
["Línea estratégica 3.  Paz y Reconciliación ","Construcción casa de saberes municipio de Villa Rica, Cauca","Ministerio de Cultura, las Artes y los Saberes","Inversión","Ejecución",0,{"$f":"1135252799+143730558","v":1278983357},0,0,0,{"$f":"SUM(F6:J6)","v":1278983357},0,0,0,0,0,0,0,0,0,1278983357,"Ministerio de las culturas, las artes y los saberes.","MinCultura 20/04/2026: Actualmente se están llevando a cabo actividades de ejecución de la obra. No obstante, es importante señalar que debido a temas de orden público en la zona del Cauca el avance de este proyecto ha tenido dificultades en el cumplimiento del cronograma. Por esa razón el  29 de diciembre se suscribió prórroga que extiendió el plazo de terminación de las obras hasta el 3/06/2026.  \nActualmente el avance de obra se encuentra en 8% y se prevé que en el segundo y tercer trimestre se continue con el proceso de ejecución del proyecto. El contrato tiene previsto finalizarse en el segundo trimestre, pero se prevé la ampliación del mismo al tercer trimestre de 2026\nValores comprometidos","Reporte de avance de ejecución con soportes","Reporte de avance de ejecución con soportes","Reporte de avance de ejecución con soportes",null,"Ministerio de las Culturas, las Artes y los Saberes"]
[null,null,null,null,null,null,{"$f":"SUM(G4:G6)","v":2657498566.1300001},{"$f":"SUM(H4:H6)","v":0},0,0,3381013789.1300001,{"$f":"SUM(L4:L6)","v":137820827},0,0,137820827,0,0,0,0,137820827,3518834616.1300001]

{"sheet":"PRESIDENCIA","index":12,"n_rows":6,"n_cols":27,"rows_kept":6,"cut":false,"hidden":true,"merged":[[1,22,1,25],[1,26,2,26],[1,10,1,16],[1,17,2,17],[1,18,2,18],[1,19,2,19],[1,20,2,20],[1,21,2,21],[1,5,1,9],[1,0,2,0],[1,1,2,1],[1,2,2,2],[1,3,2,3],[1,4,2,4]]}
[]
["Línea estratégica","Nombre de la Iniciativa","Entidad Responsable ","Etapa del Proyecto *","Fase del Proyecto *","Aporte Sector",null,null,null,null,"Aporte Territorio",null,null,null,null,null,null,"Otros recursos","Aportes Territorio / Otros","Inversión Total","Entidad Responsable ejecución proyecto","Observaciones / Acciones","Actividades a ejecutar",null,null,null,"Entidad Responsable de actividad"]
[null,null,null,null,null,2025,2026,2027,2028,"Total","Propios","SGR","Otros",2025,2026,2027,2028,null,null,null,null,null,"Trimestre 2 -2026","Trimestre 3 - 2026","Trimestre 4 -2026 ","Trimestre 1 -2027"]
["Línea estratégica 3.  Paz y Reconciliación ","Trece incentivos para la paz territorial . Fortalecer organizaciones comunales, étnicas, sociales, productivas, comunitarias, de jóvenes y de mujeres, entre otras, que estén legalmente constituidas, mediante una estrategia de incentivos para la implementación de proyectos de ejecución comunitaria.","Fondo de Programas Especiales para la Paz","Inversión","Ejecución",null,null,null,null,{"$f":"SUM(F4:I4)","v":0},null,null,null,null,null,null,null,null,{"$f":"SUM(N4:R4)","v":0},{"$f":"+J4+S4","v":0},null,"751941570 En Ejecución, En ejecución de obra0,35El presupuesto total comprometido corresponde a la implementación integral de la Estrategia de Incentivos Comunitarios para la Paz Total en los tres municipios del departamento del Cauca donde se desarrolla la intervención. Este monto incluye:\n- El valor de los incentivos entregados a cada organización beneficiaria.\n- Los costos del equipo técnico encargado de la implementación, el seguimiento y el fortalecimiento de la estrategia en el departamento.\n-La cuota de administración y gerencia a cargo del socio implementador.\nDe esta manera, y en consonancia con la modalidad de administración de recursos, se reporta al aliado el 100% de la ejecución financiera comprometida. Posteriormente, dicho aliado realiza los desembolsos conforme avanza la ejecución programada."]
["Línea estratégica 3.  Paz y Reconciliación ","Complementación de estudios y diseños y la adecuación y mejoramiento del centro de desarrollo infantil - CDI en granito de oro","Fondo de Programas Especiales para la Paz","Inversión","Terminado",null,null,null,null,{"$f":"SUM(F5:I5)","v":0},null,null,null,null,null,null,null,null,{"$f":"SUM(N5:R5)","v":0},{"$f":"+J5+S5","v":0},null,"1698933967 Terminado, Ejecutado1Proyecto finalizado, con financiación del Fondo de Programas Especiales para la Paz bajo Recursos Entregados en Administración en el marco del convenio FP-558-2021 suscrito con FINDETER."]
[null,null,null,null,null,{"$f":"SUM(F4:F5)","v":0},0,0,0,{"$f":"SUM(J4:J5)","v":0},{"$f":"SUM(K4:K5)","v":0},0,0,0,0,0,0,0,0,0]

{"sheet":"ART 1","index":13,"n_rows":5,"n_cols":27,"rows_kept":5,"cut":false,"hidden":true,"merged":[[1,0,2,0],[1,22,1,25],[1,26,2,26],[1,10,1,16],[1,17,2,17],[1,18,2,18],[1,19,2,19],[1,20,2,20],[1,21,2,21],[1,1,2,1],[1,2,2,2],[1,3,2,3],[1,4,2,4],[1,5,1,9]]}
[]
["Línea estratégica","Nombre de la Iniciativa","Entidad Responsable ","Etapa del Proyecto *","Fase del Proyecto *","Aporte Sector",null,null,null,null,"Aporte Territorio",null,null,null,null,null,null,"Otros recursos","Aportes Territorio / Otros","Inversión Total","Entidad Responsable ejecución proyecto","Observaciones / Acciones","Actividades a ejecutar",null,null,null,"Entidad Responsable de actividad"]
[null,null,null,null,null,2025,2026,2027,2028,"Total","Propios","SGR","Otros",2025,2026,2027,2028,null,null,null,null,null,"Trimestre 2 -2026","Trimestre 3 - 2026","Trimestre 4 -2026 ","Trimestre 1 -2027"]
["Línea estratégica 4. Desarrollo Rural y Transformación Productiva ","Proyecto Integrador de la Cadena de Coco: Programa Integral para el fortalecimiento de la cadena del coco (Coco+Pacífico, departamentos Cauca y Nariño) Fortalecer los cultivos de coco en la costa pacífica nariñense, mediante el trampeo para control del picudo, erradicación de cultivos y resiembra, estudio de mercado y acompañamiento técnico.","Agencia de Renovación del Territorio / Comunidad","Inversión","Ejecución",1582573106.71,6191575156.3852396,null,null,{"$f":"SUM(F4:I4)","v":7774148263.0952396},{"$f":"+N4+O4","v":4530240000},null,null,793600000,3736640000,null,null,null,{"$f":"SUM(N4:R4)","v":4530240000},{"$f":"+J4+S4","v":12304388263.09524},"FEDECOCO","21/04/2026. $12.304 Ejecución. El proyecto tiene actividad principal en el departamento del Cauca y cierre financiero para las actividades en Nariño, que serán financiadas por el MADR.\n10/03/2026. A cargo de la ART por un valor de $14.530.240 que ya está en ejecución. Correspondiente a Cauca que está a cargo de la ART. Municipios:  Guapi, Timbiquí y López de Micay (Departamento del Cauca). En ejecución a través del Convenio 2288-2024 suscrito entre el FCP y FeDECOCO,  con un aporte en Cauca como se reportó en esta matriz, tiene una ejecución técnica del 35,78% según informe del mes de enero de 2026.","Reporte de avance de ejecución con soportes, Actualización información con soportes ","Reporte de avance de ejecución con soportes","Reporte de avance de ejecución con soportes",null,"ART/FEDECOCO"]
[null,null,null,null,null,null,null,null,null,null,null,null,null,null,null,null,null,null,null,{"$f":"+T4","v":12304388263.09524}]

{"sheet":"ADR 8+","index":14,"n_rows":16,"n_cols":27,"rows_kept":16,"cut":false,"hidden":true,"merged":[[1,0,2,0],[1,26,2,26],[1,17,2,17],[1,18,2,18],[1,19,2,19],[1,20,2,20],[1,21,2,21],[1,22,1,25],[1,10,1,16],[1,1,2,1],[1,2,2,2],[1,3,2,3],[1,4,2,4],[1,5,1,9]]}
[]
["Línea estratégica","Nombre de la Iniciativa","Entidad Responsable ","Etapa del Proyecto *","Fase del Proyecto *","Aporte Sector",null,null,null,null,"Aporte Territorio",null,null,null,null,null,null,"Otros recursos","Aportes Territorio / Otros","Inversión Total","Entidad Responsable ejecución proyecto","Observaciones / Acciones","Actividades a ejecutar",null,null,null,"Entidad Responsable de actividad"]
[null,null,null,null,null,2025,2026,2027,2028,"Total","Propios","SGR","Otros",2025,2026,2027,2028,null,null,null,null,null,"Trimestre 2 -2026","Trimestre 3 - 2026","Trimestre 4 -2026 ","Trimestre 1 -2027"]
["Línea estratégica 4. Desarrollo Rural y Transformación Productiva ","Modernización de 1 distrito de riego de pequeña escala del municipio de Balboa  en el Departamento de Cauca","Agencia de Desarrollo Rural -  Fondo Nacional de Adecuación de Tierras","Preinversión","Fase I",null,null,null,null,278302508,null,null,null,null,null,null,null,null,0,{"$f":"+J4+S4","v":278302508},"AGENCIA DE DESARROLLO RURAL","$289 millones. El proyecto de modernización del Distrito de Adecuación de Tierras de Pequeña Escala El Vijal, ubicado en el municipio de Balboa (Cauca), será nuevamente postulado ante el Comité Técnico del Fondo Nacional de Adecuación de Tierras (FONAT), incorporando las subsanaciones y ajustes técnicos y documentales requeridos, así como la indexación presupuestal ($289.601.590). Lo anterior, con el propósito de avanzar en su priorización, financiación y posterior ejecución en la vigencia 2026.","Presentación al FONAT una vez se realice Comité Técnico de Priorización","Viabilidad y Posible expedición de resolución de financiación del proyecto por parte de la Secretaría Técnica del FONAT","Posible contratación de obra e interventoría para la modernización del distrito El Vijal","Posible ejecución","AGENCIA DE DESARROLLO RURAL"]
["Línea estratégica 4. Desarrollo Rural y Transformación Productiva ","Fortalecimiento de las capacidades productivas de café, mora, ganadería de leche y gallinas ponedoras de acuerdo con los usos y costumbres del pueblo Nasa en el municipio de Páez.","Agencia de Desarrollo Rural / Comunidad","Inversión","Ejecución",null,null,null,null,3743625098,null,null,null,null,null,null,null,null,0,{"$f":"+J5+S5","v":3743625098},"AGENCIA DE DESARROLLO RURAL","Resolución de cofinanciación 201 suscrita el 28 de mayo de 2025",null,null,null,null,"AGENCIA DE DESARROLLO RURAL"]
["Línea estratégica 4. Desarrollo Rural y Transformación Productiva ","Fortalecimiento de las actividades económicas propias de las comunidades indígenas del oriente caucano de las familias pertenecientes a la Asociación De Autoridades Indígenas Del Oriente Caucano Totoguampa en los municipios de Silvia, Totoró, Piendamó y Morales ","Agencia de Desarrollo Rural / Comunidades","Inversión","Ejecución",4626371046,null,null,null,{"$f":"SUM(F6:I6)","v":4626371046},null,null,2273240968,null,2273240968,null,null,null,{"$f":"+N6+O6+P6+Q6+R6","v":2273240968},6899612014,"AGENCIA DE DESARROLLO RURAL","$6.899 millones. Ejecución. Mediante la Resolución No. 200 de 2025 de la Agencia de Desarrollo Rural (ADR), el proyecto se encuentra actualmente en fase de ejecución y tiene como propósito fortalecer las actividades productivas de las comunidades indígenas, así como mejorar la productividad de sus sistemas económicos propios. En este marco, se proyecta beneficiar a distintos grupos de productores a través de varias líneas productivas, a saber: 71 productores en café, 14 en fresa, 23 en cultivos tradicionales (maíz y frijol), 40 en producción ovina, 78 en aves de postura y 62 en cerdos de ceba, además del establecimiento de una granja avícola biosegura. Estas intervenciones impactarán a familias adscritas a la Asociación de Autoridades Indígenas del Oriente Caucano Totoguampa.\nCada una de estas líneas contempla la provisión de insumos, materiales, equipos, el mejoramiento de infraestructura productiva y el acompañamiento técnico especializado, con el fin de garantizar la sostenibilidad y eficiencia de los procesos productivos.\nEn cuanto al avance del proyecto, ya se han adjudicado los contratos correspondientes a la prestación del servicio de asistencia técnica y, con corte al 30 de marzo de 2026, se realizó la adjudicación de los términos de referencia para el suministro de materiales destinados al mejoramiento de infraestructura. Lo anterior evidencia un progreso concreto en la fase operativa y el avance efectivo en la implementación del proyecto.\n\nSi quieres, puedo ajustarlo aún más al formato que pide SINERGIA (más corto, con enfoque en avance vs. meta y sin tanto contexto).","Ejecución","Ejecución","Ejecución","Ejecución y cierre","AGENCIA DE DESARROLLO RURAL"]
["Línea estratégica 4. Desarrollo Rural y Transformación Productiva ","Impulsar la productividad y competitividad del grano de café, mediante la producción primaria y el beneficio como una apuesta al mejoramiento de la calidad del grano, atendiendo la integralidad técnica, organizacional, ambiental y comercial de los caficultores de la ANUC en el departamento de Cauca","Agencia de Desarrollo Rural / Comunidades","Preinversión","Fase I",null,null,null,null,12000000000,null,null,3000000000,null,null,null,null,null,3000000000,{"$f":"+J7+S7","v":15000000000},"AGENCIA DE DESARROLLO RURAL","El proyecto registra avances significativos en la etapa de estructuración, evidenciando un desarrollo sólido en los componentes técnico-productivo, jurídico y ambiental, en los cuales se han consolidado documentos base, paquetes técnicos y procesos de validación de la información.\n\nNo obstante, el proceso continúa en fase de ajuste y consolidación en los componentes asociativo, comercial y técnico-financiero, los cuales requieren mayor articulación y cierre para completar la estructuración integral del proyecto.\n\nEn este sentido, se evidencia un proceso activo de construcción técnica orientado a garantizar su viabilidad y futura implementación.","Finalizar la estructuración","Revisión de disponibilidad de recursos para cofinanciación","Posible ejecución","Posible ejecución","AGENCIA DE DESARROLLO RURAL"]
["Línea estratégica 4. Desarrollo Rural y Transformación Productiva ","Modernización de 2 distrito de riego de pequeña escala del municipio de Totoró y Mercaderes en el Departamento de Cauca","Agencia de Desarrollo Rural","Preinversión","Fase I",null,null,null,null,923792530,null,null,null,null,null,null,null,null,0,{"$f":"+J8+S8","v":923792530},"AGENCIA DE DESARROLLO RURAL","$923.millones. Fase I. Los proyectos de modernización de los distritos de riego de pequeña escala Chuscales (Totoró) y Mercaderes (Mercaderes) serán nuevamente postulados ante el Comité Técnico del Fondo Nacional de Adecuación de Tierras (FONAT), incorporando las subsanaciones y ajustes técnicos y documentales requeridos, así como la indexación presupuestal ($923.792.530). Lo anterior, con el fin de avanzar en su eventual priorización, financiación y ejecución durante la vigencia 2026.\n\nCabe mencionar que no es posible informar la duración de la ejecución del proyecto, dado que, aunque la ADR ya realizó las subsanaciones correspondientes y el proyecto se encuentra listo para ser presentado nuevamente ante el Fondo Nacional de Adecuación de Tierras (FONAT) para su priorización y financiación, no es posible avanzar hasta tanto no se lleve a cabo el respectivo comité. Una vez este se realice, se podrá proceder con la priorización, financiación y contratación de la obra y su interventoría.","Presentación al FONAT una vez se realice Comité Técnico de Priorización","Posible expedición de resoluciones de financiación de los proyectos por parte de la Secretaría Técnica del FONAT","Posible contratación de obra e interventoría para la modernización de  los distritos Chuscales y Mercaderes","Posible inicio de actividades y ejecución","AGENCIA DE DESARROLLO RURAL"]
["Línea estratégica 4. Desarrollo Rural y Transformación Productiva ","Fortalecimiento de las capacidades productivas, organizacionales y comerciales de los productores de café, cítricos y cacao; en comunidades campesinas, afro e indígenas ubicados en los municipios de Miranda, Padilla, Puerto Tejada, Corinto, Caloto, Guachené, Villa Rica, Santander de Quilichao, Buenos Aires, Suarez y Caldono, en el Norte del Departamento del Cauca- BP 3694","Agencia de Desarrollo Rural / Comunidad","Preinversión","Fase I",null,null,null,null,14998603924,null,null,3765713040,null,null,null,null,null,3765713040,{"$f":"+J9+S9","v":18764316964},"AGENCIA DE DESARROLLO RURAL","El proyecto, actualmente en fase de estructuración – etapa de factibilidad (Banco de Proyectos No. 3694), está orientado al fortalecimiento de las capacidades productivas, organizacionales y comerciales de productores de café, cítricos y cacao en municipios del norte del departamento del Cauca.\n\nA la fecha, el proyecto se encuentra en proceso de evaluación y calificación por parte de los equipos técnicos a nivel central, registrando avances significativos en los componentes técnico, comercial y asociativo, los cuales se encuentran consolidados. No obstante, el proceso se encuentra condicionado al cierre del componente jurídico, particularmente en lo relacionado con la verificación de potenciales beneficiarios y el cumplimiento de requisitos habilitantes, así como en la atención de subsanaciones puntuales de carácter formal.","Finalizar la estructuración,\nViabilidad","Revisión de disponibilidad de recursos para cofinanciación","Posible ejecución","Posible ejecución","AGENCIA DE DESARROLLO RURAL"]
["Línea estratégica 4. Desarrollo Rural y Transformación Productiva ","Fortalecimiento de las capacidades productivas a través de bancos de maquinaria para los resguardos Huellas y Páez de Corinto en los predios de Liberación Emperatriz y García Arriba en los municipios de Caloto y Corinto en el marco de la Reforma Rural Integral","Agencia de Desarrollo Rural / Comunidad","Preinversión","Fase I",null,null,null,null,5000000000,null,null,1250000000,null,null,null,null,null,1250000000,6250000000,"AGENCIA DE DESARROLLO RURAL","Proyecto en estructuración en fase de factibilidad (número de Banco de Proyectos - BP No. 3693).\nSe está a la espera de disponibilidad de recursos para cofinanciación.","Avanzar en la estructuración","Finalizar estructuración, Viabilidad","Revisión disponibilidad de recursos para cofinanciación","Ejecución","AGENCIA DE DESARROLLO RURAL"]
["Línea estratégica 4. Desarrollo Rural y Transformación Productiva ","Fortalecimiento a la capacidad productiva agroindustrial de la empresa procesadora y comercializadora de café tostado y molido “Nasa Café” orientada a mejorar la economía en el Territorio Indígena de la Parcialidad de Huellas Caloto - Norte del Cauca, con el fortalecimiento a caficultores, construcción y dotación de infraestructura y comercialización","Agencia de Desarrollo Rural / Comunidad","Preinversión","Fase I",null,null,null,null,1450000000,null,null,500000000,null,null,null,null,null,500000000,{"$f":"+J11+S11","v":1950000000},"AGENCIA DE DESARROLLO RURAL","El proyecto cuenta con concepto jurídico favorable tanto para la organización como para el predio. En el componente ambiental, se avanza en la gestión del uso del suelo del predio “La Emperatriz”, mediante la radicación de la justificación técnica de viabilidad ante la Secretaría de Planeación Municipal de Caloto, encontrándose actualmente en espera de respuesta. De manera paralela, el equipo técnico de la ADR, en articulación con el resguardo, adelanta el rediseño de la planta de proceso, con el propósito de optimizar la infraestructura y garantizar la eficiencia del componente agroindustrial, en coherencia con las necesidades del proyecto.","Avanzar en la estructuración","Finalizar estructuración, Viabilidad","Revisión disponibilidad de recursos para cofinanciación","Ejecución","AGENCIA DE DESARROLLO RURAL"]
["Línea estratégica 4. Desarrollo Rural y Transformación Productiva ","(VDR)BP 3713 Impulsar la productividad y competitividad del grano de café, mediante la producción primaria y el beneficio como una apuesta al mejoramiento de la calidad del grano, atendiendo la integralidad técnica, organizacional, ambiental y comercial de los caficultores de la ANUC en el departamento de Cauca, los municipios beneficiarios serian: Argelia, Cajibío, Caldono, El Tambo, La Sierra, Morales, Popayán, Puracé, Rosas, Sotará, Sucre y Timbio.","Agencia de Desarrollo Rural /Comunidades","Inversión","Ejecución / Alistamiento",null,null,null,null,15509023746,null,null,13006394116,null,null,null,null,null,13006394116,28515417862,"AGENCIA DE DESARROLLO RURAL","BP 3713 - Resolución 101 de 2026. 31/03/2026: El PIDAR se encuentra en fase de alistamiento. El proyecto contempla el fortalecimiento de 24 organizaciones cafeteras en 11 municipios del Cauca mediante la dotación de equipos y maquinaria para centros de acopio y laboratorios de calidad, incluyendo kits para análisis físico y organoléptico del café, equipos de catación y métodos de extracción; además, incorpora la entrega de 9 vehículos de carga y la instalación de sistemas de energía renovable fotovoltaica para mejorar la agro logística. Igualmente, incluye la dotación de equipos y maquinaria para 4 plantas de procesamiento de café tostado y molido, con equipos como tostadoras, máquinas de espresso y otros implementos para tecnificar la transformación; la construcción de 3 centros de acopio y bodegas de café y la adecuación de 4 infraestructuras de mediana complejidad para almacenamiento, análisis y comercialización de café pergamino seco; y, de forma complementaria, asistencia técnica y formación integral.\nSe notificó por parte de la Dirección de Acceso a Activos Productivos a la Unidad Técnica Territorial #9 el 9 de marzo de 2026.\nSe cuenta con Certificado de Disponibilidad de Recursos desde el fondo Colombia en Paz.\nEn cuanto al proyecto: Fortalecimiento de la caficultura especial, sostenible, regenerativa y diversa, con articulación social e incluyente en el departamento del Cauca. $28.515.417.862\n$15.509.023.746 ADR excusivos para esta resolución.","Etapa de Alistamiento","Inicio de estructuración, evaluacion y adjudicación de TDR ","Etapa Contractual","Etapa Contractual y Entregas","AGENCIA DE DESARROLLO RURAL"]
[null,null,null,null,null,{"$f":"SUM(F4:F12)","v":4626371046},0,0,0,{"$f":"SUM(J4:J12)","v":58529718852},{"$f":"SUM(K4:K12)","v":0},0,23795348124,{"$f":"SUM(N4:N12)","v":0},{"$f":"SUM(O4:O12)","v":2273240968},{"$f":"SUM(P4:P12)","v":0},{"$f":"SUM(Q4:Q12)","v":0},{"$f":"SUM(R4:R12)","v":0},{"$f":"SUM(S4:S12)","v":23795348124},{"$f":"SUM(T4:T12)","v":82325066976}]
[]
[]
[null,null,null,null,null,null,null,null,null,null,null,null,null,null,null,null,null,null,null,null,null,"\n\nHace parte de los  8 proyectos asociados al Proyecto Integrador de Café en VDR, sube ya que cuenta con $ y viabilidad. \nProyecto Integrador de Café \"BP 3713 - Resolución 101 de 2025, ADR correo Febrero 2026. Con la anotación de que esta resolución esta todavía en proceso de notificación y tiempo de recursos si los hubiere de acuerdo con al articulo decimo segundo de la misma resolución.  \nEn cuanto al proyecto: Impulsar la productividad y competitividad del grano de café, mediante la producción primaria y el beneficio como una apuesta al mejoramiento de la calidad del grano, atendiendo la integralidad técnica, organizacional, ambiental y comercial de los caficultores de la ANUC en el departamento de Cauca, los municipios beneficiarios serian: Argelia, Cajibío, Caldono, El Tambo, La Sierra, Morales, Popayán, Puracé, Rosas, Sotará, Sucre y Timbio. $28.515.417.862\n$15.509.023.746 ADR - \n$13.006.394.116 - COOPERATIVA DEL SUR DEL CAUCA “COSURCA, en nombre propio y en representación de las otras 23 organizaciones beneficiarias."]

{"sheet":"MCIT 7","index":15,"n_rows":11,"n_cols":30,"rows_kept":11,"cut":false,"hidden":true,"merged":[[1,0,2,0],[1,29,2,29],[1,20,2,20],[1,21,2,21],[1,22,2,22],[1,23,2,23],[1,24,2,24],[1,25,1,28],[1,12,1,19],[1,1,2,1],[1,2,2,2],[1,3,2,3],[1,4,2,4],[1,7,1,11]]}
[]
["Línea estratégica","Nombre de la Iniciativa","Entidad Responsable ","Etapa del Proyecto *","Fase del Proyecto *",null,null,"Aporte Sector",null,null,null,null,"Aporte Territorio",null,null,null,null,null,null,null,"Otros recursos","Aportes Territorio / Otros","Inversión Total","Entidad Responsable ejecución proyecto","Observaciones / Acciones","Actividades a ejecutar",null,null,null,"Entidad Responsable de actividad"]
[null,null,null,null,null,2023,2024,2025,2026,2027,2028,"Total","Propios","SGR","Otros",2023,2025,2026,2027,2028,null,null,null,null,null,"Trimestre 2 -2026","Trimestre 3 - 2026","Trimestre 4 -2026 ","Trimestre 1 -2027"]
["Línea estratégica 4. Desarrollo Rural y Transformación Productiva ","Fomento del sistema económico propio e intercultural que promueve la conservación cultural, la sostenibilidad productiva y el fortalecimiento de los espacios de vida y el buen vivir de las familias indígenas del CRIC desde el turismo indígena. ","FONTUR","Inversión","Ejecución",null,null,null,null,null,null,{"$f":"SUM(F4:K4)","v":0},null,null,null,null,null,null,null,null,null,{"$f":"SUM(Q4:U4)","v":0},{"$f":"+L4+V4","v":0},"Ministerio de Comercio, Industria y Turismo - FONTUR","28/04/2026. Ejecución. Este proyecto corresponde a al fase II del proyecto por valor de $1.090 millones. Trimestre II se realizarán capacitaciones y 4 intercambios. \nDe la fase II de este proyecto, avanzar con los compromisos con las comunidades. ","Reporte de avance de ejecución con soportes","Reporte de avance de ejecución con soportes","Reporte de avance de ejecución con soportes","Reporte de avance de ejecución con soportes","Ministerio de Comercio, Industria y Turismo - FONTUR"]
["Línea estratégica 4. Desarrollo Rural y Transformación Productiva ","Centros de Reindustrialización - ZASCAS","Ministerio de Comercio, Industria y Turismo","Inversión","Ejecución",3016949670,null,null,null,null,null,3016949670,"N/A","N/A","N/A",null,"N/A","N/A","N/A","N/A","N/A",{"$f":"SUM(Q5:U5)","v":0},{"$f":"+L5+V5","v":3016949670},"Ministerio de Comercio, Industria y Turismo a través de su patrimonio autónomo iNNpulsa Colombia","22/04/2026. $3.016 comprometidos. Ejecución-Operación. Avance técnico 53% Financiero 39% febrero 2026. Este programa se ejecuta mediante un aporte realizado en la vigencia 2023 por valor de $3.016.949.670 ejecutado por el PA; este recurso permite mantener el programa en operación hasta el 2026. Su financiación para vigencias posteriores esta en función de los procesos de discusión de los anteproyectos de presupuesto nacional para esas vigencias. No corresponde a un proyecto si no a un programa del Ministerio/Misionalidad.","Reporte de avance de ejecución con soportes","Reporte de avance de ejecución con soportes","Reporte de avance de ejecución con soportes","Finalización, liquidación, ","Ministerio de Comercio, Industria y Turismo a través de su patrimonio autónomo iNNpulsa Colombia"]
["Línea estratégica 4. Desarrollo Rural y Transformación Productiva ","Empretur - Litoral Pacífico","Ministerio de Comercio, Industria y Turismo - FONTUR","Operación","Ejecución",2265810107,null,0,0,0,0,2265810107,"N/A","N/A","N/A",null,"N/A","N/A","N/A","N/A","N/A",{"$f":"SUM(Q6:U6)","v":0},{"$f":"+L6+V6","v":2265810107},"Ministerio de Comercio, Industria y Turismo a través de su patrimonio autónomo iNNpulsa Colombia","22/04/2026. $2.265 millones comprometido. Ejecución-Operación. Avance tecnico 67% y 35% financiero diciembre 2025. Este programa se ejecuta mediante un aporte realizado en la vigencia 2023 por valor de $2.265.810.107; este recurso permite mantener el programa en operación hasta el 2026. Su financiación para vigencias posteriores esta en función de los procesos de discusión de los anteproyectos de presupuesto nacional para esas vigencias. No corresponde a un proyecto si no a un programa del Ministerio/Misionalidad.","Reporte de avance de ejecución con soportes","Reporte de avance de ejecución con soportes","Reporte de avance de ejecución con soportes","Finalización, liquidación, ","Ministerio de Comercio, Industria y Turismo a través de su patrimonio autónomo iNNpulsa Colombia"]
["Línea estratégica 4. Desarrollo Rural y Transformación Productiva ","Estudios, diseños complementarios y construccion de obras de infraestructura turística para el PNN - Gorgona","Ministerio de Comercio, Industria y Turismo - FONTUR","Inversión","Ejecución",null,null,8179834165,646017680,0,0,8825851845,"N/A","N/A","N/A",null,"N/A","N/A","N/A","N/A","N/A",{"$f":"SUM(Q7:U7)","v":0},{"$f":"+L7+V7","v":8825851845},"Ministerio de Comercio, Industria y Turismo a través de su patrimonio autónomo Fontur","22/04/2026. $8.825 millones comprometidos. Ejecución, avance financiero 5%. De acuerdo con el Convenio de Cooperación FNTC-422-2024 la contratación derivada esta a Cargo de Patrimonio Natural Fondo para la Biodiversidad y áreas protegidas. Finaliza ejecución en diciembre 2026.","Reporte de avance de ejecución con soportes","Reporte de avance de ejecución con soportes","Reporte de avance de ejecución con soportes","Reporte de avance de ejecución con soportes","Ministerio de Comercio, Industria y Turismo a través de su patrimonio autónomo Fontur"]
["Línea estratégica 4. Desarrollo Rural y Transformación Productiva ","Construcción del CentroTematico Chicao en el municipio de Santander de Quilichao, Departamento del Cauca","Ministerio de Comercio, Industria y Turismo","Inversión","Ejecución",null,null,13174195226,0,0,0,13174195226,"N/A","N/A","N/A",null,1944070000,0,0,0,0,{"$f":"SUM(P8:U8)","v":1944070000},15118265226,"Ministerio de Comercio, Industria y Turismo a través de su patrimonio autónomo Fontur","22/04/2026. $15.118 millones (Fontur y Municipio de Sandanter de Quilichao). Por Iniciar Actividades. A la fecha esta pendiente el inicio de la contratación derivada. Plazo 7 meses.","Inicio de Actividades, , Reporte de avance de ejecución con soportes","Reporte de avance de ejecución con soportes","Reporte de avance de ejecución con soportes","Finalización, liquidación, ","Ministerio de Comercio, Industria y Turismo a través de su patrimonio autónomo Fontur"]
["Línea estratégica 4. Desarrollo Rural y Transformación Productiva ","Construcción y adecuación de la plazoleta regional de la Paz como escenario de promoción intercultural, turístico y de emprendimiento en el municipio de Miranda Cauca.","Ministerio de Comercio, Industria y Turismo","Inversión","Terminado",12271839706,null,0,0,0,0,{"$f":"SUM(F9:K9)","v":12271839706},"N/A","N/A","N/A",2662060474,0,"N/A","N/A","N/A","N/A",{"$f":"SUM(P9:U9)","v":2662060474},14933900180,"Ministerio de Comercio, Industria y Turismo a través de su patrimonio autónomo Fontur","22/04/2026. $14.933 millones ejecutados (Fontur y Municipio Miranda). Terminado. Proyecto entregado y recibido a satisfacción por el Municipio de Miranda (Cauca) el 11 de septiembre de 2025, actualmente se encuentra en proceso de cierre y posterior liquidación","Actualización información con soportes ","Finalización, liquidación, ",null,null,"Ministerio de Comercio, Industria y Turismo a través de su patrimonio autónomo Fontur"]
["Línea estratégica 4. Desarrollo Rural y Transformación Productiva ","Línea de crédito de agroindustria para empresas con códigos de actividades económicas específicas del sector económico agroindustrial / municipios del Cañón del Micay.","Ministerio de Comercio, Industria y Turismo","Operación","Ejecución",null,null,4645703939,0,0,0,{"$f":"SUM(F10:K10)","v":4645703939},"N/A","N/A","N/A",null,"N/A","N/A","N/A","N/A","N/A",0,4645703939,"Ministerio de Comercio, Industria y Turismo a través de Bancóldex","22/04/2026. $4.645 millones. Operación. La línea de crédito esta dispuesta desde abril de 2025 (Bamcoldex) y su vigencia es hasta agotar recursos, con corte al mes de marzo de 2026 no se han presentado solicitudes de crédito con cargo a esta línea para los municipios de Argelia, El Tambo, López de Micay, Guapi y Timbiquí. No corresponde a un proyecto, se considera un programa.","Reporte de avance de ejecución con soportes","Reporte de avance de ejecución con soportes","Reporte de avance de ejecución con soportes","Reporte de avance de ejecución con soportes","Ministerio de Comercio, Industria y Turismo"]
[null,null,null,null,null,null,null,{"$f":"SUM(H4:H10)","v":25999733330},646017680,0,0,44200350493,0,0,0,null,1944070000,0,0,0,0,4606130474,{"$f":"SUM(W4:W10)","v":48806480967}]

{"sheet":"DPS 23","index":16,"n_rows":27,"n_cols":27,"rows_kept":27,"cut":false,"hidden":true,"merged":[[1,0,2,0],[1,26,2,26],[1,17,2,17],[1,18,2,18],[1,19,2,19],[1,20,2,20],[1,21,2,21],[1,22,1,25],[1,10,1,16],[1,1,2,1],[1,2,2,2],[1,3,2,3],[1,4,2,4],[1,5,1,9]]}
[]
["Línea estratégica","Nombre de la Iniciativa","Entidad Responsable ","Etapa del Proyecto *","Fase del Proyecto *","Aporte Sector",null,null,null,null,"Aporte Territorio",null,null,null,null,null,null,"Otros recursos","Aportes Territorio / Otros","Inversión Total","Entidad Responsable ejecución proyecto","Observaciones / Acciones","Actividades a ejecutar",null,null,null,"Entidad Responsable de actividad"]
[null,null,null,null,null,2025,2026,2027,2028,"Total","Propios","SGR","Otros",2025,2026,2027,2028,null,null,null,null,null,"Trimestre 2 -2026","Trimestre 3 - 2026","Trimestre 4 -2026 ","Trimestre 1 -2027"]
["Línea estratégica 4. Desarrollo Rural y Transformación Productiva ","Plaza De Mercado de Puerto Tejada","Departamento Administrativo de Prosperidad Social","Inversión","Contratación",null,null,null,null,{"$f":"SUM(F4:I4)","v":0},null,null,null,null,null,null,null,null,{"$f":"SUM(N4:R4)","v":0},{"$f":"+J4+S4","v":0},null,"No Iniciado, En viabilidadPROYECTO PRIORIZADO MEDIANTE CONVENIO # 911-FIP-2024 .\nEstado Convenio: Suscrito con el municipio\nA 30 de septiembre del 2025, el proceso de obra y consultaría se encuentran en proceso de evaluación y observaciones, se sacó a publicación con las plazas de Tumaco y  Argelia. \nRespecto a la contratación derivada de la Interventoría el estado es el siguiente: El proceso de estructuración, se declaro fallido y se debe publicar nuevamente."]
["Línea estratégica 4. Desarrollo Rural y Transformación Productiva ","Plaza De Mercado Argelia","Departamento Administrativo de Prosperidad Social","Inversión","Contratación",null,null,null,null,{"$f":"SUM(F5:I5)","v":0},null,null,null,null,null,null,null,null,{"$f":"SUM(N5:R5)","v":0},{"$f":"+J5+S5","v":0},null,"0 No Iniciado, En viabilidadPROYECTO PRIORIZADO MEDIANTE CONVENIO # 911-FIP-2024 .\nEstado Convenio: Suscrito con el municipio\nA 30 de septiembre del 2025, el proceso de obra y consultaría se encuentran en proceso de evaluación y observaciones, se sacó a publicación con las plazas de Tumaco y Puerto Tejada. \nRespecto a la contratación derivada de la Interventoría el estado es el siguiente: Se recomienda adjudicar el 22 de agosto de 2025 con ALIANZA INTEGRAL DE PROYECTOS SAS BIC por la suma de Mil ciento ochenta y tres millones trescientos ochenta y cuatro mil ochocientos sesenta y dos pesos con noventa centavos M/CTE ($1.183.384.862,90), el proceso se suspendió el 25 de agosto de 2025,"]
["Línea estratégica 4. Desarrollo Rural y Transformación Productiva ","Plaza De Mercado de El Tambo","Departamento Administrativo de Prosperidad Social","Inversión","Contratación",null,null,null,null,{"$f":"SUM(F6:I6)","v":0},null,null,null,null,null,null,null,null,0,0,null,"0 No Iniciado, En viabilidadPROYECTO PRIORIZADO MEDIANTE CONVENIO # 911-FIP-2024 . Estado Convenio: Suscrito con el municipio\nLa Contratación derivada de la Consultaría, obra e interventoría , en procesos precontractuales, documentación Técnica en estructuración para publicación en SECOP II. Se requiere surtir modificación del contrato de fiducia para poder tener el soporte presupuestal."]
["Línea estratégica 4. Desarrollo Rural y Transformación Productiva ","Punto de Abastecimiento Solidario en Argelia","Departamento Administrativo de Prosperidad Social","Preinversión","Fase III",null,null,null,null,{"$f":"SUM(F7:I7)","v":0},null,null,null,null,null,null,null,null,0,0,null,"0 No Iniciado, En viabilidadEl proyecto se encuentra viabilizado, en proceso de ESTUDIOS Y DISEÑOS y un avance de obra de 0%"]
["Línea estratégica 4. Desarrollo Rural y Transformación Productiva ","Punto de Abastecimiento Solidario en Balboa","Departamento Administrativo de Prosperidad Social","Preinversión","Fase III",null,null,null,null,null,null,null,null,null,null,null,null,null,0,0,null,"0 No Iniciado, En estructuraciónEl proyecto se encuentra viabilizado, en proceso de ESTUDIOS Y DISEÑOS y un avance de obra de 0%"]
["Línea estratégica 4. Desarrollo Rural y Transformación Productiva ","Punto de Abastecimiento Solidario en Cajibío","Departamento Administrativo de Prosperidad Social","Inversión","Ejecución",null,null,null,null,null,null,null,null,null,null,null,null,null,0,0,null,"0 No Iniciado, En estructuraciónEl proyecto se encuentra viabilizado, en proceso de ESTUDIOS Y DISEÑOS y un avance de obra de 0%, se inició la ejecución y se proyecta terminación para abril de 2026"]
["Línea estratégica 4. Desarrollo Rural y Transformación Productiva ","Punto de Abastecimiento Solidario en Caldono","Departamento Administrativo de Prosperidad Social","Inversión","Ejecución",null,null,null,null,null,null,null,null,null,null,null,null,null,0,0,null,"0 No Iniciado, En estructuraciónEl proyecto se encuentra viabilizado, en proceso de ESTUDIOS Y DISEÑOS y un avance de obra de 0%, se inició la ejecución y se proyecta terminación para abril de 2026"]
["Línea estratégica 4. Desarrollo Rural y Transformación Productiva ","Punto de Abastecimiento Solidario en Caloto  ","Departamento Administrativo de Prosperidad Social","Preinversión","Sin información clara",null,null,null,null,null,null,null,null,null,null,null,null,null,0,0,null,"0 No Iniciado, En estructuración"]
["Línea estratégica 4. Desarrollo Rural y Transformación Productiva ","Punto de Abastecimiento Solidario en Corinto","Departamento Administrativo de Prosperidad Social","Preinversión","Fase III",null,null,null,null,null,null,null,null,null,null,null,null,null,0,0,null,"0 No Iniciado, En estructuraciónEl proyecto se encuentra viabilizado, en proceso de ESTUDIOS Y DISEÑOS y un avance de obra de 0%"]
["Línea estratégica 4. Desarrollo Rural y Transformación Productiva ","Punto de Abastecimiento Solidario en El Tambo","Departamento Administrativo de Prosperidad Social","Preinversión","Fase III",null,null,null,null,null,null,null,null,null,null,null,null,null,0,0,null,"0 No Iniciado, En estructuraciónEl proyecto se encuentra viabilizado, en proceso de ESTUDIOS Y DISEÑOS y un avance de obra de 0%"]
["Línea estratégica 4. Desarrollo Rural y Transformación Productiva ","Punto de Abastecimiento Solidario en Guapi","Departamento Administrativo de Prosperidad Social","Preinversión","Fase III",null,null,null,null,null,null,null,null,null,null,null,null,null,0,0,null,"0 No Iniciado, En estructuraciónEl proyecto se encuentra viabilizado, en proceso de ESTUDIOS Y DISEÑOS y un avance de obra de 0%, se inició la ejecución y se proyecta terminación para abril de 2026"]
["Línea estratégica 4. Desarrollo Rural y Transformación Productiva ","Punto de Abastecimiento Solidario en Jámbalo","Departamento Administrativo de Prosperidad Social","Inversión","Ejecución",null,null,null,null,null,null,null,null,null,null,null,null,null,0,0,null,"0 No Iniciado, En estructuración El proyecto se encuentra viabilizado, en proceso de ESTUDIOS Y DISEÑOS y un avance de obra de 0%, se inició la ejecución y se proyecta terminación para abril de 2026"]
["Línea estratégica 4. Desarrollo Rural y Transformación Productiva ","Punto de Abastecimiento Solidario en Mercaderes","Departamento Administrativo de Prosperidad Social","Inversión","Ejecución",null,null,null,null,null,null,null,null,null,null,null,null,null,0,0,null,"0 No Iniciado, En estructuraciónEl proyecto se encuentra viabilizado, en proceso de ESTUDIOS Y DISEÑOS y un avance de obra de 0%, se inició la ejecución y se proyecta terminación para abril de 2026"]
["Línea estratégica 4. Desarrollo Rural y Transformación Productiva ","Punto de Abastecimiento Solidario en Miranda","Departamento Administrativo de Prosperidad Social","Inversión","Ejecución",null,null,null,null,null,null,null,null,null,null,null,null,null,0,0,null,"0 No Iniciado, En estructuraciónEl proyecto se encuentra viabilizado, en proceso de ESTUDIOS Y DISEÑOS y un avance de obra de 0%, se inició la ejecución y se proyecta terminación para abril de 2026"]
["Línea estratégica 4. Desarrollo Rural y Transformación Productiva ","Punto de Abastecimiento Solidario en Morales","Departamento Administrativo de Prosperidad Social","Inversión","Ejecución",null,null,null,null,null,null,null,null,null,null,null,null,null,0,0,null,"0 No Iniciado, En estructuraciónEl proyecto se encuentra viabilizado, en proceso de ESTUDIOS Y DISEÑOS y un avance de obra de 0%, se inició la ejecución y se proyecta terminación para abril de 2026"]
["Línea estratégica 4. Desarrollo Rural y Transformación Productiva ","Punto de Abastecimiento Solidario en Patía","Departamento Administrativo de Prosperidad Social","Inversión","Ejecución",null,null,null,null,null,null,null,null,null,null,null,null,null,0,0,null,"0 No Iniciado, En estructuraciónEl proyecto se encuentra viabilizado, en proceso de ESTUDIOS Y DISEÑOS y un avance de obra de 0%, se inició la ejecución y se proyecta terminación para abril de 2026"]
["Línea estratégica 4. Desarrollo Rural y Transformación Productiva ","Punto de Abastecimiento Solidario en Popayán","Departamento Administrativo de Prosperidad Social","Preinversión","Fase III",null,null,null,null,null,null,null,null,null,null,null,null,null,0,0,null,"0 No Iniciado, En estructuraciónEl proyecto se encuentra viabilizado, en proceso de ESTUDIOS Y DISEÑOS y un avance de obra de 0%"]
["Línea estratégica 4. Desarrollo Rural y Transformación Productiva ","Punto de Abastecimiento Solidario en Santander de Quilichao","Departamento Administrativo de Prosperidad Social","Preinversión","Fase III",null,null,null,null,null,null,null,null,null,null,null,null,null,0,0,null,"0 No Iniciado, En estructuraciónEl proyecto se encuentra viabilizado, en proceso de ESTUDIOS Y DISEÑOS y un avance de obra de 0%"]
["Línea estratégica 4. Desarrollo Rural y Transformación Productiva ","Punto de Abastecimiento Solidario en Timbiquí ","Departamento Administrativo de Prosperidad Social","Preinversión","Sin información clara",null,null,null,null,null,null,null,null,null,null,null,null,null,0,0,null,"0 No Iniciado, En estructuración"]
["Línea estratégica 4. Desarrollo Rural y Transformación Productiva ","Punto de Abastecimiento Solidario en Toribio","Departamento Administrativo de Prosperidad Social","Inversión","Ejecución",null,null,null,null,null,null,null,null,null,null,null,null,null,0,0,null,"0 No Iniciado, En estructuraciónEl proyecto se encuentra viabilizado, en proceso de ESTUDIOS Y DISEÑOS y un avance de obra de 0%, se inició la ejecución y se proyecta terminación para abril de 2026"]
["Línea estratégica 4. Desarrollo Rural y Transformación Productiva ","Malecón Sobre El Rio Suárez","Departamento Administrativo de Prosperidad Social","Inversión","Contratación",null,null,null,null,{"$f":"SUM(F24:I24)","v":0},null,null,null,null,null,null,null,null,0,0,null,"0 No Iniciado, En viabilidadPROYECTO PRIORIZADO MEDIANTE CONVENIO # 911-FIP-2024 . Convenio Suscrito con el municipio\nDocumentación Técnica en estructuración para publicación en SECOP II. Se requiere surtir modificación del contrato de fiducia para poder tener el soporte presupuestal.\n"]
["Línea estratégica 4. Desarrollo Rural y Transformación Productiva ","Construcción Plaza de Mercado de López de Micay Cauca","Departamento Administrativo de Prosperidad Social","Inversión","Contratación",null,null,null,null,{"$f":"SUM(F25:I25)","v":0},null,null,null,null,null,null,null,null,0,0,null,"0 No Iniciado, En viabilidadPROYECTO PRIORIZADO MEDIANTE CONVENIO # 911-FIP-2024 .\nEstado Convenio: Suscrito con el municipio\nLa Contratación derivada de la Consultaría, obra e interventoría , en procesos precontractuales, documentación Técnica en estructuración para publicación en SECOP II. Se requiere surtir modificación del contrato de fiducia para poder tener el soporte presupuestal.\n"]
["7. Infraestructura de Transporte ","Placa Huella en Suárez​","Departamento Administrativo de Prosperidad Social",null,null,null,null,null,null,0,null,null,null,null,null,null,null,null,0,0,null,"9/12/2025. PROYECTO PRIORIZADO MEDIANTE CONVENIO # 911-FIP-2024.  30 de septiembre del 2025, con convenio suscrito con el municipio de Suarez. Para la contratación derivada para la Consultoría y 0bra el proceso de contratación derivada se ha publicado dos veces y se ha declarado fallido, se encuentra nuevamente en proceso de publicación. \nRespecto a la contratación derivada de interventoría, el estado es el siguiente: No se cuenta con contratistas seleccionados se espera publicar los procesos de selección durante el mes de diciembre de 2025."]
[null,null,null,null,null,{"$f":"SUM(F24:F26)","v":0},0,0,0,0,0,0,0,0,0,0,0,0,0,{"$f":"SUM(T24:T26)","v":0}]

{"sheet":"IGAC 13","index":17,"n_rows":17,"n_cols":27,"rows_kept":17,"cut":false,"hidden":true,"merged":[[1,0,2,0],[1,26,2,26],[1,17,2,17],[1,18,2,18],[1,19,2,19],[1,20,2,20],[1,21,2,21],[1,22,1,25],[1,10,1,16],[1,1,2,1],[1,2,2,2],[1,3,2,3],[1,4,2,4],[1,5,1,9]]}
[]
["Línea estratégica","Nombre de la Iniciativa","Entidad Responsable ","Etapa del Proyecto *","Fase del Proyecto *","Aporte Sector",null,null,null,null,"Aporte Territorio",null,null,null,null,null,null,"Otros recursos","Aportes Territorio / Otros","Inversión Total","Entidad Responsable ejecución proyecto","Observaciones / Acciones","Actividades a ejecutar",null,null,null,"Entidad Responsable de actividad"]
[null,null,null,null,null,2025,2026,2027,2028,"Total","Propios","SGR","Otros",2025,2026,2027,2028,null,null,null,null,null,"Trimestre 2 -2026","Trimestre 3 - 2026","Trimestre 4 -2026 ","Trimestre 1 -2027"]
["Línea estratégica 4. Desarrollo Rural y Transformación Productiva ","Actualización catastral Almaguer","IGAC - Instituto Geográfico Agustín Codazzi","Inversión","Contratación",null,null,null,null,{"$f":"SUM(F4:I4)","v":0},null,null,null,null,null,null,null,null,{"$f":"SUM(N4:R4)","v":0},{"$f":"+J4+S4","v":0},null,"0 No Iniciado, En estructuración0,0911Actualmente se encuentra en proceso de evaluación las propuestas remitidas por los oferentes"]
["Línea estratégica 4. Desarrollo Rural y Transformación Productiva ","Actualización catastral El Tambo","IGAC - Instituto Geográfico Agustín Codazzi","Inversión","Ejecución",null,null,null,null,0,null,null,null,null,null,null,null,null,0,0,null,"9009284952 En Ejecución, En ejecución de obra0,749194425394139Lo correspondiente a la zona urbana entró en vigencia en 2025. Por otra parte, lo correspondiente a la información en zona rural fuera de territorios étnicos formalizados está previsto que entre en vigencia en 2026."]
["Línea estratégica 4. Desarrollo Rural y Transformación Productiva ","Actualización catastral Mercaderes","IGAC - Instituto Geográfico Agustín Codazzi","Inversión","Ejecución",null,null,null,null,0,null,null,null,null,null,null,null,null,0,0,null,"5622405454 En Ejecución, En ejecución de obra0,1845Actualmente en ejecución en el marco del Convenio de Cooperación Técnica entre IGAC y FAO."]
["Línea estratégica 4. Desarrollo Rural y Transformación Productiva ","Actualización catastral Inzá","IGAC - Instituto Geográfico Agustín Codazzi","Inversión","Ejecución",null,null,null,null,0,null,null,null,null,null,null,null,null,0,0,null,"5564125714 En Ejecución, En ejecución de obra0,18066Actualmente en ejecución en el marco del Convenio de Cooperación Técnica entre IGAC y FAO."]
["Línea estratégica 4. Desarrollo Rural y Transformación Productiva ","Actualización catastral Piamonte","IGAC - Instituto Geográfico Agustín Codazzi","Inversión","Ejecución",null,null,null,null,0,null,null,null,null,null,null,null,null,0,0,null,"5447394451 En Ejecución, En ejecución de obra0,321200367602498El municipio se ejecuta por modelo de operación tercerizado y está previsto que la información resultado del proceso de actualización catastral se ponga en vigencia en 2026."]
["Línea estratégica 4. Desarrollo Rural y Transformación Productiva ","Actualización catastral Cajibío","IGAC - Instituto Geográfico Agustín Codazzi","Inversión","Ejecución",null,null,null,null,0,null,null,null,null,null,null,null,null,0,0,null,"4190085530 En Ejecución, En ejecución de obra0,58464917285456El municipio se ejecuta por modelo de operación directa y está previsto que la información resultado del proceso de actualización catastral se ponga en vigencia en 2026."]
["Línea estratégica 4. Desarrollo Rural y Transformación Productiva ","Actualización catastral Patía","IGAC - Instituto Geográfico Agustín Codazzi","Inversión","Ejecución",null,null,null,null,0,null,null,null,null,null,null,null,null,0,0,null,"4090286067 En Ejecución, En ejecución de obra0,244735468102033El municipio se ejecuta por modelo de operación directa y está previsto que la información resultado del proceso de actualización catastral se ponga en vigencia en 2027."]
["Línea estratégica 4. Desarrollo Rural y Transformación Productiva ","Actualización catastral Argelia","IGAC - Instituto Geográfico Agustín Codazzi","Inversión","Terminación anticipada",null,null,null,null,0,null,null,null,null,null,null,null,null,0,0,null,"0 No Iniciado, Desistido/caducado0,178869445751066El municipio se retira del Plan Operativo de Formación y/o actualización catastral con enfoque multipropósito 2025-2026 teniendo condiciones de seguridad en ekl municipio"]
["Línea estratégica 4. Desarrollo Rural y Transformación Productiva ","Actualización catastral Sucre","IGAC - Instituto Geográfico Agustín Codazzi","Inversión","Contratación",null,null,null,null,0,null,null,null,null,null,null,null,null,0,0,null,"0 No Iniciado, En estructuración0,114Actualmente se encuentra en proceso de evaluación las propuestas remitidas por los oferentes"]
["Línea estratégica 4. Desarrollo Rural y Transformación Productiva ","Actualización catastral Florencia","IGAC - Instituto Geográfico Agustín Codazzi","Inversión","Ejecución",null,null,null,null,0,null,null,null,null,null,null,null,null,0,0,null,"3261334360 En Ejecución, En ejecución de obra0,185308619260724Actualmente en ejecución en el marco del Convenio de Cooperación Técnica entre IGAC y FAO."]
["Línea estratégica 4. Desarrollo Rural y Transformación Productiva ","Actualización catastral Miranda","IGAC - Instituto Geográfico Agustín Codazzi","Inversión","Terminado",null,null,null,null,0,null,null,null,null,null,null,null,null,0,0,null,"3250675512 Terminado, Ejecutado0,963621382027131Lo correspondiente a la zona urbana y rural fuera de Territorios Étnicos Formalizados entró en vigencia en 2025. "]
["Línea estratégica 4. Desarrollo Rural y Transformación Productiva ","Actualización catastral Guachené","IGAC - Instituto Geográfico Agustín Codazzi","Inversión","Ejecución",null,null,null,null,0,null,null,null,null,null,null,null,null,0,0,null,"3115836458 En Ejecución, En ejecución de obra0,561280652555065El municipio se ejecuta por modelo de operación directa y está previsto que la información resultado del proceso de actualización catastral se ponga en vigencia en 2026."]
["Línea estratégica 4. Desarrollo Rural y Transformación Productiva ","Actualización catastral Padilla","IGAC - Instituto Geográfico Agustín Codazzi","Inversión","Ejecución",null,null,null,null,0,null,null,null,null,null,null,null,null,0,0,null,"2111434549 En Ejecución, En ejecución de obra0,704394328795725El municipio se ejecuta por modelo de operación directa y está previsto que la información resultado del proceso de actualización catastral se ponga en vigencia en 2026."]
[null,null,null,null,null,{"$f":"SUM(F4:F16)","v":0},0,0,0,{"$f":"SUM(J4:J16)","v":0},{"$f":"SUM(K4:K16)","v":0},0,0,0,0,0,0,0,0,0]

{"sheet":"MADR 1","index":18,"n_rows":5,"n_cols":26,"rows_kept":5,"cut":false,"hidden":true,"merged":[[1,25,2,25],[1,16,2,16],[1,17,2,17],[1,18,2,18],[1,19,2,19],[1,20,2,20],[1,21,1,24],[1,9,1,15],[1,0,2,0],[1,1,2,1],[1,2,2,2],[1,3,2,3],[1,4,1,8]]}
[]
["Nombre de la Iniciativa","Entidad Responsable ","Etapa del Proyecto *","Fase del Proyecto *","Aporte Sector",null,null,null,null,"Aporte Territorio",null,null,null,null,null,null,"Otros recursos","Aportes Territorio / Otros","Inversión Total","Entidad Responsable ejecución proyecto","Observaciones / Acciones","Actividades a ejecutar",null,null,null,"Entidad Responsable de actividad"]
[null,null,null,null,2025,2026,2027,2028,"Total","Propios","SGR","Otros",2025,2026,2027,2028,null,null,null,null,null,"Trimestre 2 -2026","Trimestre 3 - 2026","Trimestre 4 -2026 ","Trimestre 1 -2027"]
["Implementación de sistemas agroforestales sostenibles con componentes de asistencia técnica, transformación industrial y procesos de comercialización","Ministerio de Agricultura y Desarrollo Rural - FRISCO",null,null,null,null,null,null,{"$f":"SUM(E4:H4)","v":0},null,null,null,null,null,null,null,null,{"$f":"SUM(M4:Q4)","v":0},{"$f":"+I4+R4","v":0},null,"Corresponde al proyecto en DSCI"]
[null,null,null,null,null,null,null,null,null,null,null,null,null,null,null,null,null,null,null,null,{"$f":"+'DSCI 3'!B5","v":"Transformación ecológica y productiva de zonas degradadas por cultivos de uso ilícito en áreas de especial importancia ambiental en los departamentos de Nariño, Cauca y Chocó (Sistemas agroforestales de cacao)."}]

{"sheet":"SALUD 10+","index":19,"n_rows":16,"n_cols":31,"rows_kept":16,"cut":false,"hidden":true,"merged":[[1,0,2,0],[1,30,2,30],[1,21,2,21],[1,22,2,22],[1,23,2,23],[1,24,2,24],[1,25,2,25],[1,26,1,29],[1,13,1,20],[1,1,2,1],[1,2,2,2],[1,3,2,3],[1,4,2,4],[1,6,1,12]]}
[]
["Línea estratégica","Nombre de la Iniciativa","Entidad Responsable ","Etapa del Proyecto *","Fase del Proyecto *",null,"Aporte Sector",null,null,null,null,null,null,"Aporte Territorio",null,null,null,null,null,null,null,"Otros recursos","Aportes Territorio / Otros","Inversión Total","Entidad Responsable ejecución proyecto","Observaciones / Acciones","Actividades a ejecutar",null,null,null,"Entidad Responsable de actividad"]
[null,null,null,null,null,2024,2025,2026,2027,2028,2029,2030,"Total","Propios","SGR","Otros",2024,2025,2026,2027,2028,null,null,null,null,null,"Trimestre 2 -2026","Trimestre 3 - 2026","Trimestre 4 -2026 ","Trimestre 1 -2027"]
["Línea estratégica 5. Salud ","Hospital del segundo nivel del Patía","Ministerio de Salud y Protección Social /Gobernación","Inversión","Fase I",0,0,11100000000,5000000000,5350000000,8550000000,7000000000,{"$f":"SUM(F4:L4)","v":37000000000},0,0,0,0,0,0,0,0,0,{"$f":"SUM(R4:V4)","v":0},{"$f":"+M4+W4","v":37000000000},"HOSPITAL SUSANA LOPEZ DE VALENCIA EMPRESA SOCIAL DEL ESTADO","$37.000 millones. Fase I - Con Asignación de Recursos. Desde el MSPS se realiza asignación de resursos mediante RESOLUCIÓN 2733_2806 DEL 2025. CONPES 4169 del 2025. \nNombre del proyecto: HOSPITAL DEL SEGUNDO NIVEL DEL PATÍA​\nEl proyecto se encuentra en etapa de iniciativa. Actualmente no cuenta con cofinanciación.","Presentación del proyecto ante la fuente de financiación","Estructuración del proyecto","Viabilización del proyecto ante la cabeza del sector","Revisión y aprobación del proyecto por la fuente de financiación","HOSPITAL SUSANA LOPEZ DE VALENCIA EMPRESA SOCIAL DEL ESTADO"]
["Línea estratégica 5. Salud ","Reposición de la unidad de atención en salud Suárez – Cauca","Ministerio de Salud y Protección Social ","Inversión","Fase I",0,0,2750170869,4000000000,6580756778,5749861875,15000000000,{"$f":"SUM(F5:L5)","v":34080789522},0,0,0,0,0,0,0,0,0,{"$f":"SUM(R5:V5)","v":0},{"$f":"+M5+W5","v":34080789522},"EMPRESA SOCIAL DEL ESTADO NORTE 1 E.S.E","$34.080 millones. Evaluación Técnica Fase I- Con Recursos asignados. ESE NORTE 1. Desde el MSPS se realiza asignación de resursos mediante RESOLUCIÓN 2733 DEL 2025. CONPES 4169 del 2025.\nNombre del proyecto: REPOSICIÓN DE LA UNIDAD DE ATENCIÓN EN SALUD DE SUÁREZ – ESE NORTE 1\nEl proyecto se encuentra en etapa de evaluación","Revisión técnica del proyecto por Sector ","Actualización información con soportes ","Revisión y aprobación del proyecto por la fuente de financiación","Viabilización del proyecto ante la cabeza del sector","EMPRESA SOCIAL DEL ESTADO NORTE 1 E.S.E en conjunto con el MINISTERIO DE SALUD Y PROTECCIÓN SOCIAL"]
["Línea estratégica 5. Salud ","Construcción De La Unidad De Atención En Salud El Plateado, E.S.E. Suroccidente Cauca","Ministerio de Salud y Protección Social ","Inversión","Ejecución",22458423926,0,0,0,0,0,0,22458423926,0,0,0,0,0,0,0,0,0,{"$f":"SUM(R6:V6)","v":0},{"$f":"+M6+W6","v":22458423926},"E.S.E. Suroccidente Cauca","$22.458 millones comprometido. Ejecución/Suspendido.  Avance 31.50%.  Desde el MSPS se realiza asignación de resursos mediante RESOLUCIÓN 898 DEL 2024\nNombre del proyecto: CONSTRUCCIÓN DE LA UNIDAD DE ATENCIÓN EN SALUD EL PLATEADO, ESE SUROCCIDENTE CAUCA\nEl proyecto se encuentra en etapa de ejecución, sin embargo se encuentra suspendido. Avance físico de obra 31.50%.","Reporte de avance de ejecución con soportes, Actualización información con soportes ","Reporte de avance de ejecución con soportes","Reporte de avance de ejecución con soportes","Finalización, liquidación, ","E.S.E. Suroccidente Cauca"]
["Línea estratégica 5. Salud ","Reposición de la infraestructura física de la unidad nivel 1 López de Micay, unidad de atención de la E.S.E. occidente, departamento del Cauca  ","Ministerio de Salud y Protección Social ","Inversión","Ejecución",0,44165636109,0,0,0,0,0,44165636109,0,0,0,0,0,0,0,0,0,{"$f":"SUM(R7:V7)","v":0},{"$f":"+M7+W7","v":44165636109},"EMPRESA SOCIAL DEL ESTADO OCCIDENTE E.S.E","$44.165 millones. Ejecución. Avance 2%. Desde el MSPS se realiza asignación de resursos mediante RESOLUCIÓN 1023 DEL 2025\nNombre del proyecto: REPOSICIÓN DE LA INFRAESTRCUTURA FISICA DE LA UNIDAD NIVEL I LOPEZ DE MICAY, PUNTO DE ATENCIÓN DE LA ESE OCCIDENTE, DEPARTAMENTO DEL CAUCA\nEl proyecto se encuentra en etapa de ejecución. Avance 2% iniciaron obra el 12 febrero de 2026.","Reporte de avance de ejecución con soportes, Actualización información con soportes ","Reporte de avance de ejecución con soportes","Reporte de avance de ejecución con soportes","Finalización, liquidación, ","EMPRESA SOCIAL DEL ESTADO OCCIDENTE E.S.E"]
["Línea estratégica 5. Salud ","Construcción de la planta física para la reubicación de servicios de consulta externa y áreas administrativas Hospital Susana López de Valencia  E.S.E.","Ministerio de Salud y Protección Social ","Inversión","Ejecución",16497522812,0,0,0,0,0,0,16497522812,0,0,0,0,0,0,0,0,0,{"$f":"SUM(R8:V8)","v":0},{"$f":"+M8+W8","v":16497522812},"HOSPITAL SUSANA LOPEZ DE VALENCIA EMPRESA SOCIAL DEL ESTADO","$16.497 millones. Ejecución. Avance 3.5%. Desde el MSPS se realiza asignación de resursos mediante RESOLUCIÓN 1221 DEL 2024.\nNombre del proyecto: CONSTRUCCIÓN DE LA PLANTA FÍSICA PARA LA REUBICACIÓN DE SERVICIOS DE CONSULTA EXTERNA Y ÁREAS ADMINSITRATIVAS HOSPITAL SUSANA LÓPEZ DE VALENCIA ESE\nEl proyecto se encuentra en etapa de ejecución. Avance 3.5% inicio de actividades 9 de marzo 2026.","Reporte de avance de ejecución con soportes, Actualización información con soportes ","Reporte de avance de ejecución con soportes","Reporte de avance de ejecución con soportes","Reporte de avance de ejecución con soportes","HOSPITAL SUSANA LOPEZ DE VALENCIA EMPRESA SOCIAL DEL ESTADO"]
["Línea estratégica 5. Salud ","Construcción hospital nivel 1 de Padilla","Ministerio de Salud y Protección Social ","Inversión","Terminado",14550608204,0,0,0,0,0,0,14550608204,0,0,0,0,0,0,0,0,0,0,14550608204,"EMPRESA SOCIAL DEL ESTADO NORTE 3 - ESE","$14.550 millones. Ejecución. Avance 13.15%. Desde el MSPS se realiza asignación de resursos mediante RESOLUCIÓN 1221 DEL 2024\nNombre del proyecto: CONSTRUCCIÓN HOSPITAL NIVEL 1 DE PADILLA\nEl proyecto se encuentra en etapa de ejecución.\nAvance 13.15%.","Reporte de avance de ejecución con soportes, Actualización información con soportes ","Reporte de avance de ejecución con soportes","Reporte de avance de ejecución con soportes","Reporte de avance de ejecución con soportes","EMPRESA SOCIAL DEL ESTADO NORTE 3 - ESE"]
["Línea estratégica 5. Salud ","Adecuaciones menores de 4 unidades de atención en salud","Ministerio de Salud y Protección Social ","Inversión","Terminado",0,1218590954,0,0,0,0,0,1218590954,0,0,0,0,0,0,0,0,0,{"$f":"SUM(R10:V10)","v":0},{"$f":"+M10+W10","v":1218590954},"ESE SUR OCCIDENTE","$1.218 millones. 4-Terminados. \n- 1 Proyecto: ADECUACIÓN MENOR EN LA UNIDAD DE ATENCIÓN EN SALUD DEL MUNICIPIO DE ARGELIA, CAUCA. - MSPS recursos RESOLUCIÓN 209_623 del 2025. Se encuentra en etapa de terminación.\n- 2 Proyecto: ADECUACIÓN MENOR EN LA UNIDAD DE ATENCIÓN EN SALUD DE OLAYA BALBOA, CAUCA\nMSPS resursos RESOLUCIÓN 209_623 del 2025.\nSe encuentra en etapa de terminación.\n- 3 Proyecto: ADECUACIÓN MENOR PARA LA UNIDAD DE ATENCIÓN EN SALUD EL MANGO MUNICIPIO DE ARGELIA CAUCA, ESE SUROCCIDENTE - MSPS resursos RESOLUCIÓN 209_623 del 2025. Se encuentra en etapa de terminación\n- 4 Proyecto: ADECUACIÓN MENOR EN LA UNIDAD DE ATENCION EN SALUD DE ARBOLEDAS, MERCADERES, CAUCA - MSPS resursos RESOLUCIÓN 209_623 del 2025. Se encuentra en etapa de terminación\n","Actualización información con soportes, Finalización, liquidación, ","Actualización información con soportes; Finalización, liquidación, ",null,null,"ESE SUR OCCIDENTE"]
["Línea estratégica 5. Salud ","Construir, mejorar, ampliar y dotar cinco puestos de salud de los corregimientos de Mojarras, San Joaquín, Arboledas, Cajamarca y en la vereda Esperanzas del Mayo para mejorar la cobertura y calidad de los servicios de salud de 8000 personas en el Municipios de Mercaderes","Ministerio de Salud y Protección Social ","Preinversión, Inversión","Fase I, Terminado",0,329933688,0,0,0,0,0,329933688,0,0,0,0,0,0,0,0,0,{"$f":"SUM(R11:V11)","v":0},{"$f":"+M11+W11","v":329933688},"ESE SUR OCCIDENTE","$329 millones. 1-Terminado, 2-en Viabilización, 2-No presentados.\n1. ADECUACIÓN PARA EL MEJORAMIENTO DE LA INFRAESTRUCTURA FÍSICA DE LA UNIDAD DE ATENCIÓN EN SALUD DE SAN JOAQUÍN DEL MUNICIPIO DE MERCADERES DEPARTAMENTO DEL CAUCA. Valor: $361.681.589. En evaluación tecnica con recursos MSPS RESOLUCIÓN 209_623 del 2025.\n2. ADECUACIÓN MENOR EN LA UNIDAD DE ATENCION EN SALUD DE ARBOLEDAS, MERCADERES, CAUCA. En etapa de terminación, obra terminó el 20 de dicembre de 2025.\n3. ADECUACIÓN PARA EL MEJORAMIENTO DE LA INFRAESTRUCTURA FÍSICA EN SALUD DE LA UNIDAD DE ATENCIÓN EN SALUD DE CAJAMARCA DEL MUNICIPIO DE MERCADERES DEL DEPARTAMENTO DE CAUCA. Valor: $262.773.419. Se encuentra con CAAR, cuenta con viabilización para asignación de recursos.\n4 y 5. Los 2 proyectos (Mojarras y vereda Esperanzas del Mayo) corresponden a proyectos de dotación y las ESE no han radicado al ministerio.","Revisión técnica del proyecto por Sector ","Actualización información con soportes ","Revisión y aprobación del proyecto por la fuente de financiación","Viabilización del proyecto ante la cabeza del sector","ESE SUR OCCIDENTE"]
["Línea estratégica 5. Salud ","Adecuación y dotación de (3) puestos de salud (apoyan resguardo indígena de Ambaló) en zona rural que beneficiará a 700 habitantes del municipio de Silvia, departamento del cauca","Ministerio de Salud y Protección Social ","Inversión","Terminado, Fase I",535260922,0,0,0,0,0,0,535260922,0,0,0,0,0,0,0,0,0,{"$f":"SUM(R12:V12)","v":0},{"$f":"+M12+W12","v":535260922},"EMPRESA SOCIAL DEL ESTADO NORTE 1 E.S.E.","$535 millones. 1-Terminado, 1-Evaluación técnica, 1 sin presentar.\n1. ADECUACIÓN MENOR DE LA UNIDAD DE ATENCIÓN EN SALUD DE SILVIA DEPARTAMENTO DEL CAUCA, EMPRESA SOCIAL DEL ESTADO CENTRO 1 E.S.E. resursos MSPS RESOLUCIÓN 1984 DEL 2024. El proyecto se encuentra en etapa de terminación.\n2. REPOSICIÓN DEL PUESTO DE SALUD PARA LA ATENCIÓN DE LA POBLACIÓN DEL CORREGIMIENTO DE USENDA MUNICIPIO DE SILVIA CAUCA. Valor: $3.244.596.490. En etapa de evaluación. \n3. La subdirección de Infraestructura en Salud del MSPS no cuenta con mas proyectos radicados por parte de la ESE para ser viabilizados en el Municipio de Silvia, departamento del Cauca"]
["Línea estratégica 5. Salud ","Construir centros de salud, en los centros poblados de Guachicono, San Miguel, Altamira y Pancitará del municipio de La  Vega para garantizar el servicio de salud a la población rural del municipio de La Vega","Ministerio de Salud y Protección Social ","Preinversión, Inversión","Terminado, Fase I",458144029,0,0,0,0,0,0,458144029,0,0,0,0,0,0,0,0,0,0,458144029,"EMPRESA SOCIAL DEL ESTADO SURORIENTE E.S.E","$458 millones. 1-Terminado, 1-Estructuración, 2-Sin presentar.\n1.ADECUACIÓN MENOR UNIDAD DE ATENCIÓN EN SALUD SAN MIGUEL. El proyecto se encuentra en etapa de terminación. Resursos MSPS RESOLUCIÓN 1906 DEL 2024\n2. ADECUACIÓN MENOR UNIDAD DE ATENCIÓN EN SALUD DE ALTAMIRA. Valor: $601.197.846. El proyecto se encuentra en etapa de estructuración.\n3 y 4 (Guachicono y Pancitará) no se han preentado.","Actualización información con soportes ","Actualización información con soportes ",null,null,"ESE SUR OCCIDENTE"]
["Línea estratégica 5. Salud ","Ampliación de la capacidad instalada empresa social del estado hospital piloto del municipio de Jamundí ","Alcaldía Jamundí /Ministerio de Salud y Protección Social ",null,null,0,0,0,0,0,0,0,0,null,null,null,null,null,null,null,null,null,94724500000,94724500000,"ESE HOSPITAL PILOTO JAMUNDI","Estructuración. Nombre del proyecto: AMPLIACIÓN DE LA CAPACIDAD INSTALADA EMPRESA SOCIAL DEL ESTADO HOSPITAL PILOTO DE JAMUNDÍ DEL MUNICIPIO DE JAMUNDÍ JAMUNDÍ\nEl proyecto se encuentra en etapa de estructuración, el proyecto se financiara con recursos propios, entre la ESE y el Municipio","Estructuración del proyecto",null,null,null,"ESE HOSPITAL PILOTO JAMUNDI"]
[null,null,null,null,null,null,{"$f":"SUM(G4:G14)","v":45714160751},13850170869,9000000000,null,null,22000000000,{"$f":"SUM(M4:M14)","v":171294910166},{"$f":"SUM(N4:N14)","v":0},0,0,null,0,0,0,0,0,94724500000,266019410166]
["Línea estratégica 5. Salud ","Remodelación Hospotal Guapi - 100% Recursos Gobernación SGR 60%?",null,"Inversión",null,0,0,0,0,0,0,0,{"$f":"SUM(G16:L16)","v":0},0,36895891663,0,24224470659,11096178915,1575242089,0,0,0,{"$f":"SUM(Q16:V16)","v":36895891663},{"$f":"+M16+W16","v":36895891663},"EMPRESA SOCIAL DEL ESTADO GUAPI E.S.E","Ejecución/Suspendido\nEntes de control - liquidar/volver a contratar.\n\nPor tratarse de recursos de Regalias, el seguimiento y supervisión del proyecto es responsabilidad de la ESE y del Depeartamento Nacional de Planeación, El proyecto se encuentra en Ejecución",null,null,null,null,"EMPRESA SOCIAL DEL ESTADO GUAPI E.S.E"]

{"sheet":"MINAS 6+","index":20,"n_rows":16,"n_cols":27,"rows_kept":16,"cut":false,"hidden":true,"merged":[[1,26,2,26],[1,17,2,17],[1,18,2,18],[1,19,2,19],[1,20,2,20],[1,21,2,21],[1,22,1,25],[1,0,2,0],[1,10,1,16],[1,1,2,1],[1,2,2,2],[1,3,2,3],[1,4,2,4],[1,5,1,9]]}
[]
["Línea estratégica","Nombre de la Iniciativa","Entidad Responsable ","Etapa del Proyecto *","Fase del Proyecto *","Aporte Sector",null,null,null,null,"Aporte Territorio",null,null,null,null,null,null,"Otros recursos","Aportes Territorio / Otros","Inversión Total","Entidad Responsable ejecución proyecto","Observaciones / Acciones","Actividades a ejecutar",null,null,null,"Entidad Responsable de actividad"]
[null,null,null,null,null,2025,2026,2027,2028,"Total","Propios","SGR","Otros",2025,2026,2027,2028,null,null,null,null,null,"Trimestre 2 -2026","Trimestre 3 - 2026","Trimestre 4 -2026 ","Trimestre 1 -2027"]
["6. Transición Energética","Se propone fortalecer el proceso de formación de al menos 50 participantes en los distritos de Cauca, a través de procesos formativos certificados","Ministerio de Minas y Energía","Inversión","Ejecución",0,250000000,0,0,{"$f":"SUM(F4:I4)","v":250000000},null,null,null,null,null,null,null,null,{"$f":"SUM(N4:R4)","v":0},{"$f":"+J4+S4","v":250000000},"Programa de Las Naciones Unidas Para El Desarrollo - PNUD","En el primer y segundo trimestre del 2026 se han realizado las gestiones administrativas y contractuales para la suscripción del convenio de Cooperación No. GGC-1864-2026, con el cual se dará cumplimiento a la meta establecida para la vigencia 2026. ","Estructuración del proyecto","Estructuración del proyecto","Reporte de avance de ejecución con soportes",null,"Ministerio de Minas y Energía"]
["6. Transición Energética","Apoyar en la implementación de la estrategia de sociedad del conocimiento para el fomento de buenas prácticas en la actividad minera en el departamento de Cauca","Ministerio de Minas y Energía","Inversión","Contrtación",0,500000000,0,0,{"$f":"SUM(F5:I5)","v":500000000},null,null,null,null,null,null,null,null,{"$f":"SUM(N5:R5)","v":0},{"$f":"+J5+S5","v":500000000},"Por Definir","Durante el primer semestre de la vigencia 2026 se adelantarán los trámites precontractuales necesarios para la articulación con una entidad que permita el desarrollo del consultorio técnico-jurídico. Este consultorio impulsará la estrategia de sociedad del conocimiento, orientada a brindar asistencia técnica y promover la adopción de buenas prácticas en la actividad minera. Por su parte, durante el segundo semestre de la vigencia 2026 se llevará a cabo la ejecución de las actividades definidas en el marco del convenio o contrato suscrito, garantizando la implementación efectiva de la estrategia y el cumplimiento de los objetivos propuestos.","Tramites para la suscripción de convenios","Estructuración del proyecto","Reporte de avance de ejecución con soportes",null,"Ministerio de Minas y Energía"]
["6. Transición Energética","Aunar esfuerzos técnicos, administrativos y financieros para adelantar acciones asociadas con minería, energía e hidrocarburos del plan de acción 2025, dentro del Plan Cuatrienal 2023-2026 del Decreto 1811 de 2017.","Ministerio de Minas y Energía","Inversión","Ejecución",0,300000000,0,0,{"$f":"SUM(F6:I6)","v":300000000},null,null,null,null,null,null,null,null,{"$f":"SUM(N6:R6)","v":0},{"$f":"+J6+S6","v":300000000},"Consejo Regional Indígena del Cauca - CRIC","Durante la vigencia 2025 no fue posible ejecutar los recursos previstos, debido a que, en el marco del convenio proyectado, el CRIC no accedió a cuantificar ni a detallar su contrapartida en términos de conocimientos tradicionales. No obstante, se priorizó su ejecución para la vigencia 2026. En ese sentido, a la fecha se han adelantado espacios de articulación con el CRIC, con el fin de garantizar la suscripción del convenio o contrato durante el segundo semestre de dicha vigencia.","Tramites para la suscripción de convenios","Estructuración del proyecto","Reporte de avance de ejecución con soportes",null,"Ministerio de Minas y Energía"]
["6. Transición Energética","Distrito Minero Norte del Cauca","Ministerio de Minas y Energía","Inversión","Ejecución",164285714,400000000,0,0,{"$f":"SUM(F7:I7)","v":564285714},null,null,null,null,null,null,null,null,{"$f":"SUM(N7:R7)","v":0},{"$f":"+J7+S7","v":564285714},"Ministerio de Minas y Energía","El 6 de abril de 2026 fue expedida la Resolución 40184, mediante la cual se delimita el Distrito Minero Especial para la Diversificación Productiva del Norte del Cauca. El valor dispuesto para la vigencia 2025 corresponde a los esfuerzos institucionales orientados a la elaboración y expedición de dicha reglamentación.\n\nPor su parte, los recursos previstos para la vigencia 2026 están destinados a la instalación de la Mesa de Trabajo Interinstitucional, concebida como una instancia de articulación para la planificación, así como para la gestión socioambiental y económica de los territorios delimitados. Con este hito se da cumplimiento al compromiso establecido, precisando que, desde la Dirección de Formalización Minera, se ha adelantado el despliegue integral de la oferta institucional en el territorio, en aras de fortalecer los procesos de formalización y promover prácticas sostenibles en la actividad minera.\nAvanzarán con consulta previa para establecer el Plan Estratégico de Gestión.","Estructuración del proyecto","Estructuración del proyecto",null,null,"Ministerio de Minas y Energía"]
["6. Transición Energética","Distrito Minero Litoral Pacífico Caucano","Ministerio de Minas y Energía","Inversión","Ejecución",164285714,400000000,0,0,{"$f":"SUM(F8:I8)","v":564285714},null,null,null,null,null,null,null,null,{"$f":"SUM(N8:R8)","v":0},{"$f":"+J8+S8","v":564285714},"Ministerio de Minas y Energía","El 9 de abril de 2026 fue expedida la resolución 40188 por medio de la cual se delimita el Distrito Minero Especial para la Diversificación Productiva del Litoral Pacifico Caucano. El valor dispuesto para la vigencia 2025 corresponde a los esfuerzos institucionales orientados a la elaboración y expedición de dicha reglamentación.\n\nPor su parte, los recursos previstos para la vigencia 2026 están destinados a la instalación de la Mesa de Trabajo Interinstitucional, concebida como una instancia de articulación para la planificación, así como para la gestión socioambiental y económica de los territorios delimitados. Con este hito se da cumplimiento al compromiso establecido, precisando que, desde la Dirección de Formalización Minera, se ha adelantado el despliegue integral de la oferta institucional en el territorio, en aras de fortalecer los procesos de formalización y promover prácticas sostenibles en la actividad minera. Avanzarán con consulta previa para establecer el Plan Estratégico de Gestión.","Estructuración del proyecto","Estructuración del proyecto",null,null,"Ministerio de Minas y Energía"]
["6. Transición Energética","148 Comunidades energéticas (Primera Fase Comunidades Focalizadas y Priorizadas 2024-2026)","Ministerio de Minas y Energía","Inversión","Ejecución","$ 5.903.252.482,8 - Cto 116231-158-2025 \n$ 1.912.670.125,8 - Cto 116231-156-2025",null,null,null,7815922608.6000004,null,null,null,null,null,null,null,null,{"$f":"SUM(N9:R9)","v":0},{"$f":"+J9+S9","v":7815922608.6000004},"FENOGE ","Patía 90 KWp; Cajibío 60 KWp; Suárez 90 KWp; Cajibío 15 KWp; Cajibío 60 KWp; Sotará Paispamba 60 KWp; El Tambo 15 KWp; El Tambo 60 KWp; Silvia 15 KWp; Cajibío 210 KWp.","Actualización información con soportes ","Actualización información con soportes ","Actualización información con soportes ","Actualización información con soportes ","FENOGE"]
["6. Transición Energética","VDR - Construcción de subestación eléctrica de 2 MVA 34,5/13,2 KV y construcción de redes eléctricas de media y baja tensión con montaje de transformadores en poste en zona rural del municipio de Piamonte en el departamento del Cauca","Ministerio de Minas y Energía","Inversión","Ejecución",null,null,null,null,30716479294,null,null,null,null,null,null,null,null,0,30716479294,null,"04/03/2026. Ejecución. $30.716.479.294 SECOP.\nEstado actual del contrato 64.31% con respecto al cronograma, avance de la obra física 95%, usuarios beneficiados 898. La obra ya fue finalizada el OR, se encuentra en tramites de RETIE y pruebas para la puesta en servicio, se tiene proyectada visita de recibo de infraestructura por parte del MME una vez el OR remita cronograma proyectado de visitas. Pendiente ultimo desembolso, los recursos pasaron a vigencias expiradas. Pendiente que el OR remita actas de liquidación de contratos derivados.\nGGC-0651-2024 - https://community.secop.gov.co/Public/Tendering/OpportunityDetail/Index?noticeUID=CO1.NTC.5935502 ",null,null,null,null,"Ministerio de Minas y Energía"]
["6. Transición Energética","VDR - Ampliación de redes eléctricas de media y baja tensión en varias veredas del municipio de la Vega en el departamento del Cauca","Ministerio de Minas y Energía","Inversión","Ejecución",null,null,null,null,{"$f":"SUM(F11:I11)","v":0},null,null,null,null,null,null,null,null,0,24236640294,null,"Valor Indicativo VDR $24.236 millones.\n04/03/2026. Ejecución. Esta en ejecución por medio de contrato FAER-GGC-504-22 ( preguntar a grupo de supervisión) oscar gomez. Solicitaron terminacion anticipada, por problemas asociados a la obra. Hasta mayo está la suspensión. 20% el estado actual suspendido. Actualmente desde el MME, se esta adelantando la suspension No 4, por un periodo de 6 meses para hacer los tramites de terminación anticipada.",null,null,null,null,"Ministerio de Minas y Energía"]
["6. Transición Energética","VDR - Construcción redes eléctricas de MT, BT e instalación de subestaciones de distribución en las veredas: Alto de la Cruz, Alto de Topa, Bajo Belén, Belencito, Brisas de Ullucos, resguardo de calderas, Carmen de víbora, Chichucue, Coscuro, Dos Quebradas, El Cabuyo, El Carmen San Antonio, El Caucho, El Escaño, El Hato, El Lago, El Llanito, El Llano, El Picacho, El Rincón, El Socorro, El Tablón, Guadual - La Virginia, Guetaco, La Lagunita, La Manga, La Meseta, La Milagrosa, La Palma, La Palmera, La Vega, La Venta, Loma Alta, Lomitas, Los Alpes Río Sucio, Mesopotamia, Palmichal, Piramide, Pisimbala, Potrerito, Río Negro, San Andrés, San Francisco, San José, San Martin, San Miguel, San Pedro, San Rafael, San Vicente, Resguardo de Santa Rosa, Santa Teresa, Tabor, Tierras Blancas, Resguardo de Tumbichucue, Turmina,\nResguardo de Yaquiva, Yarumal, Municipio Inza, Departamento del Cauca","Ministerio de Minas y Energía","Inversión","Ejecución",null,null,null,null,0,null,null,null,null,null,null,null,null,0,21491640229,null,"Valor Indicativo VDR $21.491 millones.\n04/03/2026. Ejecución. FAER-GGC-554-20, El proyecto tiene un avance del 98% en sus obras (verificar con supervision). Actualmente se encuentra en revisión documental. Avance del 100% de obra.",null,null,null,null,"Ministerio de Minas y Energía"]
["6. Transición Energética","VDR - Ampliación redes eléctricas MT y BT en varias veredas del municipio de Totoró","Ministerio de Minas y Energía","Inversión","Terminado",null,null,null,null,0,null,null,null,null,null,null,null,null,{"$f":"SUM(N13:R13)","v":0},16770803694,null,"Valor Indicativo VDR $16.770 millones.\n04/03/2026. FAER-GGC-553-20, El proyecto tiene un avance del 100% en sus obras ( verificar con supervision) "]
[null,null,null,null,null,{"$f":"SUM(F9:F13)","v":0},0,0,0,38532401902.599998,0,0,0,0,0,0,0,0,0,101031486119.60001]
["6. Transición Energética","VDR -Hidroeléctrica de Brazo Seco ","Ministerio de Minas y Energía",null,null,null,null,null,null,null,null,null,null,null,null,null,null,null,null,null,null,"20/04/2026 mesa MinM&E - NO ES VIABLE PORQUE ALLÁ YA HAY INTERCONEXIÓN.\n SITN: El proyecto concesionado por no tener recursos PGN, no cuenta con proyecto de inversión.\nEstado de ajustes de forma devuelto por el Ministerio del Interior actualmente por 33.750 millones. Fuente FAER de Min Minas. Con aval técnico y financiero y con solicitud de prórroga ante el operador de red del departamento. NO ES VIABLE PORQUE ALLÁ YA HAY INTERCONEXIÓN"]
["6. Transición Energética","VDR - Rehabilitacion de la Central Hidroeletrica (PCH ) El Buco, Municipio de Paez, Departamento del Cauca.",null,null,null,null,null,null,null,null,null,null,null,null,null,null,null,null,null,null,null,"20/04/2026 mesa MinM&E\nLa PCH se la ha llevado el río en múltiples veces, no es viable"]

{"sheet":"TRANSPORTE 12+1","index":21,"n_rows":18,"n_cols":38,"rows_kept":18,"cut":false,"hidden":true,"merged":[[1,37,2,37],[1,28,2,28],[1,29,2,29],[1,30,2,30],[1,31,2,31],[1,32,2,32],[1,33,1,36],[1,0,2,0],[1,21,1,27],[1,1,2,1],[1,2,2,2],[1,3,2,3],[1,4,2,4],[1,9,1,20]]}
[]
["Línea estratégica","Nombre de la Iniciativa","Entidad Responsable ","Etapa del Proyecto *","Fase del Proyecto *",null,null,null,null,"Aporte Sector",null,null,null,null,null,null,null,null,null,null,null,"Aporte Territorio",null,null,null,null,null,null,"Otros recursos","Aportes Territorio / Otros","Inversión Total","Entidad Responsable ejecución proyecto","Observaciones / Acciones","Actividades a ejecutar",null,null,null,"Entidad Responsable de actividad"]
[null,null,null,null,null,2021,2022,2023,2024,2025,2026,2027,2028,2029,2030,2031,2032,2033,2034,2035,"Total","Propios","SGR","Otros",2025,2026,2027,2028,null,null,null,null,null,"Trimestre 2 -2026","Trimestre 3 - 2026","Trimestre 4 -2026 ","Trimestre 1 -2027"]
["7. Infraestructura de Transporte ","Corredor  Estanquillo - Timbío - Popayán  (APP)","Ministerio de Transporte - ANI","Inversión","Ejecución",null,null,null,null,null,null,null,null,null,null,null,null,null,null,null,{"$f":"SUM(F4:T4)","v":0},null,null,null,null,null,null,null,null,{"$f":"SUM(Y4:AC4)","v":0},{"$f":"+U4+AD4","v":0},"ANI","21/04/2026. SECOP Adjudicación $8,8 billones; contratado, se programa inicio de actividades de preconstrucción en mayo. Contrto de Concesión por 25 años; los 2 primeros años corresponden a etapa de preconstrucción la cual inicia el 13 de mayo de 2026. La etapa de construcción es por 5 años. Posterior a la etapa de construcción, la etapa de operación y mantenimiento. Las actividades en este PAS, corresponde a la ejecución de actividades de de preconstrucción.","Inicio de Actividades, ","Reporte de avance de ejecución con soportes","Reporte de avance de ejecución con soportes","Reporte de avance de ejecución con soportes","ANI"]
["7. Infraestructura de Transporte ","Vía al Mar (POPAYAN EL TAMBO - MUNCHIQUE)","Ministerio de Transporte - INVIAS","Inversión","Contratación",0,0,0,0,0,15000000000,31827000000,54636000000,56275000000,57963000000,71643000000,73792000000,76006000000,78286000000,87354000000,{"$f":"SUM(F5:T5)","v":602782000000},null,null,null,null,null,null,null,null,0,602782000000,"INVIAS","INVIAS 16/04/2026. $602.782 millones. Prepliegos. 1. ESTADO DEL PROYECTO: Proyecto se encuentran en el Conpes 4161 de 2025 y se cuenta con vigencias futuras excepcionales por parte del Confis. Se encuentra en proceso licitatorio en prepliegos con número LP-DEO-SMCN-054-2025 en dos (02) lotes e interventoría CMA-DEO-SMCN-086-2025\n2. ALCANCE DEL PROYECTO: Mantenimiento y mejoramiento de la vía en aproximadamente 60 km y construcción de aproximadamente 10km\nTrimestre 2 -2026: Adjudicacion/Inicio de obras","Tramites para la suscripción de convenios, Inicio de Actividades, ","Reporte de avance de ejecución con soportes","Reporte de avance de ejecución con soportes","Reporte de avance de ejecución con soportes","INVIAS"]
["7. Infraestructura de Transporte ","MUNCHIQUE - HUISITO - HONDURAS","Ministerio de Transporte - INVIAS","Inversión","Contratación",0,0,0,0,0,8500000000,37132000000,54636000000,56275000000,57963000000,83583000000,86091000000,88673000000,91334000000,100793000000,664980000000,null,null,null,null,null,null,null,null,0,664980000000,"INVIAS","INVIAS 16/04/2026. $664.980 millones 1. Prepliegos. (tramo de la Vía al mar) ESTADO DEL PROYECTO: Proyecto se encuentran en el Conpes 4161 de 2025 y se cuenta con vigencias futuras excepcionales por parte del Confis. Se encuentra en proceso licitatorio en prepliegos con número LP-DEO-SVR-053-2025 en dos (02) lotes e interventoría CMA-DEO-SMCN-086-2025\n2.ALCANCE DEL PROYECTO:\nmejoramiento y mantenimiento de aproximadamente 64 km, mejoramiento y mantenimiento de puentes y muros \nTrimestre 2 -2026: Adjudicacion/Inicio de obras","Tramites para la suscripción de convenios, , Inicio de Actividades, ","Reporte de avance de ejecución con soportes","Reporte de avance de ejecución con soportes","Reporte de avance de ejecución con soportes","INVIAS"]
["7. Infraestructura de Transporte ","PLATEADO - LOPEZ DE MICAY","Ministerio de Transporte - ANI","Inversión","Contratación",0,0,0,0,0,13000000000,37132000000,54636000000,84413000000,86945000000,137316000000,141435000000,145678000000,150048000000,192852000000,1043455000000,null,null,null,null,null,null,null,null,0,1043455000000,"INVIAS","INVIAS 16/04/2026. $1.04 billon 1. Licitación. (tramo de la Vía al mar) ESTADO DEL PROYECTO: Proyecto se encuentran en el Conpes 4161 de 2025 y se cuenta con vigencias futuras excepcionales por parte del Confis. Se encuentra en proceso licitatorio en prepliegos con númeroLP-DEO-SVR-061-2025 en cuatro (04) lotes e interventoría CMA-DEO-SVR-095-2025 en dos (02) lotes\n2. ALCANCE DEL PROYECTO: mantenimiento y mejoramiento de la vía en aproximadamente 60 km y construcción de aproximadamente 10km\nTrimestre 2 -2026 - Adjudicacion/Inicio de obras","Tramites para la suscripción de convenios, Inicio de Actividades, ","Reporte de avance de ejecución con soportes","Reporte de avance de ejecución con soportes","Reporte de avance de ejecución con soportes","INVIAS"]
["7. Infraestructura de Transporte ","ARGELIA – EL PLATEADO  (Vía al Mar Cauca)","Ministerio de Transporte - INVIAS","Inversión","Contratación",0,0,0,0,0,6000000000,31827000000,54636000000,90040000000,115927000000,136122000000,0,0,0,0,{"$f":"SUM(F8:T8)","v":434552000000},null,null,null,null,null,null,null,null,0,434552000000,"INVIAS","INVIAS 16/04/2026. $434.552 millones Prepliegos. 1. ESTADO DEL PROYECTO: Proyecto se encuentran en el Conpes 4161 de 2025 y se cuenta con vigencias futuras excepcionales por parte del Confis. Se encuentra en proceso licitatorio en prepliegos con número LP-DEO-SVR-051-2025 en dos (02) lotes e interventoría CMA-DEO-SVR-073-2025\n2. ALCANCE DEL PROYECTO: Mejoramiento y mantenimiento de aproximadamente 23 km, mejoramiento y mantenimiento de puentes y muros desde el PR0+00 hasta el PR23+000\nTrimestre 2 -2026 - Adjudicacion/Inicio de obras","Tramites para la suscripción de convenios, Inicio de Actividades, ","Reporte de avance de ejecución con soportes","Reporte de avance de ejecución con soportes","Reporte de avance de ejecución con soportes","INVIAS"]
["7. Infraestructura de Transporte ","Anillo Vial del Macizo","Ministerio de Transporte - INVIAS","Inversión","Ejecución",24788838119,35000000000,32500000000,30000000000,36916362097,45000000000,50000000000,50000000000,53500000000,33400000000,0,0,0,0,0,{"$f":"SUM(F9:T9)","v":391105200216},null,null,null,null,null,null,null,null,0,391105200216,"INVIAS","INVIAS 16/04/2026.  $391.105 millones. Ejecución. 1. ESTADO DEL PROYECTO: Se ejecuta contrato financiado a través de Conpes 4010 Vías para la Legalidad, con horizonte al 2030. Contrato Obra: 1001 - 2021 Interventoría: 990 - 2021\n2. ALCANCE DEL PROYECTO: 49 km Pavim\n+ Continuación de obras trimestre 2y3 2026\n","Reporte de avance de ejecución con soportes","Reporte de avance de ejecución con soportes","Reporte de avance de ejecución con soportes","Reporte de avance de ejecución con soportes","INVIAS"]
["7. Infraestructura de Transporte ","Caminos Comunitarios para la Paz Total ","Ministerio de Transporte - INVIAS","Inversión","Ejecución",0,0,20278000000,25136000000,0,12946000000,0,0,0,0,0,0,0,0,0,{"$f":"SUM(F10:T10)","v":58360000000},null,null,null,null,null,null,null,null,0,58360000000,"INVIAS","INVIAS 16/04/2026. $58.360 millones. En Adjudicación. 1. ESTADO DEL PROYECTO: Se solicitó vigencias futuras excepcionales para 2026, las cuales están sujetas a la ubicación de los recursos con que se financian.\nPara la vigencia 2023 se ejecuto entre obra e interventoria un total de $ 20.278.782.888,86\nPara la vigencia se 2024 ejecuto entre obra e interventoria un total de $ 25.136.748.427,5\nSe tiene previsto una ejecucion de $12.946.571.428 para el año 2026 con un alcance de 8,33 km de Pavimentación y  26 Alcantarillas\n2. ALCANCE DEL PROYECTO:\n23 km placa huella \n238 Alcantarillas\nTrimestre 2 -2026: Adjudicacion/Inicio de obras\nTrimestre 3 - 2026: Continuacion ejecucion de obras ","Tramites para la suscripción de convenios, Inicio de Actividades, ","Reporte de avance de ejecución con soportes","Reporte de avance de ejecución con soportes","Reporte de avance de ejecución con soportes","INVIAS"]
["7. Infraestructura de Transporte ","Mejoramiento de la infraestructura del lado aire del Aeródromo de Timbiquí","Ministerio de Transporte - Aeronautica Civil","Preinversión","Fase I",0,0,0,0,0,2297000000,25000000000,44000000000,37974000000,83000000000,0,0,0,0,0,192271000000,0,0,0,0,0,0,null,null,null,192271000000,"AEROCIVIL","23/04/2026. $192.271 millones. Fase I. El alacance del proyecto corresponde al mejoramiento del lado aire del aeródromo.A la fecha esta en proceso de inclusión en documento conpes de declaratoria de importancia estrategica.","CONPES DIE Estructuración","Adjudicacion/Inicio de obras","Ejecución","Ejecución","AEROCIVIL"]
["7. Infraestructura de Transporte ","Mejoramiento de la Infraestructura Lado Aire y Lado Tierra del Aeropuerto Juan Casiano Solis de Guapi","Ministerio de Transporte - Aeronautica Civil","Preinversión","Fase II",0,0,0,0,0,2500000000,10608000000,21000000000,73881000000,0,0,0,0,0,0,107989000000,0,0,0,0,0,0,null,null,null,107989000000,"AEROCIVIL","23/04/2026. $107.989 millones. Fase II. El alcance del proyecto es realizar los Estudios y Diseños a Fase III, y las obras de mejoramiento de la Infraestructura Lado Aire y Lado Tierra del Aeropuerto Juan Casiano Solis de Guapi. A la fecha se encuentra en estructuración la solicitud de Vigencias Futuras y los documentos contractuales para publicación del proceso durante el primer semestre de 2026.","Estructuración","Adjudicacion/Inicio de E&D","Ejecución E&D","Ejecución E&D","AEROCIVIL"]
["7. Infraestructura de Transporte ","Mejoramiento de la Via  Silvia - Totoro , Sector Silvia - Totoro, Departamento del Cauca   17 km","Ministerio de Transporte - INVIAS","Preinversión","Fase III",0,0,0,0,0,0,0,0,0,0,0,0,0,0,0,0,null,null,null,null,null,null,null,null,null,0,"INVIAS","INVIAS 16/04/2026. $0. Fase III, No cuenta con Recusrsos 1. ESTADO DEL PROYECTO: No está previsto en el mediano plazo realizar obras por cuanto no se cuenta con recursos en el MGMP (Cuatrienio), ni en el Marco Fiscal (10 años).","Gestión de recursos","Gestión de recursos","Gestión de recursos","Gestión de recursos","INVIAS"]
["7. Infraestructura de Transporte ","Patico - Puracé - Santa Leticia - Belén - La Plata","Ministerio de Transporte - INVIAS","Preinversión","Fase III",0,0,0,0,0,0,0,0,0,0,0,0,0,0,0,0,null,null,null,null,null,null,null,null,null,0,"INVIAS","INVIAS 16/04/2026. $0. Fase III, No cuenta con Recusrsos . 1. ESTADO DEL PROYECTO:  No está previsto en el mediano plazo realizar obras por cuanto no se cuenta con recursos en el MGMP (Cuatrienio), ni en el Marco Fiscal (10 años).  Los   recursos ($60.000 millones) en el CONPES 4161 vías para la Paz  son para tramo Candelaria - La Plata, en el departamento del Huila.","Gestión de recursos","Gestión de recursos","Gestión de recursos","Gestión de recursos","INVIAS"]
["7. Infraestructura de Transporte ","Vía El estrecho - Balboa - Argelia - El plateado(está en INVIAS)","Instituto Nacional de Vías - INVIAS","Inversión","Ejecución",0,0,0,44657000000,0,0,0,0,0,0,0,0,0,0,0,44657000000,null,null,null,null,null,null,null,null,null,44657000000,"INVIAS","INVIAS 16/04/2026. $44.657 millones. Ejecución de obra. 1. ESTADO DEL PROYECTO: La vía en mención esta a cargo del departamento* Via 25CC03 El Estrecho - Balboa- Argelia -El Plateado-El Pinche con longitud de 103,14 km.\nA través de la fábrica de diseños del INVÍAS se realizaron estudios y diseños para los 5 km desde el PR 31+500 al PR26+000, con una inversión de $450 millones y fueron entregados a FINDETER en abril de 2025. Adicionalmente, a través de otra consultoría cuya inversión es de 1.700 millones se están realizando 26 km adicionales de estudios y diseños para los 26 km restantes, de los cuales 5 km se entregan a FINDETER entre junio y diciembre de 2025. \nFINDETER e INVIAS tienen un convenio para las obras por valor de $44.657 millones los cuales les permitirá recuperar la transitabilidad en todo el corredor y pavimentar aproximadamente 11 km, contrato en ejecución, con un avance del 0,31%.\n2. ALCANCE DEL PROYECTO: Mantenimiento y mejoramiento de la vía en aproximadamente 11 km.\nContrato en ejecución de obra","Reporte de avance de ejecución con soportes","Reporte de avance de ejecución con soportes","Reporte de avance de ejecución con soportes","Finalización, liquidación, ","INVIAS"]
["7. Infraestructura de Transporte ","VDR - Pavimentación de la vía nacional entre la cabecera municipal de El Tambo y Munchique que da acceso al Cañón del Micay en el Municipio de El Tambo* 22 KM","Ministerio de Transporte - INVIAS","Inversión","Contratación",0,0,0,0,0,15000000000,31827000000,54636350000,56275440500,57963703715,71643137792,73792431925,76006204883,78286391030,87354564657,602785224502,null,null,null,null,null,null,null,null,null,602785224502,null,"INVIAS 21/04/2026: $602.785 millones. Prepliegos. 1. ESTADO DEL PROYECTO: Proyecto se encuentran en el Conpes 4161 de 2025 y se cuenta con vigencias futuras excepcionales por parte del Confis. Se encuentra en proceso licitatorio en prepliegos con número LP-DEO-SMCN-054-2025 en dos (02) lotes e interventoría CMA-DEO-SMCN-086-2025\n2. ALCANCE DEL PROYECTO: Mejoramiento, rehabilitación y mantenimiento del tramo comprendido por 58 km aproximadamente","Tramites para la suscripción de convenios, Inicio de Actividades, ","Reporte de avance de ejecución con soportes","Reporte de avance de ejecución con soportes","Reporte de avance de ejecución con soportes"]
[null,null,null,null,null,{"$f":"SUM(F4:F16)","v":24788838119},{"$f":"SUM(G4:G16)","v":35000000000},52778000000,99793000000,36916362097,120243000000,255353000000,388180350000,508633440500,493161703715,500307137792,375110431925,386363204883,397954391030,468353564657,{"$f":"SUM(U4:U16)","v":4142936424718}]
[null,null,null,null,null,null,null,null,null,null,null,null,null,null,null,null,null,null,null,null,{"$f":"SUM(F17:T17)","v":4142936424718}]

{"sheet":"Ambiente +","index":22,"n_rows":10,"n_cols":26,"rows_kept":10,"cut":false,"hidden":true,"merged":[[1,25,2,25],[1,16,2,16],[1,17,2,17],[1,18,2,18],[1,19,2,19],[1,20,2,20],[1,21,1,24],[1,9,1,15],[1,0,2,0],[1,1,2,1],[1,2,2,2],[1,3,2,3],[1,4,1,8]]}
[]
["Nombre de la Iniciativa","Entidad Responsable ","Etapa del Proyecto *","Fase del Proyecto *","Aporte Sector",null,null,null,null,"Aporte Territorio",null,null,null,null,null,null,"Otros recursos","Aportes Territorio / Otros","Inversión Total","Entidad Responsable ejecución proyecto","Observaciones / Acciones","Actividades a ejecutar",null,null,null,"Entidad Responsable de actividad"]
[null,null,null,null,2025,2026,2027,2028,"Total","Propios","SGR","Otros",2025,2026,2027,2028,null,null,null,null,null,"Trimestre 2 -2026","Trimestre 3 - 2026","Trimestre 4 -2026 ","Trimestre 1 -2027"]
["Planes, programas y proyectos, de índole nacional y territorial, encaminados a la acción y resiliencia climática, la gestión, la educación y participación ambiental y la recuperación, conservación, protección, ordenamiento, manejo, uso y aprovechamiento de los recursos naturales renovables y la biodiversidad.",null,null,null,null,null,null,null,{"$f":"SUM(E4:H4)","v":0},null,null,null,null,null,null,null,null,{"$f":"SUM(M4:Q4)","v":0},{"$f":"+I4+R4","v":0}]
["Servicio de restauración de ecosistemas (producto principal del proyecto)",null,null,null,null,null,null,null,0,null,null,null,null,null,null,null,null,0,0]
[null,null,null,null,null,null,null,null,0,null,null,null,null,null,null,null,null,0,0]
[null,null,null,null,null,null,null,null,0,null,null,null,null,null,null,null,null,0,0]
[null,null,null,null,null,null,null,null,0,null,null,null,null,null,null,null,null,0,0]
[null,null,null,null,null,null,null,null,0,null,null,null,null,null,null,null,null,0,0]
[null,null,null,null,null,null,null,null,0,null,null,null,null,null,null,null,null,0,0]

{"sheet":"GOBERNACIÓN 2+<>","index":23,"n_rows":8,"n_cols":27,"rows_kept":8,"cut":false,"hidden":true,"merged":[[1,0,2,0],[1,26,2,26],[1,17,2,17],[1,18,2,18],[1,19,2,19],[1,20,2,20],[1,21,2,21],[1,22,1,25],[1,10,1,16],[1,1,2,1],[1,2,2,2],[1,3,2,3],[1,4,2,4],[1,5,1,9]]}
[]
["Línea estratégica","Nombre de la Iniciativa","Entidad Responsable ","Etapa del Proyecto *","Fase del Proyecto *","Aporte Sector",null,null,null,null,"Aporte Territorio",null,null,null,null,null,null,"Otros recursos","Aportes Territorio / Otros","Inversión Total","Entidad Responsable ejecución proyecto","Observaciones / Acciones","Actividades a ejecutar",null,null,null,"Entidad Responsable de actividad"]
[null,null,null,null,null,2025,2026,2027,2028,"Total","Propios","SGR","Otros",2025,2026,2027,2028,null,null,null,null,null,"Trimestre 2 -2026","Trimestre 3 - 2026","Trimestre 4 -2026 ","Trimestre 1 -2027"]
["4. Desarrollo Rural y Transformación Productiva ","Fortalecimiento de la Caficultura sostenible en 33 municipios del departamento del Cauca: Un enfoque integral para la productividad, calidad y comercialización.","Departamento Nacional de Planeación (FRPT) / Gobernación del Cauca","Inversión","Contratación de derivados",12500000000,12500000000,0,0,{"$f":"SUM(F4:I4)","v":25000000000},4931545656,0,4062720000,0,{"$f":"+K4+M4","v":8994265656},0,0,0,{"$f":"SUM(N4:R4)","v":8994265656},{"$f":"+J4+S4","v":33994265656},"Gobernación del Cauca","Gobernación 21/04/2026: \nOtros Recursos territorio corresponden  a mano de obra (especie-jornales) de beneficiarios finales cuantificada. \nEl operador se encuentra proceso licitatorio LP DC-SADR-LP-001-2026, con fecha en cronogramna de secop de adjudicación, suscripción de contrato, garantpias el 6 de mayo de 2026, por valor $32.376.106.814 ($27.707.334.706) incluido cuantificación de mano de obra; plazo hasta el 28 de abril de 2026. Y definición de beneficiarios finales.\nInterventoría se encuentra en proceso concurso de meritos DC-SADR-CMA-001-2026  con fecha en cronogramna de secop de adjudicación el 23 de abril de 2026.Por valor de $1.618.158.842; plazo hasta el 31 de diciembre de 2026.\nSe espera acta de inicio","Actualización información con soportes , Tramites para la suscripción de convenios, Reporte de avance de ejecución con soportes","Reporte de avance de ejecución con soportes","Reporte de avance de ejecución con soportes",null,"Gobernación del Cauca"]
["5. Salud","Remodelación del Hospital de Guapi","Gobernación de Cauca","Inversión","Ejecución",null,null,null,null,0,null,null,null,null,null,null,null,null,0,0,"Gobernación del Cauca","Ejecución-Suspendido."]
["Línea estratégica 7. Infraestructura de Transporte ","Vía El estrecho - Balboa - Argelia - El plateado","INVIAS /Gobernación de Cauca","Inversión"]
["4. Desarrollo Rural y Transformación Productiva ","Fortalecimiento de la Infraestructura productiva para el desarrollo agroindustrial de la cadena del café en el Cauca (Proyecto Integrador del Café) \ni) Placa Huella en el municipio de Piendamó - organización CENCOIC;\nii) Centro de Acopio en el municipio de Patía, vereda La mesa - organización FRUTAS Y FUTURO; \niii) Centro de Acopio en el municipio de Almaguer, vereda Pindío -  organización APAGIGMA; \niv)  Planta agroindustrial de beneficio de café en el municipio de Argelia, - organización ARCAFE","Gobernación de Cauca","Preinversión","Fase III",0,0,0,0,0,0,8402093124.0194225,null,null,8402093124.0194225,null,null,null,8402093124.0194225,8402093124.0194225,"Gobernación del Cauca","4 Obras. Fase III. Recursos SGR 60% Gobernación del Cauca 2026. Viablidad programada  15 de julio del 2026.\n1. Placa huella de 900 metros en la vereda Tunía municipio de piendamó, esta obra permitirá beneficiar a la asociación cencioc para mejorar la producción cafetera de los asociados, la viablidad del proyecto se plantea para el 15 de julio del 2026, la fuente de financiación será SGR - AIR60% bienio 2025-2026.\n2. Centro de acopio para la comercialización de café  en la vereda la Mesa del  municipio de Patía, esta obra permitirá beneficiar a la asociación Frutas y futuro para mejorar la producción cafetera de los asociados, la viablidad del proyecto se plantea para el 15 de julio del 2026, la fuente de financiación será SGR - AIR60% bienio 2025-2026\n3. Centro de acopio para la comercialización de café,  vereda Pindío del  municipio de Almaguer, esta obra permitirá beneficiar a la asociación Apagicma para mejorar la producción cafetera de los asociados, la viablidad del proyecto se plantea para el 15 de julio del 2026, la fuente de financiación será SGR - AIR60% bienio 2025-2026.\n4. Planta de industrial de beneficio  de café  en la vereda el jardín del  municipio de Argelia, esta obra permitirá beneficiar a la asociación Arcafe para mejorar la producción cafetera de los asociados, la viablidad del proyecto se plantea para el 15 de julio del 2026, la fuente de financiación será SGR - AIR60% bienio 2025-2026\n\n 19/03/2026: Fecha programada obtener viabilidad 1 mayo 2026; Fecha programada iniciar ejecución 15/07/2026. Plazo ejecución 12 y 18meses. Recursos Gobernación del Cauca (SGR - AIR 60%). Poryecto en proceso de formulación y compilación de los estudios y diseños de parte de las organizaciones beneficiarias. \nProyecto Integrador de Café en VDR (ART+ADR+Gobernación)\n","Presentación del proyecto ante la fuente de financiación","Revisión y aprobación del proyecto por la fuente de financiación","Reporte de avance de ejecución con soportes",null,"Gobernación del Cauca"]
[null,null,null,null,null,{"$f":"SUM(F4:F7)","v":12500000000},12500000000,0,0,25000000000,4931545656,8402093124.0194225,4062720000,0,17396358780.019424,0,0,0,17396358780.019424,42396358780.019424]

{"sheet":"López de Micay +1","index":24,"n_rows":5,"n_cols":27,"rows_kept":5,"cut":false,"hidden":true,"merged":[[1,22,1,25],[1,26,2,26],[1,10,1,16],[1,17,2,17],[1,18,2,18],[1,19,2,19],[1,20,2,20],[1,21,2,21],[1,5,1,9],[1,0,2,0],[1,1,2,1],[1,2,2,2],[1,3,2,3],[1,4,2,4]]}
[]
["      EJES O LÍNEAS ESTRATÉGICAS       ","Nombre de la Iniciativa","Entidad Responsable ","Etapa del Proyecto *","Fase del Proyecto *","Aporte Sector",null,null,null,null,"Aporte Territorio",null,null,null,null,null,null,"Otros recursos","Aportes Territorio / Otros","Inversión Total","Entidad Responsable ejecución proyecto","Observaciones / Acciones","Actividades a ejecutar",null,null,null,"Entidad Responsable de actividad"]
[null,null,null,null,null,2025,2026,2027,2028,"Total","Propios","SGR","Otros",2025,2026,2027,2028,null,null,null,null,null,"Trimestre 2 -2026","Trimestre 3 - 2026","Trimestre 4 -2026 ","Trimestre 1 -2027"]
["1. Vivienda Digna y Agua Potable y Saneamiento Básico","VDR - Construcción de la optimización del alcantarillado de la cabecera municipal de López de Micay",null,null,null,null,null,null,null,{"$f":"SUM(F4:I4)","v":0},null,null,null,null,null,null,null,null,{"$f":"SUM(N4:R4)","v":0},{"$f":"+J4+S4","v":0}]
[null,null,null,null,null,{"$f":"SUM(F4:F4)","v":0},0,0,0,0,0,0,0,0,0,0,0,0,0,0]

{"sheet":"Actividades","index":25,"n_rows":123,"n_cols":5,"rows_kept":123,"cut":false,"hidden":true,"merged":[]}
[]
[null,"Trimestre 2 -2026","Trimestre 3 - 2026","Trimestre 4 -2026 ","Trimestre 1 -2027"]
[null,"Reporte de avance de ejecución con soportes","Reporte de avance de ejecución con soportes","Reporte de avance de ejecución con soportes","Finalización, liquidación, "]
[null,"Reporte de avance de ejecución con soportes","Reporte de avance de ejecución con soportes","Reporte de avance de ejecución con soportes","Finalización, liquidación, "]
[null,"Tramites para la suscripción de convenios, , Inicio de Actividades, ","Reporte de avance de ejecución con soportes","Reporte de avance de ejecución con soportes","Reporte de avance de ejecución con soportes"]
[null,"Reporte de avance de ejecución con soportes","Reporte de avance de ejecución con soportes","Reporte de avance de ejecución con soportes","Reporte de avance de ejecución con soportes"]
[null,"Reporte de avance de ejecución con soportes","Reporte de avance de ejecución con soportes","Reporte de avance de ejecución con soportes","Reporte de avance de ejecución con soportes"]
[null,"Actualización información con soportes , Tramites para la suscripción de convenios, ","Inicio de Actividades, , Reporte de avance de ejecución con soportes","Reporte de avance de ejecución con soportes","Reporte de avance de ejecución con soportes"]
[null,"Reporte de avance de ejecución con soportes","Reporte de avance de ejecución con soportes","Reporte de avance de ejecución con soportes","Reporte de avance de ejecución con soportes"]
[null,"Reporte de avance de ejecución con soportes","Reporte de avance de ejecución con soportes","Reporte de avance de ejecución con soportes","Reporte de avance de ejecución con soportes"]
[null,"Actualización información con soportes , Reporte de avance de ejecución con soportes","Reporte de avance de ejecución con soportes","Reporte de avance de ejecución con soportes","Reporte de avance de ejecución con soportes"]
[null,"Tramites para la suscripción de convenios, ","Reporte de avance de ejecución con soportes","Reporte de avance de ejecución con soportes","Reporte de avance de ejecución con soportes"]
[null,"Tramites para la suscripción de convenios, ","Reporte de avance de ejecución con soportes","Reporte de avance de ejecución con soportes","Reporte de avance de ejecución con soportes"]
[null,"Reporte de avance de ejecución con soportes","Reporte de avance de ejecución con soportes","Reporte de avance de ejecución con soportes","Reporte de avance de ejecución con soportes"]
[null,"Tramites para la suscripción de convenios, ","Reporte de avance de ejecución con soportes","Reporte de avance de ejecución con soportes","Reporte de avance de ejecución con soportes"]
[null,"Reporte de avance de ejecución con soportes","Reporte de avance de ejecución con soportes","Reporte de avance de ejecución con soportes","Reporte de avance de ejecución con soportes"]
[null,"Revisión y aprobación del proyecto por la fuente de financiación, ","Tramites para la suscripción de convenios, ","Reporte de avance de ejecución con soportes","Reporte de avance de ejecución con soportes"]
[null,"Reporte de avance de ejecución con soportes","Reporte de avance de ejecución con soportes","Reporte de avance de ejecución con soportes","Reporte de avance de ejecución con soportes"]
[null,"Tramites para la suscripción de convenios, ","Reporte de avance de ejecución con soportes","Reporte de avance de ejecución con soportes","Reporte de avance de ejecución con soportes"]
[null,"Finalización, liquidación, ","N/A","N/A","N/A"]
[null,"Reporte de avance de ejecución con soportes","Reporte de avance de ejecución con soportes","Reporte de avance de ejecución con soportes","Reporte de avance de ejecución con soportes"]
[null,"Estructuración del proyecto, ","Viabilización del proyecto ante la cabeza del sector, ","Viabilización del proyecto ante la cabeza del sector, ","Presentación del proyecto ante la fuente de financiación, "]
[null,"Reporte de avance de ejecución con soportes, Prorroga, ","Reporte de avance de ejecución con soportes","Finalización, liquidación, ","N/A"]
[null,"Reporte de avance de ejecución con soportes","Reporte de avance de ejecución con soportes","Finalización, liquidación, ","N/A"]
[null,"Reporte de avance de ejecución con soportes, Prorroga, ","Reporte de avance de ejecución con soportes","Finalización, liquidación, ","N/A"]
[null,"Reporte de avance de ejecución con soportes","Reporte de avance de ejecución con soportes","Reporte de avance de ejecución con soportes","N/A"]
[null,"Reporte de avance de ejecución con soportes","Reporte de avance de ejecución con soportes","Reporte de avance de ejecución con soportes","Reporte de avance de ejecución con soportes"]
[null,"Finalización, liquidación, ","N/A","N/A","N/A"]
[null,"Reinicio de actividades, ","Reporte de avance de ejecución con soportes","Finalización, liquidación, ","N/A"]
[null,"Reporte de avance de ejecución con soportes","Reporte de avance de ejecución con soportes","Reporte de avance de ejecución con soportes","Finalización, liquidación, "]
[null,"Reporte de avance de ejecución con soportes","Reporte de avance de ejecución con soportes","Reporte de avance de ejecución con soportes","Finalización, liquidación, "]
[null,"Reporte de avance de ejecución con soportes, Actualización información con soportes ","Reporte de avance de ejecución con soportes","Reporte de avance de ejecución con soportes","Reporte de avance de ejecución con soportes"]
[null,"Priorización","Viabilización del proyecto ante la cabeza del sector, ","Tramites para la suscripción de convenios, ","Inicio de Actividades, , Reporte de avance de ejecución con soportes"]
[null,"Actualización información con soportes ","Reporte de avance de ejecución con soportes","Reporte de avance de ejecución con soportes","Reporte de avance de ejecución con soportes"]
[null,"Reporte de avance de ejecución con soportes","Reporte de avance de ejecución con soportes","Reporte de avance de ejecución con soportes","Reporte de avance de ejecución con soportes"]
[null,"Actualización información con soportes ","Reporte de avance de ejecución con soportes","Reporte de avance de ejecución con soportes","Reporte de avance de ejecución con soportes"]
[null,"Reporte de avance de ejecución con soportes","Reporte de avance de ejecución con soportes","Reporte de avance de ejecución con soportes","Finalización, liquidación, "]
[null,"Viabilización del proyecto ante la cabeza del sector, ","Gestión de recursos","Inicio de Actividades, , Reporte de avance de ejecución con soportes","Reporte de avance de ejecución con soportes"]
[null,"Tramites para la suscripción de convenios, ","Reporte de avance de ejecución con soportes","Reporte de avance de ejecución con soportes","Reporte de avance de ejecución con soportes"]
[null,"Reporte de avance de ejecución con soportes","Reporte de avance de ejecución con soportes","Reporte de avance de ejecución con soportes","Finalización, liquidación, "]
[null,"Reporte de avance de ejecución con soportes","Reporte de avance de ejecución con soportes","Reporte de avance de ejecución con soportes","Finalización, liquidación, "]
[null,"Reporte de avance de ejecución con soportes","Reporte de avance de ejecución con soportes","Reporte de avance de ejecución con soportes","Reporte de avance de ejecución con soportes"]
[null,"Tramites para la suscripción de convenios, , Inicio de Actividades, ","Reporte de avance de ejecución con soportes","Reporte de avance de ejecución con soportes","Reporte de avance de ejecución con soportes"]
[null,"Tramites para la suscripción de convenios, , Inicio de Actividades, ","Reporte de avance de ejecución con soportes","Reporte de avance de ejecución con soportes","Reporte de avance de ejecución con soportes"]
[null,"Reporte de avance de ejecución con soportes","Reporte de avance de ejecución con soportes","Reporte de avance de ejecución con soportes","Reporte de avance de ejecución con soportes"]
[null,"Reporte de avance de ejecución con soportes","Reporte de avance de ejecución con soportes","Reporte de avance de ejecución con soportes","Reporte de avance de ejecución con soportes"]
[null,"Reporte de avance de ejecución con soportes","Reporte de avance de ejecución con soportes","Reporte de avance de ejecución con soportes","Reporte de avance de ejecución con soportes"]
[null,"Reporte de avance de ejecución con soportes","Reporte de avance de ejecución con soportes","Reporte de avance de ejecución con soportes","Reporte de avance de ejecución con soportes"]
[null,"Reporte de avance de ejecución con soportes","Reporte de avance de ejecución con soportes","Reporte de avance de ejecución con soportes","Reporte de avance de ejecución con soportes"]
[null,"Reporte de avance de ejecución con soportes","Reporte de avance de ejecución con soportes","Reporte de avance de ejecución con soportes","Reporte de avance de ejecución con soportes"]
[null,"Actualización información con soportes ","Finalización, liquidación, ","N/A","N/A"]
[null,"Tramites para la suscripción de convenios, , Inicio de Actividades, ","Reporte de avance de ejecución con soportes","Reporte de avance de ejecución con soportes","Reporte de avance de ejecución con soportes"]
[null,"Reporte de avance de ejecución con soportes","Reporte de avance de ejecución con soportes","Reporte de avance de ejecución con soportes","Reporte de avance de ejecución con soportes"]
[null,"Finalización, liquidación, ","N/A","N/A","N/A"]
[null,"Reporte de avance de ejecución con soportes","Reporte de avance de ejecución con soportes","Reporte de avance de ejecución con soportes","Reporte de avance de ejecución con soportes"]
[null,"Reporte de avance de ejecución con soportes","Reporte de avance de ejecución con soportes","Reporte de avance de ejecución con soportes","Reporte de avance de ejecución con soportes"]
[null,"Inicio de Actividades, , Reporte de avance de ejecución con soportes","Reporte de avance de ejecución con soportes","Reporte de avance de ejecución con soportes","Finalización, liquidación, "]
[null,"Reporte de avance de ejecución con soportes, Adición de recursos sujeto a  decisiones de la Entidad","Reporte de avance de ejecución con soportes","Reporte de avance de ejecución con soportes","Finalización, liquidación, "]
[null,"Actualización información con soportes ","Finalización, liquidación, ","N/A","N/A"]
[null,"Tramites para la suscripción de convenios, ","Reporte de avance de ejecución con soportes","Reporte de avance de ejecución con soportes","Reporte de avance de ejecución con soportes"]
[null,"Tramites para la suscripción de convenios, , Inicio de Actividades, ","Reporte de avance de ejecución con soportes","Reporte de avance de ejecución con soportes","Reporte de avance de ejecución con soportes"]
[null,"Tramites para la suscripción de convenios, , Inicio de Actividades, ","Reporte de avance de ejecución con soportes","Reporte de avance de ejecución con soportes","Reporte de avance de ejecución con soportes"]
[null,"Reporte de avance de ejecución con soportes","Reporte de avance de ejecución con soportes","Reporte de avance de ejecución con soportes","Reporte de avance de ejecución con soportes"]
[null,"Reporte de avance de ejecución con soportes","Reporte de avance de ejecución con soportes","Reporte de avance de ejecución con soportes","Reporte de avance de ejecución con soportes"]
[null,"Actualización información con soportes , Estructuración del proyecto, ","Viabilización del proyecto ante la cabeza del sector, , Tramites para la suscripción de convenios, ","Reporte de avance de ejecución con soportes","Reporte de avance de ejecución con soportes"]
[null,"Tramites para la suscripción de convenios, , Inicio de Actividades, ","Reporte de avance de ejecución con soportes","Reporte de avance de ejecución con soportes","Reporte de avance de ejecución con soportes"]
[null,"Tramites para la suscripción de convenios, , Inicio de Actividades, ","Reporte de avance de ejecución con soportes","Reporte de avance de ejecución con soportes","Reporte de avance de ejecución con soportes"]
[null,"Reporte de avance de ejecución con soportes","Reporte de avance de ejecución con soportes","Reporte de avance de ejecución con soportes","Reporte de avance de ejecución con soportes"]
[null,"Reporte de avance de ejecución con soportes","Reporte de avance de ejecución con soportes","Finalización, liquidación, ","N/A"]
[null,"Actualización información con soportes , Reporte de avance de ejecución con soportes","Reporte de avance de ejecución con soportes","Finalización, liquidación, ","N/A"]
[null,"Actualización información con soportes , Reporte de avance de ejecución con soportes","Reporte de avance de ejecución con soportes","Finalización, liquidación, ","N/A"]
[null,"Actualización información con soportes , Reporte de avance de ejecución con soportes","Reporte de avance de ejecución con soportes","Finalización, liquidación, ","N/A"]
[null,"Actualización información con soportes , Reporte de avance de ejecución con soportes","Reporte de avance de ejecución con soportes","Finalización, liquidación, ","N/A"]
[null,"Tramites para la suscripción de convenios, , Inicio de Actividades, ","Reporte de avance de ejecución con soportes","Reporte de avance de ejecución con soportes","Reporte de avance de ejecución con soportes"]
[null,"Tramites para la suscripción de convenios, , Inicio de Actividades, ","Reporte de avance de ejecución con soportes","Reporte de avance de ejecución con soportes","Reporte de avance de ejecución con soportes"]
[null,"Estructuración del proyecto, ","Estructuración del proyecto, ","Tramites para la suscripción de convenios, , Inicio de Actividades, ","Reporte de avance de ejecución con soportes"]
[null,"Reporte de avance de ejecución con soportes","Reporte de avance de ejecución con soportes","Finalización, liquidación, ","N/A"]
[null,"Tramites para la suscripción de convenios, , Inicio de Actividades, ","Reporte de avance de ejecución con soportes","Reporte de avance de ejecución con soportes","Reporte de avance de ejecución con soportes"]
[null,"Tramites para la suscripción de convenios, , Inicio de Actividades, ","Reporte de avance de ejecución con soportes","Reporte de avance de ejecución con soportes","Reporte de avance de ejecución con soportes"]
[null,"Reporte de avance de ejecución con soportes","Reporte de avance de ejecución con soportes","Reporte de avance de ejecución con soportes","Reporte de avance de ejecución con soportes"]
[null,"Priorización","Viabilización del proyecto ante la cabeza del sector, , Asignación de recursos, ","Tramites para la suscripción de convenios, ","Inicio de Actividades, , Reporte de avance de ejecución con soportes"]
[null,"Reporte de avance de ejecución con soportes","Reporte de avance de ejecución con soportes","Reporte de avance de ejecución con soportes","Reporte de avance de ejecución con soportes"]
[null,"Estructuración del proyecto, , Viabilización del proyecto ante la cabeza del sector, ","Gestión de recursos","Inicio de Actividades, , Reporte de avance de ejecución con soportes","Reporte de avance de ejecución con soportes"]
[null,"Estructuración del proyecto, ","Estructuración del proyecto, , Viabilización del proyecto ante la cabeza del sector, ","Gestión de recursos","Reporte de avance de ejecución con soportes"]
[null,"Estructuración del proyecto, ","Estructuración del proyecto, , Viabilización del proyecto ante la cabeza del sector, ","Gestión de recursos","Reporte de avance de ejecución con soportes"]
[null,"Tramites para la suscripción de convenios, , Reporte de avance de ejecución con soportes","Reporte de avance de ejecución con soportes","Reporte de avance de ejecución con soportes","Finalización, liquidación, "]
[null,"Actualización información con soportes , Reporte de avance de ejecución con soportes","Reporte de avance de ejecución con soportes","Reporte de avance de ejecución con soportes","Reporte de avance de ejecución con soportes"]
[null,"Reporte de avance de ejecución con soportes","Reporte de avance de ejecución con soportes","Reporte de avance de ejecución con soportes","Finalización, liquidación, "]
[null,"Presentación del proyecto ante la fuente de financiación, ","Estructuración del proyecto","Viabilización del proyecto ante la cabeza del sector","Revisión y aprobación del proyecto por la fuente de financiación"]
[null,"Reinicio de actividades, , Reporte de avance de ejecución con soportes","Reporte de avance de ejecución con soportes","Reporte de avance de ejecución con soportes","Reporte de avance de ejecución con soportes"]
[null,"Revisión técnica del proyecto por Sector ","Actualización información con soportes ","Revisión y aprobación del proyecto por la fuente de financiación","Viabilización del proyecto ante la cabeza del sector"]
[null,"Reporte de avance de ejecución con soportes, Actualización información con soportes ","Reporte de avance de ejecución con soportes","Reporte de avance de ejecución con soportes","Finalización, liquidación, "]
[null,"Reporte de avance de ejecución con soportes, Actualización información con soportes ","Reporte de avance de ejecución con soportes","Reporte de avance de ejecución con soportes","Finalización, liquidación, "]
[null,"Reporte de avance de ejecución con soportes, Actualización información con soportes ","Reporte de avance de ejecución con soportes","Reporte de avance de ejecución con soportes","Reporte de avance de ejecución con soportes"]
[null,"Reporte de avance de ejecución con soportes, Actualización información con soportes ","Reporte de avance de ejecución con soportes","Reporte de avance de ejecución con soportes","Reporte de avance de ejecución con soportes"]
[null,"Actualización información con soportes , Finalización, liquidación,  Presentación del proyecto ante la fuente de financiación","Actualización información con soportes , Finalización, liquidación, ","N/A","N/A"]
[null,"Revisión y aprobación del proyecto por la fuente de financiación, liquidación, Presentación de Proyecto","Actualización información con soportes ","Revisión y aprobación del proyecto por la fuente de financiación, Reporte de avance de ejecución con soportes","Viabilización del proyecto ante la cabeza del sector, Reporte de avance de ejecución con soportes"]
[null,"Tramites para la suscripción de convenios","Reporte de avance de ejecución con soportes","Reporte de avance de ejecución con soportes","Reporte de avance de ejecución con soportes"]
[null,"Revisión y aprobación del proyecto por la fuente de financiación, liquidación, Presentación de Proyecto","Reporte de avance de ejecución con soportes, Actualización información con soportes ","Revisión y aprobación del proyecto por la fuente de financiación, Reporte de avance de ejecución con soportes","Viabilización del proyecto ante la cabeza del sector, Reporte de avance de ejecución con soportes"]
[null,"Estructuración del proyecto","Estructuración del proyecto","Reporte de avance de ejecución con soportes","Reporte de avance de ejecución con soportes"]
[null,"Tramites para la suscripción de convenios","Estructuración del proyecto","Reporte de avance de ejecución con soportes","Reporte de avance de ejecución con soportes"]
[null,"Tramites para la suscripción de convenios","Estructuración del proyecto","Reporte de avance de ejecución con soportes","Reporte de avance de ejecución con soportes"]
[null,"Estructuración del proyecto","Estructuración del proyecto","Tramites para la suscripción de convenios","Reporte de avance de ejecución con soportes"]
[null,"Estructuración del proyecto","Estructuración del proyecto","Tramites para la suscripción de convenios","Reporte de avance de ejecución con soportes"]
[null,"Actualización información con soportes ","Actualización información con soportes ","Actualización información con soportes ","Actualización información con soportes "]
[null,"Reporte de avance de ejecución con soportes, Actualización información con soportes ","Reporte de avance de ejecución con soportes","Reporte de avance de ejecución con soportes","Reporte de avance de ejecución con soportes"]
[null,"Reporte de avance de ejecución con soportes, Actualización información con soportes ","Reporte de avance de ejecución con soportes","Reporte de avance de ejecución con soportes","Reporte de avance de ejecución con soportes"]
[null,"Reporte de avance de ejecución con soportes, Actualización información con soportes ","Finalización, liquidación, ","N/A","N/A"]
[null,"Reporte de avance de ejecución con soportes, Actualización información con soportes ","Finalización, liquidación, ","N/A","N/A"]
[null,"Inicio de Actividades, , Reporte de avance de ejecución con soportes","Reporte de avance de ejecución con soportes","Reporte de avance de ejecución con soportes","Reporte de avance de ejecución con soportes"]
[null,"Tramites para la suscripción de convenios, , Inicio de Actividades, ","Reporte de avance de ejecución con soportes","Reporte de avance de ejecución con soportes","Reporte de avance de ejecución con soportes"]
[null,"Tramites para la suscripción de convenios, , Inicio de Actividades, ","Reporte de avance de ejecución con soportes","Reporte de avance de ejecución con soportes","Reporte de avance de ejecución con soportes"]
[null,"Tramites para la suscripción de convenios, , Inicio de Actividades, ","Reporte de avance de ejecución con soportes","Reporte de avance de ejecución con soportes","Reporte de avance de ejecución con soportes"]
[null,"Tramites para la suscripción de convenios, , Inicio de Actividades, ","Reporte de avance de ejecución con soportes","Reporte de avance de ejecución con soportes","Reporte de avance de ejecución con soportes"]
[null,"Reporte de avance de ejecución con soportes","Reporte de avance de ejecución con soportes","Reporte de avance de ejecución con soportes","Reporte de avance de ejecución con soportes"]
[null,"Reporte de avance de ejecución con soportes","Reporte de avance de ejecución con soportes","Reporte de avance de ejecución con soportes","Reporte de avance de ejecución con soportes"]
[null,"Elaboración de CONPES, Estructuración del proyecto, ","Tramites para la suscripción de convenios, , Inicio de Actividades, ","Reporte de avance de ejecución con soportes","Reporte de avance de ejecución con soportes"]
[null,"Tramites de vigencias futuras, , Estructuración del proyecto, ","Tramites para la suscripción de convenios, , Inicio de Actividades, ","Tramites para la suscripción de convenios, ","Reporte de avance de ejecución con soportes"]
[null,"Gestión de recursos","Gestión de recursos","Gestión de recursos","Gestión de recursos"]
[null,"Gestión de recursos","Gestión de recursos","Gestión de recursos","Gestión de recursos"]
[null,"Actualización información con soportes , Reporte de avance de ejecución con soportes","Reporte de avance de ejecución con soportes","Reporte de avance de ejecución con soportes","Reporte de avance de ejecución con soportes"]
[null,"Actualización información con soportes , Reporte de avance de ejecución con soportes","Reporte de avance de ejecución con soportes","Reporte de avance de ejecución con soportes","Reporte de avance de ejecución con soportes"]
[null,"Tramites para la suscripción de convenios, , Inicio de Actividades, ","Reporte de avance de ejecución con soportes","Reporte de avance de ejecución con soportes","Reporte de avance de ejecución con soportes"]

{"sheet":"Hoja1","index":26,"n_rows":7,"n_cols":3,"rows_kept":7,"cut":false,"hidden":true,"merged":[[0,1,1,1],[0,2,1,2]]}
[null,"Etapa del Proyecto *","Fase del Proyecto *"]
[]
[null,"Preinversión","Fase I"]
[null,"Inversión","Fase II"]
[null,"Operación","Fase III"]
[null,null,"Ejecución"]
[null,null,"Terminado"]